Workbook

Sheet Ah lire...
A1: Préambule : Je vous partage mon modèle de fichier pour calculer la redevance SACEM que j’ai cherché à adapter à tous les cas des protocoles SMA que je vous soyez ETABLISSEMENT DE CONCERTS, FESTIVAL ou ORGANISTEUR DE SEANCES OCCASIONNELLES. Ces accords apportent des abattements complémentaires qui rendent le mode de calcul en fonction de chaque protocole, en fonction des jauges de salles, en fonction de la fourniture des factures, de la présence des frais d'approche dans les dépenses artistiques déclarées, d'éventuels abattements complémentaires négociés en commission paritaire ... assez complexe. Je me suis donc attelé à la tâche en créant un outil à la fois déclaratif et qui permette de calculer quelle sera le montant de la redevance SACEM qui nous sera facturée pour ces 3 protocoles. J’utilise ce fichier de comme outil déclaratif auprès de ma délégation régionale qui me l’a validé. Je vous partage cette nouvelle version de ce fichier auquel j’apporte quelques évolutions au fur et à mesure des évolutions des règles de la SACEM ou des différences de calcul qui feraient jour. Si vous repérez des choses à améliorer sur ce fichier, n’hésitez pas à m’en faire part par mail à : admin@passagersduzinc.com J’essaierais d’y apporter des réponses dans la limite de mes disponibilités… Gilles SINGEOT, LES PASSAGERS DU ZINC.
A3: _ | B3: Prévoir une copie du fichier par année d'exploitation.
A5: _ | B5: Le fichier comporte une premier onglet de "Paramètres" qui reprend tous les taux et autres éléments nécessaires au calcul de la redevance.
B6: C'est dans cet onglet qu'il vous faudra renseigner :
C7: * le nom de votre structure,
C8: * l'éventuel abattement complémentaire négocié pour ceux qui ont bénéficié d'une commission paritaire
C9: (adhérents SMA qui bénéficiaient de conditions au préalable plus avantageuse que ce que les protocoles SMA ont permis de négocier),
C10: * la liste des salles utilisées ainsi que les différentes jauges de ces salles dans leurs différentes configurations (dans les zones de couleur entre les lignes 104 et 147 en bas).
A12: _ | B12: Les onglets suivant sont les formulaires mensuels de déclaration et calcul de la redevance.
B13: Il suffit d'y renseigner :
C14: * Votre statut d'organisateur sur le mois (ETABLISSEMENT DE CONCERTS, un FESTIVAL ou un ORGANISATEUR DE SÉANCES OCCASIONNELLES) en utilisant le menu déroulant.
C15: * De renseigner toutes les zones en bleu ciel .
C16: * Le fichier calcul alors la redevance pour vos manifestations en signalant si le calcul retenu se fait sur les recettes, les dépenses ou sur le forfait minimum.
C17: * En bas de la feuille le total mensuel du est renseigné.
A19: _ | B19: Les Colonnes L et M ne sont à renseigner que si vous avez le statut d'ORGANISATEUR DE SÉANCES OCCASIONNELLES sur cete déclaration mensuelle,
C20: * En colonne L, renseignez pour la date vos frais technico-artistiques (Sonorisat°, éclairage, décors, costumes, location backline, matériel)
C21: & frais matériels d'accueil artistes et public (scène, gradins, aménagement…).
C22: * En colonne M, renseignez pour la date vosfrais de publicité et de communication : affiches, tracts, mailings, médias, véhicules publicitaires.
A24: _ | B24: Si vous avez le statut de FESTIVAL sur cette déclaration mensuelle, le montant de la redevance pour chaque jour sera masqué
B25: car celle-ci se retrouve calculée sur la totalité de la manifestation et non pas par journée.
B26: Le total dû apparaitra donc tout en bas du formulaire mensuel.
A28: _ | B28: Si sur un même mois vous cumulez plusieurs statuts d'organisateur, créez un formulaire par statut par duplication de l'onglet,
A30: _ | B30: La dernière feuille présente un récapitulatif annuel qu'il faudra rectifier si vous avez du dupliquer des onglet en raison d'un cumul de plusieurs statuts organisateur,
B31: Par exemple si vous êtes une SALLE avec une programmation au mois de juin en plus de l'organisation d'un FESTIVAL.
A33: _ | B33: La colonne programme joint permet de renseigner si le programme des œuvres est joint à la déclaration mensuelle (Oui ou Non)
B34: ou bien de noter le numéro de programme directement ce qui peut éviter de remplir le fameux feuillet jaune (ou blanc...).
A36: _ | B36: Les colonnes "factures ou fiche de paies fournies" et "frais d'approche inclus" sont dès l'inscription d'un nom de groupe renseignées par défaut avec "Oui",
B37: ce qui permet de bénéficier des 2 abattements respectifs de 10%.
B38: Si ce n'est pas le cas, il faut via le menu déroulant renseigner "Non" pour les artistes concernés
B39: ( ex : artistes en engagement direct qui de fait n'incluent pas de de frais d'approches dans leurs salaires...).
A41: _ | B41: Au vu de la taille du tableau, pour l'impression du formulaire, il est préférable de grouper (le petit -) les colonnes qui ne sont pas nécessaires à la SACEM
B42: et de grouper les série de lignes correspondant aux dates de concerts qui ne sont pas utilisées.
B43: Ensuite, une impression en PDF puis la signature de ce document permet de déclarer par mail vos états mensuels à la SACEM en joignant également vos justificatifs (factures, frais à déclarer...).
A45: _ | B45: Les modules de calcul peuvent très bien être intégrés à d'autres fichiers excel de prévisionnels de date par exemple,
B46: mais n'oubliez pas de copier la feuille des paramètres en même temps que le module de calcul sur le nouveau classeur.

Sheet Parametres
A1: CALCUL SACEM
A3: ANNEE | B3: 2024 | D3: Association MONASSO - MASMAC
A5: TABLEAU TAUX SACEM - Protocole SMA | C5: Etablissement de concerts | E5: Festival | G5: Séances occasionnelles
C6: Abattements | D6: Taux | E6: Abattements | F6: Taux | G6: Abattements | H6: Taux
A7: RECETTES ENTREES HT (BILLETTERIE) | B7: Taux général | D7: 0.11 | F7: 0.11 | H7: 0.11
B8: Abattement Contrat | C8: 0.2 | D8: =D7*(1-C8) -> 0.088 | E8: 0.2 | F8: =F7*(1-E8) -> 0.088 | G8: 0.2 | H8: =H7*(1-G8) -> 0.088
B9: Abattement Protocolaire SMA | C9: 0.12 | D9: =D8*(1-C9) -> 0.07744 | E9: 0.09 | F9: =F8*(1-E9) -> 0.08008 | G9: 0.09 | H9: =H8*(1-G9) -> 0.08008
B10: Abattement Commission paritaire SMA | C10: 0 | D10: =D9*(1-C10) -> 0.07744 | E10: 0 | F10: =F9*(1-E10) -> 0.08008 | G10: 0 | H10: =H9*(1-G10) -> 0.08008
B11: Majoration SMA relative aux offerts au delà de | C11: 0.1 | E11: 0.1 | G11: 0.05
C13: Etablissement de concerts | E13: Festival | G13: Séances occasionnelles
C14: Abattements | D14: Taux | E14: Abattements | F14: Taux | G14: Abattements | H14: Taux
A15: RECETTES ANNEXES HT (BAR) | B15: Taux général | D15: 0.11 | F15: 0.11 | H15: 0.11
B16: Abattement Contrat | C16: 0.2 | D16: =D15*(1-C16) -> 0.088 | E16: 0.2 | F16: =F15*(1-E16) -> 0.088 | G16: 0.2 | H16: =H15*(1-G16) -> 0.088
B17: Abattement Assiette Recettes Annexes | C17: 0.5 | D17: =D16*(1-C17) -> 0.044 | E17: 0.5 | F17: =F16*(1-E17) -> 0.044 | G17: 0.5 | H17: =H16*(1-G17) -> 0.044
B18: Abattement Protocolaire SMA | C18: 0.12 | D18: =D17*(1-C18) -> 0.03872 | E18: 0.09 | F18: =F17*(1-E18) -> 0.04004 | G18: 0.09 | H18: =H17*(1-G18) -> 0.04004
B19: Abattement Recettes Annexes SMA | C19: 0.13 | D19: =D18*(1-C19) -> 0.0336864 | E19: 0.2 | F19: =F18*(1-E19) -> 0.032032 | G19: 0 | H19: =H18*(1-G19) -> 0.04004
B20: Abattement Commission paritaire SMA | C20: 0 | D20: =D19*(1-C20) -> 0.0336864 | E20: 0 | F20: =F19*(1-E20) -> 0.032032 | G20: 0 | H20: =H19*(1-G20) -> 0.04004
B21: Majoration SMA relative aux offerts au delà de | C21: 0.1 | E21: 0.1 | G21: 0.05
C23: Etablissement de concerts
C24: Abattements | D24: Montant
A25: FORFAIT MINIMUM | B25: Forfait au tarif général | D25: 61.88
B26: Abattement Contrat | C26: 0.2 | D26: =D25*(1-C26) -> 49.504
B27: Abattement Protocolaire SMA | C27: 0.12 | D27: =ROUND(D26*(1-C27),2) -> 43.56
B28: Abattement Commission paritaire SMA | C28: 0 | D28: =ROUND(D27*(1-C28),2) -> 43.56
C31: FORFAIT MINIMUM ORGANISATEUR OCCASIONNEL / MONTANT DU BUDGET DES DÉPENSES | J31: Abattements sur FORFAITS MINIMU ORANISATEUR OCCASIONNEL | O31: FORFAIT MINIMUM ORGANISATEUR OCCASIONNEL / MONTANT DU BUDGET DES DÉPENSES
B32: 0 | C32: 1000.001 | D32: 1500.001 | E32: 2000.001 | F32: 3000.001 | G32: 4000.001 | H32: 5000.001 | O32: 1000 | Q32: 1500 | S32: 2000 | U32: 3000 | W32: 4000 | Y32: 5000
B33: PRIX D'ENTREE | C33: Tarif Réduit | D33: Tarif Réduit | E33: Tarif Réduit | F33: Tarif Réduit | G33: Tarif Réduit | H33: Tarif Réduit | K33: Taux | N33: PRIX D'ENTREE | O33: Tarif Général | P33: Tarif Réduit | Q33: Tarif Général | R33: Tarif Réduit | S33: Tarif Général | T33: Tarif Réduit | U33: Tarif Général | V33: Tarif Réduit | W33: Tarif Général | X33: Tarif Réduit | Y33: Tarif Général | Z33: Tarif Réduit
A34: FORFAIT MINIMUM ORGANISATEUR OCCASIONNEL | B34: 0 | C34: =ROUND(P34-P34*$K$34,2) -> 43.54 | D34: =ROUND(R34-R34*$K$34,2) -> 68.67 | E34: =ROUND(T34-T34*$K$34,2) -> 99.85 | F34: =ROUND(V34-V34*$K$34,2) -> 166.41 | G34: =ROUND(X34-X34*$K$34,2) -> 249.61 | H34: =ROUND(Z34-Z34*$K$34,2) -> 331.98 | J34: Abattement Protocolaire SMA | K34: 0.125 | M34: FORFAIT MINIMUM ORGANISATEUR OCCASIONNEL | N34: 0 | O34: 62.2 | P34: 49.76 | Q34: 98.1 | R34: 78.48 | S34: 142.64 | T34: 114.11 | U34: 237.72 | V34: 190.18 | W34: 356.59 | X34: 285.27 | Y34: 474.26 | Z34: 379.41
B35: 6.001 | C35: =ROUND(P35-P35*$K$34,2) -> 68.67 | D35: =ROUND(R35-R35*$K$35,2) -> 108.73 | E35: =ROUND(T35-T35*$K$35,2) -> 155.71 | F35: =ROUND(V35-V35*$K$35,2) -> 262.95 | G35: =ROUND(X35-X35*$K$35,2) -> 349.72 | H35: =ROUND(Z35-Z35*$K$35,2) -> 437.15 | J35: Abattement Protocolaire SMA | K35: 0.095 | N35: 6 | O35: 98.1 | P35: 78.48 | Q35: 150.18 | R35: 120.14 | S35: 215.08 | T35: 172.06 | U35: 363.19 | V35: 290.55 | W35: 483.04 | X35: 386.43 | Y35: 603.8 | Z35: 483.04
B36: 12.001 | C36: =ROUND(P36-P36*$K$35,2) -> 112 | D36: =ROUND(R36-R36*$K$35,2) -> 166.65 | E36: =ROUND(T36-T36*$K$35,2) -> 213.09 | F36: =ROUND(V36-V36*$K$35,2) -> 310.76 | G36: =ROUND(X36-X36*$K$35,2) -> 388.44 | H36: =ROUND(Z36-Z36*$K$35,2) -> 466.14 | N36: 12 | O36: 154.7 | P36: 123.76 | Q36: 230.18 | R36: 184.14 | S36: 294.32 | T36: 235.46 | U36: 429.22 | V36: 343.38 | W36: 536.52 | X36: 429.22 | Y36: 643.84 | Z36: 515.07
B37: 20.001 | C37: =ROUND(P37-P37*$K$35,2) -> 169.02 | D37: =ROUND(R37-R37*$K$35,2) -> 237.67 | E37: =ROUND(T37-T37*$K$35,2) -> 284.12 | F37: =ROUND(V37-V37*$K$35,2) -> 389.64 | G37: =ROUND(X37-X37*$K$35,2) -> 467.57 | H37: =ROUND(Z37-Z37*$K$35,2) -> 537.71 | N37: 20 | O37: 233.45 | P37: 186.76 | Q37: 328.28 | R37: 262.62 | S37: 392.43 | T37: 313.94 | U37: 538.17 | V37: 430.54 | W37: 645.81 | X37: 516.65 | Y37: 742.69 | Z37: 594.15
C40: Majoration relative aux offerts
C41: 0.05 | D41: 0.1 | E41: 0.025
C42: 0.15 | E42: 0.05
C43: 0.2 | E43: 0.1
C44: 0.2 | E44: 0.15 | F44: plafond
C47: Etablissement de concerts | E47: Festival | G47: Séances occasionnelles
C48: Abattements | E48: Abattements | G48: Abattements
A49: DEPENSES ENGAGEES HT | B49: Majoration du budget artistique HT | C49: Selon jauge de la salle | E49: 0.35 | G49: 0.25 | H49: ou au réel
B50: Abattement remise copies des Factures artistiques | C50: 0.1 | E50: 0.1 | G50: 0 | H50: avec frais techiques en +
B51: Abattement Fais d'approche (transports inclus) | C51: 0.1 | E51: 0.1 | G51: 0 | H51: et frais de communicat° en +
B55: MAJORATION FRAIS ARTISTIQUES JAUGE DE LA SALLE
B56: Jauge de la salle : | C56: jusqu'à | D56: 200 | E56: 0.2
B57: Jauge de la salle : | C57: 201 | D57: 400 | E57: 0.25
B58: Jauge de la salle : | C58: 401 | D58: 700 | E58: 0.3
B59: Jauge de la salle : | C59: plus de | D59: 700 | E59: 0.35
D60: Festivals | E60: =E49 -> 0.35
D61: Séance occasionnelle | E61: =G49 -> 0.25
B65: FACTURATION
B66: TVA | C66: 0.1
B67: AGESSA SS | C67: 0.01
B68: AGESSA CFP | C68: 0.001
A71: typedeseance
A72: payant
A73: gratuit
A76: typeorganisateur
A77: ETABLISSEMENT DE CONCERTS
A78: FESTIVAL
A79: ORGANISTEUR DE SEANCES OCCASIONNELLES
A82: Mois
A83: Janvier
A84: Février
A85: Mars
A86: Avril
A87: Mai
A88: Juin
A89: Juillet
A90: Août
A91: Septembre
A92: Octobre
A93: Novembre
A94: Décembre
A97: Redevancesur
A98: RECETTES
A99: DEPENSES
A100: FORFAIT MINI
A103: ListSalle | B103: ListJaugeSalle
A104: PLEIN AIR | B104: 200000
A105: STADE DE France | B105: 150000
A106: VELODROME | B106: 100000
A107: ARENA | B107: 50000
A108: ZENITH | B108: 20000
A109: OLYMPIA | B109: 3000
A110: MA SMAC | B110: 1000
A111: MON CLUB 1 | B111: 750
A112: MON CLUB 2 | B112: 450
A113: MON CLUB 3 | B113: 250
A114: MON CLUB 4 | B114: 150
A115: MON SALON | B115: 50
A116: MES TOILETTES | B116: 5
A118: WOODSTOCK | B118: 500000
A119: WORLD FLUTE DE PAN FESTIVAL | B119: 180
A150: OuiNon
A151: Oui
A152: Non

Sheet 01-Saisie Recettes&Depenses
A1: Nom de l'adhérent SMA | C1: =Parametres!D3 -> Association MONASSO - MASMAC | AJ1: V 1.0
A2: ETABLISSEMENT DE CONCERTS
A4: ETAT DES RECETTES REALISEES ET DEPENSES ENGAGEES (HT)
A6: Mois de | B6: Janvier | D6: Année | E6: =Parametres!B3 -> 2024 | F6: Nbre dates | G6: =COUNTA(A10:A135) -> 1
A8: Dates | B8: Nom de la Salle (ou Nom du festival) | C8: Jauge de la salle | D8: Nom des orchestres, groupes ou artistes | E8: Programme joint: oui/non ou n° de programme | F8: Dépenses Engagées | Q8: Type de séance | R8: Recettes Entrées | Z8: Recettes Annexes | AD8: Calcul redevance sur | AE8: Montant de la redevance
F9: Montants cession HT ou engagement | G9: Facture ou Fiche de paie fournie | H9: Frais d'approche inclus | I9: Montants Abattus | J9: Total Frais Artistiques | K9: Taux de majoration/ dépenses | L9: =IF(A2=Parametres!A79,"Total Frais Techniques","") ->  | M9: =IF(A2=Parametres!A79,"Total Frais Communicat°","") ->  | N9: Calcul Dépenses Engagées | O9: Taux redevance/ Dépenses | P9: Calcul redevance/ Dépenses | R9: Recettes Billetterie HT | S9: Nbre Total d'Entrées | T9: Nbre Entrées Payantes | U9: Nbre Entrées Gratuites | V9: % Entrées Gratuites | W9: % Majoration/ Entrées gratuites | X9: Taux redevance/ Billetterie | Y9: Calcul redevance/ Billetterie | Z9: Recettes Buvette HT | AA9: Autres recettes Annexes HT | AB9: Taux redevance /Recettes Annexes | AC9: Calcul redevance /Recettes Annexes | AE9: Montant Redevance HT | AF9: TVA | AG9: Redevance AGESSA SS | AH9: Redevance AGESSA CFP | AI9: TOTAL Redevance TTC
A10: 2023-01-01 | B10: MON CLUB 2 | C10: =IF(B10=0,"",VLOOKUP(B10,ListJaugeSalle,2,FALSE)) -> 450 | D10: BOB MARLEY | E10: Oui | F10: 1205 | G10: Oui | H10: Oui | I10: =IF(F10=0,"",IF(A$2=Parametres!A$77,IF(G10="Oui",IF(H10="Oui",F10-F10*Parametres!C$50-(F10-F10*Parametres!C$50)*Parametres!C$51,IF(H10="Non",F10-F10*Parametres!C$50,"")),IF(G10="Non",IF(H10="Oui",F10-F10*Parametres!C$51,IF(H10="Non",F10,"")))),IF(A$2=Parametres!A$78,IF(G10="Oui",IF(H10="Oui",F10-F10*Parametres!C$50-(F10-F10*Parametres!C$50)*Parametres!C$51,IF(H10="Non",F10-F10*Parametres!E$50,"")),IF(G10="Non",IF(H10="Oui",F10-F10*Parametres!E$51,IF(H10="Non",F10,"")))),IF(A$2=Parametres!A$79,IF(G10="Oui",IF(H10="Oui",F10-F10*Parametres!G$50-(F10-F10*Parametres!G$50)*Parametres!G$51,IF(H10="Non",F10-F10*Parametres!G$50,"")),IF(G10="Non",IF(H10="Oui",F10-F10*Parametres!G$51,IF(H10="Non",F10,"")))),"")))) -> 976.05 | J10: =IF(B10=0,"",SUM(I10:I15)) -> 976.05 | K10: =IF(C10="","",IF(A$2=Parametres!A$79,Parametres!E$61,IF(A$2=Parametres!A$78,Parametres!E$60,IF(C10<=Parametres!D$56,Parametres!E$56,IF(C10<=Parametres!D$57,Parametres!E$57,IF(C10<=Parametres!D$58,Parametres!E$58,IF(C10>Parametres!D$59,Parametres!E$59,""))))))) -> 0.3 | N10: =IF(B10="","",IF(A$2=Parametres!A$79,IF((L10+M10)>0,(J10+L10+M10),J10*(1+Parametres!G$49)),J10+J10*K10)) -> 1268.865 | O10: =IF(B10=0,"",IF(A$2=Parametres!A$77,Parametres!D$10,IF(A$2=Parametres!A$78,Parametres!F$10,IF(A$2=Parametres!A$79,Parametres!H$10,"")))) -> 0.07744 | P10: =IF(B10=0,"",O10*N10) -> 98.2609056 | Q10: =IF(R10>0,"payant",IF(B10=0,"","gratuit")) -> payant | R10: 185 | S10: =IF(B10=0,"",T10+U10) -> 60 | T10: 30 | U10: 30 | V10: =IF(Q10="gratuit","",IF(S10=0,0,IF(S10="","",U10/T10))) -> 1 | W10: =IF(Q10="gratuit","",IF(B10=0,"",IF(A$2=Parametres!A$77,IF(V10<Parametres!C$21,0,IF(V10<Parametres!D$41,Parametres!E$41,IF(V10<Parametres!C$42,Parametres!E$42,IF(V10<Parametres!C$43,Parametres!E$43,Parametres!E$44)))), IF(A$2=Parametres!A$78,IF(V10<Parametres!E$21,0,IF(V10<Parametres!D$41,Parametres!E$41,IF(V10<Parametres!C$42,Parametres!E$42,IF(V10<Parametres!C$43,Parametres!E$43,Parametres!E$44)))), IF(A$2=Parametres!A$79,IF(V10<Parametres!G$21,0,IF(V10<Parametres!D$41,Parametres!E$41,IF(V10<Parametres!C$42,Parametres!E$42,IF(V10<Parametres!C$43,Parametres!E$43,Parametres!E$44))))))))) -> 0.15 | X10: =IF(B10=0,"",IF(A$2=Parametres!A$77,Parametres!D$10,IF(A$2=Parametres!A$78,Parametres!F$10,IF(A$2=Parametres!A$79,Parametres!H$10,"")))) -> 0.07744 | Y10: =IF(B10=0,"",IF(Q10="gratuit",R10*X10,R10*X10+(R10*X10)*W10)) -> 16.47536 | Z10: 30 | AA10: 0 | AB10: =IF(B10=0,"",IF(A$2=Parametres!A$77,Parametres!D$20,IF(A$2=Parametres!A$78,Parametres!F$20,IF(A$2=Parametres!A$79,Parametres!H$20,"")))) -> 0.0336864 | AC10: =IF(B10=0,"",(Z10+AA10)*AB10) -> 1.010592 | AD10: =IF(A$2=Parametres!A$77,IF(B10=0,"",IF(P10>(Y10+AC10),IF(P10<Parametres!D$28,"FORFAIT MINI","DEPENSES"),IF((Y10+AC10)<Parametres!D$28,"FORFAIT MINI","RECETTES"))),IF(A$2=Parametres!A$78,"",IF(A$2=Parametres!A$79,IF(B10=0,"",IF(T10>0,IF(AND(R10/T10<20,N10<5000),"FORFAIT MINI S.O.",IF(P10>(Y10+AC10),IF(P10<Parametres!D$28,"FORFAIT MINI","DEPENSES"),IF((Y10+AC10)<Parametres!D$28,"FORFAIT MINI","RECETTES"))),IF(N10<5000,"FORFAIT MINI S.O.",IF(P10>(Y10+AC10),IF(P10<Parametres!D$28,"FORFAIT MINI","DEPENSES"),IF((Y10+AC10)<Parametres!D$28,"FORFAIT MINI","RECETTES")))))))) -> DEPENSES | AE10: =IF(T10>0,IF(AD10="FORFAIT MINI S.O.",INDEX(FSOTab,MATCH(R10/T10,FSOPrix,1)+1,MATCH(N10,FSOBudget,1)),IF(A$2=Parametres!A$78,"",IF(B10=0,"",ROUND(IF(P10>(Y10+AC10),IF(P10<Parametres!D$28,Parametres!D$28,P10),IF((Y10+AC10)<Parametres!D$28,Parametres!D$28,(Y10+AC10))),2)))),IF(AD10="FORFAIT MINI S.O.",INDEX(FSOTab,MATCH(0,FSOPrix,1)+1,MATCH(N10,FSOBudget,1)),IF(A$2=Parametres!A$78,"",IF(B10=0,"",ROUND(IF(P10>(Y10+AC10),IF(P10<Parametres!D$28,Parametres!D$28,P10),IF((Y10+AC10)<Parametres!D$28,Parametres!D$28,(Y10+AC10))),2))))) -> 98.26 | AF10: =IF(A$2=Parametres!A$78,"",IF(B10=0,"",ROUND(AE10*Parametres!C$66,2))) -> 9.83 | AG10: =IF(A$2=Parametres!A$78,"",IF(B10=0,"",ROUND(AE10*Parametres!C$67,2))) -> 0.98 | AH10: =IF(A$2=Parametres!A$78,"",IF(B10=0,"",ROUND(AE10*Parametres!C$68,2))) -> 0.1 | AI10: =IF(A$2=Parametres!A$78,"",IF(B10=0,"",SUM(ROUND(AE10,2),ROUND(AF10,2),ROUND(AG10,2),ROUND(AH10,2)))) -> 109.17
D11: NIRVANA | E11: Oui | G11: Oui | H11: Oui | I11: =IF(F11=0,"",IF(A$2=Parametres!A$77,IF(G11="Oui",IF(H11="Oui",F11-F11*Parametres!C$50-(F11-F11*Parametres!C$50)*Parametres!C$51,IF(H11="Non",F11-F11*Parametres!C$50,"")),IF(G11="Non",IF(H11="Oui",F11-F11*Parametres!C$51,IF(H11="Non",F11,"")))),IF(A$2=Parametres!A$78,IF(G11="Oui",IF(H11="Oui",F11-F11*Parametres!C$50-(F11-F11*Parametres!C$50)*Parametres!C$51,IF(H11="Non",F11-F11*Parametres!E$50,"")),IF(G11="Non",IF(H11="Oui",F11-F11*Parametres!E$51,IF(H11="Non",F11,"")))),IF(A$2=Parametres!A$79,IF(G11="Oui",IF(H11="Oui",F11-F11*Parametres!G$50-(F11-F11*Parametres!G$50)*Parametres!G$51,IF(H11="Non",F11-F11*Parametres!G$50,"")),IF(G11="Non",IF(H11="Oui",F11-F11*Parametres!G$51,IF(H11="Non",F11,"")))),"")))) ->  | J11: =IF(B11=0,"",SUM(I10:I15)) ->  | K11: =IF(C11="","",IF(A$2=Parametres!A$79,Parametres!E$61,IF(A$2=Parametres!A$78,Parametres!E$60,IF(C11<=Parametres!D$56,Parametres!E$56,IF(C11<=Parametres!D$57,Parametres!E$57,IF(C11<=Parametres!D$58,Parametres!E$58,IF(C11>Parametres!D$59,Parametres!E$59,""))))))) ->  | N11: =IF(B11="","",IF(A$2=Parametres!A$79,IF((L11+M11)>0,(J11+L11+M11),J11*(1+Parametres!G$49)),J11+J11*K11)) ->  | O11: =IF(B11=0,"",IF(A$2=Parametres!A$77,Parametres!D$10,IF(A$2=Parametres!A$78,Parametres!F$9,IF(A$2=Parametres!A$79,Parametres!H$9,"")))) ->  | V11: =IF(Q11="gratuit","",IF(S11=0,0,IF(S11="","",U11/T11))) ->  | W11: =IF(Q11="gratuit","",IF(B11=0,"",IF(A$2=Parametres!A$77,IF(V11<Parametres!C$21,0,IF(V11<Parametres!D$41,Parametres!E$41,IF(V11<Parametres!C$42,Parametres!E$42,IF(V11<Parametres!C$43,Parametres!E$43,Parametres!E$44)))), IF(A$2=Parametres!A$78,IF(V11<Parametres!E$21,0,IF(V11<Parametres!D$41,Parametres!E$41,IF(V11<Parametres!C$42,Parametres!E$42,IF(V11<Parametres!C$43,Parametres!E$43,Parametres!E$44)))), IF(A$2=Parametres!A$79,IF(V11<Parametres!G$21,0,IF(V11<Parametres!D$41,Parametres!E$41,IF(V11<Parametres!C$42,Parametres!E$42,IF(V11<Parametres!C$43,Parametres!E$43,Parametres!E$44))))))))) ->  | X11: =IF(B11=0,"",IF(A$2=Parametres!A$77,Parametres!D$10,IF(A$2=Parametres!A$78,Parametres!F$10,IF(A$2=Parametres!A$79,Parametres!H$10,"")))) ->  | AB11: =IF(B11=0,"",IF(A$2=Parametres!A$77,Parametres!D$20,IF(A$2=Parametres!A$78,Parametres!F$20,IF(A$2=Parametres!A$79,Parametres!H$20,"")))) ->  | AD11: =IF(A$2=Parametres!A$77,IF(B11=0,"",IF(P11>(Y11+AC11),IF(P11<Parametres!D$28,"FORFAIT MINI","DEPENSES"),IF((Y11+AC11)<Parametres!D$28,"FORFAIT MINI","RECETTES"))),IF(A$2=Parametres!A$78,"",IF(A$2=Parametres!A$79,IF(B11=0,"",IF(T11>0,IF(AND(R11/T11<20,N11<5000),"FORFAIT MINI S.O.",IF(P11>(Y11+AC11),IF(P11<Parametres!D$28,"FORFAIT MINI","DEPENSES"),IF((Y11+AC11)<Parametres!D$28,"FORFAIT MINI","RECETTES"))),IF(N11<5000,"FORFAIT MINI S.O.",IF(P11>(Y11+AC11),IF(P11<Parametres!D$28,"FORFAIT MINI","DEPENSES"),IF((Y11+AC11)<Parametres!D$28,"FORFAIT MINI","RECETTES")))))))) ->  | AE11: =IF(T11>0,IF(AD11="FORFAIT MINI S.O.",INDEX(FSOTab,MATCH(R11/T11,FSOPrix,1)+1,MATCH(N11,FSOBudget,1)),IF(A$2=Parametres!A$78,"",IF(B11=0,"",ROUND(IF(P11>(Y11+AC11),IF(P11<Parametres!D$28,Parametres!D$28,P11),IF((Y11+AC11)<Parametres!D$28,Parametres!D$28,(Y11+AC11))),2)))),IF(AD11="FORFAIT MINI S.O.",INDEX(FSOTab,MATCH(0,FSOPrix,1)+1,MATCH(N11,FSOBudget,1)),IF(A$2=Parametres!A$78,"",IF(B11=0,"",ROUND(IF(P11>(Y11+AC11),IF(P11<Parametres!D$28,Parametres!D$28,P11),IF((Y11+AC11)<Parametres!D$28,Parametres!D$28,(Y11+AC11))),2))))) ->  | AF11: =IF(A$2=Parametres!A$78,"",IF(B11=0,"",ROUND(AE11*Parametres!C$66,2))) ->  | AG11: =IF(A$2=Parametres!A$78,"",IF(B11=0,"",ROUND(AE11*Parametres!C$67,2))) ->  | AH11: =IF(A$2=Parametres!A$78,"",IF(B11=0,"",ROUND(AE11*Parametres!C$68,2))) ->  | AI11: =IF(A$2=Parametres!A$78,"",IF(B11=0,"",SUM(ROUND(AE11,2),ROUND(AF11,2),ROUND(AG11,2),ROUND(AH11,2)))) -> 
D12: JIMMY HENDRIX | E12: Oui | G12: Oui | H12: Oui | I12: =IF(F12=0,"",IF(A$2=Parametres!A$77,IF(G12="Oui",IF(H12="Oui",F12-F12*Parametres!C$50-(F12-F12*Parametres!C$50)*Parametres!C$51,IF(H12="Non",F12-F12*Parametres!C$50,"")),IF(G12="Non",IF(H12="Oui",F12-F12*Parametres!C$51,IF(H12="Non",F12,"")))),IF(A$2=Parametres!A$78,IF(G12="Oui",IF(H12="Oui",F12-F12*Parametres!C$50-(F12-F12*Parametres!C$50)*Parametres!C$51,IF(H12="Non",F12-F12*Parametres!E$50,"")),IF(G12="Non",IF(H12="Oui",F12-F12*Parametres!E$51,IF(H12="Non",F12,"")))),IF(A$2=Parametres!A$79,IF(G12="Oui",IF(H12="Oui",F12-F12*Parametres!G$50-(F12-F12*Parametres!G$50)*Parametres!G$51,IF(H12="Non",F12-F12*Parametres!G$50,"")),IF(G12="Non",IF(H12="Oui",F12-F12*Parametres!G$51,IF(H12="Non",F12,"")))),"")))) ->  | J12: =IF(B12=0,"",(I10:I15)) ->  | K12: =IF(C12="","",IF(A$2=Parametres!A$79,Parametres!E$61,IF(A$2=Parametres!A$78,Parametres!E$60,IF(C12<=Parametres!D$56,Parametres!E$56,IF(C12<=Parametres!D$57,Parametres!E$57,IF(C12<=Parametres!D$58,Parametres!E$58,IF(C12>Parametres!D$59,Parametres!E$59,""))))))) ->  | N12: =IF(B12="","",IF(A$2=Parametres!A$79,IF((L12+M12)>0,(J12+L12+M12),J12*(1+Parametres!G$49)),J12+J12*K12)) ->  | O12: =IF(B12=0,"",IF(A$2=Parametres!A$77,Parametres!D$10,IF(A$2=Parametres!A$78,Parametres!F$9,IF(A$2=Parametres!A$79,Parametres!H$9,"")))) ->  | W12: =IF(Q12="gratuit","",IF(B12=0,"",IF(A$2=Parametres!A$77,IF(V12<Parametres!C$21,0,IF(V12<Parametres!D$41,Parametres!E$41,IF(V12<Parametres!C$42,Parametres!E$42,IF(V12<Parametres!C$43,Parametres!E$43,Parametres!E$44)))), IF(A$2=Parametres!A$78,IF(V12<Parametres!E$21,0,IF(V12<Parametres!D$41,Parametres!E$41,IF(V12<Parametres!C$42,Parametres!E$42,IF(V12<Parametres!C$43,Parametres!E$43,Parametres!E$44)))), IF(A$2=Parametres!A$79,IF(V12<Parametres!G$21,0,IF(V12<Parametres!D$41,Parametres!E$41,IF(V12<Parametres!C$42,Parametres!E$42,IF(V12<Parametres!C$43,Parametres!E$43,Parametres!E$44))))))))) ->  | X12: =IF(B12=0,"",IF(A$2=Parametres!A$77,Parametres!D$10,IF(A$2=Parametres!A$78,Parametres!F$10,IF(A$2=Parametres!A$79,Parametres!H$10,"")))) ->  | AB12: =IF(B12=0,"",IF(A$2=Parametres!A$77,Parametres!D$20,IF(A$2=Parametres!A$78,Parametres!F$20,IF(A$2=Parametres!A$79,Parametres!H$20,"")))) ->  | AD12: =IF(A$2=Parametres!A$77,IF(B12=0,"",IF(P12>(Y12+AC12),IF(P12<Parametres!D$28,"FORFAIT MINI","DEPENSES"),IF((Y12+AC12)<Parametres!D$28,"FORFAIT MINI","RECETTES"))),IF(A$2=Parametres!A$78,"",IF(A$2=Parametres!A$79,IF(B12=0,"",IF(T12>0,IF(AND(R12/T12<20,N12<5000),"FORFAIT MINI S.O.",IF(P12>(Y12+AC12),IF(P12<Parametres!D$28,"FORFAIT MINI","DEPENSES"),IF((Y12+AC12)<Parametres!D$28,"FORFAIT MINI","RECETTES"))),IF(N12<5000,"FORFAIT MINI S.O.",IF(P12>(Y12+AC12),IF(P12<Parametres!D$28,"FORFAIT MINI","DEPENSES"),IF((Y12+AC12)<Parametres!D$28,"FORFAIT MINI","RECETTES")))))))) ->  | AE12: =IF(T12>0,IF(AD12="FORFAIT MINI S.O.",INDEX(FSOTab,MATCH(R12/T12,FSOPrix,1)+1,MATCH(N12,FSOBudget,1)),IF(A$2=Parametres!A$78,"",IF(B12=0,"",ROUND(IF(P12>(Y12+AC12),IF(P12<Parametres!D$28,Parametres!D$28,P12),IF((Y12+AC12)<Parametres!D$28,Parametres!D$28,(Y12+AC12))),2)))),IF(AD12="FORFAIT MINI S.O.",INDEX(FSOTab,MATCH(0,FSOPrix,1)+1,MATCH(N12,FSOBudget,1)),IF(A$2=Parametres!A$78,"",IF(B12=0,"",ROUND(IF(P12>(Y12+AC12),IF(P12<Parametres!D$28,Parametres!D$28,P12),IF((Y12+AC12)<Parametres!D$28,Parametres!D$28,(Y12+AC12))),2))))) ->  | AF12: =IF(A$2=Parametres!A$78,"",IF(B12=0,"",ROUND(AE12*Parametres!C$66,2))) ->  | AG12: =IF(A$2=Parametres!A$78,"",IF(B12=0,"",ROUND(AE12*Parametres!C$67,2))) ->  | AH12: =IF(A$2=Parametres!A$78,"",IF(B12=0,"",ROUND(AE12*Parametres!C$68,2))) ->  | AI12: =IF(A$2=Parametres!A$78,"",IF(B12=0,"",SUM(ROUND(AE12,2),ROUND(AF12,2),ROUND(AG12,2),ROUND(AH12,2)))) -> 
D13: SERGE GAINSBOURG | E13: 12525732 | G13: Oui | H13: Oui | I13: =IF(F13=0,"",IF(A$2=Parametres!A$77,IF(G13="Oui",IF(H13="Oui",F13-F13*Parametres!C$50-(F13-F13*Parametres!C$50)*Parametres!C$51,IF(H13="Non",F13-F13*Parametres!C$50,"")),IF(G13="Non",IF(H13="Oui",F13-F13*Parametres!C$51,IF(H13="Non",F13,"")))),IF(A$2=Parametres!A$78,IF(G13="Oui",IF(H13="Oui",F13-F13*Parametres!C$50-(F13-F13*Parametres!C$50)*Parametres!C$51,IF(H13="Non",F13-F13*Parametres!E$50,"")),IF(G13="Non",IF(H13="Oui",F13-F13*Parametres!E$51,IF(H13="Non",F13,"")))),IF(A$2=Parametres!A$79,IF(G13="Oui",IF(H13="Oui",F13-F13*Parametres!G$50-(F13-F13*Parametres!G$50)*Parametres!G$51,IF(H13="Non",F13-F13*Parametres!G$50,"")),IF(G13="Non",IF(H13="Oui",F13-F13*Parametres!G$51,IF(H13="Non",F13,"")))),"")))) ->  | J13: =IF(B13=0,"",SUM(I10:I15)) ->  | K13: =IF(C13="","",IF(A$2=Parametres!A$79,Parametres!E$61,IF(A$2=Parametres!A$78,Parametres!E$60,IF(C13<=Parametres!D$56,Parametres!E$56,IF(C13<=Parametres!D$57,Parametres!E$57,IF(C13<=Parametres!D$58,Parametres!E$58,IF(C13>Parametres!D$59,Parametres!E$59,""))))))) ->  | N13: =IF(B13="","",IF(A$2=Parametres!A$79,IF((L13+M13)>0,(J13+L13+M13),J13*(1+Parametres!G$49)),J13+J13*K13)) ->  | O13: =IF(B13=0,"",IF(A$2=Parametres!A$77,Parametres!D$10,IF(A$2=Parametres!A$78,Parametres!F$9,IF(A$2=Parametres!A$79,Parametres!H$9,"")))) ->  | W13: =IF(Q13="gratuit","",IF(B13=0,"",IF(A$2=Parametres!A$77,IF(V13<Parametres!C$21,0,IF(V13<Parametres!D$41,Parametres!E$41,IF(V13<Parametres!C$42,Parametres!E$42,IF(V13<Parametres!C$43,Parametres!E$43,Parametres!E$44)))), IF(A$2=Parametres!A$78,IF(V13<Parametres!E$21,0,IF(V13<Parametres!D$41,Parametres!E$41,IF(V13<Parametres!C$42,Parametres!E$42,IF(V13<Parametres!C$43,Parametres!E$43,Parametres!E$44)))), IF(A$2=Parametres!A$79,IF(V13<Parametres!G$21,0,IF(V13<Parametres!D$41,Parametres!E$41,IF(V13<Parametres!C$42,Parametres!E$42,IF(V13<Parametres!C$43,Parametres!E$43,Parametres!E$44))))))))) ->  | X13: =IF(B13=0,"",IF(A$2=Parametres!A$77,Parametres!D$10,IF(A$2=Parametres!A$78,Parametres!F$10,IF(A$2=Parametres!A$79,Parametres!H$10,"")))) ->  | AB13: =IF(B13=0,"",IF(A$2=Parametres!A$77,Parametres!D$20,IF(A$2=Parametres!A$78,Parametres!F$20,IF(A$2=Parametres!A$79,Parametres!H$20,"")))) ->  | AD13: =IF(A$2=Parametres!A$77,IF(B13=0,"",IF(P13>(Y13+AC13),IF(P13<Parametres!D$28,"FORFAIT MINI","DEPENSES"),IF((Y13+AC13)<Parametres!D$28,"FORFAIT MINI","RECETTES"))),IF(A$2=Parametres!A$78,"",IF(A$2=Parametres!A$79,IF(B13=0,"",IF(T13>0,IF(AND(R13/T13<20,N13<5000),"FORFAIT MINI S.O.",IF(P13>(Y13+AC13),IF(P13<Parametres!D$28,"FORFAIT MINI","DEPENSES"),IF((Y13+AC13)<Parametres!D$28,"FORFAIT MINI","RECETTES"))),IF(N13<5000,"FORFAIT MINI S.O.",IF(P13>(Y13+AC13),IF(P13<Parametres!D$28,"FORFAIT MINI","DEPENSES"),IF((Y13+AC13)<Parametres!D$28,"FORFAIT MINI","RECETTES")))))))) ->  | AE13: =IF(T13>0,IF(AD13="FORFAIT MINI S.O.",INDEX(FSOTab,MATCH(R13/T13,FSOPrix,1)+1,MATCH(N13,FSOBudget,1)),IF(A$2=Parametres!A$78,"",IF(B13=0,"",ROUND(IF(P13>(Y13+AC13),IF(P13<Parametres!D$28,Parametres!D$28,P13),IF((Y13+AC13)<Parametres!D$28,Parametres!D$28,(Y13+AC13))),2)))),IF(AD13="FORFAIT MINI S.O.",INDEX(FSOTab,MATCH(0,FSOPrix,1)+1,MATCH(N13,FSOBudget,1)),IF(A$2=Parametres!A$78,"",IF(B13=0,"",ROUND(IF(P13>(Y13+AC13),IF(P13<Parametres!D$28,Parametres!D$28,P13),IF((Y13+AC13)<Parametres!D$28,Parametres!D$28,(Y13+AC13))),2))))) ->  | AF13: =IF(A$2=Parametres!A$78,"",IF(B13=0,"",ROUND(AE13*Parametres!C$66,2))) ->  | AG13: =IF(A$2=Parametres!A$78,"",IF(B13=0,"",ROUND(AE13*Parametres!C$67,2))) ->  | AH13: =IF(A$2=Parametres!A$78,"",IF(B13=0,"",ROUND(AE13*Parametres!C$68,2))) ->  | AI13: =IF(A$2=Parametres!A$78,"",IF(B13=0,"",SUM(ROUND(AE13,2),ROUND(AF13,2),ROUND(AG13,2),ROUND(AH13,2)))) -> 
D14: JACQUES BREL | E14: Oui | G14: Oui | H14: Oui | I14: =IF(F14=0,"",IF(A$2=Parametres!A$77,IF(G14="Oui",IF(H14="Oui",F14-F14*Parametres!C$50-(F14-F14*Parametres!C$50)*Parametres!C$51,IF(H14="Non",F14-F14*Parametres!C$50,"")),IF(G14="Non",IF(H14="Oui",F14-F14*Parametres!C$51,IF(H14="Non",F14,"")))),IF(A$2=Parametres!A$78,IF(G14="Oui",IF(H14="Oui",F14-F14*Parametres!C$50-(F14-F14*Parametres!C$50)*Parametres!C$51,IF(H14="Non",F14-F14*Parametres!E$50,"")),IF(G14="Non",IF(H14="Oui",F14-F14*Parametres!E$51,IF(H14="Non",F14,"")))),IF(A$2=Parametres!A$79,IF(G14="Oui",IF(H14="Oui",F14-F14*Parametres!G$50-(F14-F14*Parametres!G$50)*Parametres!G$51,IF(H14="Non",F14-F14*Parametres!G$50,"")),IF(G14="Non",IF(H14="Oui",F14-F14*Parametres!G$51,IF(H14="Non",F14,"")))),"")))) ->  | J14: =IF(B14=0,"",SUM(I10:I15)) ->  | K14: =IF(C14="","",IF(A$2=Parametres!A$79,Parametres!E$61,IF(A$2=Parametres!A$78,Parametres!E$60,IF(C14<=Parametres!D$56,Parametres!E$56,IF(C14<=Parametres!D$57,Parametres!E$57,IF(C14<=Parametres!D$58,Parametres!E$58,IF(C14>Parametres!D$59,Parametres!E$59,""))))))) ->  | N14: =IF(B14="","",IF(A$2=Parametres!A$79,IF((L14+M14)>0,(J14+L14+M14),J14*(1+Parametres!G$49)),J14+J14*K14)) ->  | O14: =IF(B14=0,"",IF(A$2=Parametres!A$77,Parametres!D$10,IF(A$2=Parametres!A$78,Parametres!F$9,IF(A$2=Parametres!A$79,Parametres!H$9,"")))) ->  | W14: =IF(Q14="gratuit","",IF(B14=0,"",IF(A$2=Parametres!A$77,IF(V14<Parametres!C$21,0,IF(V14<Parametres!D$41,Parametres!E$41,IF(V14<Parametres!C$42,Parametres!E$42,IF(V14<Parametres!C$43,Parametres!E$43,Parametres!E$44)))), IF(A$2=Parametres!A$78,IF(V14<Parametres!E$21,0,IF(V14<Parametres!D$41,Parametres!E$41,IF(V14<Parametres!C$42,Parametres!E$42,IF(V14<Parametres!C$43,Parametres!E$43,Parametres!E$44)))), IF(A$2=Parametres!A$79,IF(V14<Parametres!G$21,0,IF(V14<Parametres!D$41,Parametres!E$41,IF(V14<Parametres!C$42,Parametres!E$42,IF(V14<Parametres!C$43,Parametres!E$43,Parametres!E$44))))))))) ->  | X14: =IF(B14=0,"",IF(A$2=Parametres!A$77,Parametres!D$10,IF(A$2=Parametres!A$78,Parametres!F$10,IF(A$2=Parametres!A$79,Parametres!H$10,"")))) ->  | AB14: =IF(B14=0,"",IF(A$2=Parametres!A$77,Parametres!D$20,IF(A$2=Parametres!A$78,Parametres!F$20,IF(A$2=Parametres!A$79,Parametres!H$20,"")))) ->  | AD14: =IF(A$2=Parametres!A$77,IF(B14=0,"",IF(P14>(Y14+AC14),IF(P14<Parametres!D$28,"FORFAIT MINI","DEPENSES"),IF((Y14+AC14)<Parametres!D$28,"FORFAIT MINI","RECETTES"))),IF(A$2=Parametres!A$78,"",IF(A$2=Parametres!A$79,IF(B14=0,"",IF(T14>0,IF(AND(R14/T14<20,N14<5000),"FORFAIT MINI S.O.",IF(P14>(Y14+AC14),IF(P14<Parametres!D$28,"FORFAIT MINI","DEPENSES"),IF((Y14+AC14)<Parametres!D$28,"FORFAIT MINI","RECETTES"))),IF(N14<5000,"FORFAIT MINI S.O.",IF(P14>(Y14+AC14),IF(P14<Parametres!D$28,"FORFAIT MINI","DEPENSES"),IF((Y14+AC14)<Parametres!D$28,"FORFAIT MINI","RECETTES")))))))) ->  | AE14: =IF(T14>0,IF(AD14="FORFAIT MINI S.O.",INDEX(FSOTab,MATCH(R14/T14,FSOPrix,1)+1,MATCH(N14,FSOBudget,1)),IF(A$2=Parametres!A$78,"",IF(B14=0,"",ROUND(IF(P14>(Y14+AC14),IF(P14<Parametres!D$28,Parametres!D$28,P14),IF((Y14+AC14)<Parametres!D$28,Parametres!D$28,(Y14+AC14))),2)))),IF(AD14="FORFAIT MINI S.O.",INDEX(FSOTab,MATCH(0,FSOPrix,1)+1,MATCH(N14,FSOBudget,1)),IF(A$2=Parametres!A$78,"",IF(B14=0,"",ROUND(IF(P14>(Y14+AC14),IF(P14<Parametres!D$28,Parametres!D$28,P14),IF((Y14+AC14)<Parametres!D$28,Parametres!D$28,(Y14+AC14))),2))))) ->  | AF14: =IF(A$2=Parametres!A$78,"",IF(B14=0,"",ROUND(AE14*Parametres!C$66,2))) ->  | AG14: =IF(A$2=Parametres!A$78,"",IF(B14=0,"",ROUND(AE14*Parametres!C$67,2))) ->  | AH14: =IF(A$2=Parametres!A$78,"",IF(B14=0,"",ROUND(AE14*Parametres!C$68,2))) ->  | AI14: =IF(A$2=Parametres!A$78,"",IF(B14=0,"",SUM(ROUND(AE14,2),ROUND(AF14,2),ROUND(AG14,2),ROUND(AH14,2)))) -> 
D15: MIREILLE MATHIEU | E15: Oui | G15: Oui | H15: Oui | I15: =IF(F15=0,"",IF(A$2=Parametres!A$77,IF(G15="Oui",IF(H15="Oui",F15-F15*Parametres!C$50-(F15-F15*Parametres!C$50)*Parametres!C$51,IF(H15="Non",F15-F15*Parametres!C$50,"")),IF(G15="Non",IF(H15="Oui",F15-F15*Parametres!C$51,IF(H15="Non",F15,"")))),IF(A$2=Parametres!A$78,IF(G15="Oui",IF(H15="Oui",F15-F15*Parametres!C$50-(F15-F15*Parametres!C$50)*Parametres!C$51,IF(H15="Non",F15-F15*Parametres!E$50,"")),IF(G15="Non",IF(H15="Oui",F15-F15*Parametres!E$51,IF(H15="Non",F15,"")))),IF(A$2=Parametres!A$79,IF(G15="Oui",IF(H15="Oui",F15-F15*Parametres!G$50-(F15-F15*Parametres!G$50)*Parametres!G$51,IF(H15="Non",F15-F15*Parametres!G$50,"")),IF(G15="Non",IF(H15="Oui",F15-F15*Parametres!G$51,IF(H15="Non",F15,"")))),"")))) ->  | J15: =IF(B15=0,"",SUM(I10:I15)) ->  | K15: =IF(C15="","",IF(A$2=Parametres!A$79,Parametres!E$61,IF(A$2=Parametres!A$78,Parametres!E$60,IF(C15<=Parametres!D$56,Parametres!E$56,IF(C15<=Parametres!D$57,Parametres!E$57,IF(C15<=Parametres!D$58,Parametres!E$58,IF(C15>Parametres!D$59,Parametres!E$59,""))))))) ->  | N15: =IF(B15="","",IF(A$2=Parametres!A$79,IF((L15+M15)>0,(J15+L15+M15),J15*(1+Parametres!G$49)),J15+J15*K15)) ->  | O15: =IF(B15=0,"",IF(A$2=Parametres!A$77,Parametres!D$10,IF(A$2=Parametres!A$78,Parametres!F$9,IF(A$2=Parametres!A$79,Parametres!H$9,"")))) ->  | W15: =IF(Q15="gratuit","",IF(B15=0,"",IF(A$2=Parametres!A$77,IF(V15<Parametres!C$21,0,IF(V15<Parametres!D$41,Parametres!E$41,IF(V15<Parametres!C$42,Parametres!E$42,IF(V15<Parametres!C$43,Parametres!E$43,Parametres!E$44)))), IF(A$2=Parametres!A$78,IF(V15<Parametres!E$21,0,IF(V15<Parametres!D$41,Parametres!E$41,IF(V15<Parametres!C$42,Parametres!E$42,IF(V15<Parametres!C$43,Parametres!E$43,Parametres!E$44)))), IF(A$2=Parametres!A$79,IF(V15<Parametres!G$21,0,IF(V15<Parametres!D$41,Parametres!E$41,IF(V15<Parametres!C$42,Parametres!E$42,IF(V15<Parametres!C$43,Parametres!E$43,Parametres!E$44))))))))) ->  | X15: =IF(B15=0,"",IF(A$2=Parametres!A$77,Parametres!D$10,IF(A$2=Parametres!A$78,Parametres!F$10,IF(A$2=Parametres!A$79,Parametres!H$10,"")))) ->  | AB15: =IF(B15=0,"",IF(A$2=Parametres!A$77,Parametres!D$20,IF(A$2=Parametres!A$78,Parametres!F$20,IF(A$2=Parametres!A$79,Parametres!H$20,"")))) ->  | AD15: =IF(A$2=Parametres!A$77,IF(B15=0,"",IF(P15>(Y15+AC15),IF(P15<Parametres!D$28,"FORFAIT MINI","DEPENSES"),IF((Y15+AC15)<Parametres!D$28,"FORFAIT MINI","RECETTES"))),IF(A$2=Parametres!A$78,"",IF(A$2=Parametres!A$79,IF(B15=0,"",IF(T15>0,IF(AND(R15/T15<20,N15<5000),"FORFAIT MINI S.O.",IF(P15>(Y15+AC15),IF(P15<Parametres!D$28,"FORFAIT MINI","DEPENSES"),IF((Y15+AC15)<Parametres!D$28,"FORFAIT MINI","RECETTES"))),IF(N15<5000,"FORFAIT MINI S.O.",IF(P15>(Y15+AC15),IF(P15<Parametres!D$28,"FORFAIT MINI","DEPENSES"),IF((Y15+AC15)<Parametres!D$28,"FORFAIT MINI","RECETTES")))))))) ->  | AE15: =IF(T15>0,IF(AD15="FORFAIT MINI S.O.",INDEX(FSOTab,MATCH(R15/T15,FSOPrix,1)+1,MATCH(N15,FSOBudget,1)),IF(A$2=Parametres!A$78,"",IF(B15=0,"",ROUND(IF(P15>(Y15+AC15),IF(P15<Parametres!D$28,Parametres!D$28,P15),IF((Y15+AC15)<Parametres!D$28,Parametres!D$28,(Y15+AC15))),2)))),IF(AD15="FORFAIT MINI S.O.",INDEX(FSOTab,MATCH(0,FSOPrix,1)+1,MATCH(N15,FSOBudget,1)),IF(A$2=Parametres!A$78,"",IF(B15=0,"",ROUND(IF(P15>(Y15+AC15),IF(P15<Parametres!D$28,Parametres!D$28,P15),IF((Y15+AC15)<Parametres!D$28,Parametres!D$28,(Y15+AC15))),2))))) ->  | AF15: =IF(A$2=Parametres!A$78,"",IF(B15=0,"",ROUND(AE15*Parametres!C$66,2))) ->  | AG15: =IF(A$2=Parametres!A$78,"",IF(B15=0,"",ROUND(AE15*Parametres!C$67,2))) ->  | AH15: =IF(A$2=Parametres!A$78,"",IF(B15=0,"",ROUND(AE15*Parametres!C$68,2))) ->  | AI15: =IF(A$2=Parametres!A$78,"",IF(B15=0,"",SUM(ROUND(AE15,2),ROUND(AF15,2),ROUND(AG15,2),ROUND(AH15,2)))) -> 
C17: =IF(B17=0,"",VLOOKUP(B17,ListJaugeSalle,2,FALSE)) ->  | I17: =IF(F17=0,"",IF(A$2=Parametres!A$77,IF(G17="Oui",IF(H17="Oui",F17-F17*Parametres!C$50-(F17-F17*Parametres!C$50)*Parametres!C$51,IF(H17="Non",F17-F17*Parametres!C$50,"")),IF(G17="Non",IF(H17="Oui",F17-F17*Parametres!C$51,IF(H17="Non",F17,"")))),IF(A$2=Parametres!A$78,IF(G17="Oui",IF(H17="Oui",F17-F17*Parametres!C$50-(F17-F17*Parametres!C$50)*Parametres!C$51,IF(H17="Non",F17-F17*Parametres!E$50,"")),IF(G17="Non",IF(H17="Oui",F17-F17*Parametres!E$51,IF(H17="Non",F17,"")))),IF(A$2=Parametres!A$79,IF(G17="Oui",IF(H17="Oui",F17-F17*Parametres!G$50-(F17-F17*Parametres!G$50)*Parametres!G$51,IF(H17="Non",F17-F17*Parametres!G$50,"")),IF(G17="Non",IF(H17="Oui",F17-F17*Parametres!G$51,IF(H17="Non",F17,"")))),"")))) ->  | J17: =IF(B17=0,"",SUM(I17:I22)) ->  | K17: =IF(C17="","",IF(A$2=Parametres!A$79,Parametres!E$61,IF(A$2=Parametres!A$78,Parametres!E$60,IF(C17<=Parametres!D$56,Parametres!E$56,IF(C17<=Parametres!D$57,Parametres!E$57,IF(C17<=Parametres!D$58,Parametres!E$58,IF(C17>Parametres!D$59,Parametres!E$59,""))))))) ->  | N17: =IF(B17="","",IF(A$2=Parametres!A$79,IF((L17+M17)>0,(J17+L17+M17),J17*(1+Parametres!G$49)),J17+J17*K17)) ->  | O17: =IF(B17=0,"",IF(A$2=Parametres!A$77,Parametres!D$10,IF(A$2=Parametres!A$78,Parametres!F$10,IF(A$2=Parametres!A$79,Parametres!H$10,"")))) ->  | P17: =IF(B17=0,"",O17*N17) ->  | Q17: =IF(R17>0,"payant",IF(B17=0,"","gratuit")) ->  | S17: =IF(B17=0,"",T17+U17) ->  | V17: =IF(Q17="gratuit","",IF(S17=0,0,IF(S17="","",U17/T17))) ->  | W17: =IF(Q17="gratuit","",IF(B17=0,"",IF(A$2=Parametres!A$77,IF(V17<Parametres!C$21,0,IF(V17<Parametres!D$41,Parametres!E$41,IF(V17<Parametres!C$42,Parametres!E$42,IF(V17<Parametres!C$43,Parametres!E$43,Parametres!E$44)))), IF(A$2=Parametres!A$78,IF(V17<Parametres!E$21,0,IF(V17<Parametres!D$41,Parametres!E$41,IF(V17<Parametres!C$42,Parametres!E$42,IF(V17<Parametres!C$43,Parametres!E$43,Parametres!E$44)))), IF(A$2=Parametres!A$79,IF(V17<Parametres!G$21,0,IF(V17<Parametres!D$41,Parametres!E$41,IF(V17<Parametres!C$42,Parametres!E$42,IF(V17<Parametres!C$43,Parametres!E$43,Parametres!E$44))))))))) ->  | X17: =IF(B17=0,"",IF(A$2=Parametres!A$77,Parametres!D$10,IF(A$2=Parametres!A$78,Parametres!F$10,IF(A$2=Parametres!A$79,Parametres!H$10,"")))) ->  | Y17: =IF(B17=0,"",IF(Q17="gratuit",R17*X17,R17*X17+(R17*X17)*W17)) ->  | AB17: =IF(B17=0,"",IF(A$2=Parametres!A$77,Parametres!D$20,IF(A$2=Parametres!A$78,Parametres!F$20,IF(A$2=Parametres!A$79,Parametres!H$20,"")))) ->  | AC17: =IF(B17=0,"",(Z17+AA17)*AB17) ->  | AD17: =IF(A$2=Parametres!A$77,IF(B17=0,"",IF(P17>(Y17+AC17),IF(P17<Parametres!D$28,"FORFAIT MINI","DEPENSES"),IF((Y17+AC17)<Parametres!D$28,"FORFAIT MINI","RECETTES"))),IF(A$2=Parametres!A$78,"",IF(A$2=Parametres!A$79,IF(B17=0,"",IF(T17>0,IF(AND(R17/T17<20,N17<5000),"FORFAIT MINI S.O.",IF(P17>(Y17+AC17),IF(P17<Parametres!D$28,"FORFAIT MINI","DEPENSES"),IF((Y17+AC17)<Parametres!D$28,"FORFAIT MINI","RECETTES"))),IF(N17<5000,"FORFAIT MINI S.O.",IF(P17>(Y17+AC17),IF(P17<Parametres!D$28,"FORFAIT MINI","DEPENSES"),IF((Y17+AC17)<Parametres!D$28,"FORFAIT MINI","RECETTES")))))))) ->  | AE17: =IF(T17>0,IF(AD17="FORFAIT MINI S.O.",INDEX(FSOTab,MATCH(R17/T17,FSOPrix,1)+1,MATCH(N17,FSOBudget,1)),IF(A$2=Parametres!A$78,"",IF(B17=0,"",ROUND(IF(P17>(Y17+AC17),IF(P17<Parametres!D$28,Parametres!D$28,P17),IF((Y17+AC17)<Parametres!D$28,Parametres!D$28,(Y17+AC17))),2)))),IF(AD17="FORFAIT MINI S.O.",INDEX(FSOTab,MATCH(0,FSOPrix,1)+1,MATCH(N17,FSOBudget,1)),IF(A$2=Parametres!A$78,"",IF(B17=0,"",ROUND(IF(P17>(Y17+AC17),IF(P17<Parametres!D$28,Parametres!D$28,P17),IF((Y17+AC17)<Parametres!D$28,Parametres!D$28,(Y17+AC17))),2))))) ->  | AF17: =IF(A$2=Parametres!A$78,"",IF(B17=0,"",ROUND(AE17*Parametres!C$66,2))) ->  | AG17: =IF(A$2=Parametres!A$78,"",IF(B17=0,"",ROUND(AE17*Parametres!C$67,2))) ->  | AH17: =IF(A$2=Parametres!A$78,"",IF(B17=0,"",ROUND(AE17*Parametres!C$68,2))) ->  | AI17: =IF(A$2=Parametres!A$78,"",IF(B17=0,"",SUM(ROUND(AE17,2),ROUND(AF17,2),ROUND(AG17,2),ROUND(AH17,2)))) -> 
I18: =IF(F18=0,"",IF(A$2=Parametres!A$77,IF(G18="Oui",IF(H18="Oui",F18-F18*Parametres!C$50-(F18-F18*Parametres!C$50)*Parametres!C$51,IF(H18="Non",F18-F18*Parametres!C$50,"")),IF(G18="Non",IF(H18="Oui",F18-F18*Parametres!C$51,IF(H18="Non",F18,"")))),IF(A$2=Parametres!A$78,IF(G18="Oui",IF(H18="Oui",F18-F18*Parametres!C$50-(F18-F18*Parametres!C$50)*Parametres!C$51,IF(H18="Non",F18-F18*Parametres!E$50,"")),IF(G18="Non",IF(H18="Oui",F18-F18*Parametres!E$51,IF(H18="Non",F18,"")))),IF(A$2=Parametres!A$79,IF(G18="Oui",IF(H18="Oui",F18-F18*Parametres!G$50-(F18-F18*Parametres!G$50)*Parametres!G$51,IF(H18="Non",F18-F18*Parametres!G$50,"")),IF(G18="Non",IF(H18="Oui",F18-F18*Parametres!G$51,IF(H18="Non",F18,"")))),"")))) ->  | J18: =IF(B18=0,"",SUM(I17:I22)) ->  | K18: =IF(C18="","",IF(A$2=Parametres!A$79,Parametres!E$61,IF(A$2=Parametres!A$78,Parametres!E$60,IF(C18<=Parametres!D$56,Parametres!E$56,IF(C18<=Parametres!D$57,Parametres!E$57,IF(C18<=Parametres!D$58,Parametres!E$58,IF(C18>Parametres!D$59,Parametres!E$59,""))))))) ->  | N18: =IF(B18="","",IF(A$2=Parametres!A$79,IF((L18+M18)>0,(J18+L18+M18),J18*(1+Parametres!G$49)),J18+J18*K18)) ->  | O18: =IF(B18=0,"",IF(A$2=Parametres!A$77,Parametres!D$10,IF(A$2=Parametres!A$78,Parametres!F$9,IF(A$2=Parametres!A$79,Parametres!H$9,"")))) ->  | V18: =IF(Q18="gratuit","",IF(S18=0,0,IF(S18="","",U18/T18))) ->  | W18: =IF(Q18="gratuit","",IF(B18=0,"",IF(A$2=Parametres!A$77,IF(V18<Parametres!C$21,0,IF(V18<Parametres!D$41,Parametres!E$41,IF(V18<Parametres!C$42,Parametres!E$42,IF(V18<Parametres!C$43,Parametres!E$43,Parametres!E$44)))), IF(A$2=Parametres!A$78,IF(V18<Parametres!E$21,0,IF(V18<Parametres!D$41,Parametres!E$41,IF(V18<Parametres!C$42,Parametres!E$42,IF(V18<Parametres!C$43,Parametres!E$43,Parametres!E$44)))), IF(A$2=Parametres!A$79,IF(V18<Parametres!G$21,0,IF(V18<Parametres!D$41,Parametres!E$41,IF(V18<Parametres!C$42,Parametres!E$42,IF(V18<Parametres!C$43,Parametres!E$43,Parametres!E$44))))))))) ->  | X18: =IF(B18=0,"",IF(A$2=Parametres!A$77,Parametres!D$10,IF(A$2=Parametres!A$78,Parametres!F$10,IF(A$2=Parametres!A$79,Parametres!H$10,"")))) ->  | AB18: =IF(B18=0,"",IF(A$2=Parametres!A$77,Parametres!D$20,IF(A$2=Parametres!A$78,Parametres!F$20,IF(A$2=Parametres!A$79,Parametres!H$20,"")))) ->  | AD18: =IF(A$2=Parametres!A$77,IF(B18=0,"",IF(P18>(Y18+AC18),IF(P18<Parametres!D$28,"FORFAIT MINI","DEPENSES"),IF((Y18+AC18)<Parametres!D$28,"FORFAIT MINI","RECETTES"))),IF(A$2=Parametres!A$78,"",IF(A$2=Parametres!A$79,IF(B18=0,"",IF(T18>0,IF(AND(R18/T18<20,N18<5000),"FORFAIT MINI S.O.",IF(P18>(Y18+AC18),IF(P18<Parametres!D$28,"FORFAIT MINI","DEPENSES"),IF((Y18+AC18)<Parametres!D$28,"FORFAIT MINI","RECETTES"))),IF(N18<5000,"FORFAIT MINI S.O.",IF(P18>(Y18+AC18),IF(P18<Parametres!D$28,"FORFAIT MINI","DEPENSES"),IF((Y18+AC18)<Parametres!D$28,"FORFAIT MINI","RECETTES")))))))) ->  | AE18: =IF(T18>0,IF(AD18="FORFAIT MINI S.O.",INDEX(FSOTab,MATCH(R18/T18,FSOPrix,1)+1,MATCH(N18,FSOBudget,1)),IF(A$2=Parametres!A$78,"",IF(B18=0,"",ROUND(IF(P18>(Y18+AC18),IF(P18<Parametres!D$28,Parametres!D$28,P18),IF((Y18+AC18)<Parametres!D$28,Parametres!D$28,(Y18+AC18))),2)))),IF(AD18="FORFAIT MINI S.O.",INDEX(FSOTab,MATCH(0,FSOPrix,1)+1,MATCH(N18,FSOBudget,1)),IF(A$2=Parametres!A$78,"",IF(B18=0,"",ROUND(IF(P18>(Y18+AC18),IF(P18<Parametres!D$28,Parametres!D$28,P18),IF((Y18+AC18)<Parametres!D$28,Parametres!D$28,(Y18+AC18))),2))))) ->  | AF18: =IF(A$2=Parametres!A$78,"",IF(B18=0,"",ROUND(AE18*Parametres!C$66,2))) ->  | AG18: =IF(A$2=Parametres!A$78,"",IF(B18=0,"",ROUND(AE18*Parametres!C$67,2))) ->  | AH18: =IF(A$2=Parametres!A$78,"",IF(B18=0,"",ROUND(AE18*Parametres!C$68,2))) ->  | AI18: =IF(A$2=Parametres!A$78,"",IF(B18=0,"",SUM(ROUND(AE18,2),ROUND(AF18,2),ROUND(AG18,2),ROUND(AH18,2)))) -> 
I19: =IF(F19=0,"",IF(A$2=Parametres!A$77,IF(G19="Oui",IF(H19="Oui",F19-F19*Parametres!C$50-(F19-F19*Parametres!C$50)*Parametres!C$51,IF(H19="Non",F19-F19*Parametres!C$50,"")),IF(G19="Non",IF(H19="Oui",F19-F19*Parametres!C$51,IF(H19="Non",F19,"")))),IF(A$2=Parametres!A$78,IF(G19="Oui",IF(H19="Oui",F19-F19*Parametres!C$50-(F19-F19*Parametres!C$50)*Parametres!C$51,IF(H19="Non",F19-F19*Parametres!E$50,"")),IF(G19="Non",IF(H19="Oui",F19-F19*Parametres!E$51,IF(H19="Non",F19,"")))),IF(A$2=Parametres!A$79,IF(G19="Oui",IF(H19="Oui",F19-F19*Parametres!G$50-(F19-F19*Parametres!G$50)*Parametres!G$51,IF(H19="Non",F19-F19*Parametres!G$50,"")),IF(G19="Non",IF(H19="Oui",F19-F19*Parametres!G$51,IF(H19="Non",F19,"")))),"")))) ->  | J19: =IF(B19=0,"",(I17:I22)) ->  | K19: =IF(C19="","",IF(A$2=Parametres!A$79,Parametres!E$61,IF(A$2=Parametres!A$78,Parametres!E$60,IF(C19<=Parametres!D$56,Parametres!E$56,IF(C19<=Parametres!D$57,Parametres!E$57,IF(C19<=Parametres!D$58,Parametres!E$58,IF(C19>Parametres!D$59,Parametres!E$59,""))))))) ->  | N19: =IF(B19="","",IF(A$2=Parametres!A$79,IF((L19+M19)>0,(J19+L19+M19),J19*(1+Parametres!G$49)),J19+J19*K19)) ->  | O19: =IF(B19=0,"",IF(A$2=Parametres!A$77,Parametres!D$10,IF(A$2=Parametres!A$78,Parametres!F$9,IF(A$2=Parametres!A$79,Parametres!H$9,"")))) ->  | W19: =IF(Q19="gratuit","",IF(B19=0,"",IF(A$2=Parametres!A$77,IF(V19<Parametres!C$21,0,IF(V19<Parametres!D$41,Parametres!E$41,IF(V19<Parametres!C$42,Parametres!E$42,IF(V19<Parametres!C$43,Parametres!E$43,Parametres!E$44)))), IF(A$2=Parametres!A$78,IF(V19<Parametres!E$21,0,IF(V19<Parametres!D$41,Parametres!E$41,IF(V19<Parametres!C$42,Parametres!E$42,IF(V19<Parametres!C$43,Parametres!E$43,Parametres!E$44)))), IF(A$2=Parametres!A$79,IF(V19<Parametres!G$21,0,IF(V19<Parametres!D$41,Parametres!E$41,IF(V19<Parametres!C$42,Parametres!E$42,IF(V19<Parametres!C$43,Parametres!E$43,Parametres!E$44))))))))) ->  | X19: =IF(B19=0,"",IF(A$2=Parametres!A$77,Parametres!D$10,IF(A$2=Parametres!A$78,Parametres!F$10,IF(A$2=Parametres!A$79,Parametres!H$10,"")))) ->  | AB19: =IF(B19=0,"",IF(A$2=Parametres!A$77,Parametres!D$20,IF(A$2=Parametres!A$78,Parametres!F$20,IF(A$2=Parametres!A$79,Parametres!H$20,"")))) ->  | AD19: =IF(A$2=Parametres!A$77,IF(B19=0,"",IF(P19>(Y19+AC19),IF(P19<Parametres!D$28,"FORFAIT MINI","DEPENSES"),IF((Y19+AC19)<Parametres!D$28,"FORFAIT MINI","RECETTES"))),IF(A$2=Parametres!A$78,"",IF(A$2=Parametres!A$79,IF(B19=0,"",IF(T19>0,IF(AND(R19/T19<20,N19<5000),"FORFAIT MINI S.O.",IF(P19>(Y19+AC19),IF(P19<Parametres!D$28,"FORFAIT MINI","DEPENSES"),IF((Y19+AC19)<Parametres!D$28,"FORFAIT MINI","RECETTES"))),IF(N19<5000,"FORFAIT MINI S.O.",IF(P19>(Y19+AC19),IF(P19<Parametres!D$28,"FORFAIT MINI","DEPENSES"),IF((Y19+AC19)<Parametres!D$28,"FORFAIT MINI","RECETTES")))))))) ->  | AE19: =IF(T19>0,IF(AD19="FORFAIT MINI S.O.",INDEX(FSOTab,MATCH(R19/T19,FSOPrix,1)+1,MATCH(N19,FSOBudget,1)),IF(A$2=Parametres!A$78,"",IF(B19=0,"",ROUND(IF(P19>(Y19+AC19),IF(P19<Parametres!D$28,Parametres!D$28,P19),IF((Y19+AC19)<Parametres!D$28,Parametres!D$28,(Y19+AC19))),2)))),IF(AD19="FORFAIT MINI S.O.",INDEX(FSOTab,MATCH(0,FSOPrix,1)+1,MATCH(N19,FSOBudget,1)),IF(A$2=Parametres!A$78,"",IF(B19=0,"",ROUND(IF(P19>(Y19+AC19),IF(P19<Parametres!D$28,Parametres!D$28,P19),IF((Y19+AC19)<Parametres!D$28,Parametres!D$28,(Y19+AC19))),2))))) ->  | AF19: =IF(A$2=Parametres!A$78,"",IF(B19=0,"",ROUND(AE19*Parametres!C$66,2))) ->  | AG19: =IF(A$2=Parametres!A$78,"",IF(B19=0,"",ROUND(AE19*Parametres!C$67,2))) ->  | AH19: =IF(A$2=Parametres!A$78,"",IF(B19=0,"",ROUND(AE19*Parametres!C$68,2))) ->  | AI19: =IF(A$2=Parametres!A$78,"",IF(B19=0,"",SUM(ROUND(AE19,2),ROUND(AF19,2),ROUND(AG19,2),ROUND(AH19,2)))) -> 
I20: =IF(F20=0,"",IF(A$2=Parametres!A$77,IF(G20="Oui",IF(H20="Oui",F20-F20*Parametres!C$50-(F20-F20*Parametres!C$50)*Parametres!C$51,IF(H20="Non",F20-F20*Parametres!C$50,"")),IF(G20="Non",IF(H20="Oui",F20-F20*Parametres!C$51,IF(H20="Non",F20,"")))),IF(A$2=Parametres!A$78,IF(G20="Oui",IF(H20="Oui",F20-F20*Parametres!C$50-(F20-F20*Parametres!C$50)*Parametres!C$51,IF(H20="Non",F20-F20*Parametres!E$50,"")),IF(G20="Non",IF(H20="Oui",F20-F20*Parametres!E$51,IF(H20="Non",F20,"")))),IF(A$2=Parametres!A$79,IF(G20="Oui",IF(H20="Oui",F20-F20*Parametres!G$50-(F20-F20*Parametres!G$50)*Parametres!G$51,IF(H20="Non",F20-F20*Parametres!G$50,"")),IF(G20="Non",IF(H20="Oui",F20-F20*Parametres!G$51,IF(H20="Non",F20,"")))),"")))) ->  | J20: =IF(B20=0,"",SUM(I17:I22)) ->  | K20: =IF(C20="","",IF(A$2=Parametres!A$79,Parametres!E$61,IF(A$2=Parametres!A$78,Parametres!E$60,IF(C20<=Parametres!D$56,Parametres!E$56,IF(C20<=Parametres!D$57,Parametres!E$57,IF(C20<=Parametres!D$58,Parametres!E$58,IF(C20>Parametres!D$59,Parametres!E$59,""))))))) ->  | N20: =IF(B20="","",IF(A$2=Parametres!A$79,IF((L20+M20)>0,(J20+L20+M20),J20*(1+Parametres!G$49)),J20+J20*K20)) ->  | O20: =IF(B20=0,"",IF(A$2=Parametres!A$77,Parametres!D$10,IF(A$2=Parametres!A$78,Parametres!F$9,IF(A$2=Parametres!A$79,Parametres!H$9,"")))) ->  | W20: =IF(Q20="gratuit","",IF(B20=0,"",IF(A$2=Parametres!A$77,IF(V20<Parametres!C$21,0,IF(V20<Parametres!D$41,Parametres!E$41,IF(V20<Parametres!C$42,Parametres!E$42,IF(V20<Parametres!C$43,Parametres!E$43,Parametres!E$44)))), IF(A$2=Parametres!A$78,IF(V20<Parametres!E$21,0,IF(V20<Parametres!D$41,Parametres!E$41,IF(V20<Parametres!C$42,Parametres!E$42,IF(V20<Parametres!C$43,Parametres!E$43,Parametres!E$44)))), IF(A$2=Parametres!A$79,IF(V20<Parametres!G$21,0,IF(V20<Parametres!D$41,Parametres!E$41,IF(V20<Parametres!C$42,Parametres!E$42,IF(V20<Parametres!C$43,Parametres!E$43,Parametres!E$44))))))))) ->  | X20: =IF(B20=0,"",IF(A$2=Parametres!A$77,Parametres!D$10,IF(A$2=Parametres!A$78,Parametres!F$10,IF(A$2=Parametres!A$79,Parametres!H$10,"")))) ->  | AB20: =IF(B20=0,"",IF(A$2=Parametres!A$77,Parametres!D$20,IF(A$2=Parametres!A$78,Parametres!F$20,IF(A$2=Parametres!A$79,Parametres!H$20,"")))) ->  | AD20: =IF(A$2=Parametres!A$77,IF(B20=0,"",IF(P20>(Y20+AC20),IF(P20<Parametres!D$28,"FORFAIT MINI","DEPENSES"),IF((Y20+AC20)<Parametres!D$28,"FORFAIT MINI","RECETTES"))),IF(A$2=Parametres!A$78,"",IF(A$2=Parametres!A$79,IF(B20=0,"",IF(T20>0,IF(AND(R20/T20<20,N20<5000),"FORFAIT MINI S.O.",IF(P20>(Y20+AC20),IF(P20<Parametres!D$28,"FORFAIT MINI","DEPENSES"),IF((Y20+AC20)<Parametres!D$28,"FORFAIT MINI","RECETTES"))),IF(N20<5000,"FORFAIT MINI S.O.",IF(P20>(Y20+AC20),IF(P20<Parametres!D$28,"FORFAIT MINI","DEPENSES"),IF((Y20+AC20)<Parametres!D$28,"FORFAIT MINI","RECETTES")))))))) ->  | AE20: =IF(T20>0,IF(AD20="FORFAIT MINI S.O.",INDEX(FSOTab,MATCH(R20/T20,FSOPrix,1)+1,MATCH(N20,FSOBudget,1)),IF(A$2=Parametres!A$78,"",IF(B20=0,"",ROUND(IF(P20>(Y20+AC20),IF(P20<Parametres!D$28,Parametres!D$28,P20),IF((Y20+AC20)<Parametres!D$28,Parametres!D$28,(Y20+AC20))),2)))),IF(AD20="FORFAIT MINI S.O.",INDEX(FSOTab,MATCH(0,FSOPrix,1)+1,MATCH(N20,FSOBudget,1)),IF(A$2=Parametres!A$78,"",IF(B20=0,"",ROUND(IF(P20>(Y20+AC20),IF(P20<Parametres!D$28,Parametres!D$28,P20),IF((Y20+AC20)<Parametres!D$28,Parametres!D$28,(Y20+AC20))),2))))) ->  | AF20: =IF(A$2=Parametres!A$78,"",IF(B20=0,"",ROUND(AE20*Parametres!C$66,2))) ->  | AG20: =IF(A$2=Parametres!A$78,"",IF(B20=0,"",ROUND(AE20*Parametres!C$67,2))) ->  | AH20: =IF(A$2=Parametres!A$78,"",IF(B20=0,"",ROUND(AE20*Parametres!C$68,2))) ->  | AI20: =IF(A$2=Parametres!A$78,"",IF(B20=0,"",SUM(ROUND(AE20,2),ROUND(AF20,2),ROUND(AG20,2),ROUND(AH20,2)))) -> 
I21: =IF(F21=0,"",IF(A$2=Parametres!A$77,IF(G21="Oui",IF(H21="Oui",F21-F21*Parametres!C$50-(F21-F21*Parametres!C$50)*Parametres!C$51,IF(H21="Non",F21-F21*Parametres!C$50,"")),IF(G21="Non",IF(H21="Oui",F21-F21*Parametres!C$51,IF(H21="Non",F21,"")))),IF(A$2=Parametres!A$78,IF(G21="Oui",IF(H21="Oui",F21-F21*Parametres!C$50-(F21-F21*Parametres!C$50)*Parametres!C$51,IF(H21="Non",F21-F21*Parametres!E$50,"")),IF(G21="Non",IF(H21="Oui",F21-F21*Parametres!E$51,IF(H21="Non",F21,"")))),IF(A$2=Parametres!A$79,IF(G21="Oui",IF(H21="Oui",F21-F21*Parametres!G$50-(F21-F21*Parametres!G$50)*Parametres!G$51,IF(H21="Non",F21-F21*Parametres!G$50,"")),IF(G21="Non",IF(H21="Oui",F21-F21*Parametres!G$51,IF(H21="Non",F21,"")))),"")))) ->  | J21: =IF(B21=0,"",SUM(I17:I22)) ->  | K21: =IF(C21="","",IF(A$2=Parametres!A$79,Parametres!E$61,IF(A$2=Parametres!A$78,Parametres!E$60,IF(C21<=Parametres!D$56,Parametres!E$56,IF(C21<=Parametres!D$57,Parametres!E$57,IF(C21<=Parametres!D$58,Parametres!E$58,IF(C21>Parametres!D$59,Parametres!E$59,""))))))) ->  | N21: =IF(B21="","",IF(A$2=Parametres!A$79,IF((L21+M21)>0,(J21+L21+M21),J21*(1+Parametres!G$49)),J21+J21*K21)) ->  | O21: =IF(B21=0,"",IF(A$2=Parametres!A$77,Parametres!D$10,IF(A$2=Parametres!A$78,Parametres!F$9,IF(A$2=Parametres!A$79,Parametres!H$9,"")))) ->  | W21: =IF(Q21="gratuit","",IF(B21=0,"",IF(A$2=Parametres!A$77,IF(V21<Parametres!C$21,0,IF(V21<Parametres!D$41,Parametres!E$41,IF(V21<Parametres!C$42,Parametres!E$42,IF(V21<Parametres!C$43,Parametres!E$43,Parametres!E$44)))), IF(A$2=Parametres!A$78,IF(V21<Parametres!E$21,0,IF(V21<Parametres!D$41,Parametres!E$41,IF(V21<Parametres!C$42,Parametres!E$42,IF(V21<Parametres!C$43,Parametres!E$43,Parametres!E$44)))), IF(A$2=Parametres!A$79,IF(V21<Parametres!G$21,0,IF(V21<Parametres!D$41,Parametres!E$41,IF(V21<Parametres!C$42,Parametres!E$42,IF(V21<Parametres!C$43,Parametres!E$43,Parametres!E$44))))))))) ->  | X21: =IF(B21=0,"",IF(A$2=Parametres!A$77,Parametres!D$10,IF(A$2=Parametres!A$78,Parametres!F$10,IF(A$2=Parametres!A$79,Parametres!H$10,"")))) ->  | AB21: =IF(B21=0,"",IF(A$2=Parametres!A$77,Parametres!D$20,IF(A$2=Parametres!A$78,Parametres!F$20,IF(A$2=Parametres!A$79,Parametres!H$20,"")))) ->  | AD21: =IF(A$2=Parametres!A$77,IF(B21=0,"",IF(P21>(Y21+AC21),IF(P21<Parametres!D$28,"FORFAIT MINI","DEPENSES"),IF((Y21+AC21)<Parametres!D$28,"FORFAIT MINI","RECETTES"))),IF(A$2=Parametres!A$78,"",IF(A$2=Parametres!A$79,IF(B21=0,"",IF(T21>0,IF(AND(R21/T21<20,N21<5000),"FORFAIT MINI S.O.",IF(P21>(Y21+AC21),IF(P21<Parametres!D$28,"FORFAIT MINI","DEPENSES"),IF((Y21+AC21)<Parametres!D$28,"FORFAIT MINI","RECETTES"))),IF(N21<5000,"FORFAIT MINI S.O.",IF(P21>(Y21+AC21),IF(P21<Parametres!D$28,"FORFAIT MINI","DEPENSES"),IF((Y21+AC21)<Parametres!D$28,"FORFAIT MINI","RECETTES")))))))) ->  | AE21: =IF(T21>0,IF(AD21="FORFAIT MINI S.O.",INDEX(FSOTab,MATCH(R21/T21,FSOPrix,1)+1,MATCH(N21,FSOBudget,1)),IF(A$2=Parametres!A$78,"",IF(B21=0,"",ROUND(IF(P21>(Y21+AC21),IF(P21<Parametres!D$28,Parametres!D$28,P21),IF((Y21+AC21)<Parametres!D$28,Parametres!D$28,(Y21+AC21))),2)))),IF(AD21="FORFAIT MINI S.O.",INDEX(FSOTab,MATCH(0,FSOPrix,1)+1,MATCH(N21,FSOBudget,1)),IF(A$2=Parametres!A$78,"",IF(B21=0,"",ROUND(IF(P21>(Y21+AC21),IF(P21<Parametres!D$28,Parametres!D$28,P21),IF((Y21+AC21)<Parametres!D$28,Parametres!D$28,(Y21+AC21))),2))))) ->  | AF21: =IF(A$2=Parametres!A$78,"",IF(B21=0,"",ROUND(AE21*Parametres!C$66,2))) ->  | AG21: =IF(A$2=Parametres!A$78,"",IF(B21=0,"",ROUND(AE21*Parametres!C$67,2))) ->  | AH21: =IF(A$2=Parametres!A$78,"",IF(B21=0,"",ROUND(AE21*Parametres!C$68,2))) ->  | AI21: =IF(A$2=Parametres!A$78,"",IF(B21=0,"",SUM(ROUND(AE21,2),ROUND(AF21,2),ROUND(AG21,2),ROUND(AH21,2)))) -> 
I22: =IF(F22=0,"",IF(A$2=Parametres!A$77,IF(G22="Oui",IF(H22="Oui",F22-F22*Parametres!C$50-(F22-F22*Parametres!C$50)*Parametres!C$51,IF(H22="Non",F22-F22*Parametres!C$50,"")),IF(G22="Non",IF(H22="Oui",F22-F22*Parametres!C$51,IF(H22="Non",F22,"")))),IF(A$2=Parametres!A$78,IF(G22="Oui",IF(H22="Oui",F22-F22*Parametres!C$50-(F22-F22*Parametres!C$50)*Parametres!C$51,IF(H22="Non",F22-F22*Parametres!E$50,"")),IF(G22="Non",IF(H22="Oui",F22-F22*Parametres!E$51,IF(H22="Non",F22,"")))),IF(A$2=Parametres!A$79,IF(G22="Oui",IF(H22="Oui",F22-F22*Parametres!G$50-(F22-F22*Parametres!G$50)*Parametres!G$51,IF(H22="Non",F22-F22*Parametres!G$50,"")),IF(G22="Non",IF(H22="Oui",F22-F22*Parametres!G$51,IF(H22="Non",F22,"")))),"")))) ->  | J22: =IF(B22=0,"",SUM(I17:I22)) ->  | K22: =IF(C22="","",IF(A$2=Parametres!A$79,Parametres!E$61,IF(A$2=Parametres!A$78,Parametres!E$60,IF(C22<=Parametres!D$56,Parametres!E$56,IF(C22<=Parametres!D$57,Parametres!E$57,IF(C22<=Parametres!D$58,Parametres!E$58,IF(C22>Parametres!D$59,Parametres!E$59,""))))))) ->  | N22: =IF(B22="","",IF(A$2=Parametres!A$79,IF((L22+M22)>0,(J22+L22+M22),J22*(1+Parametres!G$49)),J22+J22*K22)) ->  | O22: =IF(B22=0,"",IF(A$2=Parametres!A$77,Parametres!D$10,IF(A$2=Parametres!A$78,Parametres!F$9,IF(A$2=Parametres!A$79,Parametres!H$9,"")))) ->  | W22: =IF(Q22="gratuit","",IF(B22=0,"",IF(A$2=Parametres!A$77,IF(V22<Parametres!C$21,0,IF(V22<Parametres!D$41,Parametres!E$41,IF(V22<Parametres!C$42,Parametres!E$42,IF(V22<Parametres!C$43,Parametres!E$43,Parametres!E$44)))), IF(A$2=Parametres!A$78,IF(V22<Parametres!E$21,0,IF(V22<Parametres!D$41,Parametres!E$41,IF(V22<Parametres!C$42,Parametres!E$42,IF(V22<Parametres!C$43,Parametres!E$43,Parametres!E$44)))), IF(A$2=Parametres!A$79,IF(V22<Parametres!G$21,0,IF(V22<Parametres!D$41,Parametres!E$41,IF(V22<Parametres!C$42,Parametres!E$42,IF(V22<Parametres!C$43,Parametres!E$43,Parametres!E$44))))))))) ->  | X22: =IF(B22=0,"",IF(A$2=Parametres!A$77,Parametres!D$10,IF(A$2=Parametres!A$78,Parametres!F$10,IF(A$2=Parametres!A$79,Parametres!H$10,"")))) ->  | AB22: =IF(B22=0,"",IF(A$2=Parametres!A$77,Parametres!D$20,IF(A$2=Parametres!A$78,Parametres!F$20,IF(A$2=Parametres!A$79,Parametres!H$20,"")))) ->  | AD22: =IF(A$2=Parametres!A$77,IF(B22=0,"",IF(P22>(Y22+AC22),IF(P22<Parametres!D$28,"FORFAIT MINI","DEPENSES"),IF((Y22+AC22)<Parametres!D$28,"FORFAIT MINI","RECETTES"))),IF(A$2=Parametres!A$78,"",IF(A$2=Parametres!A$79,IF(B22=0,"",IF(T22>0,IF(AND(R22/T22<20,N22<5000),"FORFAIT MINI S.O.",IF(P22>(Y22+AC22),IF(P22<Parametres!D$28,"FORFAIT MINI","DEPENSES"),IF((Y22+AC22)<Parametres!D$28,"FORFAIT MINI","RECETTES"))),IF(N22<5000,"FORFAIT MINI S.O.",IF(P22>(Y22+AC22),IF(P22<Parametres!D$28,"FORFAIT MINI","DEPENSES"),IF((Y22+AC22)<Parametres!D$28,"FORFAIT MINI","RECETTES")))))))) ->  | AE22: =IF(T22>0,IF(AD22="FORFAIT MINI S.O.",INDEX(FSOTab,MATCH(R22/T22,FSOPrix,1)+1,MATCH(N22,FSOBudget,1)),IF(A$2=Parametres!A$78,"",IF(B22=0,"",ROUND(IF(P22>(Y22+AC22),IF(P22<Parametres!D$28,Parametres!D$28,P22),IF((Y22+AC22)<Parametres!D$28,Parametres!D$28,(Y22+AC22))),2)))),IF(AD22="FORFAIT MINI S.O.",INDEX(FSOTab,MATCH(0,FSOPrix,1)+1,MATCH(N22,FSOBudget,1)),IF(A$2=Parametres!A$78,"",IF(B22=0,"",ROUND(IF(P22>(Y22+AC22),IF(P22<Parametres!D$28,Parametres!D$28,P22),IF((Y22+AC22)<Parametres!D$28,Parametres!D$28,(Y22+AC22))),2))))) ->  | AF22: =IF(A$2=Parametres!A$78,"",IF(B22=0,"",ROUND(AE22*Parametres!C$66,2))) ->  | AG22: =IF(A$2=Parametres!A$78,"",IF(B22=0,"",ROUND(AE22*Parametres!C$67,2))) ->  | AH22: =IF(A$2=Parametres!A$78,"",IF(B22=0,"",ROUND(AE22*Parametres!C$68,2))) ->  | AI22: =IF(A$2=Parametres!A$78,"",IF(B22=0,"",SUM(ROUND(AE22,2),ROUND(AF22,2),ROUND(AG22,2),ROUND(AH22,2)))) -> 
C24: =IF(B24=0,"",VLOOKUP(B24,ListJaugeSalle,2,FALSE)) ->  | I24: =IF(F24=0,"",IF(A$2=Parametres!A$77,IF(G24="Oui",IF(H24="Oui",F24-F24*Parametres!C$50-(F24-F24*Parametres!C$50)*Parametres!C$51,IF(H24="Non",F24-F24*Parametres!C$50,"")),IF(G24="Non",IF(H24="Oui",F24-F24*Parametres!C$51,IF(H24="Non",F24,"")))),IF(A$2=Parametres!A$78,IF(G24="Oui",IF(H24="Oui",F24-F24*Parametres!C$50-(F24-F24*Parametres!C$50)*Parametres!C$51,IF(H24="Non",F24-F24*Parametres!E$50,"")),IF(G24="Non",IF(H24="Oui",F24-F24*Parametres!E$51,IF(H24="Non",F24,"")))),IF(A$2=Parametres!A$79,IF(G24="Oui",IF(H24="Oui",F24-F24*Parametres!G$50-(F24-F24*Parametres!G$50)*Parametres!G$51,IF(H24="Non",F24-F24*Parametres!G$50,"")),IF(G24="Non",IF(H24="Oui",F24-F24*Parametres!G$51,IF(H24="Non",F24,"")))),"")))) ->  | J24: =IF(B24=0,"",SUM(I24:I29)) ->  | K24: =IF(C24="","",IF(A$2=Parametres!A$79,Parametres!E$61,IF(A$2=Parametres!A$78,Parametres!E$60,IF(C24<=Parametres!D$56,Parametres!E$56,IF(C24<=Parametres!D$57,Parametres!E$57,IF(C24<=Parametres!D$58,Parametres!E$58,IF(C24>Parametres!D$59,Parametres!E$59,""))))))) ->  | N24: =IF(B24="","",IF(A$2=Parametres!A$79,IF((L24+M24)>0,(J24+L24+M24),J24*(1+Parametres!G$49)),J24+J24*K24)) ->  | O24: =IF(B24=0,"",IF(A$2=Parametres!A$77,Parametres!D$10,IF(A$2=Parametres!A$78,Parametres!F$10,IF(A$2=Parametres!A$79,Parametres!H$10,"")))) ->  | P24: =IF(B24=0,"",O24*N24) ->  | Q24: =IF(R24>0,"payant",IF(B24=0,"","gratuit")) ->  | S24: =IF(B24=0,"",T24+U24) ->  | V24: =IF(Q24="gratuit","",IF(S24=0,0,IF(S24="","",U24/T24))) ->  | W24: =IF(Q24="gratuit","",IF(B24=0,"",IF(A$2=Parametres!A$77,IF(V24<Parametres!C$21,0,IF(V24<Parametres!D$41,Parametres!E$41,IF(V24<Parametres!C$42,Parametres!E$42,IF(V24<Parametres!C$43,Parametres!E$43,Parametres!E$44)))), IF(A$2=Parametres!A$78,IF(V24<Parametres!E$21,0,IF(V24<Parametres!D$41,Parametres!E$41,IF(V24<Parametres!C$42,Parametres!E$42,IF(V24<Parametres!C$43,Parametres!E$43,Parametres!E$44)))), IF(A$2=Parametres!A$79,IF(V24<Parametres!G$21,0,IF(V24<Parametres!D$41,Parametres!E$41,IF(V24<Parametres!C$42,Parametres!E$42,IF(V24<Parametres!C$43,Parametres!E$43,Parametres!E$44))))))))) ->  | X24: =IF(B24=0,"",IF(A$2=Parametres!A$77,Parametres!D$10,IF(A$2=Parametres!A$78,Parametres!F$10,IF(A$2=Parametres!A$79,Parametres!H$10,"")))) ->  | Y24: =IF(B24=0,"",IF(Q24="gratuit",R24*X24,R24*X24+(R24*X24)*W24)) ->  | AB24: =IF(B24=0,"",IF(A$2=Parametres!A$77,Parametres!D$20,IF(A$2=Parametres!A$78,Parametres!F$20,IF(A$2=Parametres!A$79,Parametres!H$20,"")))) ->  | AC24: =IF(B24=0,"",(Z24+AA24)*AB24) ->  | AD24: =IF(A$2=Parametres!A$77,IF(B24=0,"",IF(P24>(Y24+AC24),IF(P24<Parametres!D$28,"FORFAIT MINI","DEPENSES"),IF((Y24+AC24)<Parametres!D$28,"FORFAIT MINI","RECETTES"))),IF(A$2=Parametres!A$78,"",IF(A$2=Parametres!A$79,IF(B24=0,"",IF(T24>0,IF(AND(R24/T24<20,N24<5000),"FORFAIT MINI S.O.",IF(P24>(Y24+AC24),IF(P24<Parametres!D$28,"FORFAIT MINI","DEPENSES"),IF((Y24+AC24)<Parametres!D$28,"FORFAIT MINI","RECETTES"))),IF(N24<5000,"FORFAIT MINI S.O.",IF(P24>(Y24+AC24),IF(P24<Parametres!D$28,"FORFAIT MINI","DEPENSES"),IF((Y24+AC24)<Parametres!D$28,"FORFAIT MINI","RECETTES")))))))) ->  | AE24: =IF(T24>0,IF(AD24="FORFAIT MINI S.O.",INDEX(FSOTab,MATCH(R24/T24,FSOPrix,1)+1,MATCH(N24,FSOBudget,1)),IF(A$2=Parametres!A$78,"",IF(B24=0,"",ROUND(IF(P24>(Y24+AC24),IF(P24<Parametres!D$28,Parametres!D$28,P24),IF((Y24+AC24)<Parametres!D$28,Parametres!D$28,(Y24+AC24))),2)))),IF(AD24="FORFAIT MINI S.O.",INDEX(FSOTab,MATCH(0,FSOPrix,1)+1,MATCH(N24,FSOBudget,1)),IF(A$2=Parametres!A$78,"",IF(B24=0,"",ROUND(IF(P24>(Y24+AC24),IF(P24<Parametres!D$28,Parametres!D$28,P24),IF((Y24+AC24)<Parametres!D$28,Parametres!D$28,(Y24+AC24))),2))))) ->  | AF24: =IF(A$2=Parametres!A$78,"",IF(B24=0,"",ROUND(AE24*Parametres!C$66,2))) ->  | AG24: =IF(A$2=Parametres!A$78,"",IF(B24=0,"",ROUND(AE24*Parametres!C$67,2))) ->  | AH24: =IF(A$2=Parametres!A$78,"",IF(B24=0,"",ROUND(AE24*Parametres!C$68,2))) ->  | AI24: =IF(A$2=Parametres!A$78,"",IF(B24=0,"",SUM(ROUND(AE24,2),ROUND(AF24,2),ROUND(AG24,2),ROUND(AH24,2)))) -> 
I25: =IF(F25=0,"",IF(A$2=Parametres!A$77,IF(G25="Oui",IF(H25="Oui",F25-F25*Parametres!C$50-(F25-F25*Parametres!C$50)*Parametres!C$51,IF(H25="Non",F25-F25*Parametres!C$50,"")),IF(G25="Non",IF(H25="Oui",F25-F25*Parametres!C$51,IF(H25="Non",F25,"")))),IF(A$2=Parametres!A$78,IF(G25="Oui",IF(H25="Oui",F25-F25*Parametres!C$50-(F25-F25*Parametres!C$50)*Parametres!C$51,IF(H25="Non",F25-F25*Parametres!E$50,"")),IF(G25="Non",IF(H25="Oui",F25-F25*Parametres!E$51,IF(H25="Non",F25,"")))),IF(A$2=Parametres!A$79,IF(G25="Oui",IF(H25="Oui",F25-F25*Parametres!G$50-(F25-F25*Parametres!G$50)*Parametres!G$51,IF(H25="Non",F25-F25*Parametres!G$50,"")),IF(G25="Non",IF(H25="Oui",F25-F25*Parametres!G$51,IF(H25="Non",F25,"")))),"")))) ->  | J25: =IF(B25=0,"",SUM(I24:I29)) ->  | K25: =IF(C25="","",IF(A$2=Parametres!A$79,Parametres!E$61,IF(A$2=Parametres!A$78,Parametres!E$60,IF(C25<=Parametres!D$56,Parametres!E$56,IF(C25<=Parametres!D$57,Parametres!E$57,IF(C25<=Parametres!D$58,Parametres!E$58,IF(C25>Parametres!D$59,Parametres!E$59,""))))))) ->  | N25: =IF(B25="","",IF(A$2=Parametres!A$79,IF((L25+M25)>0,(J25+L25+M25),J25*(1+Parametres!G$49)),J25+J25*K25)) ->  | O25: =IF(B25=0,"",IF(A$2=Parametres!A$77,Parametres!D$10,IF(A$2=Parametres!A$78,Parametres!F$9,IF(A$2=Parametres!A$79,Parametres!H$9,"")))) ->  | V25: =IF(Q25="gratuit","",IF(S25=0,0,IF(S25="","",U25/T25))) ->  | W25: =IF(Q25="gratuit","",IF(B25=0,"",IF(A$2=Parametres!A$77,IF(V25<Parametres!C$21,0,IF(V25<Parametres!D$41,Parametres!E$41,IF(V25<Parametres!C$42,Parametres!E$42,IF(V25<Parametres!C$43,Parametres!E$43,Parametres!E$44)))), IF(A$2=Parametres!A$78,IF(V25<Parametres!E$21,0,IF(V25<Parametres!D$41,Parametres!E$41,IF(V25<Parametres!C$42,Parametres!E$42,IF(V25<Parametres!C$43,Parametres!E$43,Parametres!E$44)))), IF(A$2=Parametres!A$79,IF(V25<Parametres!G$21,0,IF(V25<Parametres!D$41,Parametres!E$41,IF(V25<Parametres!C$42,Parametres!E$42,IF(V25<Parametres!C$43,Parametres!E$43,Parametres!E$44))))))))) ->  | X25: =IF(B25=0,"",IF(A$2=Parametres!A$77,Parametres!D$10,IF(A$2=Parametres!A$78,Parametres!F$10,IF(A$2=Parametres!A$79,Parametres!H$10,"")))) ->  | AB25: =IF(B25=0,"",IF(A$2=Parametres!A$77,Parametres!D$20,IF(A$2=Parametres!A$78,Parametres!F$20,IF(A$2=Parametres!A$79,Parametres!H$20,"")))) ->  | AD25: =IF(A$2=Parametres!A$77,IF(B25=0,"",IF(P25>(Y25+AC25),IF(P25<Parametres!D$28,"FORFAIT MINI","DEPENSES"),IF((Y25+AC25)<Parametres!D$28,"FORFAIT MINI","RECETTES"))),IF(A$2=Parametres!A$78,"",IF(A$2=Parametres!A$79,IF(B25=0,"",IF(T25>0,IF(AND(R25/T25<20,N25<5000),"FORFAIT MINI S.O.",IF(P25>(Y25+AC25),IF(P25<Parametres!D$28,"FORFAIT MINI","DEPENSES"),IF((Y25+AC25)<Parametres!D$28,"FORFAIT MINI","RECETTES"))),IF(N25<5000,"FORFAIT MINI S.O.",IF(P25>(Y25+AC25),IF(P25<Parametres!D$28,"FORFAIT MINI","DEPENSES"),IF((Y25+AC25)<Parametres!D$28,"FORFAIT MINI","RECETTES")))))))) ->  | AE25: =IF(T25>0,IF(AD25="FORFAIT MINI S.O.",INDEX(FSOTab,MATCH(R25/T25,FSOPrix,1)+1,MATCH(N25,FSOBudget,1)),IF(A$2=Parametres!A$78,"",IF(B25=0,"",ROUND(IF(P25>(Y25+AC25),IF(P25<Parametres!D$28,Parametres!D$28,P25),IF((Y25+AC25)<Parametres!D$28,Parametres!D$28,(Y25+AC25))),2)))),IF(AD25="FORFAIT MINI S.O.",INDEX(FSOTab,MATCH(0,FSOPrix,1)+1,MATCH(N25,FSOBudget,1)),IF(A$2=Parametres!A$78,"",IF(B25=0,"",ROUND(IF(P25>(Y25+AC25),IF(P25<Parametres!D$28,Parametres!D$28,P25),IF((Y25+AC25)<Parametres!D$28,Parametres!D$28,(Y25+AC25))),2))))) ->  | AF25: =IF(A$2=Parametres!A$78,"",IF(B25=0,"",ROUND(AE25*Parametres!C$66,2))) ->  | AG25: =IF(A$2=Parametres!A$78,"",IF(B25=0,"",ROUND(AE25*Parametres!C$67,2))) ->  | AH25: =IF(A$2=Parametres!A$78,"",IF(B25=0,"",ROUND(AE25*Parametres!C$68,2))) ->  | AI25: =IF(A$2=Parametres!A$78,"",IF(B25=0,"",SUM(ROUND(AE25,2),ROUND(AF25,2),ROUND(AG25,2),ROUND(AH25,2)))) -> 
I26: =IF(F26=0,"",IF(A$2=Parametres!A$77,IF(G26="Oui",IF(H26="Oui",F26-F26*Parametres!C$50-(F26-F26*Parametres!C$50)*Parametres!C$51,IF(H26="Non",F26-F26*Parametres!C$50,"")),IF(G26="Non",IF(H26="Oui",F26-F26*Parametres!C$51,IF(H26="Non",F26,"")))),IF(A$2=Parametres!A$78,IF(G26="Oui",IF(H26="Oui",F26-F26*Parametres!C$50-(F26-F26*Parametres!C$50)*Parametres!C$51,IF(H26="Non",F26-F26*Parametres!E$50,"")),IF(G26="Non",IF(H26="Oui",F26-F26*Parametres!E$51,IF(H26="Non",F26,"")))),IF(A$2=Parametres!A$79,IF(G26="Oui",IF(H26="Oui",F26-F26*Parametres!G$50-(F26-F26*Parametres!G$50)*Parametres!G$51,IF(H26="Non",F26-F26*Parametres!G$50,"")),IF(G26="Non",IF(H26="Oui",F26-F26*Parametres!G$51,IF(H26="Non",F26,"")))),"")))) ->  | J26: =IF(B26=0,"",(I24:I29)) ->  | K26: =IF(C26="","",IF(A$2=Parametres!A$79,Parametres!E$61,IF(A$2=Parametres!A$78,Parametres!E$60,IF(C26<=Parametres!D$56,Parametres!E$56,IF(C26<=Parametres!D$57,Parametres!E$57,IF(C26<=Parametres!D$58,Parametres!E$58,IF(C26>Parametres!D$59,Parametres!E$59,""))))))) ->  | N26: =IF(B26="","",IF(A$2=Parametres!A$79,IF((L26+M26)>0,(J26+L26+M26),J26*(1+Parametres!G$49)),J26+J26*K26)) ->  | O26: =IF(B26=0,"",IF(A$2=Parametres!A$77,Parametres!D$10,IF(A$2=Parametres!A$78,Parametres!F$9,IF(A$2=Parametres!A$79,Parametres!H$9,"")))) ->  | W26: =IF(Q26="gratuit","",IF(B26=0,"",IF(A$2=Parametres!A$77,IF(V26<Parametres!C$21,0,IF(V26<Parametres!D$41,Parametres!E$41,IF(V26<Parametres!C$42,Parametres!E$42,IF(V26<Parametres!C$43,Parametres!E$43,Parametres!E$44)))), IF(A$2=Parametres!A$78,IF(V26<Parametres!E$21,0,IF(V26<Parametres!D$41,Parametres!E$41,IF(V26<Parametres!C$42,Parametres!E$42,IF(V26<Parametres!C$43,Parametres!E$43,Parametres!E$44)))), IF(A$2=Parametres!A$79,IF(V26<Parametres!G$21,0,IF(V26<Parametres!D$41,Parametres!E$41,IF(V26<Parametres!C$42,Parametres!E$42,IF(V26<Parametres!C$43,Parametres!E$43,Parametres!E$44))))))))) ->  | X26: =IF(B26=0,"",IF(A$2=Parametres!A$77,Parametres!D$10,IF(A$2=Parametres!A$78,Parametres!F$10,IF(A$2=Parametres!A$79,Parametres!H$10,"")))) ->  | AB26: =IF(B26=0,"",IF(A$2=Parametres!A$77,Parametres!D$20,IF(A$2=Parametres!A$78,Parametres!F$20,IF(A$2=Parametres!A$79,Parametres!H$20,"")))) ->  | AD26: =IF(A$2=Parametres!A$77,IF(B26=0,"",IF(P26>(Y26+AC26),IF(P26<Parametres!D$28,"FORFAIT MINI","DEPENSES"),IF((Y26+AC26)<Parametres!D$28,"FORFAIT MINI","RECETTES"))),IF(A$2=Parametres!A$78,"",IF(A$2=Parametres!A$79,IF(B26=0,"",IF(T26>0,IF(AND(R26/T26<20,N26<5000),"FORFAIT MINI S.O.",IF(P26>(Y26+AC26),IF(P26<Parametres!D$28,"FORFAIT MINI","DEPENSES"),IF((Y26+AC26)<Parametres!D$28,"FORFAIT MINI","RECETTES"))),IF(N26<5000,"FORFAIT MINI S.O.",IF(P26>(Y26+AC26),IF(P26<Parametres!D$28,"FORFAIT MINI","DEPENSES"),IF((Y26+AC26)<Parametres!D$28,"FORFAIT MINI","RECETTES")))))))) ->  | AE26: =IF(T26>0,IF(AD26="FORFAIT MINI S.O.",INDEX(FSOTab,MATCH(R26/T26,FSOPrix,1)+1,MATCH(N26,FSOBudget,1)),IF(A$2=Parametres!A$78,"",IF(B26=0,"",ROUND(IF(P26>(Y26+AC26),IF(P26<Parametres!D$28,Parametres!D$28,P26),IF((Y26+AC26)<Parametres!D$28,Parametres!D$28,(Y26+AC26))),2)))),IF(AD26="FORFAIT MINI S.O.",INDEX(FSOTab,MATCH(0,FSOPrix,1)+1,MATCH(N26,FSOBudget,1)),IF(A$2=Parametres!A$78,"",IF(B26=0,"",ROUND(IF(P26>(Y26+AC26),IF(P26<Parametres!D$28,Parametres!D$28,P26),IF((Y26+AC26)<Parametres!D$28,Parametres!D$28,(Y26+AC26))),2))))) ->  | AF26: =IF(A$2=Parametres!A$78,"",IF(B26=0,"",ROUND(AE26*Parametres!C$66,2))) ->  | AG26: =IF(A$2=Parametres!A$78,"",IF(B26=0,"",ROUND(AE26*Parametres!C$67,2))) ->  | AH26: =IF(A$2=Parametres!A$78,"",IF(B26=0,"",ROUND(AE26*Parametres!C$68,2))) ->  | AI26: =IF(A$2=Parametres!A$78,"",IF(B26=0,"",SUM(ROUND(AE26,2),ROUND(AF26,2),ROUND(AG26,2),ROUND(AH26,2)))) -> 
I27: =IF(F27=0,"",IF(A$2=Parametres!A$77,IF(G27="Oui",IF(H27="Oui",F27-F27*Parametres!C$50-(F27-F27*Parametres!C$50)*Parametres!C$51,IF(H27="Non",F27-F27*Parametres!C$50,"")),IF(G27="Non",IF(H27="Oui",F27-F27*Parametres!C$51,IF(H27="Non",F27,"")))),IF(A$2=Parametres!A$78,IF(G27="Oui",IF(H27="Oui",F27-F27*Parametres!C$50-(F27-F27*Parametres!C$50)*Parametres!C$51,IF(H27="Non",F27-F27*Parametres!E$50,"")),IF(G27="Non",IF(H27="Oui",F27-F27*Parametres!E$51,IF(H27="Non",F27,"")))),IF(A$2=Parametres!A$79,IF(G27="Oui",IF(H27="Oui",F27-F27*Parametres!G$50-(F27-F27*Parametres!G$50)*Parametres!G$51,IF(H27="Non",F27-F27*Parametres!G$50,"")),IF(G27="Non",IF(H27="Oui",F27-F27*Parametres!G$51,IF(H27="Non",F27,"")))),"")))) ->  | J27: =IF(B27=0,"",SUM(I24:I29)) ->  | K27: =IF(C27="","",IF(A$2=Parametres!A$79,Parametres!E$61,IF(A$2=Parametres!A$78,Parametres!E$60,IF(C27<=Parametres!D$56,Parametres!E$56,IF(C27<=Parametres!D$57,Parametres!E$57,IF(C27<=Parametres!D$58,Parametres!E$58,IF(C27>Parametres!D$59,Parametres!E$59,""))))))) ->  | N27: =IF(B27="","",IF(A$2=Parametres!A$79,IF((L27+M27)>0,(J27+L27+M27),J27*(1+Parametres!G$49)),J27+J27*K27)) ->  | O27: =IF(B27=0,"",IF(A$2=Parametres!A$77,Parametres!D$10,IF(A$2=Parametres!A$78,Parametres!F$9,IF(A$2=Parametres!A$79,Parametres!H$9,"")))) ->  | W27: =IF(Q27="gratuit","",IF(B27=0,"",IF(A$2=Parametres!A$77,IF(V27<Parametres!C$21,0,IF(V27<Parametres!D$41,Parametres!E$41,IF(V27<Parametres!C$42,Parametres!E$42,IF(V27<Parametres!C$43,Parametres!E$43,Parametres!E$44)))), IF(A$2=Parametres!A$78,IF(V27<Parametres!E$21,0,IF(V27<Parametres!D$41,Parametres!E$41,IF(V27<Parametres!C$42,Parametres!E$42,IF(V27<Parametres!C$43,Parametres!E$43,Parametres!E$44)))), IF(A$2=Parametres!A$79,IF(V27<Parametres!G$21,0,IF(V27<Parametres!D$41,Parametres!E$41,IF(V27<Parametres!C$42,Parametres!E$42,IF(V27<Parametres!C$43,Parametres!E$43,Parametres!E$44))))))))) ->  | X27: =IF(B27=0,"",IF(A$2=Parametres!A$77,Parametres!D$10,IF(A$2=Parametres!A$78,Parametres!F$10,IF(A$2=Parametres!A$79,Parametres!H$10,"")))) ->  | AB27: =IF(B27=0,"",IF(A$2=Parametres!A$77,Parametres!D$20,IF(A$2=Parametres!A$78,Parametres!F$20,IF(A$2=Parametres!A$79,Parametres!H$20,"")))) ->  | AD27: =IF(A$2=Parametres!A$77,IF(B27=0,"",IF(P27>(Y27+AC27),IF(P27<Parametres!D$28,"FORFAIT MINI","DEPENSES"),IF((Y27+AC27)<Parametres!D$28,"FORFAIT MINI","RECETTES"))),IF(A$2=Parametres!A$78,"",IF(A$2=Parametres!A$79,IF(B27=0,"",IF(T27>0,IF(AND(R27/T27<20,N27<5000),"FORFAIT MINI S.O.",IF(P27>(Y27+AC27),IF(P27<Parametres!D$28,"FORFAIT MINI","DEPENSES"),IF((Y27+AC27)<Parametres!D$28,"FORFAIT MINI","RECETTES"))),IF(N27<5000,"FORFAIT MINI S.O.",IF(P27>(Y27+AC27),IF(P27<Parametres!D$28,"FORFAIT MINI","DEPENSES"),IF((Y27+AC27)<Parametres!D$28,"FORFAIT MINI","RECETTES")))))))) ->  | AE27: =IF(T27>0,IF(AD27="FORFAIT MINI S.O.",INDEX(FSOTab,MATCH(R27/T27,FSOPrix,1)+1,MATCH(N27,FSOBudget,1)),IF(A$2=Parametres!A$78,"",IF(B27=0,"",ROUND(IF(P27>(Y27+AC27),IF(P27<Parametres!D$28,Parametres!D$28,P27),IF((Y27+AC27)<Parametres!D$28,Parametres!D$28,(Y27+AC27))),2)))),IF(AD27="FORFAIT MINI S.O.",INDEX(FSOTab,MATCH(0,FSOPrix,1)+1,MATCH(N27,FSOBudget,1)),IF(A$2=Parametres!A$78,"",IF(B27=0,"",ROUND(IF(P27>(Y27+AC27),IF(P27<Parametres!D$28,Parametres!D$28,P27),IF((Y27+AC27)<Parametres!D$28,Parametres!D$28,(Y27+AC27))),2))))) ->  | AF27: =IF(A$2=Parametres!A$78,"",IF(B27=0,"",ROUND(AE27*Parametres!C$66,2))) ->  | AG27: =IF(A$2=Parametres!A$78,"",IF(B27=0,"",ROUND(AE27*Parametres!C$67,2))) ->  | AH27: =IF(A$2=Parametres!A$78,"",IF(B27=0,"",ROUND(AE27*Parametres!C$68,2))) ->  | AI27: =IF(A$2=Parametres!A$78,"",IF(B27=0,"",SUM(ROUND(AE27,2),ROUND(AF27,2),ROUND(AG27,2),ROUND(AH27,2)))) -> 
I28: =IF(F28=0,"",IF(A$2=Parametres!A$77,IF(G28="Oui",IF(H28="Oui",F28-F28*Parametres!C$50-(F28-F28*Parametres!C$50)*Parametres!C$51,IF(H28="Non",F28-F28*Parametres!C$50,"")),IF(G28="Non",IF(H28="Oui",F28-F28*Parametres!C$51,IF(H28="Non",F28,"")))),IF(A$2=Parametres!A$78,IF(G28="Oui",IF(H28="Oui",F28-F28*Parametres!C$50-(F28-F28*Parametres!C$50)*Parametres!C$51,IF(H28="Non",F28-F28*Parametres!E$50,"")),IF(G28="Non",IF(H28="Oui",F28-F28*Parametres!E$51,IF(H28="Non",F28,"")))),IF(A$2=Parametres!A$79,IF(G28="Oui",IF(H28="Oui",F28-F28*Parametres!G$50-(F28-F28*Parametres!G$50)*Parametres!G$51,IF(H28="Non",F28-F28*Parametres!G$50,"")),IF(G28="Non",IF(H28="Oui",F28-F28*Parametres!G$51,IF(H28="Non",F28,"")))),"")))) ->  | J28: =IF(B28=0,"",SUM(I24:I29)) ->  | K28: =IF(C28="","",IF(A$2=Parametres!A$79,Parametres!E$61,IF(A$2=Parametres!A$78,Parametres!E$60,IF(C28<=Parametres!D$56,Parametres!E$56,IF(C28<=Parametres!D$57,Parametres!E$57,IF(C28<=Parametres!D$58,Parametres!E$58,IF(C28>Parametres!D$59,Parametres!E$59,""))))))) ->  | N28: =IF(B28="","",IF(A$2=Parametres!A$79,IF((L28+M28)>0,(J28+L28+M28),J28*(1+Parametres!G$49)),J28+J28*K28)) ->  | O28: =IF(B28=0,"",IF(A$2=Parametres!A$77,Parametres!D$10,IF(A$2=Parametres!A$78,Parametres!F$9,IF(A$2=Parametres!A$79,Parametres!H$9,"")))) ->  | W28: =IF(Q28="gratuit","",IF(B28=0,"",IF(A$2=Parametres!A$77,IF(V28<Parametres!C$21,0,IF(V28<Parametres!D$41,Parametres!E$41,IF(V28<Parametres!C$42,Parametres!E$42,IF(V28<Parametres!C$43,Parametres!E$43,Parametres!E$44)))), IF(A$2=Parametres!A$78,IF(V28<Parametres!E$21,0,IF(V28<Parametres!D$41,Parametres!E$41,IF(V28<Parametres!C$42,Parametres!E$42,IF(V28<Parametres!C$43,Parametres!E$43,Parametres!E$44)))), IF(A$2=Parametres!A$79,IF(V28<Parametres!G$21,0,IF(V28<Parametres!D$41,Parametres!E$41,IF(V28<Parametres!C$42,Parametres!E$42,IF(V28<Parametres!C$43,Parametres!E$43,Parametres!E$44))))))))) ->  | X28: =IF(B28=0,"",IF(A$2=Parametres!A$77,Parametres!D$10,IF(A$2=Parametres!A$78,Parametres!F$10,IF(A$2=Parametres!A$79,Parametres!H$10,"")))) ->  | AB28: =IF(B28=0,"",IF(A$2=Parametres!A$77,Parametres!D$20,IF(A$2=Parametres!A$78,Parametres!F$20,IF(A$2=Parametres!A$79,Parametres!H$20,"")))) ->  | AD28: =IF(A$2=Parametres!A$77,IF(B28=0,"",IF(P28>(Y28+AC28),IF(P28<Parametres!D$28,"FORFAIT MINI","DEPENSES"),IF((Y28+AC28)<Parametres!D$28,"FORFAIT MINI","RECETTES"))),IF(A$2=Parametres!A$78,"",IF(A$2=Parametres!A$79,IF(B28=0,"",IF(T28>0,IF(AND(R28/T28<20,N28<5000),"FORFAIT MINI S.O.",IF(P28>(Y28+AC28),IF(P28<Parametres!D$28,"FORFAIT MINI","DEPENSES"),IF((Y28+AC28)<Parametres!D$28,"FORFAIT MINI","RECETTES"))),IF(N28<5000,"FORFAIT MINI S.O.",IF(P28>(Y28+AC28),IF(P28<Parametres!D$28,"FORFAIT MINI","DEPENSES"),IF((Y28+AC28)<Parametres!D$28,"FORFAIT MINI","RECETTES")))))))) ->  | AE28: =IF(T28>0,IF(AD28="FORFAIT MINI S.O.",INDEX(FSOTab,MATCH(R28/T28,FSOPrix,1)+1,MATCH(N28,FSOBudget,1)),IF(A$2=Parametres!A$78,"",IF(B28=0,"",ROUND(IF(P28>(Y28+AC28),IF(P28<Parametres!D$28,Parametres!D$28,P28),IF((Y28+AC28)<Parametres!D$28,Parametres!D$28,(Y28+AC28))),2)))),IF(AD28="FORFAIT MINI S.O.",INDEX(FSOTab,MATCH(0,FSOPrix,1)+1,MATCH(N28,FSOBudget,1)),IF(A$2=Parametres!A$78,"",IF(B28=0,"",ROUND(IF(P28>(Y28+AC28),IF(P28<Parametres!D$28,Parametres!D$28,P28),IF((Y28+AC28)<Parametres!D$28,Parametres!D$28,(Y28+AC28))),2))))) ->  | AF28: =IF(A$2=Parametres!A$78,"",IF(B28=0,"",ROUND(AE28*Parametres!C$66,2))) ->  | AG28: =IF(A$2=Parametres!A$78,"",IF(B28=0,"",ROUND(AE28*Parametres!C$67,2))) ->  | AH28: =IF(A$2=Parametres!A$78,"",IF(B28=0,"",ROUND(AE28*Parametres!C$68,2))) ->  | AI28: =IF(A$2=Parametres!A$78,"",IF(B28=0,"",SUM(ROUND(AE28,2),ROUND(AF28,2),ROUND(AG28,2),ROUND(AH28,2)))) -> 
I29: =IF(F29=0,"",IF(A$2=Parametres!A$77,IF(G29="Oui",IF(H29="Oui",F29-F29*Parametres!C$50-(F29-F29*Parametres!C$50)*Parametres!C$51,IF(H29="Non",F29-F29*Parametres!C$50,"")),IF(G29="Non",IF(H29="Oui",F29-F29*Parametres!C$51,IF(H29="Non",F29,"")))),IF(A$2=Parametres!A$78,IF(G29="Oui",IF(H29="Oui",F29-F29*Parametres!C$50-(F29-F29*Parametres!C$50)*Parametres!C$51,IF(H29="Non",F29-F29*Parametres!E$50,"")),IF(G29="Non",IF(H29="Oui",F29-F29*Parametres!E$51,IF(H29="Non",F29,"")))),IF(A$2=Parametres!A$79,IF(G29="Oui",IF(H29="Oui",F29-F29*Parametres!G$50-(F29-F29*Parametres!G$50)*Parametres!G$51,IF(H29="Non",F29-F29*Parametres!G$50,"")),IF(G29="Non",IF(H29="Oui",F29-F29*Parametres!G$51,IF(H29="Non",F29,"")))),"")))) ->  | J29: =IF(B29=0,"",SUM(I24:I29)) ->  | K29: =IF(C29="","",IF(A$2=Parametres!A$79,Parametres!E$61,IF(A$2=Parametres!A$78,Parametres!E$60,IF(C29<=Parametres!D$56,Parametres!E$56,IF(C29<=Parametres!D$57,Parametres!E$57,IF(C29<=Parametres!D$58,Parametres!E$58,IF(C29>Parametres!D$59,Parametres!E$59,""))))))) ->  | N29: =IF(B29="","",IF(A$2=Parametres!A$79,IF((L29+M29)>0,(J29+L29+M29),J29*(1+Parametres!G$49)),J29+J29*K29)) ->  | O29: =IF(B29=0,"",IF(A$2=Parametres!A$77,Parametres!D$10,IF(A$2=Parametres!A$78,Parametres!F$9,IF(A$2=Parametres!A$79,Parametres!H$9,"")))) ->  | W29: =IF(Q29="gratuit","",IF(B29=0,"",IF(A$2=Parametres!A$77,IF(V29<Parametres!C$21,0,IF(V29<Parametres!D$41,Parametres!E$41,IF(V29<Parametres!C$42,Parametres!E$42,IF(V29<Parametres!C$43,Parametres!E$43,Parametres!E$44)))), IF(A$2=Parametres!A$78,IF(V29<Parametres!E$21,0,IF(V29<Parametres!D$41,Parametres!E$41,IF(V29<Parametres!C$42,Parametres!E$42,IF(V29<Parametres!C$43,Parametres!E$43,Parametres!E$44)))), IF(A$2=Parametres!A$79,IF(V29<Parametres!G$21,0,IF(V29<Parametres!D$41,Parametres!E$41,IF(V29<Parametres!C$42,Parametres!E$42,IF(V29<Parametres!C$43,Parametres!E$43,Parametres!E$44))))))))) ->  | X29: =IF(B29=0,"",IF(A$2=Parametres!A$77,Parametres!D$10,IF(A$2=Parametres!A$78,Parametres!F$10,IF(A$2=Parametres!A$79,Parametres!H$10,"")))) ->  | AB29: =IF(B29=0,"",IF(A$2=Parametres!A$77,Parametres!D$20,IF(A$2=Parametres!A$78,Parametres!F$20,IF(A$2=Parametres!A$79,Parametres!H$20,"")))) ->  | AD29: =IF(A$2=Parametres!A$77,IF(B29=0,"",IF(P29>(Y29+AC29),IF(P29<Parametres!D$28,"FORFAIT MINI","DEPENSES"),IF((Y29+AC29)<Parametres!D$28,"FORFAIT MINI","RECETTES"))),IF(A$2=Parametres!A$78,"",IF(A$2=Parametres!A$79,IF(B29=0,"",IF(T29>0,IF(AND(R29/T29<20,N29<5000),"FORFAIT MINI S.O.",IF(P29>(Y29+AC29),IF(P29<Parametres!D$28,"FORFAIT MINI","DEPENSES"),IF((Y29+AC29)<Parametres!D$28,"FORFAIT MINI","RECETTES"))),IF(N29<5000,"FORFAIT MINI S.O.",IF(P29>(Y29+AC29),IF(P29<Parametres!D$28,"FORFAIT MINI","DEPENSES"),IF((Y29+AC29)<Parametres!D$28,"FORFAIT MINI","RECETTES")))))))) ->  | AE29: =IF(T29>0,IF(AD29="FORFAIT MINI S.O.",INDEX(FSOTab,MATCH(R29/T29,FSOPrix,1)+1,MATCH(N29,FSOBudget,1)),IF(A$2=Parametres!A$78,"",IF(B29=0,"",ROUND(IF(P29>(Y29+AC29),IF(P29<Parametres!D$28,Parametres!D$28,P29),IF((Y29+AC29)<Parametres!D$28,Parametres!D$28,(Y29+AC29))),2)))),IF(AD29="FORFAIT MINI S.O.",INDEX(FSOTab,MATCH(0,FSOPrix,1)+1,MATCH(N29,FSOBudget,1)),IF(A$2=Parametres!A$78,"",IF(B29=0,"",ROUND(IF(P29>(Y29+AC29),IF(P29<Parametres!D$28,Parametres!D$28,P29),IF((Y29+AC29)<Parametres!D$28,Parametres!D$28,(Y29+AC29))),2))))) ->  | AF29: =IF(A$2=Parametres!A$78,"",IF(B29=0,"",ROUND(AE29*Parametres!C$66,2))) ->  | AG29: =IF(A$2=Parametres!A$78,"",IF(B29=0,"",ROUND(AE29*Parametres!C$67,2))) ->  | AH29: =IF(A$2=Parametres!A$78,"",IF(B29=0,"",ROUND(AE29*Parametres!C$68,2))) ->  | AI29: =IF(A$2=Parametres!A$78,"",IF(B29=0,"",SUM(ROUND(AE29,2),ROUND(AF29,2),ROUND(AG29,2),ROUND(AH29,2)))) -> 
I31: =IF(F31=0,"",IF(A$2=Parametres!A$77,IF(G31="Oui",IF(H31="Oui",F31-F31*Parametres!C$50-(F31-F31*Parametres!C$50)*Parametres!C$51,IF(H31="Non",F31-F31*Parametres!C$50,"")),IF(G31="Non",IF(H31="Oui",F31-F31*Parametres!C$51,IF(H31="Non",F31,"")))),IF(A$2=Parametres!A$78,IF(G31="Oui",IF(H31="Oui",F31-F31*Parametres!C$50-(F31-F31*Parametres!C$50)*Parametres!C$51,IF(H31="Non",F31-F31*Parametres!E$50,"")),IF(G31="Non",IF(H31="Oui",F31-F31*Parametres!E$51,IF(H31="Non",F31,"")))),IF(A$2=Parametres!A$79,IF(G31="Oui",IF(H31="Oui",F31-F31*Parametres!G$50-(F31-F31*Parametres!G$50)*Parametres!G$51,IF(H31="Non",F31-F31*Parametres!G$50,"")),IF(G31="Non",IF(H31="Oui",F31-F31*Parametres!G$51,IF(H31="Non",F31,"")))),"")))) ->  | J31: =IF(B31=0,"",SUM(I31:I36)) ->  | K31: =IF(C31="","",IF(A$2=Parametres!A$79,Parametres!E$61,IF(A$2=Parametres!A$78,Parametres!E$60,IF(C31<=Parametres!D$56,Parametres!E$56,IF(C31<=Parametres!D$57,Parametres!E$57,IF(C31<=Parametres!D$58,Parametres!E$58,IF(C31>Parametres!D$59,Parametres!E$59,""))))))) ->  | N31: =IF(B31="","",IF(A$2=Parametres!A$79,IF((L31+M31)>0,(J31+L31+M31),J31*(1+Parametres!G$49)),J31+J31*K31)) ->  | O31: =IF(B31=0,"",IF(A$2=Parametres!A$77,Parametres!D$10,IF(A$2=Parametres!A$78,Parametres!F$10,IF(A$2=Parametres!A$79,Parametres!H$10,"")))) ->  | P31: =IF(B31=0,"",O31*N31) ->  | Q31: =IF(R31>0,"payant",IF(B31=0,"","gratuit")) ->  | S31: =IF(B31=0,"",T31+U31) ->  | V31: =IF(Q31="gratuit","",IF(S31=0,0,IF(S31="","",U31/T31))) ->  | W31: =IF(Q31="gratuit","",IF(B31=0,"",IF(A$2=Parametres!A$77,IF(V31<Parametres!C$21,0,IF(V31<Parametres!D$41,Parametres!E$41,IF(V31<Parametres!C$42,Parametres!E$42,IF(V31<Parametres!C$43,Parametres!E$43,Parametres!E$44)))), IF(A$2=Parametres!A$78,IF(V31<Parametres!E$21,0,IF(V31<Parametres!D$41,Parametres!E$41,IF(V31<Parametres!C$42,Parametres!E$42,IF(V31<Parametres!C$43,Parametres!E$43,Parametres!E$44)))), IF(A$2=Parametres!A$79,IF(V31<Parametres!G$21,0,IF(V31<Parametres!D$41,Parametres!E$41,IF(V31<Parametres!C$42,Parametres!E$42,IF(V31<Parametres!C$43,Parametres!E$43,Parametres!E$44))))))))) ->  | X31: =IF(B31=0,"",IF(A$2=Parametres!A$77,Parametres!D$10,IF(A$2=Parametres!A$78,Parametres!F$10,IF(A$2=Parametres!A$79,Parametres!H$10,"")))) ->  | Y31: =IF(B31=0,"",IF(Q31="gratuit",R31*X31,R31*X31+(R31*X31)*W31)) ->  | AB31: =IF(B31=0,"",IF(A$2=Parametres!A$77,Parametres!D$20,IF(A$2=Parametres!A$78,Parametres!F$20,IF(A$2=Parametres!A$79,Parametres!H$20,"")))) ->  | AC31: =IF(B31=0,"",(Z31+AA31)*AB31) ->  | AD31: =IF(A$2=Parametres!A$77,IF(B31=0,"",IF(P31>(Y31+AC31),IF(P31<Parametres!D$28,"FORFAIT MINI","DEPENSES"),IF((Y31+AC31)<Parametres!D$28,"FORFAIT MINI","RECETTES"))),IF(A$2=Parametres!A$78,"",IF(A$2=Parametres!A$79,IF(B31=0,"",IF(T31>0,IF(AND(R31/T31<20,N31<5000),"FORFAIT MINI S.O.",IF(P31>(Y31+AC31),IF(P31<Parametres!D$28,"FORFAIT MINI","DEPENSES"),IF((Y31+AC31)<Parametres!D$28,"FORFAIT MINI","RECETTES"))),IF(N31<5000,"FORFAIT MINI S.O.",IF(P31>(Y31+AC31),IF(P31<Parametres!D$28,"FORFAIT MINI","DEPENSES"),IF((Y31+AC31)<Parametres!D$28,"FORFAIT MINI","RECETTES")))))))) ->  | AE31: =IF(T31>0,IF(AD31="FORFAIT MINI S.O.",INDEX(FSOTab,MATCH(R31/T31,FSOPrix,1)+1,MATCH(N31,FSOBudget,1)),IF(A$2=Parametres!A$78,"",IF(B31=0,"",ROUND(IF(P31>(Y31+AC31),IF(P31<Parametres!D$28,Parametres!D$28,P31),IF((Y31+AC31)<Parametres!D$28,Parametres!D$28,(Y31+AC31))),2)))),IF(AD31="FORFAIT MINI S.O.",INDEX(FSOTab,MATCH(0,FSOPrix,1)+1,MATCH(N31,FSOBudget,1)),IF(A$2=Parametres!A$78,"",IF(B31=0,"",ROUND(IF(P31>(Y31+AC31),IF(P31<Parametres!D$28,Parametres!D$28,P31),IF((Y31+AC31)<Parametres!D$28,Parametres!D$28,(Y31+AC31))),2))))) ->  | AF31: =IF(A$2=Parametres!A$78,"",IF(B31=0,"",ROUND(AE31*Parametres!C$66,2))) ->  | AG31: =IF(A$2=Parametres!A$78,"",IF(B31=0,"",ROUND(AE31*Parametres!C$67,2))) ->  | AH31: =IF(A$2=Parametres!A$78,"",IF(B31=0,"",ROUND(AE31*Parametres!C$68,2))) ->  | AI31: =IF(A$2=Parametres!A$78,"",IF(B31=0,"",SUM(ROUND(AE31,2),ROUND(AF31,2),ROUND(AG31,2),ROUND(AH31,2)))) -> 
I32: =IF(F32=0,"",IF(A$2=Parametres!A$77,IF(G32="Oui",IF(H32="Oui",F32-F32*Parametres!C$50-(F32-F32*Parametres!C$50)*Parametres!C$51,IF(H32="Non",F32-F32*Parametres!C$50,"")),IF(G32="Non",IF(H32="Oui",F32-F32*Parametres!C$51,IF(H32="Non",F32,"")))),IF(A$2=Parametres!A$78,IF(G32="Oui",IF(H32="Oui",F32-F32*Parametres!C$50-(F32-F32*Parametres!C$50)*Parametres!C$51,IF(H32="Non",F32-F32*Parametres!E$50,"")),IF(G32="Non",IF(H32="Oui",F32-F32*Parametres!E$51,IF(H32="Non",F32,"")))),IF(A$2=Parametres!A$79,IF(G32="Oui",IF(H32="Oui",F32-F32*Parametres!G$50-(F32-F32*Parametres!G$50)*Parametres!G$51,IF(H32="Non",F32-F32*Parametres!G$50,"")),IF(G32="Non",IF(H32="Oui",F32-F32*Parametres!G$51,IF(H32="Non",F32,"")))),"")))) ->  | J32: =IF(B32=0,"",SUM(I31:I36)) ->  | K32: =IF(C32="","",IF(A$2=Parametres!A$79,Parametres!E$61,IF(A$2=Parametres!A$78,Parametres!E$60,IF(C32<=Parametres!D$56,Parametres!E$56,IF(C32<=Parametres!D$57,Parametres!E$57,IF(C32<=Parametres!D$58,Parametres!E$58,IF(C32>Parametres!D$59,Parametres!E$59,""))))))) ->  | N32: =IF(B32="","",IF(A$2=Parametres!A$79,IF((L32+M32)>0,(J32+L32+M32),J32*(1+Parametres!G$49)),J32+J32*K32)) ->  | O32: =IF(B32=0,"",IF(A$2=Parametres!A$77,Parametres!D$10,IF(A$2=Parametres!A$78,Parametres!F$9,IF(A$2=Parametres!A$79,Parametres!H$9,"")))) ->  | V32: =IF(Q32="gratuit","",IF(S32=0,0,IF(S32="","",U32/T32))) ->  | W32: =IF(Q32="gratuit","",IF(B32=0,"",IF(A$2=Parametres!A$77,IF(V32<Parametres!C$21,0,IF(V32<Parametres!D$41,Parametres!E$41,IF(V32<Parametres!C$42,Parametres!E$42,IF(V32<Parametres!C$43,Parametres!E$43,Parametres!E$44)))), IF(A$2=Parametres!A$78,IF(V32<Parametres!E$21,0,IF(V32<Parametres!D$41,Parametres!E$41,IF(V32<Parametres!C$42,Parametres!E$42,IF(V32<Parametres!C$43,Parametres!E$43,Parametres!E$44)))), IF(A$2=Parametres!A$79,IF(V32<Parametres!G$21,0,IF(V32<Parametres!D$41,Parametres!E$41,IF(V32<Parametres!C$42,Parametres!E$42,IF(V32<Parametres!C$43,Parametres!E$43,Parametres!E$44))))))))) ->  | X32: =IF(B32=0,"",IF(A$2=Parametres!A$77,Parametres!D$10,IF(A$2=Parametres!A$78,Parametres!F$10,IF(A$2=Parametres!A$79,Parametres!H$10,"")))) ->  | AB32: =IF(B32=0,"",IF(A$2=Parametres!A$77,Parametres!D$20,IF(A$2=Parametres!A$78,Parametres!F$20,IF(A$2=Parametres!A$79,Parametres!H$20,"")))) ->  | AD32: =IF(A$2=Parametres!A$77,IF(B32=0,"",IF(P32>(Y32+AC32),IF(P32<Parametres!D$28,"FORFAIT MINI","DEPENSES"),IF((Y32+AC32)<Parametres!D$28,"FORFAIT MINI","RECETTES"))),IF(A$2=Parametres!A$78,"",IF(A$2=Parametres!A$79,IF(B32=0,"",IF(T32>0,IF(AND(R32/T32<20,N32<5000),"FORFAIT MINI S.O.",IF(P32>(Y32+AC32),IF(P32<Parametres!D$28,"FORFAIT MINI","DEPENSES"),IF((Y32+AC32)<Parametres!D$28,"FORFAIT MINI","RECETTES"))),IF(N32<5000,"FORFAIT MINI S.O.",IF(P32>(Y32+AC32),IF(P32<Parametres!D$28,"FORFAIT MINI","DEPENSES"),IF((Y32+AC32)<Parametres!D$28,"FORFAIT MINI","RECETTES")))))))) ->  | AE32: =IF(T32>0,IF(AD32="FORFAIT MINI S.O.",INDEX(FSOTab,MATCH(R32/T32,FSOPrix,1)+1,MATCH(N32,FSOBudget,1)),IF(A$2=Parametres!A$78,"",IF(B32=0,"",ROUND(IF(P32>(Y32+AC32),IF(P32<Parametres!D$28,Parametres!D$28,P32),IF((Y32+AC32)<Parametres!D$28,Parametres!D$28,(Y32+AC32))),2)))),IF(AD32="FORFAIT MINI S.O.",INDEX(FSOTab,MATCH(0,FSOPrix,1)+1,MATCH(N32,FSOBudget,1)),IF(A$2=Parametres!A$78,"",IF(B32=0,"",ROUND(IF(P32>(Y32+AC32),IF(P32<Parametres!D$28,Parametres!D$28,P32),IF((Y32+AC32)<Parametres!D$28,Parametres!D$28,(Y32+AC32))),2))))) ->  | AF32: =IF(A$2=Parametres!A$78,"",IF(B32=0,"",ROUND(AE32*Parametres!C$66,2))) ->  | AG32: =IF(A$2=Parametres!A$78,"",IF(B32=0,"",ROUND(AE32*Parametres!C$67,2))) ->  | AH32: =IF(A$2=Parametres!A$78,"",IF(B32=0,"",ROUND(AE32*Parametres!C$68,2))) ->  | AI32: =IF(A$2=Parametres!A$78,"",IF(B32=0,"",SUM(ROUND(AE32,2),ROUND(AF32,2),ROUND(AG32,2),ROUND(AH32,2)))) -> 
I33: =IF(F33=0,"",IF(A$2=Parametres!A$77,IF(G33="Oui",IF(H33="Oui",F33-F33*Parametres!C$50-(F33-F33*Parametres!C$50)*Parametres!C$51,IF(H33="Non",F33-F33*Parametres!C$50,"")),IF(G33="Non",IF(H33="Oui",F33-F33*Parametres!C$51,IF(H33="Non",F33,"")))),IF(A$2=Parametres!A$78,IF(G33="Oui",IF(H33="Oui",F33-F33*Parametres!C$50-(F33-F33*Parametres!C$50)*Parametres!C$51,IF(H33="Non",F33-F33*Parametres!E$50,"")),IF(G33="Non",IF(H33="Oui",F33-F33*Parametres!E$51,IF(H33="Non",F33,"")))),IF(A$2=Parametres!A$79,IF(G33="Oui",IF(H33="Oui",F33-F33*Parametres!G$50-(F33-F33*Parametres!G$50)*Parametres!G$51,IF(H33="Non",F33-F33*Parametres!G$50,"")),IF(G33="Non",IF(H33="Oui",F33-F33*Parametres!G$51,IF(H33="Non",F33,"")))),"")))) ->  | J33: =IF(B33=0,"",(I31:I36)) ->  | K33: =IF(C33="","",IF(A$2=Parametres!A$79,Parametres!E$61,IF(A$2=Parametres!A$78,Parametres!E$60,IF(C33<=Parametres!D$56,Parametres!E$56,IF(C33<=Parametres!D$57,Parametres!E$57,IF(C33<=Parametres!D$58,Parametres!E$58,IF(C33>Parametres!D$59,Parametres!E$59,""))))))) ->  | N33: =IF(B33="","",IF(A$2=Parametres!A$79,IF((L33+M33)>0,(J33+L33+M33),J33*(1+Parametres!G$49)),J33+J33*K33)) ->  | O33: =IF(B33=0,"",IF(A$2=Parametres!A$77,Parametres!D$10,IF(A$2=Parametres!A$78,Parametres!F$9,IF(A$2=Parametres!A$79,Parametres!H$9,"")))) ->  | W33: =IF(Q33="gratuit","",IF(B33=0,"",IF(A$2=Parametres!A$77,IF(V33<Parametres!C$21,0,IF(V33<Parametres!D$41,Parametres!E$41,IF(V33<Parametres!C$42,Parametres!E$42,IF(V33<Parametres!C$43,Parametres!E$43,Parametres!E$44)))), IF(A$2=Parametres!A$78,IF(V33<Parametres!E$21,0,IF(V33<Parametres!D$41,Parametres!E$41,IF(V33<Parametres!C$42,Parametres!E$42,IF(V33<Parametres!C$43,Parametres!E$43,Parametres!E$44)))), IF(A$2=Parametres!A$79,IF(V33<Parametres!G$21,0,IF(V33<Parametres!D$41,Parametres!E$41,IF(V33<Parametres!C$42,Parametres!E$42,IF(V33<Parametres!C$43,Parametres!E$43,Parametres!E$44))))))))) ->  | X33: =IF(B33=0,"",IF(A$2=Parametres!A$77,Parametres!D$10,IF(A$2=Parametres!A$78,Parametres!F$10,IF(A$2=Parametres!A$79,Parametres!H$10,"")))) ->  | AB33: =IF(B33=0,"",IF(A$2=Parametres!A$77,Parametres!D$20,IF(A$2=Parametres!A$78,Parametres!F$20,IF(A$2=Parametres!A$79,Parametres!H$20,"")))) ->  | AD33: =IF(A$2=Parametres!A$77,IF(B33=0,"",IF(P33>(Y33+AC33),IF(P33<Parametres!D$28,"FORFAIT MINI","DEPENSES"),IF((Y33+AC33)<Parametres!D$28,"FORFAIT MINI","RECETTES"))),IF(A$2=Parametres!A$78,"",IF(A$2=Parametres!A$79,IF(B33=0,"",IF(T33>0,IF(AND(R33/T33<20,N33<5000),"FORFAIT MINI S.O.",IF(P33>(Y33+AC33),IF(P33<Parametres!D$28,"FORFAIT MINI","DEPENSES"),IF((Y33+AC33)<Parametres!D$28,"FORFAIT MINI","RECETTES"))),IF(N33<5000,"FORFAIT MINI S.O.",IF(P33>(Y33+AC33),IF(P33<Parametres!D$28,"FORFAIT MINI","DEPENSES"),IF((Y33+AC33)<Parametres!D$28,"FORFAIT MINI","RECETTES")))))))) ->  | AE33: =IF(T33>0,IF(AD33="FORFAIT MINI S.O.",INDEX(FSOTab,MATCH(R33/T33,FSOPrix,1)+1,MATCH(N33,FSOBudget,1)),IF(A$2=Parametres!A$78,"",IF(B33=0,"",ROUND(IF(P33>(Y33+AC33),IF(P33<Parametres!D$28,Parametres!D$28,P33),IF((Y33+AC33)<Parametres!D$28,Parametres!D$28,(Y33+AC33))),2)))),IF(AD33="FORFAIT MINI S.O.",INDEX(FSOTab,MATCH(0,FSOPrix,1)+1,MATCH(N33,FSOBudget,1)),IF(A$2=Parametres!A$78,"",IF(B33=0,"",ROUND(IF(P33>(Y33+AC33),IF(P33<Parametres!D$28,Parametres!D$28,P33),IF((Y33+AC33)<Parametres!D$28,Parametres!D$28,(Y33+AC33))),2))))) ->  | AF33: =IF(A$2=Parametres!A$78,"",IF(B33=0,"",ROUND(AE33*Parametres!C$66,2))) ->  | AG33: =IF(A$2=Parametres!A$78,"",IF(B33=0,"",ROUND(AE33*Parametres!C$67,2))) ->  | AH33: =IF(A$2=Parametres!A$78,"",IF(B33=0,"",ROUND(AE33*Parametres!C$68,2))) ->  | AI33: =IF(A$2=Parametres!A$78,"",IF(B33=0,"",SUM(ROUND(AE33,2),ROUND(AF33,2),ROUND(AG33,2),ROUND(AH33,2)))) -> 
I34: =IF(F34=0,"",IF(A$2=Parametres!A$77,IF(G34="Oui",IF(H34="Oui",F34-F34*Parametres!C$50-(F34-F34*Parametres!C$50)*Parametres!C$51,IF(H34="Non",F34-F34*Parametres!C$50,"")),IF(G34="Non",IF(H34="Oui",F34-F34*Parametres!C$51,IF(H34="Non",F34,"")))),IF(A$2=Parametres!A$78,IF(G34="Oui",IF(H34="Oui",F34-F34*Parametres!C$50-(F34-F34*Parametres!C$50)*Parametres!C$51,IF(H34="Non",F34-F34*Parametres!E$50,"")),IF(G34="Non",IF(H34="Oui",F34-F34*Parametres!E$51,IF(H34="Non",F34,"")))),IF(A$2=Parametres!A$79,IF(G34="Oui",IF(H34="Oui",F34-F34*Parametres!G$50-(F34-F34*Parametres!G$50)*Parametres!G$51,IF(H34="Non",F34-F34*Parametres!G$50,"")),IF(G34="Non",IF(H34="Oui",F34-F34*Parametres!G$51,IF(H34="Non",F34,"")))),"")))) ->  | J34: =IF(B34=0,"",SUM(I31:I36)) ->  | K34: =IF(C34="","",IF(A$2=Parametres!A$79,Parametres!E$61,IF(A$2=Parametres!A$78,Parametres!E$60,IF(C34<=Parametres!D$56,Parametres!E$56,IF(C34<=Parametres!D$57,Parametres!E$57,IF(C34<=Parametres!D$58,Parametres!E$58,IF(C34>Parametres!D$59,Parametres!E$59,""))))))) ->  | N34: =IF(B34="","",IF(A$2=Parametres!A$79,IF((L34+M34)>0,(J34+L34+M34),J34*(1+Parametres!G$49)),J34+J34*K34)) ->  | O34: =IF(B34=0,"",IF(A$2=Parametres!A$77,Parametres!D$10,IF(A$2=Parametres!A$78,Parametres!F$9,IF(A$2=Parametres!A$79,Parametres!H$9,"")))) ->  | W34: =IF(Q34="gratuit","",IF(B34=0,"",IF(A$2=Parametres!A$77,IF(V34<Parametres!C$21,0,IF(V34<Parametres!D$41,Parametres!E$41,IF(V34<Parametres!C$42,Parametres!E$42,IF(V34<Parametres!C$43,Parametres!E$43,Parametres!E$44)))), IF(A$2=Parametres!A$78,IF(V34<Parametres!E$21,0,IF(V34<Parametres!D$41,Parametres!E$41,IF(V34<Parametres!C$42,Parametres!E$42,IF(V34<Parametres!C$43,Parametres!E$43,Parametres!E$44)))), IF(A$2=Parametres!A$79,IF(V34<Parametres!G$21,0,IF(V34<Parametres!D$41,Parametres!E$41,IF(V34<Parametres!C$42,Parametres!E$42,IF(V34<Parametres!C$43,Parametres!E$43,Parametres!E$44))))))))) ->  | X34: =IF(B34=0,"",IF(A$2=Parametres!A$77,Parametres!D$10,IF(A$2=Parametres!A$78,Parametres!F$10,IF(A$2=Parametres!A$79,Parametres!H$10,"")))) ->  | AB34: =IF(B34=0,"",IF(A$2=Parametres!A$77,Parametres!D$20,IF(A$2=Parametres!A$78,Parametres!F$20,IF(A$2=Parametres!A$79,Parametres!H$20,"")))) ->  | AD34: =IF(A$2=Parametres!A$77,IF(B34=0,"",IF(P34>(Y34+AC34),IF(P34<Parametres!D$28,"FORFAIT MINI","DEPENSES"),IF((Y34+AC34)<Parametres!D$28,"FORFAIT MINI","RECETTES"))),IF(A$2=Parametres!A$78,"",IF(A$2=Parametres!A$79,IF(B34=0,"",IF(T34>0,IF(AND(R34/T34<20,N34<5000),"FORFAIT MINI S.O.",IF(P34>(Y34+AC34),IF(P34<Parametres!D$28,"FORFAIT MINI","DEPENSES"),IF((Y34+AC34)<Parametres!D$28,"FORFAIT MINI","RECETTES"))),IF(N34<5000,"FORFAIT MINI S.O.",IF(P34>(Y34+AC34),IF(P34<Parametres!D$28,"FORFAIT MINI","DEPENSES"),IF((Y34+AC34)<Parametres!D$28,"FORFAIT MINI","RECETTES")))))))) ->  | AE34: =IF(T34>0,IF(AD34="FORFAIT MINI S.O.",INDEX(FSOTab,MATCH(R34/T34,FSOPrix,1)+1,MATCH(N34,FSOBudget,1)),IF(A$2=Parametres!A$78,"",IF(B34=0,"",ROUND(IF(P34>(Y34+AC34),IF(P34<Parametres!D$28,Parametres!D$28,P34),IF((Y34+AC34)<Parametres!D$28,Parametres!D$28,(Y34+AC34))),2)))),IF(AD34="FORFAIT MINI S.O.",INDEX(FSOTab,MATCH(0,FSOPrix,1)+1,MATCH(N34,FSOBudget,1)),IF(A$2=Parametres!A$78,"",IF(B34=0,"",ROUND(IF(P34>(Y34+AC34),IF(P34<Parametres!D$28,Parametres!D$28,P34),IF((Y34+AC34)<Parametres!D$28,Parametres!D$28,(Y34+AC34))),2))))) ->  | AF34: =IF(A$2=Parametres!A$78,"",IF(B34=0,"",ROUND(AE34*Parametres!C$66,2))) ->  | AG34: =IF(A$2=Parametres!A$78,"",IF(B34=0,"",ROUND(AE34*Parametres!C$67,2))) ->  | AH34: =IF(A$2=Parametres!A$78,"",IF(B34=0,"",ROUND(AE34*Parametres!C$68,2))) ->  | AI34: =IF(A$2=Parametres!A$78,"",IF(B34=0,"",SUM(ROUND(AE34,2),ROUND(AF34,2),ROUND(AG34,2),ROUND(AH34,2)))) -> 
I35: =IF(F35=0,"",IF(A$2=Parametres!A$77,IF(G35="Oui",IF(H35="Oui",F35-F35*Parametres!C$50-(F35-F35*Parametres!C$50)*Parametres!C$51,IF(H35="Non",F35-F35*Parametres!C$50,"")),IF(G35="Non",IF(H35="Oui",F35-F35*Parametres!C$51,IF(H35="Non",F35,"")))),IF(A$2=Parametres!A$78,IF(G35="Oui",IF(H35="Oui",F35-F35*Parametres!C$50-(F35-F35*Parametres!C$50)*Parametres!C$51,IF(H35="Non",F35-F35*Parametres!E$50,"")),IF(G35="Non",IF(H35="Oui",F35-F35*Parametres!E$51,IF(H35="Non",F35,"")))),IF(A$2=Parametres!A$79,IF(G35="Oui",IF(H35="Oui",F35-F35*Parametres!G$50-(F35-F35*Parametres!G$50)*Parametres!G$51,IF(H35="Non",F35-F35*Parametres!G$50,"")),IF(G35="Non",IF(H35="Oui",F35-F35*Parametres!G$51,IF(H35="Non",F35,"")))),"")))) ->  | J35: =IF(B35=0,"",SUM(I31:I36)) ->  | K35: =IF(C35="","",IF(A$2=Parametres!A$79,Parametres!E$61,IF(A$2=Parametres!A$78,Parametres!E$60,IF(C35<=Parametres!D$56,Parametres!E$56,IF(C35<=Parametres!D$57,Parametres!E$57,IF(C35<=Parametres!D$58,Parametres!E$58,IF(C35>Parametres!D$59,Parametres!E$59,""))))))) ->  | N35: =IF(B35="","",IF(A$2=Parametres!A$79,IF((L35+M35)>0,(J35+L35+M35),J35*(1+Parametres!G$49)),J35+J35*K35)) ->  | O35: =IF(B35=0,"",IF(A$2=Parametres!A$77,Parametres!D$10,IF(A$2=Parametres!A$78,Parametres!F$9,IF(A$2=Parametres!A$79,Parametres!H$9,"")))) ->  | W35: =IF(Q35="gratuit","",IF(B35=0,"",IF(A$2=Parametres!A$77,IF(V35<Parametres!C$21,0,IF(V35<Parametres!D$41,Parametres!E$41,IF(V35<Parametres!C$42,Parametres!E$42,IF(V35<Parametres!C$43,Parametres!E$43,Parametres!E$44)))), IF(A$2=Parametres!A$78,IF(V35<Parametres!E$21,0,IF(V35<Parametres!D$41,Parametres!E$41,IF(V35<Parametres!C$42,Parametres!E$42,IF(V35<Parametres!C$43,Parametres!E$43,Parametres!E$44)))), IF(A$2=Parametres!A$79,IF(V35<Parametres!G$21,0,IF(V35<Parametres!D$41,Parametres!E$41,IF(V35<Parametres!C$42,Parametres!E$42,IF(V35<Parametres!C$43,Parametres!E$43,Parametres!E$44))))))))) ->  | X35: =IF(B35=0,"",IF(A$2=Parametres!A$77,Parametres!D$10,IF(A$2=Parametres!A$78,Parametres!F$10,IF(A$2=Parametres!A$79,Parametres!H$10,"")))) ->  | AB35: =IF(B35=0,"",IF(A$2=Parametres!A$77,Parametres!D$20,IF(A$2=Parametres!A$78,Parametres!F$20,IF(A$2=Parametres!A$79,Parametres!H$20,"")))) ->  | AD35: =IF(A$2=Parametres!A$77,IF(B35=0,"",IF(P35>(Y35+AC35),IF(P35<Parametres!D$28,"FORFAIT MINI","DEPENSES"),IF((Y35+AC35)<Parametres!D$28,"FORFAIT MINI","RECETTES"))),IF(A$2=Parametres!A$78,"",IF(A$2=Parametres!A$79,IF(B35=0,"",IF(T35>0,IF(AND(R35/T35<20,N35<5000),"FORFAIT MINI S.O.",IF(P35>(Y35+AC35),IF(P35<Parametres!D$28,"FORFAIT MINI","DEPENSES"),IF((Y35+AC35)<Parametres!D$28,"FORFAIT MINI","RECETTES"))),IF(N35<5000,"FORFAIT MINI S.O.",IF(P35>(Y35+AC35),IF(P35<Parametres!D$28,"FORFAIT MINI","DEPENSES"),IF((Y35+AC35)<Parametres!D$28,"FORFAIT MINI","RECETTES")))))))) ->  | AE35: =IF(T35>0,IF(AD35="FORFAIT MINI S.O.",INDEX(FSOTab,MATCH(R35/T35,FSOPrix,1)+1,MATCH(N35,FSOBudget,1)),IF(A$2=Parametres!A$78,"",IF(B35=0,"",ROUND(IF(P35>(Y35+AC35),IF(P35<Parametres!D$28,Parametres!D$28,P35),IF((Y35+AC35)<Parametres!D$28,Parametres!D$28,(Y35+AC35))),2)))),IF(AD35="FORFAIT MINI S.O.",INDEX(FSOTab,MATCH(0,FSOPrix,1)+1,MATCH(N35,FSOBudget,1)),IF(A$2=Parametres!A$78,"",IF(B35=0,"",ROUND(IF(P35>(Y35+AC35),IF(P35<Parametres!D$28,Parametres!D$28,P35),IF((Y35+AC35)<Parametres!D$28,Parametres!D$28,(Y35+AC35))),2))))) ->  | AF35: =IF(A$2=Parametres!A$78,"",IF(B35=0,"",ROUND(AE35*Parametres!C$66,2))) ->  | AG35: =IF(A$2=Parametres!A$78,"",IF(B35=0,"",ROUND(AE35*Parametres!C$67,2))) ->  | AH35: =IF(A$2=Parametres!A$78,"",IF(B35=0,"",ROUND(AE35*Parametres!C$68,2))) ->  | AI35: =IF(A$2=Parametres!A$78,"",IF(B35=0,"",SUM(ROUND(AE35,2),ROUND(AF35,2),ROUND(AG35,2),ROUND(AH35,2)))) -> 
I36: =IF(F36=0,"",IF(A$2=Parametres!A$77,IF(G36="Oui",IF(H36="Oui",F36-F36*Parametres!C$50-(F36-F36*Parametres!C$50)*Parametres!C$51,IF(H36="Non",F36-F36*Parametres!C$50,"")),IF(G36="Non",IF(H36="Oui",F36-F36*Parametres!C$51,IF(H36="Non",F36,"")))),IF(A$2=Parametres!A$78,IF(G36="Oui",IF(H36="Oui",F36-F36*Parametres!C$50-(F36-F36*Parametres!C$50)*Parametres!C$51,IF(H36="Non",F36-F36*Parametres!E$50,"")),IF(G36="Non",IF(H36="Oui",F36-F36*Parametres!E$51,IF(H36="Non",F36,"")))),IF(A$2=Parametres!A$79,IF(G36="Oui",IF(H36="Oui",F36-F36*Parametres!G$50-(F36-F36*Parametres!G$50)*Parametres!G$51,IF(H36="Non",F36-F36*Parametres!G$50,"")),IF(G36="Non",IF(H36="Oui",F36-F36*Parametres!G$51,IF(H36="Non",F36,"")))),"")))) ->  | J36: =IF(B36=0,"",SUM(I31:I36)) ->  | K36: =IF(C36="","",IF(A$2=Parametres!A$79,Parametres!E$61,IF(A$2=Parametres!A$78,Parametres!E$60,IF(C36<=Parametres!D$56,Parametres!E$56,IF(C36<=Parametres!D$57,Parametres!E$57,IF(C36<=Parametres!D$58,Parametres!E$58,IF(C36>Parametres!D$59,Parametres!E$59,""))))))) ->  | N36: =IF(B36="","",IF(A$2=Parametres!A$79,IF((L36+M36)>0,(J36+L36+M36),J36*(1+Parametres!G$49)),J36+J36*K36)) ->  | O36: =IF(B36=0,"",IF(A$2=Parametres!A$77,Parametres!D$10,IF(A$2=Parametres!A$78,Parametres!F$9,IF(A$2=Parametres!A$79,Parametres!H$9,"")))) ->  | W36: =IF(Q36="gratuit","",IF(B36=0,"",IF(A$2=Parametres!A$77,IF(V36<Parametres!C$21,0,IF(V36<Parametres!D$41,Parametres!E$41,IF(V36<Parametres!C$42,Parametres!E$42,IF(V36<Parametres!C$43,Parametres!E$43,Parametres!E$44)))), IF(A$2=Parametres!A$78,IF(V36<Parametres!E$21,0,IF(V36<Parametres!D$41,Parametres!E$41,IF(V36<Parametres!C$42,Parametres!E$42,IF(V36<Parametres!C$43,Parametres!E$43,Parametres!E$44)))), IF(A$2=Parametres!A$79,IF(V36<Parametres!G$21,0,IF(V36<Parametres!D$41,Parametres!E$41,IF(V36<Parametres!C$42,Parametres!E$42,IF(V36<Parametres!C$43,Parametres!E$43,Parametres!E$44))))))))) ->  | X36: =IF(B36=0,"",IF(A$2=Parametres!A$77,Parametres!D$10,IF(A$2=Parametres!A$78,Parametres!F$10,IF(A$2=Parametres!A$79,Parametres!H$10,"")))) ->  | AB36: =IF(B36=0,"",IF(A$2=Parametres!A$77,Parametres!D$20,IF(A$2=Parametres!A$78,Parametres!F$20,IF(A$2=Parametres!A$79,Parametres!H$20,"")))) ->  | AD36: =IF(A$2=Parametres!A$77,IF(B36=0,"",IF(P36>(Y36+AC36),IF(P36<Parametres!D$28,"FORFAIT MINI","DEPENSES"),IF((Y36+AC36)<Parametres!D$28,"FORFAIT MINI","RECETTES"))),IF(A$2=Parametres!A$78,"",IF(A$2=Parametres!A$79,IF(B36=0,"",IF(T36>0,IF(AND(R36/T36<20,N36<5000),"FORFAIT MINI S.O.",IF(P36>(Y36+AC36),IF(P36<Parametres!D$28,"FORFAIT MINI","DEPENSES"),IF((Y36+AC36)<Parametres!D$28,"FORFAIT MINI","RECETTES"))),IF(N36<5000,"FORFAIT MINI S.O.",IF(P36>(Y36+AC36),IF(P36<Parametres!D$28,"FORFAIT MINI","DEPENSES"),IF((Y36+AC36)<Parametres!D$28,"FORFAIT MINI","RECETTES")))))))) ->  | AE36: =IF(T36>0,IF(AD36="FORFAIT MINI S.O.",INDEX(FSOTab,MATCH(R36/T36,FSOPrix,1)+1,MATCH(N36,FSOBudget,1)),IF(A$2=Parametres!A$78,"",IF(B36=0,"",ROUND(IF(P36>(Y36+AC36),IF(P36<Parametres!D$28,Parametres!D$28,P36),IF((Y36+AC36)<Parametres!D$28,Parametres!D$28,(Y36+AC36))),2)))),IF(AD36="FORFAIT MINI S.O.",INDEX(FSOTab,MATCH(0,FSOPrix,1)+1,MATCH(N36,FSOBudget,1)),IF(A$2=Parametres!A$78,"",IF(B36=0,"",ROUND(IF(P36>(Y36+AC36),IF(P36<Parametres!D$28,Parametres!D$28,P36),IF((Y36+AC36)<Parametres!D$28,Parametres!D$28,(Y36+AC36))),2))))) ->  | AF36: =IF(A$2=Parametres!A$78,"",IF(B36=0,"",ROUND(AE36*Parametres!C$66,2))) ->  | AG36: =IF(A$2=Parametres!A$78,"",IF(B36=0,"",ROUND(AE36*Parametres!C$67,2))) ->  | AH36: =IF(A$2=Parametres!A$78,"",IF(B36=0,"",ROUND(AE36*Parametres!C$68,2))) ->  | AI36: =IF(A$2=Parametres!A$78,"",IF(B36=0,"",SUM(ROUND(AE36,2),ROUND(AF36,2),ROUND(AG36,2),ROUND(AH36,2)))) -> 
I38: =IF(F38=0,"",IF(A$2=Parametres!A$77,IF(G38="Oui",IF(H38="Oui",F38-F38*Parametres!C$50-(F38-F38*Parametres!C$50)*Parametres!C$51,IF(H38="Non",F38-F38*Parametres!C$50,"")),IF(G38="Non",IF(H38="Oui",F38-F38*Parametres!C$51,IF(H38="Non",F38,"")))),IF(A$2=Parametres!A$78,IF(G38="Oui",IF(H38="Oui",F38-F38*Parametres!C$50-(F38-F38*Parametres!C$50)*Parametres!C$51,IF(H38="Non",F38-F38*Parametres!E$50,"")),IF(G38="Non",IF(H38="Oui",F38-F38*Parametres!E$51,IF(H38="Non",F38,"")))),IF(A$2=Parametres!A$79,IF(G38="Oui",IF(H38="Oui",F38-F38*Parametres!G$50-(F38-F38*Parametres!G$50)*Parametres!G$51,IF(H38="Non",F38-F38*Parametres!G$50,"")),IF(G38="Non",IF(H38="Oui",F38-F38*Parametres!G$51,IF(H38="Non",F38,"")))),"")))) ->  | J38: =IF(B38=0,"",SUM(I38:I43)) ->  | K38: =IF(C38="","",IF(A$2=Parametres!A$79,Parametres!E$61,IF(A$2=Parametres!A$78,Parametres!E$60,IF(C38<=Parametres!D$56,Parametres!E$56,IF(C38<=Parametres!D$57,Parametres!E$57,IF(C38<=Parametres!D$58,Parametres!E$58,IF(C38>Parametres!D$59,Parametres!E$59,""))))))) ->  | N38: =IF(B38="","",IF(A$2=Parametres!A$79,IF((L38+M38)>0,(J38+L38+M38),J38*(1+Parametres!G$49)),J38+J38*K38)) ->  | O38: =IF(B38=0,"",IF(A$2=Parametres!A$77,Parametres!D$10,IF(A$2=Parametres!A$78,Parametres!F$10,IF(A$2=Parametres!A$79,Parametres!H$10,"")))) ->  | P38: =IF(B38=0,"",O38*N38) ->  | Q38: =IF(R38>0,"payant",IF(B38=0,"","gratuit")) ->  | S38: =IF(B38=0,"",T38+U38) ->  | V38: =IF(Q38="gratuit","",IF(S38=0,0,IF(S38="","",U38/T38))) ->  | W38: =IF(Q38="gratuit","",IF(B38=0,"",IF(A$2=Parametres!A$77,IF(V38<Parametres!C$21,0,IF(V38<Parametres!D$41,Parametres!E$41,IF(V38<Parametres!C$42,Parametres!E$42,IF(V38<Parametres!C$43,Parametres!E$43,Parametres!E$44)))), IF(A$2=Parametres!A$78,IF(V38<Parametres!E$21,0,IF(V38<Parametres!D$41,Parametres!E$41,IF(V38<Parametres!C$42,Parametres!E$42,IF(V38<Parametres!C$43,Parametres!E$43,Parametres!E$44)))), IF(A$2=Parametres!A$79,IF(V38<Parametres!G$21,0,IF(V38<Parametres!D$41,Parametres!E$41,IF(V38<Parametres!C$42,Parametres!E$42,IF(V38<Parametres!C$43,Parametres!E$43,Parametres!E$44))))))))) ->  | X38: =IF(B38=0,"",IF(A$2=Parametres!A$77,Parametres!D$10,IF(A$2=Parametres!A$78,Parametres!F$10,IF(A$2=Parametres!A$79,Parametres!H$10,"")))) ->  | Y38: =IF(B38=0,"",IF(Q38="gratuit",R38*X38,R38*X38+(R38*X38)*W38)) ->  | AB38: =IF(B38=0,"",IF(A$2=Parametres!A$77,Parametres!D$20,IF(A$2=Parametres!A$78,Parametres!F$20,IF(A$2=Parametres!A$79,Parametres!H$20,"")))) ->  | AC38: =IF(B38=0,"",(Z38+AA38)*AB38) ->  | AD38: =IF(A$2=Parametres!A$77,IF(B38=0,"",IF(P38>(Y38+AC38),IF(P38<Parametres!D$28,"FORFAIT MINI","DEPENSES"),IF((Y38+AC38)<Parametres!D$28,"FORFAIT MINI","RECETTES"))),IF(A$2=Parametres!A$78,"",IF(A$2=Parametres!A$79,IF(B38=0,"",IF(T38>0,IF(AND(R38/T38<20,N38<5000),"FORFAIT MINI S.O.",IF(P38>(Y38+AC38),IF(P38<Parametres!D$28,"FORFAIT MINI","DEPENSES"),IF((Y38+AC38)<Parametres!D$28,"FORFAIT MINI","RECETTES"))),IF(N38<5000,"FORFAIT MINI S.O.",IF(P38>(Y38+AC38),IF(P38<Parametres!D$28,"FORFAIT MINI","DEPENSES"),IF((Y38+AC38)<Parametres!D$28,"FORFAIT MINI","RECETTES")))))))) ->  | AE38: =IF(T38>0,IF(AD38="FORFAIT MINI S.O.",INDEX(FSOTab,MATCH(R38/T38,FSOPrix,1)+1,MATCH(N38,FSOBudget,1)),IF(A$2=Parametres!A$78,"",IF(B38=0,"",ROUND(IF(P38>(Y38+AC38),IF(P38<Parametres!D$28,Parametres!D$28,P38),IF((Y38+AC38)<Parametres!D$28,Parametres!D$28,(Y38+AC38))),2)))),IF(AD38="FORFAIT MINI S.O.",INDEX(FSOTab,MATCH(0,FSOPrix,1)+1,MATCH(N38,FSOBudget,1)),IF(A$2=Parametres!A$78,"",IF(B38=0,"",ROUND(IF(P38>(Y38+AC38),IF(P38<Parametres!D$28,Parametres!D$28,P38),IF((Y38+AC38)<Parametres!D$28,Parametres!D$28,(Y38+AC38))),2))))) ->  | AF38: =IF(A$2=Parametres!A$78,"",IF(B38=0,"",ROUND(AE38*Parametres!C$66,2))) ->  | AG38: =IF(A$2=Parametres!A$78,"",IF(B38=0,"",ROUND(AE38*Parametres!C$67,2))) ->  | AH38: =IF(A$2=Parametres!A$78,"",IF(B38=0,"",ROUND(AE38*Parametres!C$68,2))) ->  | AI38: =IF(A$2=Parametres!A$78,"",IF(B38=0,"",SUM(ROUND(AE38,2),ROUND(AF38,2),ROUND(AG38,2),ROUND(AH38,2)))) -> 
I39: =IF(F39=0,"",IF(A$2=Parametres!A$77,IF(G39="Oui",IF(H39="Oui",F39-F39*Parametres!C$50-(F39-F39*Parametres!C$50)*Parametres!C$51,IF(H39="Non",F39-F39*Parametres!C$50,"")),IF(G39="Non",IF(H39="Oui",F39-F39*Parametres!C$51,IF(H39="Non",F39,"")))),IF(A$2=Parametres!A$78,IF(G39="Oui",IF(H39="Oui",F39-F39*Parametres!C$50-(F39-F39*Parametres!C$50)*Parametres!C$51,IF(H39="Non",F39-F39*Parametres!E$50,"")),IF(G39="Non",IF(H39="Oui",F39-F39*Parametres!E$51,IF(H39="Non",F39,"")))),IF(A$2=Parametres!A$79,IF(G39="Oui",IF(H39="Oui",F39-F39*Parametres!G$50-(F39-F39*Parametres!G$50)*Parametres!G$51,IF(H39="Non",F39-F39*Parametres!G$50,"")),IF(G39="Non",IF(H39="Oui",F39-F39*Parametres!G$51,IF(H39="Non",F39,"")))),"")))) ->  | J39: =IF(B39=0,"",SUM(I38:I43)) ->  | K39: =IF(C39="","",IF(A$2=Parametres!A$79,Parametres!E$61,IF(A$2=Parametres!A$78,Parametres!E$60,IF(C39<=Parametres!D$56,Parametres!E$56,IF(C39<=Parametres!D$57,Parametres!E$57,IF(C39<=Parametres!D$58,Parametres!E$58,IF(C39>Parametres!D$59,Parametres!E$59,""))))))) ->  | N39: =IF(B39="","",IF(A$2=Parametres!A$79,IF((L39+M39)>0,(J39+L39+M39),J39*(1+Parametres!G$49)),J39+J39*K39)) ->  | O39: =IF(B39=0,"",IF(A$2=Parametres!A$77,Parametres!D$10,IF(A$2=Parametres!A$78,Parametres!F$9,IF(A$2=Parametres!A$79,Parametres!H$9,"")))) ->  | V39: =IF(Q39="gratuit","",IF(S39=0,0,IF(S39="","",U39/T39))) ->  | W39: =IF(Q39="gratuit","",IF(B39=0,"",IF(A$2=Parametres!A$77,IF(V39<Parametres!C$21,0,IF(V39<Parametres!D$41,Parametres!E$41,IF(V39<Parametres!C$42,Parametres!E$42,IF(V39<Parametres!C$43,Parametres!E$43,Parametres!E$44)))), IF(A$2=Parametres!A$78,IF(V39<Parametres!E$21,0,IF(V39<Parametres!D$41,Parametres!E$41,IF(V39<Parametres!C$42,Parametres!E$42,IF(V39<Parametres!C$43,Parametres!E$43,Parametres!E$44)))), IF(A$2=Parametres!A$79,IF(V39<Parametres!G$21,0,IF(V39<Parametres!D$41,Parametres!E$41,IF(V39<Parametres!C$42,Parametres!E$42,IF(V39<Parametres!C$43,Parametres!E$43,Parametres!E$44))))))))) ->  | X39: =IF(B39=0,"",IF(A$2=Parametres!A$77,Parametres!D$10,IF(A$2=Parametres!A$78,Parametres!F$10,IF(A$2=Parametres!A$79,Parametres!H$10,"")))) ->  | AB39: =IF(B39=0,"",IF(A$2=Parametres!A$77,Parametres!D$20,IF(A$2=Parametres!A$78,Parametres!F$20,IF(A$2=Parametres!A$79,Parametres!H$20,"")))) ->  | AD39: =IF(A$2=Parametres!A$77,IF(B39=0,"",IF(P39>(Y39+AC39),IF(P39<Parametres!D$28,"FORFAIT MINI","DEPENSES"),IF((Y39+AC39)<Parametres!D$28,"FORFAIT MINI","RECETTES"))),IF(A$2=Parametres!A$78,"",IF(A$2=Parametres!A$79,IF(B39=0,"",IF(T39>0,IF(AND(R39/T39<20,N39<5000),"FORFAIT MINI S.O.",IF(P39>(Y39+AC39),IF(P39<Parametres!D$28,"FORFAIT MINI","DEPENSES"),IF((Y39+AC39)<Parametres!D$28,"FORFAIT MINI","RECETTES"))),IF(N39<5000,"FORFAIT MINI S.O.",IF(P39>(Y39+AC39),IF(P39<Parametres!D$28,"FORFAIT MINI","DEPENSES"),IF((Y39+AC39)<Parametres!D$28,"FORFAIT MINI","RECETTES")))))))) ->  | AE39: =IF(T39>0,IF(AD39="FORFAIT MINI S.O.",INDEX(FSOTab,MATCH(R39/T39,FSOPrix,1)+1,MATCH(N39,FSOBudget,1)),IF(A$2=Parametres!A$78,"",IF(B39=0,"",ROUND(IF(P39>(Y39+AC39),IF(P39<Parametres!D$28,Parametres!D$28,P39),IF((Y39+AC39)<Parametres!D$28,Parametres!D$28,(Y39+AC39))),2)))),IF(AD39="FORFAIT MINI S.O.",INDEX(FSOTab,MATCH(0,FSOPrix,1)+1,MATCH(N39,FSOBudget,1)),IF(A$2=Parametres!A$78,"",IF(B39=0,"",ROUND(IF(P39>(Y39+AC39),IF(P39<Parametres!D$28,Parametres!D$28,P39),IF((Y39+AC39)<Parametres!D$28,Parametres!D$28,(Y39+AC39))),2))))) ->  | AF39: =IF(A$2=Parametres!A$78,"",IF(B39=0,"",ROUND(AE39*Parametres!C$66,2))) ->  | AG39: =IF(A$2=Parametres!A$78,"",IF(B39=0,"",ROUND(AE39*Parametres!C$67,2))) ->  | AH39: =IF(A$2=Parametres!A$78,"",IF(B39=0,"",ROUND(AE39*Parametres!C$68,2))) ->  | AI39: =IF(A$2=Parametres!A$78,"",IF(B39=0,"",SUM(ROUND(AE39,2),ROUND(AF39,2),ROUND(AG39,2),ROUND(AH39,2)))) -> 
I40: =IF(F40=0,"",IF(A$2=Parametres!A$77,IF(G40="Oui",IF(H40="Oui",F40-F40*Parametres!C$50-(F40-F40*Parametres!C$50)*Parametres!C$51,IF(H40="Non",F40-F40*Parametres!C$50,"")),IF(G40="Non",IF(H40="Oui",F40-F40*Parametres!C$51,IF(H40="Non",F40,"")))),IF(A$2=Parametres!A$78,IF(G40="Oui",IF(H40="Oui",F40-F40*Parametres!C$50-(F40-F40*Parametres!C$50)*Parametres!C$51,IF(H40="Non",F40-F40*Parametres!E$50,"")),IF(G40="Non",IF(H40="Oui",F40-F40*Parametres!E$51,IF(H40="Non",F40,"")))),IF(A$2=Parametres!A$79,IF(G40="Oui",IF(H40="Oui",F40-F40*Parametres!G$50-(F40-F40*Parametres!G$50)*Parametres!G$51,IF(H40="Non",F40-F40*Parametres!G$50,"")),IF(G40="Non",IF(H40="Oui",F40-F40*Parametres!G$51,IF(H40="Non",F40,"")))),"")))) ->  | J40: =IF(B40=0,"",(I38:I43)) ->  | K40: =IF(C40="","",IF(A$2=Parametres!A$79,Parametres!E$61,IF(A$2=Parametres!A$78,Parametres!E$60,IF(C40<=Parametres!D$56,Parametres!E$56,IF(C40<=Parametres!D$57,Parametres!E$57,IF(C40<=Parametres!D$58,Parametres!E$58,IF(C40>Parametres!D$59,Parametres!E$59,""))))))) ->  | N40: =IF(B40="","",IF(A$2=Parametres!A$79,IF((L40+M40)>0,(J40+L40+M40),J40*(1+Parametres!G$49)),J40+J40*K40)) ->  | O40: =IF(B40=0,"",IF(A$2=Parametres!A$77,Parametres!D$10,IF(A$2=Parametres!A$78,Parametres!F$9,IF(A$2=Parametres!A$79,Parametres!H$9,"")))) ->  | W40: =IF(Q40="gratuit","",IF(B40=0,"",IF(A$2=Parametres!A$77,IF(V40<Parametres!C$21,0,IF(V40<Parametres!D$41,Parametres!E$41,IF(V40<Parametres!C$42,Parametres!E$42,IF(V40<Parametres!C$43,Parametres!E$43,Parametres!E$44)))), IF(A$2=Parametres!A$78,IF(V40<Parametres!E$21,0,IF(V40<Parametres!D$41,Parametres!E$41,IF(V40<Parametres!C$42,Parametres!E$42,IF(V40<Parametres!C$43,Parametres!E$43,Parametres!E$44)))), IF(A$2=Parametres!A$79,IF(V40<Parametres!G$21,0,IF(V40<Parametres!D$41,Parametres!E$41,IF(V40<Parametres!C$42,Parametres!E$42,IF(V40<Parametres!C$43,Parametres!E$43,Parametres!E$44))))))))) ->  | X40: =IF(B40=0,"",IF(A$2=Parametres!A$77,Parametres!D$10,IF(A$2=Parametres!A$78,Parametres!F$10,IF(A$2=Parametres!A$79,Parametres!H$10,"")))) ->  | AB40: =IF(B40=0,"",IF(A$2=Parametres!A$77,Parametres!D$20,IF(A$2=Parametres!A$78,Parametres!F$20,IF(A$2=Parametres!A$79,Parametres!H$20,"")))) ->  | AD40: =IF(A$2=Parametres!A$77,IF(B40=0,"",IF(P40>(Y40+AC40),IF(P40<Parametres!D$28,"FORFAIT MINI","DEPENSES"),IF((Y40+AC40)<Parametres!D$28,"FORFAIT MINI","RECETTES"))),IF(A$2=Parametres!A$78,"",IF(A$2=Parametres!A$79,IF(B40=0,"",IF(T40>0,IF(AND(R40/T40<20,N40<5000),"FORFAIT MINI S.O.",IF(P40>(Y40+AC40),IF(P40<Parametres!D$28,"FORFAIT MINI","DEPENSES"),IF((Y40+AC40)<Parametres!D$28,"FORFAIT MINI","RECETTES"))),IF(N40<5000,"FORFAIT MINI S.O.",IF(P40>(Y40+AC40),IF(P40<Parametres!D$28,"FORFAIT MINI","DEPENSES"),IF((Y40+AC40)<Parametres!D$28,"FORFAIT MINI","RECETTES")))))))) ->  | AE40: =IF(T40>0,IF(AD40="FORFAIT MINI S.O.",INDEX(FSOTab,MATCH(R40/T40,FSOPrix,1)+1,MATCH(N40,FSOBudget,1)),IF(A$2=Parametres!A$78,"",IF(B40=0,"",ROUND(IF(P40>(Y40+AC40),IF(P40<Parametres!D$28,Parametres!D$28,P40),IF((Y40+AC40)<Parametres!D$28,Parametres!D$28,(Y40+AC40))),2)))),IF(AD40="FORFAIT MINI S.O.",INDEX(FSOTab,MATCH(0,FSOPrix,1)+1,MATCH(N40,FSOBudget,1)),IF(A$2=Parametres!A$78,"",IF(B40=0,"",ROUND(IF(P40>(Y40+AC40),IF(P40<Parametres!D$28,Parametres!D$28,P40),IF((Y40+AC40)<Parametres!D$28,Parametres!D$28,(Y40+AC40))),2))))) ->  | AF40: =IF(A$2=Parametres!A$78,"",IF(B40=0,"",ROUND(AE40*Parametres!C$66,2))) ->  | AG40: =IF(A$2=Parametres!A$78,"",IF(B40=0,"",ROUND(AE40*Parametres!C$67,2))) ->  | AH40: =IF(A$2=Parametres!A$78,"",IF(B40=0,"",ROUND(AE40*Parametres!C$68,2))) ->  | AI40: =IF(A$2=Parametres!A$78,"",IF(B40=0,"",SUM(ROUND(AE40,2),ROUND(AF40,2),ROUND(AG40,2),ROUND(AH40,2)))) -> 
I41: =IF(F41=0,"",IF(A$2=Parametres!A$77,IF(G41="Oui",IF(H41="Oui",F41-F41*Parametres!C$50-(F41-F41*Parametres!C$50)*Parametres!C$51,IF(H41="Non",F41-F41*Parametres!C$50,"")),IF(G41="Non",IF(H41="Oui",F41-F41*Parametres!C$51,IF(H41="Non",F41,"")))),IF(A$2=Parametres!A$78,IF(G41="Oui",IF(H41="Oui",F41-F41*Parametres!C$50-(F41-F41*Parametres!C$50)*Parametres!C$51,IF(H41="Non",F41-F41*Parametres!E$50,"")),IF(G41="Non",IF(H41="Oui",F41-F41*Parametres!E$51,IF(H41="Non",F41,"")))),IF(A$2=Parametres!A$79,IF(G41="Oui",IF(H41="Oui",F41-F41*Parametres!G$50-(F41-F41*Parametres!G$50)*Parametres!G$51,IF(H41="Non",F41-F41*Parametres!G$50,"")),IF(G41="Non",IF(H41="Oui",F41-F41*Parametres!G$51,IF(H41="Non",F41,"")))),"")))) ->  | J41: =IF(B41=0,"",SUM(I38:I43)) ->  | K41: =IF(C41="","",IF(A$2=Parametres!A$79,Parametres!E$61,IF(A$2=Parametres!A$78,Parametres!E$60,IF(C41<=Parametres!D$56,Parametres!E$56,IF(C41<=Parametres!D$57,Parametres!E$57,IF(C41<=Parametres!D$58,Parametres!E$58,IF(C41>Parametres!D$59,Parametres!E$59,""))))))) ->  | N41: =IF(B41="","",IF(A$2=Parametres!A$79,IF((L41+M41)>0,(J41+L41+M41),J41*(1+Parametres!G$49)),J41+J41*K41)) ->  | O41: =IF(B41=0,"",IF(A$2=Parametres!A$77,Parametres!D$10,IF(A$2=Parametres!A$78,Parametres!F$9,IF(A$2=Parametres!A$79,Parametres!H$9,"")))) ->  | W41: =IF(Q41="gratuit","",IF(B41=0,"",IF(A$2=Parametres!A$77,IF(V41<Parametres!C$21,0,IF(V41<Parametres!D$41,Parametres!E$41,IF(V41<Parametres!C$42,Parametres!E$42,IF(V41<Parametres!C$43,Parametres!E$43,Parametres!E$44)))), IF(A$2=Parametres!A$78,IF(V41<Parametres!E$21,0,IF(V41<Parametres!D$41,Parametres!E$41,IF(V41<Parametres!C$42,Parametres!E$42,IF(V41<Parametres!C$43,Parametres!E$43,Parametres!E$44)))), IF(A$2=Parametres!A$79,IF(V41<Parametres!G$21,0,IF(V41<Parametres!D$41,Parametres!E$41,IF(V41<Parametres!C$42,Parametres!E$42,IF(V41<Parametres!C$43,Parametres!E$43,Parametres!E$44))))))))) ->  | X41: =IF(B41=0,"",IF(A$2=Parametres!A$77,Parametres!D$10,IF(A$2=Parametres!A$78,Parametres!F$10,IF(A$2=Parametres!A$79,Parametres!H$10,"")))) ->  | AB41: =IF(B41=0,"",IF(A$2=Parametres!A$77,Parametres!D$20,IF(A$2=Parametres!A$78,Parametres!F$20,IF(A$2=Parametres!A$79,Parametres!H$20,"")))) ->  | AD41: =IF(A$2=Parametres!A$77,IF(B41=0,"",IF(P41>(Y41+AC41),IF(P41<Parametres!D$28,"FORFAIT MINI","DEPENSES"),IF((Y41+AC41)<Parametres!D$28,"FORFAIT MINI","RECETTES"))),IF(A$2=Parametres!A$78,"",IF(A$2=Parametres!A$79,IF(B41=0,"",IF(T41>0,IF(AND(R41/T41<20,N41<5000),"FORFAIT MINI S.O.",IF(P41>(Y41+AC41),IF(P41<Parametres!D$28,"FORFAIT MINI","DEPENSES"),IF((Y41+AC41)<Parametres!D$28,"FORFAIT MINI","RECETTES"))),IF(N41<5000,"FORFAIT MINI S.O.",IF(P41>(Y41+AC41),IF(P41<Parametres!D$28,"FORFAIT MINI","DEPENSES"),IF((Y41+AC41)<Parametres!D$28,"FORFAIT MINI","RECETTES")))))))) ->  | AE41: =IF(T41>0,IF(AD41="FORFAIT MINI S.O.",INDEX(FSOTab,MATCH(R41/T41,FSOPrix,1)+1,MATCH(N41,FSOBudget,1)),IF(A$2=Parametres!A$78,"",IF(B41=0,"",ROUND(IF(P41>(Y41+AC41),IF(P41<Parametres!D$28,Parametres!D$28,P41),IF((Y41+AC41)<Parametres!D$28,Parametres!D$28,(Y41+AC41))),2)))),IF(AD41="FORFAIT MINI S.O.",INDEX(FSOTab,MATCH(0,FSOPrix,1)+1,MATCH(N41,FSOBudget,1)),IF(A$2=Parametres!A$78,"",IF(B41=0,"",ROUND(IF(P41>(Y41+AC41),IF(P41<Parametres!D$28,Parametres!D$28,P41),IF((Y41+AC41)<Parametres!D$28,Parametres!D$28,(Y41+AC41))),2))))) ->  | AF41: =IF(A$2=Parametres!A$78,"",IF(B41=0,"",ROUND(AE41*Parametres!C$66,2))) ->  | AG41: =IF(A$2=Parametres!A$78,"",IF(B41=0,"",ROUND(AE41*Parametres!C$67,2))) ->  | AH41: =IF(A$2=Parametres!A$78,"",IF(B41=0,"",ROUND(AE41*Parametres!C$68,2))) ->  | AI41: =IF(A$2=Parametres!A$78,"",IF(B41=0,"",SUM(ROUND(AE41,2),ROUND(AF41,2),ROUND(AG41,2),ROUND(AH41,2)))) -> 
I42: =IF(F42=0,"",IF(A$2=Parametres!A$77,IF(G42="Oui",IF(H42="Oui",F42-F42*Parametres!C$50-(F42-F42*Parametres!C$50)*Parametres!C$51,IF(H42="Non",F42-F42*Parametres!C$50,"")),IF(G42="Non",IF(H42="Oui",F42-F42*Parametres!C$51,IF(H42="Non",F42,"")))),IF(A$2=Parametres!A$78,IF(G42="Oui",IF(H42="Oui",F42-F42*Parametres!C$50-(F42-F42*Parametres!C$50)*Parametres!C$51,IF(H42="Non",F42-F42*Parametres!E$50,"")),IF(G42="Non",IF(H42="Oui",F42-F42*Parametres!E$51,IF(H42="Non",F42,"")))),IF(A$2=Parametres!A$79,IF(G42="Oui",IF(H42="Oui",F42-F42*Parametres!G$50-(F42-F42*Parametres!G$50)*Parametres!G$51,IF(H42="Non",F42-F42*Parametres!G$50,"")),IF(G42="Non",IF(H42="Oui",F42-F42*Parametres!G$51,IF(H42="Non",F42,"")))),"")))) ->  | J42: =IF(B42=0,"",SUM(I38:I43)) ->  | K42: =IF(C42="","",IF(A$2=Parametres!A$79,Parametres!E$61,IF(A$2=Parametres!A$78,Parametres!E$60,IF(C42<=Parametres!D$56,Parametres!E$56,IF(C42<=Parametres!D$57,Parametres!E$57,IF(C42<=Parametres!D$58,Parametres!E$58,IF(C42>Parametres!D$59,Parametres!E$59,""))))))) ->  | N42: =IF(B42="","",IF(A$2=Parametres!A$79,IF((L42+M42)>0,(J42+L42+M42),J42*(1+Parametres!G$49)),J42+J42*K42)) ->  | O42: =IF(B42=0,"",IF(A$2=Parametres!A$77,Parametres!D$10,IF(A$2=Parametres!A$78,Parametres!F$9,IF(A$2=Parametres!A$79,Parametres!H$9,"")))) ->  | W42: =IF(Q42="gratuit","",IF(B42=0,"",IF(A$2=Parametres!A$77,IF(V42<Parametres!C$21,0,IF(V42<Parametres!D$41,Parametres!E$41,IF(V42<Parametres!C$42,Parametres!E$42,IF(V42<Parametres!C$43,Parametres!E$43,Parametres!E$44)))), IF(A$2=Parametres!A$78,IF(V42<Parametres!E$21,0,IF(V42<Parametres!D$41,Parametres!E$41,IF(V42<Parametres!C$42,Parametres!E$42,IF(V42<Parametres!C$43,Parametres!E$43,Parametres!E$44)))), IF(A$2=Parametres!A$79,IF(V42<Parametres!G$21,0,IF(V42<Parametres!D$41,Parametres!E$41,IF(V42<Parametres!C$42,Parametres!E$42,IF(V42<Parametres!C$43,Parametres!E$43,Parametres!E$44))))))))) ->  | X42: =IF(B42=0,"",IF(A$2=Parametres!A$77,Parametres!D$10,IF(A$2=Parametres!A$78,Parametres!F$10,IF(A$2=Parametres!A$79,Parametres!H$10,"")))) ->  | AB42: =IF(B42=0,"",IF(A$2=Parametres!A$77,Parametres!D$20,IF(A$2=Parametres!A$78,Parametres!F$20,IF(A$2=Parametres!A$79,Parametres!H$20,"")))) ->  | AD42: =IF(A$2=Parametres!A$77,IF(B42=0,"",IF(P42>(Y42+AC42),IF(P42<Parametres!D$28,"FORFAIT MINI","DEPENSES"),IF((Y42+AC42)<Parametres!D$28,"FORFAIT MINI","RECETTES"))),IF(A$2=Parametres!A$78,"",IF(A$2=Parametres!A$79,IF(B42=0,"",IF(T42>0,IF(AND(R42/T42<20,N42<5000),"FORFAIT MINI S.O.",IF(P42>(Y42+AC42),IF(P42<Parametres!D$28,"FORFAIT MINI","DEPENSES"),IF((Y42+AC42)<Parametres!D$28,"FORFAIT MINI","RECETTES"))),IF(N42<5000,"FORFAIT MINI S.O.",IF(P42>(Y42+AC42),IF(P42<Parametres!D$28,"FORFAIT MINI","DEPENSES"),IF((Y42+AC42)<Parametres!D$28,"FORFAIT MINI","RECETTES")))))))) ->  | AE42: =IF(T42>0,IF(AD42="FORFAIT MINI S.O.",INDEX(FSOTab,MATCH(R42/T42,FSOPrix,1)+1,MATCH(N42,FSOBudget,1)),IF(A$2=Parametres!A$78,"",IF(B42=0,"",ROUND(IF(P42>(Y42+AC42),IF(P42<Parametres!D$28,Parametres!D$28,P42),IF((Y42+AC42)<Parametres!D$28,Parametres!D$28,(Y42+AC42))),2)))),IF(AD42="FORFAIT MINI S.O.",INDEX(FSOTab,MATCH(0,FSOPrix,1)+1,MATCH(N42,FSOBudget,1)),IF(A$2=Parametres!A$78,"",IF(B42=0,"",ROUND(IF(P42>(Y42+AC42),IF(P42<Parametres!D$28,Parametres!D$28,P42),IF((Y42+AC42)<Parametres!D$28,Parametres!D$28,(Y42+AC42))),2))))) ->  | AF42: =IF(A$2=Parametres!A$78,"",IF(B42=0,"",ROUND(AE42*Parametres!C$66,2))) ->  | AG42: =IF(A$2=Parametres!A$78,"",IF(B42=0,"",ROUND(AE42*Parametres!C$67,2))) ->  | AH42: =IF(A$2=Parametres!A$78,"",IF(B42=0,"",ROUND(AE42*Parametres!C$68,2))) ->  | AI42: =IF(A$2=Parametres!A$78,"",IF(B42=0,"",SUM(ROUND(AE42,2),ROUND(AF42,2),ROUND(AG42,2),ROUND(AH42,2)))) -> 
I43: =IF(F43=0,"",IF(A$2=Parametres!A$77,IF(G43="Oui",IF(H43="Oui",F43-F43*Parametres!C$50-(F43-F43*Parametres!C$50)*Parametres!C$51,IF(H43="Non",F43-F43*Parametres!C$50,"")),IF(G43="Non",IF(H43="Oui",F43-F43*Parametres!C$51,IF(H43="Non",F43,"")))),IF(A$2=Parametres!A$78,IF(G43="Oui",IF(H43="Oui",F43-F43*Parametres!C$50-(F43-F43*Parametres!C$50)*Parametres!C$51,IF(H43="Non",F43-F43*Parametres!E$50,"")),IF(G43="Non",IF(H43="Oui",F43-F43*Parametres!E$51,IF(H43="Non",F43,"")))),IF(A$2=Parametres!A$79,IF(G43="Oui",IF(H43="Oui",F43-F43*Parametres!G$50-(F43-F43*Parametres!G$50)*Parametres!G$51,IF(H43="Non",F43-F43*Parametres!G$50,"")),IF(G43="Non",IF(H43="Oui",F43-F43*Parametres!G$51,IF(H43="Non",F43,"")))),"")))) ->  | J43: =IF(B43=0,"",SUM(I38:I43)) ->  | K43: =IF(C43="","",IF(A$2=Parametres!A$79,Parametres!E$61,IF(A$2=Parametres!A$78,Parametres!E$60,IF(C43<=Parametres!D$56,Parametres!E$56,IF(C43<=Parametres!D$57,Parametres!E$57,IF(C43<=Parametres!D$58,Parametres!E$58,IF(C43>Parametres!D$59,Parametres!E$59,""))))))) ->  | N43: =IF(B43="","",IF(A$2=Parametres!A$79,IF((L43+M43)>0,(J43+L43+M43),J43*(1+Parametres!G$49)),J43+J43*K43)) ->  | O43: =IF(B43=0,"",IF(A$2=Parametres!A$77,Parametres!D$10,IF(A$2=Parametres!A$78,Parametres!F$9,IF(A$2=Parametres!A$79,Parametres!H$9,"")))) ->  | W43: =IF(Q43="gratuit","",IF(B43=0,"",IF(A$2=Parametres!A$77,IF(V43<Parametres!C$21,0,IF(V43<Parametres!D$41,Parametres!E$41,IF(V43<Parametres!C$42,Parametres!E$42,IF(V43<Parametres!C$43,Parametres!E$43,Parametres!E$44)))), IF(A$2=Parametres!A$78,IF(V43<Parametres!E$21,0,IF(V43<Parametres!D$41,Parametres!E$41,IF(V43<Parametres!C$42,Parametres!E$42,IF(V43<Parametres!C$43,Parametres!E$43,Parametres!E$44)))), IF(A$2=Parametres!A$79,IF(V43<Parametres!G$21,0,IF(V43<Parametres!D$41,Parametres!E$41,IF(V43<Parametres!C$42,Parametres!E$42,IF(V43<Parametres!C$43,Parametres!E$43,Parametres!E$44))))))))) ->  | X43: =IF(B43=0,"",IF(A$2=Parametres!A$77,Parametres!D$10,IF(A$2=Parametres!A$78,Parametres!F$10,IF(A$2=Parametres!A$79,Parametres!H$10,"")))) ->  | AB43: =IF(B43=0,"",IF(A$2=Parametres!A$77,Parametres!D$20,IF(A$2=Parametres!A$78,Parametres!F$20,IF(A$2=Parametres!A$79,Parametres!H$20,"")))) ->  | AD43: =IF(A$2=Parametres!A$77,IF(B43=0,"",IF(P43>(Y43+AC43),IF(P43<Parametres!D$28,"FORFAIT MINI","DEPENSES"),IF((Y43+AC43)<Parametres!D$28,"FORFAIT MINI","RECETTES"))),IF(A$2=Parametres!A$78,"",IF(A$2=Parametres!A$79,IF(B43=0,"",IF(T43>0,IF(AND(R43/T43<20,N43<5000),"FORFAIT MINI S.O.",IF(P43>(Y43+AC43),IF(P43<Parametres!D$28,"FORFAIT MINI","DEPENSES"),IF((Y43+AC43)<Parametres!D$28,"FORFAIT MINI","RECETTES"))),IF(N43<5000,"FORFAIT MINI S.O.",IF(P43>(Y43+AC43),IF(P43<Parametres!D$28,"FORFAIT MINI","DEPENSES"),IF((Y43+AC43)<Parametres!D$28,"FORFAIT MINI","RECETTES")))))))) ->  | AE43: =IF(T43>0,IF(AD43="FORFAIT MINI S.O.",INDEX(FSOTab,MATCH(R43/T43,FSOPrix,1)+1,MATCH(N43,FSOBudget,1)),IF(A$2=Parametres!A$78,"",IF(B43=0,"",ROUND(IF(P43>(Y43+AC43),IF(P43<Parametres!D$28,Parametres!D$28,P43),IF((Y43+AC43)<Parametres!D$28,Parametres!D$28,(Y43+AC43))),2)))),IF(AD43="FORFAIT MINI S.O.",INDEX(FSOTab,MATCH(0,FSOPrix,1)+1,MATCH(N43,FSOBudget,1)),IF(A$2=Parametres!A$78,"",IF(B43=0,"",ROUND(IF(P43>(Y43+AC43),IF(P43<Parametres!D$28,Parametres!D$28,P43),IF((Y43+AC43)<Parametres!D$28,Parametres!D$28,(Y43+AC43))),2))))) ->  | AF43: =IF(A$2=Parametres!A$78,"",IF(B43=0,"",ROUND(AE43*Parametres!C$66,2))) ->  | AG43: =IF(A$2=Parametres!A$78,"",IF(B43=0,"",ROUND(AE43*Parametres!C$67,2))) ->  | AH43: =IF(A$2=Parametres!A$78,"",IF(B43=0,"",ROUND(AE43*Parametres!C$68,2))) ->  | AI43: =IF(A$2=Parametres!A$78,"",IF(B43=0,"",SUM(ROUND(AE43,2),ROUND(AF43,2),ROUND(AG43,2),ROUND(AH43,2)))) -> 
I45: =IF(F45=0,"",IF(A$2=Parametres!A$77,IF(G45="Oui",IF(H45="Oui",F45-F45*Parametres!C$50-(F45-F45*Parametres!C$50)*Parametres!C$51,IF(H45="Non",F45-F45*Parametres!C$50,"")),IF(G45="Non",IF(H45="Oui",F45-F45*Parametres!C$51,IF(H45="Non",F45,"")))),IF(A$2=Parametres!A$78,IF(G45="Oui",IF(H45="Oui",F45-F45*Parametres!C$50-(F45-F45*Parametres!C$50)*Parametres!C$51,IF(H45="Non",F45-F45*Parametres!E$50,"")),IF(G45="Non",IF(H45="Oui",F45-F45*Parametres!E$51,IF(H45="Non",F45,"")))),IF(A$2=Parametres!A$79,IF(G45="Oui",IF(H45="Oui",F45-F45*Parametres!G$50-(F45-F45*Parametres!G$50)*Parametres!G$51,IF(H45="Non",F45-F45*Parametres!G$50,"")),IF(G45="Non",IF(H45="Oui",F45-F45*Parametres!G$51,IF(H45="Non",F45,"")))),"")))) ->  | J45: =IF(B45=0,"",SUM(I45:I50)) ->  | K45: =IF(C45="","",IF(A$2=Parametres!A$79,Parametres!E$61,IF(A$2=Parametres!A$78,Parametres!E$60,IF(C45<=Parametres!D$56,Parametres!E$56,IF(C45<=Parametres!D$57,Parametres!E$57,IF(C45<=Parametres!D$58,Parametres!E$58,IF(C45>Parametres!D$59,Parametres!E$59,""))))))) ->  | N45: =IF(B45="","",IF(A$2=Parametres!A$79,IF((L45+M45)>0,(J45+L45+M45),J45*(1+Parametres!G$49)),J45+J45*K45)) ->  | O45: =IF(B45=0,"",IF(A$2=Parametres!A$77,Parametres!D$10,IF(A$2=Parametres!A$78,Parametres!F$10,IF(A$2=Parametres!A$79,Parametres!H$10,"")))) ->  | P45: =IF(B45=0,"",O45*N45) ->  | Q45: =IF(R45>0,"payant",IF(B45=0,"","gratuit")) ->  | S45: =IF(B45=0,"",T45+U45) ->  | V45: =IF(Q45="gratuit","",IF(S45=0,0,IF(S45="","",U45/T45))) ->  | W45: =IF(Q45="gratuit","",IF(B45=0,"",IF(A$2=Parametres!A$77,IF(V45<Parametres!C$21,0,IF(V45<Parametres!D$41,Parametres!E$41,IF(V45<Parametres!C$42,Parametres!E$42,IF(V45<Parametres!C$43,Parametres!E$43,Parametres!E$44)))), IF(A$2=Parametres!A$78,IF(V45<Parametres!E$21,0,IF(V45<Parametres!D$41,Parametres!E$41,IF(V45<Parametres!C$42,Parametres!E$42,IF(V45<Parametres!C$43,Parametres!E$43,Parametres!E$44)))), IF(A$2=Parametres!A$79,IF(V45<Parametres!G$21,0,IF(V45<Parametres!D$41,Parametres!E$41,IF(V45<Parametres!C$42,Parametres!E$42,IF(V45<Parametres!C$43,Parametres!E$43,Parametres!E$44))))))))) ->  | X45: =IF(B45=0,"",IF(A$2=Parametres!A$77,Parametres!D$10,IF(A$2=Parametres!A$78,Parametres!F$10,IF(A$2=Parametres!A$79,Parametres!H$10,"")))) ->  | Y45: =IF(B45=0,"",IF(Q45="gratuit",R45*X45,R45*X45+(R45*X45)*W45)) ->  | AB45: =IF(B45=0,"",IF(A$2=Parametres!A$77,Parametres!D$20,IF(A$2=Parametres!A$78,Parametres!F$20,IF(A$2=Parametres!A$79,Parametres!H$20,"")))) ->  | AC45: =IF(B45=0,"",(Z45+AA45)*AB45) ->  | AD45: =IF(A$2=Parametres!A$77,IF(B45=0,"",IF(P45>(Y45+AC45),IF(P45<Parametres!D$28,"FORFAIT MINI","DEPENSES"),IF((Y45+AC45)<Parametres!D$28,"FORFAIT MINI","RECETTES"))),IF(A$2=Parametres!A$78,"",IF(A$2=Parametres!A$79,IF(B45=0,"",IF(T45>0,IF(AND(R45/T45<20,N45<5000),"FORFAIT MINI S.O.",IF(P45>(Y45+AC45),IF(P45<Parametres!D$28,"FORFAIT MINI","DEPENSES"),IF((Y45+AC45)<Parametres!D$28,"FORFAIT MINI","RECETTES"))),IF(N45<5000,"FORFAIT MINI S.O.",IF(P45>(Y45+AC45),IF(P45<Parametres!D$28,"FORFAIT MINI","DEPENSES"),IF((Y45+AC45)<Parametres!D$28,"FORFAIT MINI","RECETTES")))))))) ->  | AE45: =IF(T45>0,IF(AD45="FORFAIT MINI S.O.",INDEX(FSOTab,MATCH(R45/T45,FSOPrix,1)+1,MATCH(N45,FSOBudget,1)),IF(A$2=Parametres!A$78,"",IF(B45=0,"",ROUND(IF(P45>(Y45+AC45),IF(P45<Parametres!D$28,Parametres!D$28,P45),IF((Y45+AC45)<Parametres!D$28,Parametres!D$28,(Y45+AC45))),2)))),IF(AD45="FORFAIT MINI S.O.",INDEX(FSOTab,MATCH(0,FSOPrix,1)+1,MATCH(N45,FSOBudget,1)),IF(A$2=Parametres!A$78,"",IF(B45=0,"",ROUND(IF(P45>(Y45+AC45),IF(P45<Parametres!D$28,Parametres!D$28,P45),IF((Y45+AC45)<Parametres!D$28,Parametres!D$28,(Y45+AC45))),2))))) ->  | AF45: =IF(A$2=Parametres!A$78,"",IF(B45=0,"",ROUND(AE45*Parametres!C$66,2))) ->  | AG45: =IF(A$2=Parametres!A$78,"",IF(B45=0,"",ROUND(AE45*Parametres!C$67,2))) ->  | AH45: =IF(A$2=Parametres!A$78,"",IF(B45=0,"",ROUND(AE45*Parametres!C$68,2))) ->  | AI45: =IF(A$2=Parametres!A$78,"",IF(B45=0,"",SUM(ROUND(AE45,2),ROUND(AF45,2),ROUND(AG45,2),ROUND(AH45,2)))) -> 
I46: =IF(F46=0,"",IF(A$2=Parametres!A$77,IF(G46="Oui",IF(H46="Oui",F46-F46*Parametres!C$50-(F46-F46*Parametres!C$50)*Parametres!C$51,IF(H46="Non",F46-F46*Parametres!C$50,"")),IF(G46="Non",IF(H46="Oui",F46-F46*Parametres!C$51,IF(H46="Non",F46,"")))),IF(A$2=Parametres!A$78,IF(G46="Oui",IF(H46="Oui",F46-F46*Parametres!C$50-(F46-F46*Parametres!C$50)*Parametres!C$51,IF(H46="Non",F46-F46*Parametres!E$50,"")),IF(G46="Non",IF(H46="Oui",F46-F46*Parametres!E$51,IF(H46="Non",F46,"")))),IF(A$2=Parametres!A$79,IF(G46="Oui",IF(H46="Oui",F46-F46*Parametres!G$50-(F46-F46*Parametres!G$50)*Parametres!G$51,IF(H46="Non",F46-F46*Parametres!G$50,"")),IF(G46="Non",IF(H46="Oui",F46-F46*Parametres!G$51,IF(H46="Non",F46,"")))),"")))) ->  | J46: =IF(B46=0,"",SUM(I45:I50)) ->  | K46: =IF(C46="","",IF(A$2=Parametres!A$79,Parametres!E$61,IF(A$2=Parametres!A$78,Parametres!E$60,IF(C46<=Parametres!D$56,Parametres!E$56,IF(C46<=Parametres!D$57,Parametres!E$57,IF(C46<=Parametres!D$58,Parametres!E$58,IF(C46>Parametres!D$59,Parametres!E$59,""))))))) ->  | N46: =IF(B46="","",IF(A$2=Parametres!A$79,IF((L46+M46)>0,(J46+L46+M46),J46*(1+Parametres!G$49)),J46+J46*K46)) ->  | O46: =IF(B46=0,"",IF(A$2=Parametres!A$77,Parametres!D$10,IF(A$2=Parametres!A$78,Parametres!F$9,IF(A$2=Parametres!A$79,Parametres!H$9,"")))) ->  | V46: =IF(Q46="gratuit","",IF(S46=0,0,IF(S46="","",U46/T46))) ->  | W46: =IF(Q46="gratuit","",IF(B46=0,"",IF(A$2=Parametres!A$77,IF(V46<Parametres!C$21,0,IF(V46<Parametres!D$41,Parametres!E$41,IF(V46<Parametres!C$42,Parametres!E$42,IF(V46<Parametres!C$43,Parametres!E$43,Parametres!E$44)))), IF(A$2=Parametres!A$78,IF(V46<Parametres!E$21,0,IF(V46<Parametres!D$41,Parametres!E$41,IF(V46<Parametres!C$42,Parametres!E$42,IF(V46<Parametres!C$43,Parametres!E$43,Parametres!E$44)))), IF(A$2=Parametres!A$79,IF(V46<Parametres!G$21,0,IF(V46<Parametres!D$41,Parametres!E$41,IF(V46<Parametres!C$42,Parametres!E$42,IF(V46<Parametres!C$43,Parametres!E$43,Parametres!E$44))))))))) ->  | X46: =IF(B46=0,"",IF(A$2=Parametres!A$77,Parametres!D$10,IF(A$2=Parametres!A$78,Parametres!F$10,IF(A$2=Parametres!A$79,Parametres!H$10,"")))) ->  | AB46: =IF(B46=0,"",IF(A$2=Parametres!A$77,Parametres!D$20,IF(A$2=Parametres!A$78,Parametres!F$20,IF(A$2=Parametres!A$79,Parametres!H$20,"")))) ->  | AD46: =IF(A$2=Parametres!A$77,IF(B46=0,"",IF(P46>(Y46+AC46),IF(P46<Parametres!D$28,"FORFAIT MINI","DEPENSES"),IF((Y46+AC46)<Parametres!D$28,"FORFAIT MINI","RECETTES"))),IF(A$2=Parametres!A$78,"",IF(A$2=Parametres!A$79,IF(B46=0,"",IF(T46>0,IF(AND(R46/T46<20,N46<5000),"FORFAIT MINI S.O.",IF(P46>(Y46+AC46),IF(P46<Parametres!D$28,"FORFAIT MINI","DEPENSES"),IF((Y46+AC46)<Parametres!D$28,"FORFAIT MINI","RECETTES"))),IF(N46<5000,"FORFAIT MINI S.O.",IF(P46>(Y46+AC46),IF(P46<Parametres!D$28,"FORFAIT MINI","DEPENSES"),IF((Y46+AC46)<Parametres!D$28,"FORFAIT MINI","RECETTES")))))))) ->  | AE46: =IF(T46>0,IF(AD46="FORFAIT MINI S.O.",INDEX(FSOTab,MATCH(R46/T46,FSOPrix,1)+1,MATCH(N46,FSOBudget,1)),IF(A$2=Parametres!A$78,"",IF(B46=0,"",ROUND(IF(P46>(Y46+AC46),IF(P46<Parametres!D$28,Parametres!D$28,P46),IF((Y46+AC46)<Parametres!D$28,Parametres!D$28,(Y46+AC46))),2)))),IF(AD46="FORFAIT MINI S.O.",INDEX(FSOTab,MATCH(0,FSOPrix,1)+1,MATCH(N46,FSOBudget,1)),IF(A$2=Parametres!A$78,"",IF(B46=0,"",ROUND(IF(P46>(Y46+AC46),IF(P46<Parametres!D$28,Parametres!D$28,P46),IF((Y46+AC46)<Parametres!D$28,Parametres!D$28,(Y46+AC46))),2))))) ->  | AF46: =IF(A$2=Parametres!A$78,"",IF(B46=0,"",ROUND(AE46*Parametres!C$66,2))) ->  | AG46: =IF(A$2=Parametres!A$78,"",IF(B46=0,"",ROUND(AE46*Parametres!C$67,2))) ->  | AH46: =IF(A$2=Parametres!A$78,"",IF(B46=0,"",ROUND(AE46*Parametres!C$68,2))) ->  | AI46: =IF(A$2=Parametres!A$78,"",IF(B46=0,"",SUM(ROUND(AE46,2),ROUND(AF46,2),ROUND(AG46,2),ROUND(AH46,2)))) -> 
I47: =IF(F47=0,"",IF(A$2=Parametres!A$77,IF(G47="Oui",IF(H47="Oui",F47-F47*Parametres!C$50-(F47-F47*Parametres!C$50)*Parametres!C$51,IF(H47="Non",F47-F47*Parametres!C$50,"")),IF(G47="Non",IF(H47="Oui",F47-F47*Parametres!C$51,IF(H47="Non",F47,"")))),IF(A$2=Parametres!A$78,IF(G47="Oui",IF(H47="Oui",F47-F47*Parametres!C$50-(F47-F47*Parametres!C$50)*Parametres!C$51,IF(H47="Non",F47-F47*Parametres!E$50,"")),IF(G47="Non",IF(H47="Oui",F47-F47*Parametres!E$51,IF(H47="Non",F47,"")))),IF(A$2=Parametres!A$79,IF(G47="Oui",IF(H47="Oui",F47-F47*Parametres!G$50-(F47-F47*Parametres!G$50)*Parametres!G$51,IF(H47="Non",F47-F47*Parametres!G$50,"")),IF(G47="Non",IF(H47="Oui",F47-F47*Parametres!G$51,IF(H47="Non",F47,"")))),"")))) ->  | J47: =IF(B47=0,"",(I45:I50)) ->  | K47: =IF(C47="","",IF(A$2=Parametres!A$79,Parametres!E$61,IF(A$2=Parametres!A$78,Parametres!E$60,IF(C47<=Parametres!D$56,Parametres!E$56,IF(C47<=Parametres!D$57,Parametres!E$57,IF(C47<=Parametres!D$58,Parametres!E$58,IF(C47>Parametres!D$59,Parametres!E$59,""))))))) ->  | N47: =IF(B47="","",IF(A$2=Parametres!A$79,IF((L47+M47)>0,(J47+L47+M47),J47*(1+Parametres!G$49)),J47+J47*K47)) ->  | O47: =IF(B47=0,"",IF(A$2=Parametres!A$77,Parametres!D$10,IF(A$2=Parametres!A$78,Parametres!F$9,IF(A$2=Parametres!A$79,Parametres!H$9,"")))) ->  | W47: =IF(Q47="gratuit","",IF(B47=0,"",IF(A$2=Parametres!A$77,IF(V47<Parametres!C$21,0,IF(V47<Parametres!D$41,Parametres!E$41,IF(V47<Parametres!C$42,Parametres!E$42,IF(V47<Parametres!C$43,Parametres!E$43,Parametres!E$44)))), IF(A$2=Parametres!A$78,IF(V47<Parametres!E$21,0,IF(V47<Parametres!D$41,Parametres!E$41,IF(V47<Parametres!C$42,Parametres!E$42,IF(V47<Parametres!C$43,Parametres!E$43,Parametres!E$44)))), IF(A$2=Parametres!A$79,IF(V47<Parametres!G$21,0,IF(V47<Parametres!D$41,Parametres!E$41,IF(V47<Parametres!C$42,Parametres!E$42,IF(V47<Parametres!C$43,Parametres!E$43,Parametres!E$44))))))))) ->  | X47: =IF(B47=0,"",IF(A$2=Parametres!A$77,Parametres!D$10,IF(A$2=Parametres!A$78,Parametres!F$10,IF(A$2=Parametres!A$79,Parametres!H$10,"")))) ->  | AB47: =IF(B47=0,"",IF(A$2=Parametres!A$77,Parametres!D$20,IF(A$2=Parametres!A$78,Parametres!F$20,IF(A$2=Parametres!A$79,Parametres!H$20,"")))) ->  | AD47: =IF(A$2=Parametres!A$77,IF(B47=0,"",IF(P47>(Y47+AC47),IF(P47<Parametres!D$28,"FORFAIT MINI","DEPENSES"),IF((Y47+AC47)<Parametres!D$28,"FORFAIT MINI","RECETTES"))),IF(A$2=Parametres!A$78,"",IF(A$2=Parametres!A$79,IF(B47=0,"",IF(T47>0,IF(AND(R47/T47<20,N47<5000),"FORFAIT MINI S.O.",IF(P47>(Y47+AC47),IF(P47<Parametres!D$28,"FORFAIT MINI","DEPENSES"),IF((Y47+AC47)<Parametres!D$28,"FORFAIT MINI","RECETTES"))),IF(N47<5000,"FORFAIT MINI S.O.",IF(P47>(Y47+AC47),IF(P47<Parametres!D$28,"FORFAIT MINI","DEPENSES"),IF((Y47+AC47)<Parametres!D$28,"FORFAIT MINI","RECETTES")))))))) ->  | AE47: =IF(T47>0,IF(AD47="FORFAIT MINI S.O.",INDEX(FSOTab,MATCH(R47/T47,FSOPrix,1)+1,MATCH(N47,FSOBudget,1)),IF(A$2=Parametres!A$78,"",IF(B47=0,"",ROUND(IF(P47>(Y47+AC47),IF(P47<Parametres!D$28,Parametres!D$28,P47),IF((Y47+AC47)<Parametres!D$28,Parametres!D$28,(Y47+AC47))),2)))),IF(AD47="FORFAIT MINI S.O.",INDEX(FSOTab,MATCH(0,FSOPrix,1)+1,MATCH(N47,FSOBudget,1)),IF(A$2=Parametres!A$78,"",IF(B47=0,"",ROUND(IF(P47>(Y47+AC47),IF(P47<Parametres!D$28,Parametres!D$28,P47),IF((Y47+AC47)<Parametres!D$28,Parametres!D$28,(Y47+AC47))),2))))) ->  | AF47: =IF(A$2=Parametres!A$78,"",IF(B47=0,"",ROUND(AE47*Parametres!C$66,2))) ->  | AG47: =IF(A$2=Parametres!A$78,"",IF(B47=0,"",ROUND(AE47*Parametres!C$67,2))) ->  | AH47: =IF(A$2=Parametres!A$78,"",IF(B47=0,"",ROUND(AE47*Parametres!C$68,2))) ->  | AI47: =IF(A$2=Parametres!A$78,"",IF(B47=0,"",SUM(ROUND(AE47,2),ROUND(AF47,2),ROUND(AG47,2),ROUND(AH47,2)))) -> 
I48: =IF(F48=0,"",IF(A$2=Parametres!A$77,IF(G48="Oui",IF(H48="Oui",F48-F48*Parametres!C$50-(F48-F48*Parametres!C$50)*Parametres!C$51,IF(H48="Non",F48-F48*Parametres!C$50,"")),IF(G48="Non",IF(H48="Oui",F48-F48*Parametres!C$51,IF(H48="Non",F48,"")))),IF(A$2=Parametres!A$78,IF(G48="Oui",IF(H48="Oui",F48-F48*Parametres!C$50-(F48-F48*Parametres!C$50)*Parametres!C$51,IF(H48="Non",F48-F48*Parametres!E$50,"")),IF(G48="Non",IF(H48="Oui",F48-F48*Parametres!E$51,IF(H48="Non",F48,"")))),IF(A$2=Parametres!A$79,IF(G48="Oui",IF(H48="Oui",F48-F48*Parametres!G$50-(F48-F48*Parametres!G$50)*Parametres!G$51,IF(H48="Non",F48-F48*Parametres!G$50,"")),IF(G48="Non",IF(H48="Oui",F48-F48*Parametres!G$51,IF(H48="Non",F48,"")))),"")))) ->  | J48: =IF(B48=0,"",SUM(I45:I50)) ->  | K48: =IF(C48="","",IF(A$2=Parametres!A$79,Parametres!E$61,IF(A$2=Parametres!A$78,Parametres!E$60,IF(C48<=Parametres!D$56,Parametres!E$56,IF(C48<=Parametres!D$57,Parametres!E$57,IF(C48<=Parametres!D$58,Parametres!E$58,IF(C48>Parametres!D$59,Parametres!E$59,""))))))) ->  | N48: =IF(B48="","",IF(A$2=Parametres!A$79,IF((L48+M48)>0,(J48+L48+M48),J48*(1+Parametres!G$49)),J48+J48*K48)) ->  | O48: =IF(B48=0,"",IF(A$2=Parametres!A$77,Parametres!D$10,IF(A$2=Parametres!A$78,Parametres!F$9,IF(A$2=Parametres!A$79,Parametres!H$9,"")))) ->  | W48: =IF(Q48="gratuit","",IF(B48=0,"",IF(A$2=Parametres!A$77,IF(V48<Parametres!C$21,0,IF(V48<Parametres!D$41,Parametres!E$41,IF(V48<Parametres!C$42,Parametres!E$42,IF(V48<Parametres!C$43,Parametres!E$43,Parametres!E$44)))), IF(A$2=Parametres!A$78,IF(V48<Parametres!E$21,0,IF(V48<Parametres!D$41,Parametres!E$41,IF(V48<Parametres!C$42,Parametres!E$42,IF(V48<Parametres!C$43,Parametres!E$43,Parametres!E$44)))), IF(A$2=Parametres!A$79,IF(V48<Parametres!G$21,0,IF(V48<Parametres!D$41,Parametres!E$41,IF(V48<Parametres!C$42,Parametres!E$42,IF(V48<Parametres!C$43,Parametres!E$43,Parametres!E$44))))))))) ->  | X48: =IF(B48=0,"",IF(A$2=Parametres!A$77,Parametres!D$10,IF(A$2=Parametres!A$78,Parametres!F$10,IF(A$2=Parametres!A$79,Parametres!H$10,"")))) ->  | AB48: =IF(B48=0,"",IF(A$2=Parametres!A$77,Parametres!D$20,IF(A$2=Parametres!A$78,Parametres!F$20,IF(A$2=Parametres!A$79,Parametres!H$20,"")))) ->  | AD48: =IF(A$2=Parametres!A$77,IF(B48=0,"",IF(P48>(Y48+AC48),IF(P48<Parametres!D$28,"FORFAIT MINI","DEPENSES"),IF((Y48+AC48)<Parametres!D$28,"FORFAIT MINI","RECETTES"))),IF(A$2=Parametres!A$78,"",IF(A$2=Parametres!A$79,IF(B48=0,"",IF(T48>0,IF(AND(R48/T48<20,N48<5000),"FORFAIT MINI S.O.",IF(P48>(Y48+AC48),IF(P48<Parametres!D$28,"FORFAIT MINI","DEPENSES"),IF((Y48+AC48)<Parametres!D$28,"FORFAIT MINI","RECETTES"))),IF(N48<5000,"FORFAIT MINI S.O.",IF(P48>(Y48+AC48),IF(P48<Parametres!D$28,"FORFAIT MINI","DEPENSES"),IF((Y48+AC48)<Parametres!D$28,"FORFAIT MINI","RECETTES")))))))) ->  | AE48: =IF(T48>0,IF(AD48="FORFAIT MINI S.O.",INDEX(FSOTab,MATCH(R48/T48,FSOPrix,1)+1,MATCH(N48,FSOBudget,1)),IF(A$2=Parametres!A$78,"",IF(B48=0,"",ROUND(IF(P48>(Y48+AC48),IF(P48<Parametres!D$28,Parametres!D$28,P48),IF((Y48+AC48)<Parametres!D$28,Parametres!D$28,(Y48+AC48))),2)))),IF(AD48="FORFAIT MINI S.O.",INDEX(FSOTab,MATCH(0,FSOPrix,1)+1,MATCH(N48,FSOBudget,1)),IF(A$2=Parametres!A$78,"",IF(B48=0,"",ROUND(IF(P48>(Y48+AC48),IF(P48<Parametres!D$28,Parametres!D$28,P48),IF((Y48+AC48)<Parametres!D$28,Parametres!D$28,(Y48+AC48))),2))))) ->  | AF48: =IF(A$2=Parametres!A$78,"",IF(B48=0,"",ROUND(AE48*Parametres!C$66,2))) ->  | AG48: =IF(A$2=Parametres!A$78,"",IF(B48=0,"",ROUND(AE48*Parametres!C$67,2))) ->  | AH48: =IF(A$2=Parametres!A$78,"",IF(B48=0,"",ROUND(AE48*Parametres!C$68,2))) ->  | AI48: =IF(A$2=Parametres!A$78,"",IF(B48=0,"",SUM(ROUND(AE48,2),ROUND(AF48,2),ROUND(AG48,2),ROUND(AH48,2)))) -> 
I49: =IF(F49=0,"",IF(A$2=Parametres!A$77,IF(G49="Oui",IF(H49="Oui",F49-F49*Parametres!C$50-(F49-F49*Parametres!C$50)*Parametres!C$51,IF(H49="Non",F49-F49*Parametres!C$50,"")),IF(G49="Non",IF(H49="Oui",F49-F49*Parametres!C$51,IF(H49="Non",F49,"")))),IF(A$2=Parametres!A$78,IF(G49="Oui",IF(H49="Oui",F49-F49*Parametres!C$50-(F49-F49*Parametres!C$50)*Parametres!C$51,IF(H49="Non",F49-F49*Parametres!E$50,"")),IF(G49="Non",IF(H49="Oui",F49-F49*Parametres!E$51,IF(H49="Non",F49,"")))),IF(A$2=Parametres!A$79,IF(G49="Oui",IF(H49="Oui",F49-F49*Parametres!G$50-(F49-F49*Parametres!G$50)*Parametres!G$51,IF(H49="Non",F49-F49*Parametres!G$50,"")),IF(G49="Non",IF(H49="Oui",F49-F49*Parametres!G$51,IF(H49="Non",F49,"")))),"")))) ->  | J49: =IF(B49=0,"",SUM(I45:I50)) ->  | K49: =IF(C49="","",IF(A$2=Parametres!A$79,Parametres!E$61,IF(A$2=Parametres!A$78,Parametres!E$60,IF(C49<=Parametres!D$56,Parametres!E$56,IF(C49<=Parametres!D$57,Parametres!E$57,IF(C49<=Parametres!D$58,Parametres!E$58,IF(C49>Parametres!D$59,Parametres!E$59,""))))))) ->  | N49: =IF(B49="","",IF(A$2=Parametres!A$79,IF((L49+M49)>0,(J49+L49+M49),J49*(1+Parametres!G$49)),J49+J49*K49)) ->  | O49: =IF(B49=0,"",IF(A$2=Parametres!A$77,Parametres!D$10,IF(A$2=Parametres!A$78,Parametres!F$9,IF(A$2=Parametres!A$79,Parametres!H$9,"")))) ->  | W49: =IF(Q49="gratuit","",IF(B49=0,"",IF(A$2=Parametres!A$77,IF(V49<Parametres!C$21,0,IF(V49<Parametres!D$41,Parametres!E$41,IF(V49<Parametres!C$42,Parametres!E$42,IF(V49<Parametres!C$43,Parametres!E$43,Parametres!E$44)))), IF(A$2=Parametres!A$78,IF(V49<Parametres!E$21,0,IF(V49<Parametres!D$41,Parametres!E$41,IF(V49<Parametres!C$42,Parametres!E$42,IF(V49<Parametres!C$43,Parametres!E$43,Parametres!E$44)))), IF(A$2=Parametres!A$79,IF(V49<Parametres!G$21,0,IF(V49<Parametres!D$41,Parametres!E$41,IF(V49<Parametres!C$42,Parametres!E$42,IF(V49<Parametres!C$43,Parametres!E$43,Parametres!E$44))))))))) ->  | X49: =IF(B49=0,"",IF(A$2=Parametres!A$77,Parametres!D$10,IF(A$2=Parametres!A$78,Parametres!F$10,IF(A$2=Parametres!A$79,Parametres!H$10,"")))) ->  | AB49: =IF(B49=0,"",IF(A$2=Parametres!A$77,Parametres!D$20,IF(A$2=Parametres!A$78,Parametres!F$20,IF(A$2=Parametres!A$79,Parametres!H$20,"")))) ->  | AD49: =IF(A$2=Parametres!A$77,IF(B49=0,"",IF(P49>(Y49+AC49),IF(P49<Parametres!D$28,"FORFAIT MINI","DEPENSES"),IF((Y49+AC49)<Parametres!D$28,"FORFAIT MINI","RECETTES"))),IF(A$2=Parametres!A$78,"",IF(A$2=Parametres!A$79,IF(B49=0,"",IF(T49>0,IF(AND(R49/T49<20,N49<5000),"FORFAIT MINI S.O.",IF(P49>(Y49+AC49),IF(P49<Parametres!D$28,"FORFAIT MINI","DEPENSES"),IF((Y49+AC49)<Parametres!D$28,"FORFAIT MINI","RECETTES"))),IF(N49<5000,"FORFAIT MINI S.O.",IF(P49>(Y49+AC49),IF(P49<Parametres!D$28,"FORFAIT MINI","DEPENSES"),IF((Y49+AC49)<Parametres!D$28,"FORFAIT MINI","RECETTES")))))))) ->  | AE49: =IF(T49>0,IF(AD49="FORFAIT MINI S.O.",INDEX(FSOTab,MATCH(R49/T49,FSOPrix,1)+1,MATCH(N49,FSOBudget,1)),IF(A$2=Parametres!A$78,"",IF(B49=0,"",ROUND(IF(P49>(Y49+AC49),IF(P49<Parametres!D$28,Parametres!D$28,P49),IF((Y49+AC49)<Parametres!D$28,Parametres!D$28,(Y49+AC49))),2)))),IF(AD49="FORFAIT MINI S.O.",INDEX(FSOTab,MATCH(0,FSOPrix,1)+1,MATCH(N49,FSOBudget,1)),IF(A$2=Parametres!A$78,"",IF(B49=0,"",ROUND(IF(P49>(Y49+AC49),IF(P49<Parametres!D$28,Parametres!D$28,P49),IF((Y49+AC49)<Parametres!D$28,Parametres!D$28,(Y49+AC49))),2))))) ->  | AF49: =IF(A$2=Parametres!A$78,"",IF(B49=0,"",ROUND(AE49*Parametres!C$66,2))) ->  | AG49: =IF(A$2=Parametres!A$78,"",IF(B49=0,"",ROUND(AE49*Parametres!C$67,2))) ->  | AH49: =IF(A$2=Parametres!A$78,"",IF(B49=0,"",ROUND(AE49*Parametres!C$68,2))) ->  | AI49: =IF(A$2=Parametres!A$78,"",IF(B49=0,"",SUM(ROUND(AE49,2),ROUND(AF49,2),ROUND(AG49,2),ROUND(AH49,2)))) -> 
I50: =IF(F50=0,"",IF(A$2=Parametres!A$77,IF(G50="Oui",IF(H50="Oui",F50-F50*Parametres!C$50-(F50-F50*Parametres!C$50)*Parametres!C$51,IF(H50="Non",F50-F50*Parametres!C$50,"")),IF(G50="Non",IF(H50="Oui",F50-F50*Parametres!C$51,IF(H50="Non",F50,"")))),IF(A$2=Parametres!A$78,IF(G50="Oui",IF(H50="Oui",F50-F50*Parametres!C$50-(F50-F50*Parametres!C$50)*Parametres!C$51,IF(H50="Non",F50-F50*Parametres!E$50,"")),IF(G50="Non",IF(H50="Oui",F50-F50*Parametres!E$51,IF(H50="Non",F50,"")))),IF(A$2=Parametres!A$79,IF(G50="Oui",IF(H50="Oui",F50-F50*Parametres!G$50-(F50-F50*Parametres!G$50)*Parametres!G$51,IF(H50="Non",F50-F50*Parametres!G$50,"")),IF(G50="Non",IF(H50="Oui",F50-F50*Parametres!G$51,IF(H50="Non",F50,"")))),"")))) ->  | J50: =IF(B50=0,"",SUM(I45:I50)) ->  | K50: =IF(C50="","",IF(A$2=Parametres!A$79,Parametres!E$61,IF(A$2=Parametres!A$78,Parametres!E$60,IF(C50<=Parametres!D$56,Parametres!E$56,IF(C50<=Parametres!D$57,Parametres!E$57,IF(C50<=Parametres!D$58,Parametres!E$58,IF(C50>Parametres!D$59,Parametres!E$59,""))))))) ->  | N50: =IF(B50="","",IF(A$2=Parametres!A$79,IF((L50+M50)>0,(J50+L50+M50),J50*(1+Parametres!G$49)),J50+J50*K50)) ->  | O50: =IF(B50=0,"",IF(A$2=Parametres!A$77,Parametres!D$10,IF(A$2=Parametres!A$78,Parametres!F$9,IF(A$2=Parametres!A$79,Parametres!H$9,"")))) ->  | W50: =IF(Q50="gratuit","",IF(B50=0,"",IF(A$2=Parametres!A$77,IF(V50<Parametres!C$21,0,IF(V50<Parametres!D$41,Parametres!E$41,IF(V50<Parametres!C$42,Parametres!E$42,IF(V50<Parametres!C$43,Parametres!E$43,Parametres!E$44)))), IF(A$2=Parametres!A$78,IF(V50<Parametres!E$21,0,IF(V50<Parametres!D$41,Parametres!E$41,IF(V50<Parametres!C$42,Parametres!E$42,IF(V50<Parametres!C$43,Parametres!E$43,Parametres!E$44)))), IF(A$2=Parametres!A$79,IF(V50<Parametres!G$21,0,IF(V50<Parametres!D$41,Parametres!E$41,IF(V50<Parametres!C$42,Parametres!E$42,IF(V50<Parametres!C$43,Parametres!E$43,Parametres!E$44))))))))) ->  | X50: =IF(B50=0,"",IF(A$2=Parametres!A$77,Parametres!D$10,IF(A$2=Parametres!A$78,Parametres!F$10,IF(A$2=Parametres!A$79,Parametres!H$10,"")))) ->  | AB50: =IF(B50=0,"",IF(A$2=Parametres!A$77,Parametres!D$20,IF(A$2=Parametres!A$78,Parametres!F$20,IF(A$2=Parametres!A$79,Parametres!H$20,"")))) ->  | AD50: =IF(A$2=Parametres!A$77,IF(B50=0,"",IF(P50>(Y50+AC50),IF(P50<Parametres!D$28,"FORFAIT MINI","DEPENSES"),IF((Y50+AC50)<Parametres!D$28,"FORFAIT MINI","RECETTES"))),IF(A$2=Parametres!A$78,"",IF(A$2=Parametres!A$79,IF(B50=0,"",IF(T50>0,IF(AND(R50/T50<20,N50<5000),"FORFAIT MINI S.O.",IF(P50>(Y50+AC50),IF(P50<Parametres!D$28,"FORFAIT MINI","DEPENSES"),IF((Y50+AC50)<Parametres!D$28,"FORFAIT MINI","RECETTES"))),IF(N50<5000,"FORFAIT MINI S.O.",IF(P50>(Y50+AC50),IF(P50<Parametres!D$28,"FORFAIT MINI","DEPENSES"),IF((Y50+AC50)<Parametres!D$28,"FORFAIT MINI","RECETTES")))))))) ->  | AE50: =IF(T50>0,IF(AD50="FORFAIT MINI S.O.",INDEX(FSOTab,MATCH(R50/T50,FSOPrix,1)+1,MATCH(N50,FSOBudget,1)),IF(A$2=Parametres!A$78,"",IF(B50=0,"",ROUND(IF(P50>(Y50+AC50),IF(P50<Parametres!D$28,Parametres!D$28,P50),IF((Y50+AC50)<Parametres!D$28,Parametres!D$28,(Y50+AC50))),2)))),IF(AD50="FORFAIT MINI S.O.",INDEX(FSOTab,MATCH(0,FSOPrix,1)+1,MATCH(N50,FSOBudget,1)),IF(A$2=Parametres!A$78,"",IF(B50=0,"",ROUND(IF(P50>(Y50+AC50),IF(P50<Parametres!D$28,Parametres!D$28,P50),IF((Y50+AC50)<Parametres!D$28,Parametres!D$28,(Y50+AC50))),2))))) ->  | AF50: =IF(A$2=Parametres!A$78,"",IF(B50=0,"",ROUND(AE50*Parametres!C$66,2))) ->  | AG50: =IF(A$2=Parametres!A$78,"",IF(B50=0,"",ROUND(AE50*Parametres!C$67,2))) ->  | AH50: =IF(A$2=Parametres!A$78,"",IF(B50=0,"",ROUND(AE50*Parametres!C$68,2))) ->  | AI50: =IF(A$2=Parametres!A$78,"",IF(B50=0,"",SUM(ROUND(AE50,2),ROUND(AF50,2),ROUND(AG50,2),ROUND(AH50,2)))) -> 
I52: =IF(F52=0,"",IF(A$2=Parametres!A$77,IF(G52="Oui",IF(H52="Oui",F52-F52*Parametres!C$50-(F52-F52*Parametres!C$50)*Parametres!C$51,IF(H52="Non",F52-F52*Parametres!C$50,"")),IF(G52="Non",IF(H52="Oui",F52-F52*Parametres!C$51,IF(H52="Non",F52,"")))),IF(A$2=Parametres!A$78,IF(G52="Oui",IF(H52="Oui",F52-F52*Parametres!C$50-(F52-F52*Parametres!C$50)*Parametres!C$51,IF(H52="Non",F52-F52*Parametres!E$50,"")),IF(G52="Non",IF(H52="Oui",F52-F52*Parametres!E$51,IF(H52="Non",F52,"")))),IF(A$2=Parametres!A$79,IF(G52="Oui",IF(H52="Oui",F52-F52*Parametres!G$50-(F52-F52*Parametres!G$50)*Parametres!G$51,IF(H52="Non",F52-F52*Parametres!G$50,"")),IF(G52="Non",IF(H52="Oui",F52-F52*Parametres!G$51,IF(H52="Non",F52,"")))),"")))) ->  | J52: =IF(B52=0,"",SUM(I52:I57)) ->  | K52: =IF(C52="","",IF(A$2=Parametres!A$79,Parametres!E$61,IF(A$2=Parametres!A$78,Parametres!E$60,IF(C52<=Parametres!D$56,Parametres!E$56,IF(C52<=Parametres!D$57,Parametres!E$57,IF(C52<=Parametres!D$58,Parametres!E$58,IF(C52>Parametres!D$59,Parametres!E$59,""))))))) ->  | N52: =IF(B52="","",IF(A$2=Parametres!A$79,IF((L52+M52)>0,(J52+L52+M52),J52*(1+Parametres!G$49)),J52+J52*K52)) ->  | O52: =IF(B52=0,"",IF(A$2=Parametres!A$77,Parametres!D$10,IF(A$2=Parametres!A$78,Parametres!F$10,IF(A$2=Parametres!A$79,Parametres!H$10,"")))) ->  | P52: =IF(B52=0,"",O52*N52) ->  | Q52: =IF(R52>0,"payant",IF(B52=0,"","gratuit")) ->  | S52: =IF(B52=0,"",T52+U52) ->  | V52: =IF(Q52="gratuit","",IF(S52=0,0,IF(S52="","",U52/T52))) ->  | W52: =IF(Q52="gratuit","",IF(B52=0,"",IF(A$2=Parametres!A$77,IF(V52<Parametres!C$21,0,IF(V52<Parametres!D$41,Parametres!E$41,IF(V52<Parametres!C$42,Parametres!E$42,IF(V52<Parametres!C$43,Parametres!E$43,Parametres!E$44)))), IF(A$2=Parametres!A$78,IF(V52<Parametres!E$21,0,IF(V52<Parametres!D$41,Parametres!E$41,IF(V52<Parametres!C$42,Parametres!E$42,IF(V52<Parametres!C$43,Parametres!E$43,Parametres!E$44)))), IF(A$2=Parametres!A$79,IF(V52<Parametres!G$21,0,IF(V52<Parametres!D$41,Parametres!E$41,IF(V52<Parametres!C$42,Parametres!E$42,IF(V52<Parametres!C$43,Parametres!E$43,Parametres!E$44))))))))) ->  | X52: =IF(B52=0,"",IF(A$2=Parametres!A$77,Parametres!D$10,IF(A$2=Parametres!A$78,Parametres!F$10,IF(A$2=Parametres!A$79,Parametres!H$10,"")))) ->  | Y52: =IF(B52=0,"",IF(Q52="gratuit",R52*X52,R52*X52+(R52*X52)*W52)) ->  | AB52: =IF(B52=0,"",IF(A$2=Parametres!A$77,Parametres!D$20,IF(A$2=Parametres!A$78,Parametres!F$20,IF(A$2=Parametres!A$79,Parametres!H$20,"")))) ->  | AC52: =IF(B52=0,"",(Z52+AA52)*AB52) ->  | AD52: =IF(A$2=Parametres!A$77,IF(B52=0,"",IF(P52>(Y52+AC52),IF(P52<Parametres!D$28,"FORFAIT MINI","DEPENSES"),IF((Y52+AC52)<Parametres!D$28,"FORFAIT MINI","RECETTES"))),IF(A$2=Parametres!A$78,"",IF(A$2=Parametres!A$79,IF(B52=0,"",IF(T52>0,IF(AND(R52/T52<20,N52<5000),"FORFAIT MINI S.O.",IF(P52>(Y52+AC52),IF(P52<Parametres!D$28,"FORFAIT MINI","DEPENSES"),IF((Y52+AC52)<Parametres!D$28,"FORFAIT MINI","RECETTES"))),IF(N52<5000,"FORFAIT MINI S.O.",IF(P52>(Y52+AC52),IF(P52<Parametres!D$28,"FORFAIT MINI","DEPENSES"),IF((Y52+AC52)<Parametres!D$28,"FORFAIT MINI","RECETTES")))))))) ->  | AE52: =IF(T52>0,IF(AD52="FORFAIT MINI S.O.",INDEX(FSOTab,MATCH(R52/T52,FSOPrix,1)+1,MATCH(N52,FSOBudget,1)),IF(A$2=Parametres!A$78,"",IF(B52=0,"",ROUND(IF(P52>(Y52+AC52),IF(P52<Parametres!D$28,Parametres!D$28,P52),IF((Y52+AC52)<Parametres!D$28,Parametres!D$28,(Y52+AC52))),2)))),IF(AD52="FORFAIT MINI S.O.",INDEX(FSOTab,MATCH(0,FSOPrix,1)+1,MATCH(N52,FSOBudget,1)),IF(A$2=Parametres!A$78,"",IF(B52=0,"",ROUND(IF(P52>(Y52+AC52),IF(P52<Parametres!D$28,Parametres!D$28,P52),IF((Y52+AC52)<Parametres!D$28,Parametres!D$28,(Y52+AC52))),2))))) ->  | AF52: =IF(A$2=Parametres!A$78,"",IF(B52=0,"",ROUND(AE52*Parametres!C$66,2))) ->  | AG52: =IF(A$2=Parametres!A$78,"",IF(B52=0,"",ROUND(AE52*Parametres!C$67,2))) ->  | AH52: =IF(A$2=Parametres!A$78,"",IF(B52=0,"",ROUND(AE52*Parametres!C$68,2))) ->  | AI52: =IF(A$2=Parametres!A$78,"",IF(B52=0,"",SUM(ROUND(AE52,2),ROUND(AF52,2),ROUND(AG52,2),ROUND(AH52,2)))) -> 
I53: =IF(F53=0,"",IF(A$2=Parametres!A$77,IF(G53="Oui",IF(H53="Oui",F53-F53*Parametres!C$50-(F53-F53*Parametres!C$50)*Parametres!C$51,IF(H53="Non",F53-F53*Parametres!C$50,"")),IF(G53="Non",IF(H53="Oui",F53-F53*Parametres!C$51,IF(H53="Non",F53,"")))),IF(A$2=Parametres!A$78,IF(G53="Oui",IF(H53="Oui",F53-F53*Parametres!C$50-(F53-F53*Parametres!C$50)*Parametres!C$51,IF(H53="Non",F53-F53*Parametres!E$50,"")),IF(G53="Non",IF(H53="Oui",F53-F53*Parametres!E$51,IF(H53="Non",F53,"")))),IF(A$2=Parametres!A$79,IF(G53="Oui",IF(H53="Oui",F53-F53*Parametres!G$50-(F53-F53*Parametres!G$50)*Parametres!G$51,IF(H53="Non",F53-F53*Parametres!G$50,"")),IF(G53="Non",IF(H53="Oui",F53-F53*Parametres!G$51,IF(H53="Non",F53,"")))),"")))) ->  | J53: =IF(B53=0,"",SUM(I52:I57)) ->  | K53: =IF(C53="","",IF(A$2=Parametres!A$79,Parametres!E$61,IF(A$2=Parametres!A$78,Parametres!E$60,IF(C53<=Parametres!D$56,Parametres!E$56,IF(C53<=Parametres!D$57,Parametres!E$57,IF(C53<=Parametres!D$58,Parametres!E$58,IF(C53>Parametres!D$59,Parametres!E$59,""))))))) ->  | N53: =IF(B53="","",IF(A$2=Parametres!A$79,IF((L53+M53)>0,(J53+L53+M53),J53*(1+Parametres!G$49)),J53+J53*K53)) ->  | O53: =IF(B53=0,"",IF(A$2=Parametres!A$77,Parametres!D$10,IF(A$2=Parametres!A$78,Parametres!F$9,IF(A$2=Parametres!A$79,Parametres!H$9,"")))) ->  | V53: =IF(Q53="gratuit","",IF(S53=0,0,IF(S53="","",U53/T53))) ->  | W53: =IF(Q53="gratuit","",IF(B53=0,"",IF(A$2=Parametres!A$77,IF(V53<Parametres!C$21,0,IF(V53<Parametres!D$41,Parametres!E$41,IF(V53<Parametres!C$42,Parametres!E$42,IF(V53<Parametres!C$43,Parametres!E$43,Parametres!E$44)))), IF(A$2=Parametres!A$78,IF(V53<Parametres!E$21,0,IF(V53<Parametres!D$41,Parametres!E$41,IF(V53<Parametres!C$42,Parametres!E$42,IF(V53<Parametres!C$43,Parametres!E$43,Parametres!E$44)))), IF(A$2=Parametres!A$79,IF(V53<Parametres!G$21,0,IF(V53<Parametres!D$41,Parametres!E$41,IF(V53<Parametres!C$42,Parametres!E$42,IF(V53<Parametres!C$43,Parametres!E$43,Parametres!E$44))))))))) ->  | X53: =IF(B53=0,"",IF(A$2=Parametres!A$77,Parametres!D$10,IF(A$2=Parametres!A$78,Parametres!F$10,IF(A$2=Parametres!A$79,Parametres!H$10,"")))) ->  | AB53: =IF(B53=0,"",IF(A$2=Parametres!A$77,Parametres!D$20,IF(A$2=Parametres!A$78,Parametres!F$20,IF(A$2=Parametres!A$79,Parametres!H$20,"")))) ->  | AD53: =IF(A$2=Parametres!A$77,IF(B53=0,"",IF(P53>(Y53+AC53),IF(P53<Parametres!D$28,"FORFAIT MINI","DEPENSES"),IF((Y53+AC53)<Parametres!D$28,"FORFAIT MINI","RECETTES"))),IF(A$2=Parametres!A$78,"",IF(A$2=Parametres!A$79,IF(B53=0,"",IF(T53>0,IF(AND(R53/T53<20,N53<5000),"FORFAIT MINI S.O.",IF(P53>(Y53+AC53),IF(P53<Parametres!D$28,"FORFAIT MINI","DEPENSES"),IF((Y53+AC53)<Parametres!D$28,"FORFAIT MINI","RECETTES"))),IF(N53<5000,"FORFAIT MINI S.O.",IF(P53>(Y53+AC53),IF(P53<Parametres!D$28,"FORFAIT MINI","DEPENSES"),IF((Y53+AC53)<Parametres!D$28,"FORFAIT MINI","RECETTES")))))))) ->  | AE53: =IF(T53>0,IF(AD53="FORFAIT MINI S.O.",INDEX(FSOTab,MATCH(R53/T53,FSOPrix,1)+1,MATCH(N53,FSOBudget,1)),IF(A$2=Parametres!A$78,"",IF(B53=0,"",ROUND(IF(P53>(Y53+AC53),IF(P53<Parametres!D$28,Parametres!D$28,P53),IF((Y53+AC53)<Parametres!D$28,Parametres!D$28,(Y53+AC53))),2)))),IF(AD53="FORFAIT MINI S.O.",INDEX(FSOTab,MATCH(0,FSOPrix,1)+1,MATCH(N53,FSOBudget,1)),IF(A$2=Parametres!A$78,"",IF(B53=0,"",ROUND(IF(P53>(Y53+AC53),IF(P53<Parametres!D$28,Parametres!D$28,P53),IF((Y53+AC53)<Parametres!D$28,Parametres!D$28,(Y53+AC53))),2))))) ->  | AF53: =IF(A$2=Parametres!A$78,"",IF(B53=0,"",ROUND(AE53*Parametres!C$66,2))) ->  | AG53: =IF(A$2=Parametres!A$78,"",IF(B53=0,"",ROUND(AE53*Parametres!C$67,2))) ->  | AH53: =IF(A$2=Parametres!A$78,"",IF(B53=0,"",ROUND(AE53*Parametres!C$68,2))) ->  | AI53: =IF(A$2=Parametres!A$78,"",IF(B53=0,"",SUM(ROUND(AE53,2),ROUND(AF53,2),ROUND(AG53,2),ROUND(AH53,2)))) -> 
I54: =IF(F54=0,"",IF(A$2=Parametres!A$77,IF(G54="Oui",IF(H54="Oui",F54-F54*Parametres!C$50-(F54-F54*Parametres!C$50)*Parametres!C$51,IF(H54="Non",F54-F54*Parametres!C$50,"")),IF(G54="Non",IF(H54="Oui",F54-F54*Parametres!C$51,IF(H54="Non",F54,"")))),IF(A$2=Parametres!A$78,IF(G54="Oui",IF(H54="Oui",F54-F54*Parametres!C$50-(F54-F54*Parametres!C$50)*Parametres!C$51,IF(H54="Non",F54-F54*Parametres!E$50,"")),IF(G54="Non",IF(H54="Oui",F54-F54*Parametres!E$51,IF(H54="Non",F54,"")))),IF(A$2=Parametres!A$79,IF(G54="Oui",IF(H54="Oui",F54-F54*Parametres!G$50-(F54-F54*Parametres!G$50)*Parametres!G$51,IF(H54="Non",F54-F54*Parametres!G$50,"")),IF(G54="Non",IF(H54="Oui",F54-F54*Parametres!G$51,IF(H54="Non",F54,"")))),"")))) ->  | J54: =IF(B54=0,"",(I52:I57)) ->  | K54: =IF(C54="","",IF(A$2=Parametres!A$79,Parametres!E$61,IF(A$2=Parametres!A$78,Parametres!E$60,IF(C54<=Parametres!D$56,Parametres!E$56,IF(C54<=Parametres!D$57,Parametres!E$57,IF(C54<=Parametres!D$58,Parametres!E$58,IF(C54>Parametres!D$59,Parametres!E$59,""))))))) ->  | N54: =IF(B54="","",IF(A$2=Parametres!A$79,IF((L54+M54)>0,(J54+L54+M54),J54*(1+Parametres!G$49)),J54+J54*K54)) ->  | O54: =IF(B54=0,"",IF(A$2=Parametres!A$77,Parametres!D$10,IF(A$2=Parametres!A$78,Parametres!F$9,IF(A$2=Parametres!A$79,Parametres!H$9,"")))) ->  | W54: =IF(Q54="gratuit","",IF(B54=0,"",IF(A$2=Parametres!A$77,IF(V54<Parametres!C$21,0,IF(V54<Parametres!D$41,Parametres!E$41,IF(V54<Parametres!C$42,Parametres!E$42,IF(V54<Parametres!C$43,Parametres!E$43,Parametres!E$44)))), IF(A$2=Parametres!A$78,IF(V54<Parametres!E$21,0,IF(V54<Parametres!D$41,Parametres!E$41,IF(V54<Parametres!C$42,Parametres!E$42,IF(V54<Parametres!C$43,Parametres!E$43,Parametres!E$44)))), IF(A$2=Parametres!A$79,IF(V54<Parametres!G$21,0,IF(V54<Parametres!D$41,Parametres!E$41,IF(V54<Parametres!C$42,Parametres!E$42,IF(V54<Parametres!C$43,Parametres!E$43,Parametres!E$44))))))))) ->  | X54: =IF(B54=0,"",IF(A$2=Parametres!A$77,Parametres!D$10,IF(A$2=Parametres!A$78,Parametres!F$10,IF(A$2=Parametres!A$79,Parametres!H$10,"")))) ->  | AB54: =IF(B54=0,"",IF(A$2=Parametres!A$77,Parametres!D$20,IF(A$2=Parametres!A$78,Parametres!F$20,IF(A$2=Parametres!A$79,Parametres!H$20,"")))) ->  | AD54: =IF(A$2=Parametres!A$77,IF(B54=0,"",IF(P54>(Y54+AC54),IF(P54<Parametres!D$28,"FORFAIT MINI","DEPENSES"),IF((Y54+AC54)<Parametres!D$28,"FORFAIT MINI","RECETTES"))),IF(A$2=Parametres!A$78,"",IF(A$2=Parametres!A$79,IF(B54=0,"",IF(T54>0,IF(AND(R54/T54<20,N54<5000),"FORFAIT MINI S.O.",IF(P54>(Y54+AC54),IF(P54<Parametres!D$28,"FORFAIT MINI","DEPENSES"),IF((Y54+AC54)<Parametres!D$28,"FORFAIT MINI","RECETTES"))),IF(N54<5000,"FORFAIT MINI S.O.",IF(P54>(Y54+AC54),IF(P54<Parametres!D$28,"FORFAIT MINI","DEPENSES"),IF((Y54+AC54)<Parametres!D$28,"FORFAIT MINI","RECETTES")))))))) ->  | AE54: =IF(T54>0,IF(AD54="FORFAIT MINI S.O.",INDEX(FSOTab,MATCH(R54/T54,FSOPrix,1)+1,MATCH(N54,FSOBudget,1)),IF(A$2=Parametres!A$78,"",IF(B54=0,"",ROUND(IF(P54>(Y54+AC54),IF(P54<Parametres!D$28,Parametres!D$28,P54),IF((Y54+AC54)<Parametres!D$28,Parametres!D$28,(Y54+AC54))),2)))),IF(AD54="FORFAIT MINI S.O.",INDEX(FSOTab,MATCH(0,FSOPrix,1)+1,MATCH(N54,FSOBudget,1)),IF(A$2=Parametres!A$78,"",IF(B54=0,"",ROUND(IF(P54>(Y54+AC54),IF(P54<Parametres!D$28,Parametres!D$28,P54),IF((Y54+AC54)<Parametres!D$28,Parametres!D$28,(Y54+AC54))),2))))) ->  | AF54: =IF(A$2=Parametres!A$78,"",IF(B54=0,"",ROUND(AE54*Parametres!C$66,2))) ->  | AG54: =IF(A$2=Parametres!A$78,"",IF(B54=0,"",ROUND(AE54*Parametres!C$67,2))) ->  | AH54: =IF(A$2=Parametres!A$78,"",IF(B54=0,"",ROUND(AE54*Parametres!C$68,2))) ->  | AI54: =IF(A$2=Parametres!A$78,"",IF(B54=0,"",SUM(ROUND(AE54,2),ROUND(AF54,2),ROUND(AG54,2),ROUND(AH54,2)))) -> 
I55: =IF(F55=0,"",IF(A$2=Parametres!A$77,IF(G55="Oui",IF(H55="Oui",F55-F55*Parametres!C$50-(F55-F55*Parametres!C$50)*Parametres!C$51,IF(H55="Non",F55-F55*Parametres!C$50,"")),IF(G55="Non",IF(H55="Oui",F55-F55*Parametres!C$51,IF(H55="Non",F55,"")))),IF(A$2=Parametres!A$78,IF(G55="Oui",IF(H55="Oui",F55-F55*Parametres!C$50-(F55-F55*Parametres!C$50)*Parametres!C$51,IF(H55="Non",F55-F55*Parametres!E$50,"")),IF(G55="Non",IF(H55="Oui",F55-F55*Parametres!E$51,IF(H55="Non",F55,"")))),IF(A$2=Parametres!A$79,IF(G55="Oui",IF(H55="Oui",F55-F55*Parametres!G$50-(F55-F55*Parametres!G$50)*Parametres!G$51,IF(H55="Non",F55-F55*Parametres!G$50,"")),IF(G55="Non",IF(H55="Oui",F55-F55*Parametres!G$51,IF(H55="Non",F55,"")))),"")))) ->  | J55: =IF(B55=0,"",SUM(I52:I57)) ->  | K55: =IF(C55="","",IF(A$2=Parametres!A$79,Parametres!E$61,IF(A$2=Parametres!A$78,Parametres!E$60,IF(C55<=Parametres!D$56,Parametres!E$56,IF(C55<=Parametres!D$57,Parametres!E$57,IF(C55<=Parametres!D$58,Parametres!E$58,IF(C55>Parametres!D$59,Parametres!E$59,""))))))) ->  | N55: =IF(B55="","",IF(A$2=Parametres!A$79,IF((L55+M55)>0,(J55+L55+M55),J55*(1+Parametres!G$49)),J55+J55*K55)) ->  | O55: =IF(B55=0,"",IF(A$2=Parametres!A$77,Parametres!D$10,IF(A$2=Parametres!A$78,Parametres!F$9,IF(A$2=Parametres!A$79,Parametres!H$9,"")))) ->  | W55: =IF(Q55="gratuit","",IF(B55=0,"",IF(A$2=Parametres!A$77,IF(V55<Parametres!C$21,0,IF(V55<Parametres!D$41,Parametres!E$41,IF(V55<Parametres!C$42,Parametres!E$42,IF(V55<Parametres!C$43,Parametres!E$43,Parametres!E$44)))), IF(A$2=Parametres!A$78,IF(V55<Parametres!E$21,0,IF(V55<Parametres!D$41,Parametres!E$41,IF(V55<Parametres!C$42,Parametres!E$42,IF(V55<Parametres!C$43,Parametres!E$43,Parametres!E$44)))), IF(A$2=Parametres!A$79,IF(V55<Parametres!G$21,0,IF(V55<Parametres!D$41,Parametres!E$41,IF(V55<Parametres!C$42,Parametres!E$42,IF(V55<Parametres!C$43,Parametres!E$43,Parametres!E$44))))))))) ->  | X55: =IF(B55=0,"",IF(A$2=Parametres!A$77,Parametres!D$10,IF(A$2=Parametres!A$78,Parametres!F$10,IF(A$2=Parametres!A$79,Parametres!H$10,"")))) ->  | AB55: =IF(B55=0,"",IF(A$2=Parametres!A$77,Parametres!D$20,IF(A$2=Parametres!A$78,Parametres!F$20,IF(A$2=Parametres!A$79,Parametres!H$20,"")))) ->  | AD55: =IF(A$2=Parametres!A$77,IF(B55=0,"",IF(P55>(Y55+AC55),IF(P55<Parametres!D$28,"FORFAIT MINI","DEPENSES"),IF((Y55+AC55)<Parametres!D$28,"FORFAIT MINI","RECETTES"))),IF(A$2=Parametres!A$78,"",IF(A$2=Parametres!A$79,IF(B55=0,"",IF(T55>0,IF(AND(R55/T55<20,N55<5000),"FORFAIT MINI S.O.",IF(P55>(Y55+AC55),IF(P55<Parametres!D$28,"FORFAIT MINI","DEPENSES"),IF((Y55+AC55)<Parametres!D$28,"FORFAIT MINI","RECETTES"))),IF(N55<5000,"FORFAIT MINI S.O.",IF(P55>(Y55+AC55),IF(P55<Parametres!D$28,"FORFAIT MINI","DEPENSES"),IF((Y55+AC55)<Parametres!D$28,"FORFAIT MINI","RECETTES")))))))) ->  | AE55: =IF(T55>0,IF(AD55="FORFAIT MINI S.O.",INDEX(FSOTab,MATCH(R55/T55,FSOPrix,1)+1,MATCH(N55,FSOBudget,1)),IF(A$2=Parametres!A$78,"",IF(B55=0,"",ROUND(IF(P55>(Y55+AC55),IF(P55<Parametres!D$28,Parametres!D$28,P55),IF((Y55+AC55)<Parametres!D$28,Parametres!D$28,(Y55+AC55))),2)))),IF(AD55="FORFAIT MINI S.O.",INDEX(FSOTab,MATCH(0,FSOPrix,1)+1,MATCH(N55,FSOBudget,1)),IF(A$2=Parametres!A$78,"",IF(B55=0,"",ROUND(IF(P55>(Y55+AC55),IF(P55<Parametres!D$28,Parametres!D$28,P55),IF((Y55+AC55)<Parametres!D$28,Parametres!D$28,(Y55+AC55))),2))))) ->  | AF55: =IF(A$2=Parametres!A$78,"",IF(B55=0,"",ROUND(AE55*Parametres!C$66,2))) ->  | AG55: =IF(A$2=Parametres!A$78,"",IF(B55=0,"",ROUND(AE55*Parametres!C$67,2))) ->  | AH55: =IF(A$2=Parametres!A$78,"",IF(B55=0,"",ROUND(AE55*Parametres!C$68,2))) ->  | AI55: =IF(A$2=Parametres!A$78,"",IF(B55=0,"",SUM(ROUND(AE55,2),ROUND(AF55,2),ROUND(AG55,2),ROUND(AH55,2)))) -> 
I56: =IF(F56=0,"",IF(A$2=Parametres!A$77,IF(G56="Oui",IF(H56="Oui",F56-F56*Parametres!C$50-(F56-F56*Parametres!C$50)*Parametres!C$51,IF(H56="Non",F56-F56*Parametres!C$50,"")),IF(G56="Non",IF(H56="Oui",F56-F56*Parametres!C$51,IF(H56="Non",F56,"")))),IF(A$2=Parametres!A$78,IF(G56="Oui",IF(H56="Oui",F56-F56*Parametres!C$50-(F56-F56*Parametres!C$50)*Parametres!C$51,IF(H56="Non",F56-F56*Parametres!E$50,"")),IF(G56="Non",IF(H56="Oui",F56-F56*Parametres!E$51,IF(H56="Non",F56,"")))),IF(A$2=Parametres!A$79,IF(G56="Oui",IF(H56="Oui",F56-F56*Parametres!G$50-(F56-F56*Parametres!G$50)*Parametres!G$51,IF(H56="Non",F56-F56*Parametres!G$50,"")),IF(G56="Non",IF(H56="Oui",F56-F56*Parametres!G$51,IF(H56="Non",F56,"")))),"")))) ->  | J56: =IF(B56=0,"",SUM(I52:I57)) ->  | K56: =IF(C56="","",IF(A$2=Parametres!A$79,Parametres!E$61,IF(A$2=Parametres!A$78,Parametres!E$60,IF(C56<=Parametres!D$56,Parametres!E$56,IF(C56<=Parametres!D$57,Parametres!E$57,IF(C56<=Parametres!D$58,Parametres!E$58,IF(C56>Parametres!D$59,Parametres!E$59,""))))))) ->  | N56: =IF(B56="","",IF(A$2=Parametres!A$79,IF((L56+M56)>0,(J56+L56+M56),J56*(1+Parametres!G$49)),J56+J56*K56)) ->  | O56: =IF(B56=0,"",IF(A$2=Parametres!A$77,Parametres!D$10,IF(A$2=Parametres!A$78,Parametres!F$9,IF(A$2=Parametres!A$79,Parametres!H$9,"")))) ->  | W56: =IF(Q56="gratuit","",IF(B56=0,"",IF(A$2=Parametres!A$77,IF(V56<Parametres!C$21,0,IF(V56<Parametres!D$41,Parametres!E$41,IF(V56<Parametres!C$42,Parametres!E$42,IF(V56<Parametres!C$43,Parametres!E$43,Parametres!E$44)))), IF(A$2=Parametres!A$78,IF(V56<Parametres!E$21,0,IF(V56<Parametres!D$41,Parametres!E$41,IF(V56<Parametres!C$42,Parametres!E$42,IF(V56<Parametres!C$43,Parametres!E$43,Parametres!E$44)))), IF(A$2=Parametres!A$79,IF(V56<Parametres!G$21,0,IF(V56<Parametres!D$41,Parametres!E$41,IF(V56<Parametres!C$42,Parametres!E$42,IF(V56<Parametres!C$43,Parametres!E$43,Parametres!E$44))))))))) ->  | X56: =IF(B56=0,"",IF(A$2=Parametres!A$77,Parametres!D$10,IF(A$2=Parametres!A$78,Parametres!F$10,IF(A$2=Parametres!A$79,Parametres!H$10,"")))) ->  | AB56: =IF(B56=0,"",IF(A$2=Parametres!A$77,Parametres!D$20,IF(A$2=Parametres!A$78,Parametres!F$20,IF(A$2=Parametres!A$79,Parametres!H$20,"")))) ->  | AD56: =IF(A$2=Parametres!A$77,IF(B56=0,"",IF(P56>(Y56+AC56),IF(P56<Parametres!D$28,"FORFAIT MINI","DEPENSES"),IF((Y56+AC56)<Parametres!D$28,"FORFAIT MINI","RECETTES"))),IF(A$2=Parametres!A$78,"",IF(A$2=Parametres!A$79,IF(B56=0,"",IF(T56>0,IF(AND(R56/T56<20,N56<5000),"FORFAIT MINI S.O.",IF(P56>(Y56+AC56),IF(P56<Parametres!D$28,"FORFAIT MINI","DEPENSES"),IF((Y56+AC56)<Parametres!D$28,"FORFAIT MINI","RECETTES"))),IF(N56<5000,"FORFAIT MINI S.O.",IF(P56>(Y56+AC56),IF(P56<Parametres!D$28,"FORFAIT MINI","DEPENSES"),IF((Y56+AC56)<Parametres!D$28,"FORFAIT MINI","RECETTES")))))))) ->  | AE56: =IF(T56>0,IF(AD56="FORFAIT MINI S.O.",INDEX(FSOTab,MATCH(R56/T56,FSOPrix,1)+1,MATCH(N56,FSOBudget,1)),IF(A$2=Parametres!A$78,"",IF(B56=0,"",ROUND(IF(P56>(Y56+AC56),IF(P56<Parametres!D$28,Parametres!D$28,P56),IF((Y56+AC56)<Parametres!D$28,Parametres!D$28,(Y56+AC56))),2)))),IF(AD56="FORFAIT MINI S.O.",INDEX(FSOTab,MATCH(0,FSOPrix,1)+1,MATCH(N56,FSOBudget,1)),IF(A$2=Parametres!A$78,"",IF(B56=0,"",ROUND(IF(P56>(Y56+AC56),IF(P56<Parametres!D$28,Parametres!D$28,P56),IF((Y56+AC56)<Parametres!D$28,Parametres!D$28,(Y56+AC56))),2))))) ->  | AF56: =IF(A$2=Parametres!A$78,"",IF(B56=0,"",ROUND(AE56*Parametres!C$66,2))) ->  | AG56: =IF(A$2=Parametres!A$78,"",IF(B56=0,"",ROUND(AE56*Parametres!C$67,2))) ->  | AH56: =IF(A$2=Parametres!A$78,"",IF(B56=0,"",ROUND(AE56*Parametres!C$68,2))) ->  | AI56: =IF(A$2=Parametres!A$78,"",IF(B56=0,"",SUM(ROUND(AE56,2),ROUND(AF56,2),ROUND(AG56,2),ROUND(AH56,2)))) -> 
I57: =IF(F57=0,"",IF(A$2=Parametres!A$77,IF(G57="Oui",IF(H57="Oui",F57-F57*Parametres!C$50-(F57-F57*Parametres!C$50)*Parametres!C$51,IF(H57="Non",F57-F57*Parametres!C$50,"")),IF(G57="Non",IF(H57="Oui",F57-F57*Parametres!C$51,IF(H57="Non",F57,"")))),IF(A$2=Parametres!A$78,IF(G57="Oui",IF(H57="Oui",F57-F57*Parametres!C$50-(F57-F57*Parametres!C$50)*Parametres!C$51,IF(H57="Non",F57-F57*Parametres!E$50,"")),IF(G57="Non",IF(H57="Oui",F57-F57*Parametres!E$51,IF(H57="Non",F57,"")))),IF(A$2=Parametres!A$79,IF(G57="Oui",IF(H57="Oui",F57-F57*Parametres!G$50-(F57-F57*Parametres!G$50)*Parametres!G$51,IF(H57="Non",F57-F57*Parametres!G$50,"")),IF(G57="Non",IF(H57="Oui",F57-F57*Parametres!G$51,IF(H57="Non",F57,"")))),"")))) ->  | J57: =IF(B57=0,"",SUM(I52:I57)) ->  | K57: =IF(C57="","",IF(A$2=Parametres!A$79,Parametres!E$61,IF(A$2=Parametres!A$78,Parametres!E$60,IF(C57<=Parametres!D$56,Parametres!E$56,IF(C57<=Parametres!D$57,Parametres!E$57,IF(C57<=Parametres!D$58,Parametres!E$58,IF(C57>Parametres!D$59,Parametres!E$59,""))))))) ->  | N57: =IF(B57="","",IF(A$2=Parametres!A$79,IF((L57+M57)>0,(J57+L57+M57),J57*(1+Parametres!G$49)),J57+J57*K57)) ->  | O57: =IF(B57=0,"",IF(A$2=Parametres!A$77,Parametres!D$10,IF(A$2=Parametres!A$78,Parametres!F$9,IF(A$2=Parametres!A$79,Parametres!H$9,"")))) ->  | W57: =IF(Q57="gratuit","",IF(B57=0,"",IF(A$2=Parametres!A$77,IF(V57<Parametres!C$21,0,IF(V57<Parametres!D$41,Parametres!E$41,IF(V57<Parametres!C$42,Parametres!E$42,IF(V57<Parametres!C$43,Parametres!E$43,Parametres!E$44)))), IF(A$2=Parametres!A$78,IF(V57<Parametres!E$21,0,IF(V57<Parametres!D$41,Parametres!E$41,IF(V57<Parametres!C$42,Parametres!E$42,IF(V57<Parametres!C$43,Parametres!E$43,Parametres!E$44)))), IF(A$2=Parametres!A$79,IF(V57<Parametres!G$21,0,IF(V57<Parametres!D$41,Parametres!E$41,IF(V57<Parametres!C$42,Parametres!E$42,IF(V57<Parametres!C$43,Parametres!E$43,Parametres!E$44))))))))) ->  | X57: =IF(B57=0,"",IF(A$2=Parametres!A$77,Parametres!D$10,IF(A$2=Parametres!A$78,Parametres!F$10,IF(A$2=Parametres!A$79,Parametres!H$10,"")))) ->  | AB57: =IF(B57=0,"",IF(A$2=Parametres!A$77,Parametres!D$20,IF(A$2=Parametres!A$78,Parametres!F$20,IF(A$2=Parametres!A$79,Parametres!H$20,"")))) ->  | AD57: =IF(A$2=Parametres!A$77,IF(B57=0,"",IF(P57>(Y57+AC57),IF(P57<Parametres!D$28,"FORFAIT MINI","DEPENSES"),IF((Y57+AC57)<Parametres!D$28,"FORFAIT MINI","RECETTES"))),IF(A$2=Parametres!A$78,"",IF(A$2=Parametres!A$79,IF(B57=0,"",IF(T57>0,IF(AND(R57/T57<20,N57<5000),"FORFAIT MINI S.O.",IF(P57>(Y57+AC57),IF(P57<Parametres!D$28,"FORFAIT MINI","DEPENSES"),IF((Y57+AC57)<Parametres!D$28,"FORFAIT MINI","RECETTES"))),IF(N57<5000,"FORFAIT MINI S.O.",IF(P57>(Y57+AC57),IF(P57<Parametres!D$28,"FORFAIT MINI","DEPENSES"),IF((Y57+AC57)<Parametres!D$28,"FORFAIT MINI","RECETTES")))))))) ->  | AE57: =IF(T57>0,IF(AD57="FORFAIT MINI S.O.",INDEX(FSOTab,MATCH(R57/T57,FSOPrix,1)+1,MATCH(N57,FSOBudget,1)),IF(A$2=Parametres!A$78,"",IF(B57=0,"",ROUND(IF(P57>(Y57+AC57),IF(P57<Parametres!D$28,Parametres!D$28,P57),IF((Y57+AC57)<Parametres!D$28,Parametres!D$28,(Y57+AC57))),2)))),IF(AD57="FORFAIT MINI S.O.",INDEX(FSOTab,MATCH(0,FSOPrix,1)+1,MATCH(N57,FSOBudget,1)),IF(A$2=Parametres!A$78,"",IF(B57=0,"",ROUND(IF(P57>(Y57+AC57),IF(P57<Parametres!D$28,Parametres!D$28,P57),IF((Y57+AC57)<Parametres!D$28,Parametres!D$28,(Y57+AC57))),2))))) ->  | AF57: =IF(A$2=Parametres!A$78,"",IF(B57=0,"",ROUND(AE57*Parametres!C$66,2))) ->  | AG57: =IF(A$2=Parametres!A$78,"",IF(B57=0,"",ROUND(AE57*Parametres!C$67,2))) ->  | AH57: =IF(A$2=Parametres!A$78,"",IF(B57=0,"",ROUND(AE57*Parametres!C$68,2))) ->  | AI57: =IF(A$2=Parametres!A$78,"",IF(B57=0,"",SUM(ROUND(AE57,2),ROUND(AF57,2),ROUND(AG57,2),ROUND(AH57,2)))) -> 
I59: =IF(F59=0,"",IF(A$2=Parametres!A$77,IF(G59="Oui",IF(H59="Oui",F59-F59*Parametres!C$50-(F59-F59*Parametres!C$50)*Parametres!C$51,IF(H59="Non",F59-F59*Parametres!C$50,"")),IF(G59="Non",IF(H59="Oui",F59-F59*Parametres!C$51,IF(H59="Non",F59,"")))),IF(A$2=Parametres!A$78,IF(G59="Oui",IF(H59="Oui",F59-F59*Parametres!C$50-(F59-F59*Parametres!C$50)*Parametres!C$51,IF(H59="Non",F59-F59*Parametres!E$50,"")),IF(G59="Non",IF(H59="Oui",F59-F59*Parametres!E$51,IF(H59="Non",F59,"")))),IF(A$2=Parametres!A$79,IF(G59="Oui",IF(H59="Oui",F59-F59*Parametres!G$50-(F59-F59*Parametres!G$50)*Parametres!G$51,IF(H59="Non",F59-F59*Parametres!G$50,"")),IF(G59="Non",IF(H59="Oui",F59-F59*Parametres!G$51,IF(H59="Non",F59,"")))),"")))) ->  | J59: =IF(B59=0,"",SUM(I59:I64)) ->  | K59: =IF(C59="","",IF(A$2=Parametres!A$79,Parametres!E$61,IF(A$2=Parametres!A$78,Parametres!E$60,IF(C59<=Parametres!D$56,Parametres!E$56,IF(C59<=Parametres!D$57,Parametres!E$57,IF(C59<=Parametres!D$58,Parametres!E$58,IF(C59>Parametres!D$59,Parametres!E$59,""))))))) ->  | N59: =IF(B59="","",IF(A$2=Parametres!A$79,IF((L59+M59)>0,(J59+L59+M59),J59*(1+Parametres!G$49)),J59+J59*K59)) ->  | O59: =IF(B59=0,"",IF(A$2=Parametres!A$77,Parametres!D$10,IF(A$2=Parametres!A$78,Parametres!F$10,IF(A$2=Parametres!A$79,Parametres!H$10,"")))) ->  | P59: =IF(B59=0,"",O59*N59) ->  | Q59: =IF(R59>0,"payant",IF(B59=0,"","gratuit")) ->  | S59: =IF(B59=0,"",T59+U59) ->  | V59: =IF(Q59="gratuit","",IF(S59=0,0,IF(S59="","",U59/T59))) ->  | W59: =IF(Q59="gratuit","",IF(B59=0,"",IF(A$2=Parametres!A$77,IF(V59<Parametres!C$21,0,IF(V59<Parametres!D$41,Parametres!E$41,IF(V59<Parametres!C$42,Parametres!E$42,IF(V59<Parametres!C$43,Parametres!E$43,Parametres!E$44)))), IF(A$2=Parametres!A$78,IF(V59<Parametres!E$21,0,IF(V59<Parametres!D$41,Parametres!E$41,IF(V59<Parametres!C$42,Parametres!E$42,IF(V59<Parametres!C$43,Parametres!E$43,Parametres!E$44)))), IF(A$2=Parametres!A$79,IF(V59<Parametres!G$21,0,IF(V59<Parametres!D$41,Parametres!E$41,IF(V59<Parametres!C$42,Parametres!E$42,IF(V59<Parametres!C$43,Parametres!E$43,Parametres!E$44))))))))) ->  | X59: =IF(B59=0,"",IF(A$2=Parametres!A$77,Parametres!D$10,IF(A$2=Parametres!A$78,Parametres!F$10,IF(A$2=Parametres!A$79,Parametres!H$10,"")))) ->  | Y59: =IF(B59=0,"",IF(Q59="gratuit",R59*X59,R59*X59+(R59*X59)*W59)) ->  | AB59: =IF(B59=0,"",IF(A$2=Parametres!A$77,Parametres!D$20,IF(A$2=Parametres!A$78,Parametres!F$20,IF(A$2=Parametres!A$79,Parametres!H$20,"")))) ->  | AC59: =IF(B59=0,"",(Z59+AA59)*AB59) ->  | AD59: =IF(A$2=Parametres!A$77,IF(B59=0,"",IF(P59>(Y59+AC59),IF(P59<Parametres!D$28,"FORFAIT MINI","DEPENSES"),IF((Y59+AC59)<Parametres!D$28,"FORFAIT MINI","RECETTES"))),IF(A$2=Parametres!A$78,"",IF(A$2=Parametres!A$79,IF(B59=0,"",IF(T59>0,IF(AND(R59/T59<20,N59<5000),"FORFAIT MINI S.O.",IF(P59>(Y59+AC59),IF(P59<Parametres!D$28,"FORFAIT MINI","DEPENSES"),IF((Y59+AC59)<Parametres!D$28,"FORFAIT MINI","RECETTES"))),IF(N59<5000,"FORFAIT MINI S.O.",IF(P59>(Y59+AC59),IF(P59<Parametres!D$28,"FORFAIT MINI","DEPENSES"),IF((Y59+AC59)<Parametres!D$28,"FORFAIT MINI","RECETTES")))))))) ->  | AE59: =IF(T59>0,IF(AD59="FORFAIT MINI S.O.",INDEX(FSOTab,MATCH(R59/T59,FSOPrix,1)+1,MATCH(N59,FSOBudget,1)),IF(A$2=Parametres!A$78,"",IF(B59=0,"",ROUND(IF(P59>(Y59+AC59),IF(P59<Parametres!D$28,Parametres!D$28,P59),IF((Y59+AC59)<Parametres!D$28,Parametres!D$28,(Y59+AC59))),2)))),IF(AD59="FORFAIT MINI S.O.",INDEX(FSOTab,MATCH(0,FSOPrix,1)+1,MATCH(N59,FSOBudget,1)),IF(A$2=Parametres!A$78,"",IF(B59=0,"",ROUND(IF(P59>(Y59+AC59),IF(P59<Parametres!D$28,Parametres!D$28,P59),IF((Y59+AC59)<Parametres!D$28,Parametres!D$28,(Y59+AC59))),2))))) ->  | AF59: =IF(A$2=Parametres!A$78,"",IF(B59=0,"",ROUND(AE59*Parametres!C$66,2))) ->  | AG59: =IF(A$2=Parametres!A$78,"",IF(B59=0,"",ROUND(AE59*Parametres!C$67,2))) ->  | AH59: =IF(A$2=Parametres!A$78,"",IF(B59=0,"",ROUND(AE59*Parametres!C$68,2))) ->  | AI59: =IF(A$2=Parametres!A$78,"",IF(B59=0,"",SUM(ROUND(AE59,2),ROUND(AF59,2),ROUND(AG59,2),ROUND(AH59,2)))) -> 
I60: =IF(F60=0,"",IF(A$2=Parametres!A$77,IF(G60="Oui",IF(H60="Oui",F60-F60*Parametres!C$50-(F60-F60*Parametres!C$50)*Parametres!C$51,IF(H60="Non",F60-F60*Parametres!C$50,"")),IF(G60="Non",IF(H60="Oui",F60-F60*Parametres!C$51,IF(H60="Non",F60,"")))),IF(A$2=Parametres!A$78,IF(G60="Oui",IF(H60="Oui",F60-F60*Parametres!C$50-(F60-F60*Parametres!C$50)*Parametres!C$51,IF(H60="Non",F60-F60*Parametres!E$50,"")),IF(G60="Non",IF(H60="Oui",F60-F60*Parametres!E$51,IF(H60="Non",F60,"")))),IF(A$2=Parametres!A$79,IF(G60="Oui",IF(H60="Oui",F60-F60*Parametres!G$50-(F60-F60*Parametres!G$50)*Parametres!G$51,IF(H60="Non",F60-F60*Parametres!G$50,"")),IF(G60="Non",IF(H60="Oui",F60-F60*Parametres!G$51,IF(H60="Non",F60,"")))),"")))) ->  | J60: =IF(B60=0,"",SUM(I59:I64)) ->  | K60: =IF(C60="","",IF(A$2=Parametres!A$79,Parametres!E$61,IF(A$2=Parametres!A$78,Parametres!E$60,IF(C60<=Parametres!D$56,Parametres!E$56,IF(C60<=Parametres!D$57,Parametres!E$57,IF(C60<=Parametres!D$58,Parametres!E$58,IF(C60>Parametres!D$59,Parametres!E$59,""))))))) ->  | N60: =IF(B60="","",IF(A$2=Parametres!A$79,IF((L60+M60)>0,(J60+L60+M60),J60*(1+Parametres!G$49)),J60+J60*K60)) ->  | O60: =IF(B60=0,"",IF(A$2=Parametres!A$77,Parametres!D$10,IF(A$2=Parametres!A$78,Parametres!F$9,IF(A$2=Parametres!A$79,Parametres!H$9,"")))) ->  | V60: =IF(Q60="gratuit","",IF(S60=0,0,IF(S60="","",U60/T60))) ->  | W60: =IF(Q60="gratuit","",IF(B60=0,"",IF(A$2=Parametres!A$77,IF(V60<Parametres!C$21,0,IF(V60<Parametres!D$41,Parametres!E$41,IF(V60<Parametres!C$42,Parametres!E$42,IF(V60<Parametres!C$43,Parametres!E$43,Parametres!E$44)))), IF(A$2=Parametres!A$78,IF(V60<Parametres!E$21,0,IF(V60<Parametres!D$41,Parametres!E$41,IF(V60<Parametres!C$42,Parametres!E$42,IF(V60<Parametres!C$43,Parametres!E$43,Parametres!E$44)))), IF(A$2=Parametres!A$79,IF(V60<Parametres!G$21,0,IF(V60<Parametres!D$41,Parametres!E$41,IF(V60<Parametres!C$42,Parametres!E$42,IF(V60<Parametres!C$43,Parametres!E$43,Parametres!E$44))))))))) ->  | X60: =IF(B60=0,"",IF(A$2=Parametres!A$77,Parametres!D$10,IF(A$2=Parametres!A$78,Parametres!F$10,IF(A$2=Parametres!A$79,Parametres!H$10,"")))) ->  | AB60: =IF(B60=0,"",IF(A$2=Parametres!A$77,Parametres!D$20,IF(A$2=Parametres!A$78,Parametres!F$20,IF(A$2=Parametres!A$79,Parametres!H$20,"")))) ->  | AD60: =IF(A$2=Parametres!A$77,IF(B60=0,"",IF(P60>(Y60+AC60),IF(P60<Parametres!D$28,"FORFAIT MINI","DEPENSES"),IF((Y60+AC60)<Parametres!D$28,"FORFAIT MINI","RECETTES"))),IF(A$2=Parametres!A$78,"",IF(A$2=Parametres!A$79,IF(B60=0,"",IF(T60>0,IF(AND(R60/T60<20,N60<5000),"FORFAIT MINI S.O.",IF(P60>(Y60+AC60),IF(P60<Parametres!D$28,"FORFAIT MINI","DEPENSES"),IF((Y60+AC60)<Parametres!D$28,"FORFAIT MINI","RECETTES"))),IF(N60<5000,"FORFAIT MINI S.O.",IF(P60>(Y60+AC60),IF(P60<Parametres!D$28,"FORFAIT MINI","DEPENSES"),IF((Y60+AC60)<Parametres!D$28,"FORFAIT MINI","RECETTES")))))))) ->  | AE60: =IF(T60>0,IF(AD60="FORFAIT MINI S.O.",INDEX(FSOTab,MATCH(R60/T60,FSOPrix,1)+1,MATCH(N60,FSOBudget,1)),IF(A$2=Parametres!A$78,"",IF(B60=0,"",ROUND(IF(P60>(Y60+AC60),IF(P60<Parametres!D$28,Parametres!D$28,P60),IF((Y60+AC60)<Parametres!D$28,Parametres!D$28,(Y60+AC60))),2)))),IF(AD60="FORFAIT MINI S.O.",INDEX(FSOTab,MATCH(0,FSOPrix,1)+1,MATCH(N60,FSOBudget,1)),IF(A$2=Parametres!A$78,"",IF(B60=0,"",ROUND(IF(P60>(Y60+AC60),IF(P60<Parametres!D$28,Parametres!D$28,P60),IF((Y60+AC60)<Parametres!D$28,Parametres!D$28,(Y60+AC60))),2))))) ->  | AF60: =IF(A$2=Parametres!A$78,"",IF(B60=0,"",ROUND(AE60*Parametres!C$66,2))) ->  | AG60: =IF(A$2=Parametres!A$78,"",IF(B60=0,"",ROUND(AE60*Parametres!C$67,2))) ->  | AH60: =IF(A$2=Parametres!A$78,"",IF(B60=0,"",ROUND(AE60*Parametres!C$68,2))) ->  | AI60: =IF(A$2=Parametres!A$78,"",IF(B60=0,"",SUM(ROUND(AE60,2),ROUND(AF60,2),ROUND(AG60,2),ROUND(AH60,2)))) -> 
I61: =IF(F61=0,"",IF(A$2=Parametres!A$77,IF(G61="Oui",IF(H61="Oui",F61-F61*Parametres!C$50-(F61-F61*Parametres!C$50)*Parametres!C$51,IF(H61="Non",F61-F61*Parametres!C$50,"")),IF(G61="Non",IF(H61="Oui",F61-F61*Parametres!C$51,IF(H61="Non",F61,"")))),IF(A$2=Parametres!A$78,IF(G61="Oui",IF(H61="Oui",F61-F61*Parametres!C$50-(F61-F61*Parametres!C$50)*Parametres!C$51,IF(H61="Non",F61-F61*Parametres!E$50,"")),IF(G61="Non",IF(H61="Oui",F61-F61*Parametres!E$51,IF(H61="Non",F61,"")))),IF(A$2=Parametres!A$79,IF(G61="Oui",IF(H61="Oui",F61-F61*Parametres!G$50-(F61-F61*Parametres!G$50)*Parametres!G$51,IF(H61="Non",F61-F61*Parametres!G$50,"")),IF(G61="Non",IF(H61="Oui",F61-F61*Parametres!G$51,IF(H61="Non",F61,"")))),"")))) ->  | J61: =IF(B61=0,"",(I59:I64)) ->  | K61: =IF(C61="","",IF(A$2=Parametres!A$79,Parametres!E$61,IF(A$2=Parametres!A$78,Parametres!E$60,IF(C61<=Parametres!D$56,Parametres!E$56,IF(C61<=Parametres!D$57,Parametres!E$57,IF(C61<=Parametres!D$58,Parametres!E$58,IF(C61>Parametres!D$59,Parametres!E$59,""))))))) ->  | N61: =IF(B61="","",IF(A$2=Parametres!A$79,IF((L61+M61)>0,(J61+L61+M61),J61*(1+Parametres!G$49)),J61+J61*K61)) ->  | O61: =IF(B61=0,"",IF(A$2=Parametres!A$77,Parametres!D$10,IF(A$2=Parametres!A$78,Parametres!F$9,IF(A$2=Parametres!A$79,Parametres!H$9,"")))) ->  | W61: =IF(Q61="gratuit","",IF(B61=0,"",IF(A$2=Parametres!A$77,IF(V61<Parametres!C$21,0,IF(V61<Parametres!D$41,Parametres!E$41,IF(V61<Parametres!C$42,Parametres!E$42,IF(V61<Parametres!C$43,Parametres!E$43,Parametres!E$44)))), IF(A$2=Parametres!A$78,IF(V61<Parametres!E$21,0,IF(V61<Parametres!D$41,Parametres!E$41,IF(V61<Parametres!C$42,Parametres!E$42,IF(V61<Parametres!C$43,Parametres!E$43,Parametres!E$44)))), IF(A$2=Parametres!A$79,IF(V61<Parametres!G$21,0,IF(V61<Parametres!D$41,Parametres!E$41,IF(V61<Parametres!C$42,Parametres!E$42,IF(V61<Parametres!C$43,Parametres!E$43,Parametres!E$44))))))))) ->  | X61: =IF(B61=0,"",IF(A$2=Parametres!A$77,Parametres!D$10,IF(A$2=Parametres!A$78,Parametres!F$10,IF(A$2=Parametres!A$79,Parametres!H$10,"")))) ->  | AB61: =IF(B61=0,"",IF(A$2=Parametres!A$77,Parametres!D$20,IF(A$2=Parametres!A$78,Parametres!F$20,IF(A$2=Parametres!A$79,Parametres!H$20,"")))) ->  | AD61: =IF(A$2=Parametres!A$77,IF(B61=0,"",IF(P61>(Y61+AC61),IF(P61<Parametres!D$28,"FORFAIT MINI","DEPENSES"),IF((Y61+AC61)<Parametres!D$28,"FORFAIT MINI","RECETTES"))),IF(A$2=Parametres!A$78,"",IF(A$2=Parametres!A$79,IF(B61=0,"",IF(T61>0,IF(AND(R61/T61<20,N61<5000),"FORFAIT MINI S.O.",IF(P61>(Y61+AC61),IF(P61<Parametres!D$28,"FORFAIT MINI","DEPENSES"),IF((Y61+AC61)<Parametres!D$28,"FORFAIT MINI","RECETTES"))),IF(N61<5000,"FORFAIT MINI S.O.",IF(P61>(Y61+AC61),IF(P61<Parametres!D$28,"FORFAIT MINI","DEPENSES"),IF((Y61+AC61)<Parametres!D$28,"FORFAIT MINI","RECETTES")))))))) ->  | AE61: =IF(T61>0,IF(AD61="FORFAIT MINI S.O.",INDEX(FSOTab,MATCH(R61/T61,FSOPrix,1)+1,MATCH(N61,FSOBudget,1)),IF(A$2=Parametres!A$78,"",IF(B61=0,"",ROUND(IF(P61>(Y61+AC61),IF(P61<Parametres!D$28,Parametres!D$28,P61),IF((Y61+AC61)<Parametres!D$28,Parametres!D$28,(Y61+AC61))),2)))),IF(AD61="FORFAIT MINI S.O.",INDEX(FSOTab,MATCH(0,FSOPrix,1)+1,MATCH(N61,FSOBudget,1)),IF(A$2=Parametres!A$78,"",IF(B61=0,"",ROUND(IF(P61>(Y61+AC61),IF(P61<Parametres!D$28,Parametres!D$28,P61),IF((Y61+AC61)<Parametres!D$28,Parametres!D$28,(Y61+AC61))),2))))) ->  | AF61: =IF(A$2=Parametres!A$78,"",IF(B61=0,"",ROUND(AE61*Parametres!C$66,2))) ->  | AG61: =IF(A$2=Parametres!A$78,"",IF(B61=0,"",ROUND(AE61*Parametres!C$67,2))) ->  | AH61: =IF(A$2=Parametres!A$78,"",IF(B61=0,"",ROUND(AE61*Parametres!C$68,2))) ->  | AI61: =IF(A$2=Parametres!A$78,"",IF(B61=0,"",SUM(ROUND(AE61,2),ROUND(AF61,2),ROUND(AG61,2),ROUND(AH61,2)))) -> 
I62: =IF(F62=0,"",IF(A$2=Parametres!A$77,IF(G62="Oui",IF(H62="Oui",F62-F62*Parametres!C$50-(F62-F62*Parametres!C$50)*Parametres!C$51,IF(H62="Non",F62-F62*Parametres!C$50,"")),IF(G62="Non",IF(H62="Oui",F62-F62*Parametres!C$51,IF(H62="Non",F62,"")))),IF(A$2=Parametres!A$78,IF(G62="Oui",IF(H62="Oui",F62-F62*Parametres!C$50-(F62-F62*Parametres!C$50)*Parametres!C$51,IF(H62="Non",F62-F62*Parametres!E$50,"")),IF(G62="Non",IF(H62="Oui",F62-F62*Parametres!E$51,IF(H62="Non",F62,"")))),IF(A$2=Parametres!A$79,IF(G62="Oui",IF(H62="Oui",F62-F62*Parametres!G$50-(F62-F62*Parametres!G$50)*Parametres!G$51,IF(H62="Non",F62-F62*Parametres!G$50,"")),IF(G62="Non",IF(H62="Oui",F62-F62*Parametres!G$51,IF(H62="Non",F62,"")))),"")))) ->  | J62: =IF(B62=0,"",SUM(I59:I64)) ->  | K62: =IF(C62="","",IF(A$2=Parametres!A$79,Parametres!E$61,IF(A$2=Parametres!A$78,Parametres!E$60,IF(C62<=Parametres!D$56,Parametres!E$56,IF(C62<=Parametres!D$57,Parametres!E$57,IF(C62<=Parametres!D$58,Parametres!E$58,IF(C62>Parametres!D$59,Parametres!E$59,""))))))) ->  | N62: =IF(B62="","",IF(A$2=Parametres!A$79,IF((L62+M62)>0,(J62+L62+M62),J62*(1+Parametres!G$49)),J62+J62*K62)) ->  | O62: =IF(B62=0,"",IF(A$2=Parametres!A$77,Parametres!D$10,IF(A$2=Parametres!A$78,Parametres!F$9,IF(A$2=Parametres!A$79,Parametres!H$9,"")))) ->  | W62: =IF(Q62="gratuit","",IF(B62=0,"",IF(A$2=Parametres!A$77,IF(V62<Parametres!C$21,0,IF(V62<Parametres!D$41,Parametres!E$41,IF(V62<Parametres!C$42,Parametres!E$42,IF(V62<Parametres!C$43,Parametres!E$43,Parametres!E$44)))), IF(A$2=Parametres!A$78,IF(V62<Parametres!E$21,0,IF(V62<Parametres!D$41,Parametres!E$41,IF(V62<Parametres!C$42,Parametres!E$42,IF(V62<Parametres!C$43,Parametres!E$43,Parametres!E$44)))), IF(A$2=Parametres!A$79,IF(V62<Parametres!G$21,0,IF(V62<Parametres!D$41,Parametres!E$41,IF(V62<Parametres!C$42,Parametres!E$42,IF(V62<Parametres!C$43,Parametres!E$43,Parametres!E$44))))))))) ->  | X62: =IF(B62=0,"",IF(A$2=Parametres!A$77,Parametres!D$10,IF(A$2=Parametres!A$78,Parametres!F$10,IF(A$2=Parametres!A$79,Parametres!H$10,"")))) ->  | AB62: =IF(B62=0,"",IF(A$2=Parametres!A$77,Parametres!D$20,IF(A$2=Parametres!A$78,Parametres!F$20,IF(A$2=Parametres!A$79,Parametres!H$20,"")))) ->  | AD62: =IF(A$2=Parametres!A$77,IF(B62=0,"",IF(P62>(Y62+AC62),IF(P62<Parametres!D$28,"FORFAIT MINI","DEPENSES"),IF((Y62+AC62)<Parametres!D$28,"FORFAIT MINI","RECETTES"))),IF(A$2=Parametres!A$78,"",IF(A$2=Parametres!A$79,IF(B62=0,"",IF(T62>0,IF(AND(R62/T62<20,N62<5000),"FORFAIT MINI S.O.",IF(P62>(Y62+AC62),IF(P62<Parametres!D$28,"FORFAIT MINI","DEPENSES"),IF((Y62+AC62)<Parametres!D$28,"FORFAIT MINI","RECETTES"))),IF(N62<5000,"FORFAIT MINI S.O.",IF(P62>(Y62+AC62),IF(P62<Parametres!D$28,"FORFAIT MINI","DEPENSES"),IF((Y62+AC62)<Parametres!D$28,"FORFAIT MINI","RECETTES")))))))) ->  | AE62: =IF(T62>0,IF(AD62="FORFAIT MINI S.O.",INDEX(FSOTab,MATCH(R62/T62,FSOPrix,1)+1,MATCH(N62,FSOBudget,1)),IF(A$2=Parametres!A$78,"",IF(B62=0,"",ROUND(IF(P62>(Y62+AC62),IF(P62<Parametres!D$28,Parametres!D$28,P62),IF((Y62+AC62)<Parametres!D$28,Parametres!D$28,(Y62+AC62))),2)))),IF(AD62="FORFAIT MINI S.O.",INDEX(FSOTab,MATCH(0,FSOPrix,1)+1,MATCH(N62,FSOBudget,1)),IF(A$2=Parametres!A$78,"",IF(B62=0,"",ROUND(IF(P62>(Y62+AC62),IF(P62<Parametres!D$28,Parametres!D$28,P62),IF((Y62+AC62)<Parametres!D$28,Parametres!D$28,(Y62+AC62))),2))))) ->  | AF62: =IF(A$2=Parametres!A$78,"",IF(B62=0,"",ROUND(AE62*Parametres!C$66,2))) ->  | AG62: =IF(A$2=Parametres!A$78,"",IF(B62=0,"",ROUND(AE62*Parametres!C$67,2))) ->  | AH62: =IF(A$2=Parametres!A$78,"",IF(B62=0,"",ROUND(AE62*Parametres!C$68,2))) ->  | AI62: =IF(A$2=Parametres!A$78,"",IF(B62=0,"",SUM(ROUND(AE62,2),ROUND(AF62,2),ROUND(AG62,2),ROUND(AH62,2)))) -> 
I63: =IF(F63=0,"",IF(A$2=Parametres!A$77,IF(G63="Oui",IF(H63="Oui",F63-F63*Parametres!C$50-(F63-F63*Parametres!C$50)*Parametres!C$51,IF(H63="Non",F63-F63*Parametres!C$50,"")),IF(G63="Non",IF(H63="Oui",F63-F63*Parametres!C$51,IF(H63="Non",F63,"")))),IF(A$2=Parametres!A$78,IF(G63="Oui",IF(H63="Oui",F63-F63*Parametres!C$50-(F63-F63*Parametres!C$50)*Parametres!C$51,IF(H63="Non",F63-F63*Parametres!E$50,"")),IF(G63="Non",IF(H63="Oui",F63-F63*Parametres!E$51,IF(H63="Non",F63,"")))),IF(A$2=Parametres!A$79,IF(G63="Oui",IF(H63="Oui",F63-F63*Parametres!G$50-(F63-F63*Parametres!G$50)*Parametres!G$51,IF(H63="Non",F63-F63*Parametres!G$50,"")),IF(G63="Non",IF(H63="Oui",F63-F63*Parametres!G$51,IF(H63="Non",F63,"")))),"")))) ->  | J63: =IF(B63=0,"",SUM(I59:I64)) ->  | K63: =IF(C63="","",IF(A$2=Parametres!A$79,Parametres!E$61,IF(A$2=Parametres!A$78,Parametres!E$60,IF(C63<=Parametres!D$56,Parametres!E$56,IF(C63<=Parametres!D$57,Parametres!E$57,IF(C63<=Parametres!D$58,Parametres!E$58,IF(C63>Parametres!D$59,Parametres!E$59,""))))))) ->  | N63: =IF(B63="","",IF(A$2=Parametres!A$79,IF((L63+M63)>0,(J63+L63+M63),J63*(1+Parametres!G$49)),J63+J63*K63)) ->  | O63: =IF(B63=0,"",IF(A$2=Parametres!A$77,Parametres!D$10,IF(A$2=Parametres!A$78,Parametres!F$9,IF(A$2=Parametres!A$79,Parametres!H$9,"")))) ->  | W63: =IF(Q63="gratuit","",IF(B63=0,"",IF(A$2=Parametres!A$77,IF(V63<Parametres!C$21,0,IF(V63<Parametres!D$41,Parametres!E$41,IF(V63<Parametres!C$42,Parametres!E$42,IF(V63<Parametres!C$43,Parametres!E$43,Parametres!E$44)))), IF(A$2=Parametres!A$78,IF(V63<Parametres!E$21,0,IF(V63<Parametres!D$41,Parametres!E$41,IF(V63<Parametres!C$42,Parametres!E$42,IF(V63<Parametres!C$43,Parametres!E$43,Parametres!E$44)))), IF(A$2=Parametres!A$79,IF(V63<Parametres!G$21,0,IF(V63<Parametres!D$41,Parametres!E$41,IF(V63<Parametres!C$42,Parametres!E$42,IF(V63<Parametres!C$43,Parametres!E$43,Parametres!E$44))))))))) ->  | X63: =IF(B63=0,"",IF(A$2=Parametres!A$77,Parametres!D$10,IF(A$2=Parametres!A$78,Parametres!F$10,IF(A$2=Parametres!A$79,Parametres!H$10,"")))) ->  | AB63: =IF(B63=0,"",IF(A$2=Parametres!A$77,Parametres!D$20,IF(A$2=Parametres!A$78,Parametres!F$20,IF(A$2=Parametres!A$79,Parametres!H$20,"")))) ->  | AD63: =IF(A$2=Parametres!A$77,IF(B63=0,"",IF(P63>(Y63+AC63),IF(P63<Parametres!D$28,"FORFAIT MINI","DEPENSES"),IF((Y63+AC63)<Parametres!D$28,"FORFAIT MINI","RECETTES"))),IF(A$2=Parametres!A$78,"",IF(A$2=Parametres!A$79,IF(B63=0,"",IF(T63>0,IF(AND(R63/T63<20,N63<5000),"FORFAIT MINI S.O.",IF(P63>(Y63+AC63),IF(P63<Parametres!D$28,"FORFAIT MINI","DEPENSES"),IF((Y63+AC63)<Parametres!D$28,"FORFAIT MINI","RECETTES"))),IF(N63<5000,"FORFAIT MINI S.O.",IF(P63>(Y63+AC63),IF(P63<Parametres!D$28,"FORFAIT MINI","DEPENSES"),IF((Y63+AC63)<Parametres!D$28,"FORFAIT MINI","RECETTES")))))))) ->  | AE63: =IF(T63>0,IF(AD63="FORFAIT MINI S.O.",INDEX(FSOTab,MATCH(R63/T63,FSOPrix,1)+1,MATCH(N63,FSOBudget,1)),IF(A$2=Parametres!A$78,"",IF(B63=0,"",ROUND(IF(P63>(Y63+AC63),IF(P63<Parametres!D$28,Parametres!D$28,P63),IF((Y63+AC63)<Parametres!D$28,Parametres!D$28,(Y63+AC63))),2)))),IF(AD63="FORFAIT MINI S.O.",INDEX(FSOTab,MATCH(0,FSOPrix,1)+1,MATCH(N63,FSOBudget,1)),IF(A$2=Parametres!A$78,"",IF(B63=0,"",ROUND(IF(P63>(Y63+AC63),IF(P63<Parametres!D$28,Parametres!D$28,P63),IF((Y63+AC63)<Parametres!D$28,Parametres!D$28,(Y63+AC63))),2))))) ->  | AF63: =IF(A$2=Parametres!A$78,"",IF(B63=0,"",ROUND(AE63*Parametres!C$66,2))) ->  | AG63: =IF(A$2=Parametres!A$78,"",IF(B63=0,"",ROUND(AE63*Parametres!C$67,2))) ->  | AH63: =IF(A$2=Parametres!A$78,"",IF(B63=0,"",ROUND(AE63*Parametres!C$68,2))) ->  | AI63: =IF(A$2=Parametres!A$78,"",IF(B63=0,"",SUM(ROUND(AE63,2),ROUND(AF63,2),ROUND(AG63,2),ROUND(AH63,2)))) -> 
I64: =IF(F64=0,"",IF(A$2=Parametres!A$77,IF(G64="Oui",IF(H64="Oui",F64-F64*Parametres!C$50-(F64-F64*Parametres!C$50)*Parametres!C$51,IF(H64="Non",F64-F64*Parametres!C$50,"")),IF(G64="Non",IF(H64="Oui",F64-F64*Parametres!C$51,IF(H64="Non",F64,"")))),IF(A$2=Parametres!A$78,IF(G64="Oui",IF(H64="Oui",F64-F64*Parametres!C$50-(F64-F64*Parametres!C$50)*Parametres!C$51,IF(H64="Non",F64-F64*Parametres!E$50,"")),IF(G64="Non",IF(H64="Oui",F64-F64*Parametres!E$51,IF(H64="Non",F64,"")))),IF(A$2=Parametres!A$79,IF(G64="Oui",IF(H64="Oui",F64-F64*Parametres!G$50-(F64-F64*Parametres!G$50)*Parametres!G$51,IF(H64="Non",F64-F64*Parametres!G$50,"")),IF(G64="Non",IF(H64="Oui",F64-F64*Parametres!G$51,IF(H64="Non",F64,"")))),"")))) ->  | J64: =IF(B64=0,"",SUM(I59:I64)) ->  | K64: =IF(C64="","",IF(A$2=Parametres!A$79,Parametres!E$61,IF(A$2=Parametres!A$78,Parametres!E$60,IF(C64<=Parametres!D$56,Parametres!E$56,IF(C64<=Parametres!D$57,Parametres!E$57,IF(C64<=Parametres!D$58,Parametres!E$58,IF(C64>Parametres!D$59,Parametres!E$59,""))))))) ->  | N64: =IF(B64="","",IF(A$2=Parametres!A$79,IF((L64+M64)>0,(J64+L64+M64),J64*(1+Parametres!G$49)),J64+J64*K64)) ->  | O64: =IF(B64=0,"",IF(A$2=Parametres!A$77,Parametres!D$10,IF(A$2=Parametres!A$78,Parametres!F$9,IF(A$2=Parametres!A$79,Parametres!H$9,"")))) ->  | W64: =IF(Q64="gratuit","",IF(B64=0,"",IF(A$2=Parametres!A$77,IF(V64<Parametres!C$21,0,IF(V64<Parametres!D$41,Parametres!E$41,IF(V64<Parametres!C$42,Parametres!E$42,IF(V64<Parametres!C$43,Parametres!E$43,Parametres!E$44)))), IF(A$2=Parametres!A$78,IF(V64<Parametres!E$21,0,IF(V64<Parametres!D$41,Parametres!E$41,IF(V64<Parametres!C$42,Parametres!E$42,IF(V64<Parametres!C$43,Parametres!E$43,Parametres!E$44)))), IF(A$2=Parametres!A$79,IF(V64<Parametres!G$21,0,IF(V64<Parametres!D$41,Parametres!E$41,IF(V64<Parametres!C$42,Parametres!E$42,IF(V64<Parametres!C$43,Parametres!E$43,Parametres!E$44))))))))) ->  | X64: =IF(B64=0,"",IF(A$2=Parametres!A$77,Parametres!D$10,IF(A$2=Parametres!A$78,Parametres!F$10,IF(A$2=Parametres!A$79,Parametres!H$10,"")))) ->  | AB64: =IF(B64=0,"",IF(A$2=Parametres!A$77,Parametres!D$20,IF(A$2=Parametres!A$78,Parametres!F$20,IF(A$2=Parametres!A$79,Parametres!H$20,"")))) ->  | AD64: =IF(A$2=Parametres!A$77,IF(B64=0,"",IF(P64>(Y64+AC64),IF(P64<Parametres!D$28,"FORFAIT MINI","DEPENSES"),IF((Y64+AC64)<Parametres!D$28,"FORFAIT MINI","RECETTES"))),IF(A$2=Parametres!A$78,"",IF(A$2=Parametres!A$79,IF(B64=0,"",IF(T64>0,IF(AND(R64/T64<20,N64<5000),"FORFAIT MINI S.O.",IF(P64>(Y64+AC64),IF(P64<Parametres!D$28,"FORFAIT MINI","DEPENSES"),IF((Y64+AC64)<Parametres!D$28,"FORFAIT MINI","RECETTES"))),IF(N64<5000,"FORFAIT MINI S.O.",IF(P64>(Y64+AC64),IF(P64<Parametres!D$28,"FORFAIT MINI","DEPENSES"),IF((Y64+AC64)<Parametres!D$28,"FORFAIT MINI","RECETTES")))))))) ->  | AE64: =IF(T64>0,IF(AD64="FORFAIT MINI S.O.",INDEX(FSOTab,MATCH(R64/T64,FSOPrix,1)+1,MATCH(N64,FSOBudget,1)),IF(A$2=Parametres!A$78,"",IF(B64=0,"",ROUND(IF(P64>(Y64+AC64),IF(P64<Parametres!D$28,Parametres!D$28,P64),IF((Y64+AC64)<Parametres!D$28,Parametres!D$28,(Y64+AC64))),2)))),IF(AD64="FORFAIT MINI S.O.",INDEX(FSOTab,MATCH(0,FSOPrix,1)+1,MATCH(N64,FSOBudget,1)),IF(A$2=Parametres!A$78,"",IF(B64=0,"",ROUND(IF(P64>(Y64+AC64),IF(P64<Parametres!D$28,Parametres!D$28,P64),IF((Y64+AC64)<Parametres!D$28,Parametres!D$28,(Y64+AC64))),2))))) ->  | AF64: =IF(A$2=Parametres!A$78,"",IF(B64=0,"",ROUND(AE64*Parametres!C$66,2))) ->  | AG64: =IF(A$2=Parametres!A$78,"",IF(B64=0,"",ROUND(AE64*Parametres!C$67,2))) ->  | AH64: =IF(A$2=Parametres!A$78,"",IF(B64=0,"",ROUND(AE64*Parametres!C$68,2))) ->  | AI64: =IF(A$2=Parametres!A$78,"",IF(B64=0,"",SUM(ROUND(AE64,2),ROUND(AF64,2),ROUND(AG64,2),ROUND(AH64,2)))) -> 
I66: =IF(F66=0,"",IF(A$2=Parametres!A$77,IF(G66="Oui",IF(H66="Oui",F66-F66*Parametres!C$50-(F66-F66*Parametres!C$50)*Parametres!C$51,IF(H66="Non",F66-F66*Parametres!C$50,"")),IF(G66="Non",IF(H66="Oui",F66-F66*Parametres!C$51,IF(H66="Non",F66,"")))),IF(A$2=Parametres!A$78,IF(G66="Oui",IF(H66="Oui",F66-F66*Parametres!C$50-(F66-F66*Parametres!C$50)*Parametres!C$51,IF(H66="Non",F66-F66*Parametres!E$50,"")),IF(G66="Non",IF(H66="Oui",F66-F66*Parametres!E$51,IF(H66="Non",F66,"")))),IF(A$2=Parametres!A$79,IF(G66="Oui",IF(H66="Oui",F66-F66*Parametres!G$50-(F66-F66*Parametres!G$50)*Parametres!G$51,IF(H66="Non",F66-F66*Parametres!G$50,"")),IF(G66="Non",IF(H66="Oui",F66-F66*Parametres!G$51,IF(H66="Non",F66,"")))),"")))) ->  | J66: =IF(B66=0,"",SUM(I66:I71)) ->  | K66: =IF(C66="","",IF(A$2=Parametres!A$79,Parametres!E$61,IF(A$2=Parametres!A$78,Parametres!E$60,IF(C66<=Parametres!D$56,Parametres!E$56,IF(C66<=Parametres!D$57,Parametres!E$57,IF(C66<=Parametres!D$58,Parametres!E$58,IF(C66>Parametres!D$59,Parametres!E$59,""))))))) ->  | N66: =IF(B66="","",IF(A$2=Parametres!A$79,IF((L66+M66)>0,(J66+L66+M66),J66*(1+Parametres!G$49)),J66+J66*K66)) ->  | O66: =IF(B66=0,"",IF(A$2=Parametres!A$77,Parametres!D$10,IF(A$2=Parametres!A$78,Parametres!F$10,IF(A$2=Parametres!A$79,Parametres!H$10,"")))) ->  | P66: =IF(B66=0,"",O66*N66) ->  | Q66: =IF(R66>0,"payant",IF(B66=0,"","gratuit")) ->  | S66: =IF(B66=0,"",T66+U66) ->  | V66: =IF(Q66="gratuit","",IF(S66=0,0,IF(S66="","",U66/T66))) ->  | W66: =IF(Q66="gratuit","",IF(B66=0,"",IF(A$2=Parametres!A$77,IF(V66<Parametres!C$21,0,IF(V66<Parametres!D$41,Parametres!E$41,IF(V66<Parametres!C$42,Parametres!E$42,IF(V66<Parametres!C$43,Parametres!E$43,Parametres!E$44)))), IF(A$2=Parametres!A$78,IF(V66<Parametres!E$21,0,IF(V66<Parametres!D$41,Parametres!E$41,IF(V66<Parametres!C$42,Parametres!E$42,IF(V66<Parametres!C$43,Parametres!E$43,Parametres!E$44)))), IF(A$2=Parametres!A$79,IF(V66<Parametres!G$21,0,IF(V66<Parametres!D$41,Parametres!E$41,IF(V66<Parametres!C$42,Parametres!E$42,IF(V66<Parametres!C$43,Parametres!E$43,Parametres!E$44))))))))) ->  | X66: =IF(B66=0,"",IF(A$2=Parametres!A$77,Parametres!D$10,IF(A$2=Parametres!A$78,Parametres!F$10,IF(A$2=Parametres!A$79,Parametres!H$10,"")))) ->  | Y66: =IF(B66=0,"",IF(Q66="gratuit",R66*X66,R66*X66+(R66*X66)*W66)) ->  | AB66: =IF(B66=0,"",IF(A$2=Parametres!A$77,Parametres!D$20,IF(A$2=Parametres!A$78,Parametres!F$20,IF(A$2=Parametres!A$79,Parametres!H$20,"")))) ->  | AC66: =IF(B66=0,"",(Z66+AA66)*AB66) ->  | AD66: =IF(A$2=Parametres!A$77,IF(B66=0,"",IF(P66>(Y66+AC66),IF(P66<Parametres!D$28,"FORFAIT MINI","DEPENSES"),IF((Y66+AC66)<Parametres!D$28,"FORFAIT MINI","RECETTES"))),IF(A$2=Parametres!A$78,"",IF(A$2=Parametres!A$79,IF(B66=0,"",IF(T66>0,IF(AND(R66/T66<20,N66<5000),"FORFAIT MINI S.O.",IF(P66>(Y66+AC66),IF(P66<Parametres!D$28,"FORFAIT MINI","DEPENSES"),IF((Y66+AC66)<Parametres!D$28,"FORFAIT MINI","RECETTES"))),IF(N66<5000,"FORFAIT MINI S.O.",IF(P66>(Y66+AC66),IF(P66<Parametres!D$28,"FORFAIT MINI","DEPENSES"),IF((Y66+AC66)<Parametres!D$28,"FORFAIT MINI","RECETTES")))))))) ->  | AE66: =IF(T66>0,IF(AD66="FORFAIT MINI S.O.",INDEX(FSOTab,MATCH(R66/T66,FSOPrix,1)+1,MATCH(N66,FSOBudget,1)),IF(A$2=Parametres!A$78,"",IF(B66=0,"",ROUND(IF(P66>(Y66+AC66),IF(P66<Parametres!D$28,Parametres!D$28,P66),IF((Y66+AC66)<Parametres!D$28,Parametres!D$28,(Y66+AC66))),2)))),IF(AD66="FORFAIT MINI S.O.",INDEX(FSOTab,MATCH(0,FSOPrix,1)+1,MATCH(N66,FSOBudget,1)),IF(A$2=Parametres!A$78,"",IF(B66=0,"",ROUND(IF(P66>(Y66+AC66),IF(P66<Parametres!D$28,Parametres!D$28,P66),IF((Y66+AC66)<Parametres!D$28,Parametres!D$28,(Y66+AC66))),2))))) ->  | AF66: =IF(A$2=Parametres!A$78,"",IF(B66=0,"",ROUND(AE66*Parametres!C$66,2))) ->  | AG66: =IF(A$2=Parametres!A$78,"",IF(B66=0,"",ROUND(AE66*Parametres!C$67,2))) ->  | AH66: =IF(A$2=Parametres!A$78,"",IF(B66=0,"",ROUND(AE66*Parametres!C$68,2))) ->  | AI66: =IF(A$2=Parametres!A$78,"",IF(B66=0,"",SUM(ROUND(AE66,2),ROUND(AF66,2),ROUND(AG66,2),ROUND(AH66,2)))) -> 
I67: =IF(F67=0,"",IF(A$2=Parametres!A$77,IF(G67="Oui",IF(H67="Oui",F67-F67*Parametres!C$50-(F67-F67*Parametres!C$50)*Parametres!C$51,IF(H67="Non",F67-F67*Parametres!C$50,"")),IF(G67="Non",IF(H67="Oui",F67-F67*Parametres!C$51,IF(H67="Non",F67,"")))),IF(A$2=Parametres!A$78,IF(G67="Oui",IF(H67="Oui",F67-F67*Parametres!C$50-(F67-F67*Parametres!C$50)*Parametres!C$51,IF(H67="Non",F67-F67*Parametres!E$50,"")),IF(G67="Non",IF(H67="Oui",F67-F67*Parametres!E$51,IF(H67="Non",F67,"")))),IF(A$2=Parametres!A$79,IF(G67="Oui",IF(H67="Oui",F67-F67*Parametres!G$50-(F67-F67*Parametres!G$50)*Parametres!G$51,IF(H67="Non",F67-F67*Parametres!G$50,"")),IF(G67="Non",IF(H67="Oui",F67-F67*Parametres!G$51,IF(H67="Non",F67,"")))),"")))) ->  | J67: =IF(B67=0,"",SUM(I66:I71)) ->  | K67: =IF(C67="","",IF(A$2=Parametres!A$79,Parametres!E$61,IF(A$2=Parametres!A$78,Parametres!E$60,IF(C67<=Parametres!D$56,Parametres!E$56,IF(C67<=Parametres!D$57,Parametres!E$57,IF(C67<=Parametres!D$58,Parametres!E$58,IF(C67>Parametres!D$59,Parametres!E$59,""))))))) ->  | N67: =IF(B67="","",IF(A$2=Parametres!A$79,IF((L67+M67)>0,(J67+L67+M67),J67*(1+Parametres!G$49)),J67+J67*K67)) ->  | O67: =IF(B67=0,"",IF(A$2=Parametres!A$77,Parametres!D$10,IF(A$2=Parametres!A$78,Parametres!F$9,IF(A$2=Parametres!A$79,Parametres!H$9,"")))) ->  | V67: =IF(Q67="gratuit","",IF(S67=0,0,IF(S67="","",U67/T67))) ->  | W67: =IF(Q67="gratuit","",IF(B67=0,"",IF(A$2=Parametres!A$77,IF(V67<Parametres!C$21,0,IF(V67<Parametres!D$41,Parametres!E$41,IF(V67<Parametres!C$42,Parametres!E$42,IF(V67<Parametres!C$43,Parametres!E$43,Parametres!E$44)))), IF(A$2=Parametres!A$78,IF(V67<Parametres!E$21,0,IF(V67<Parametres!D$41,Parametres!E$41,IF(V67<Parametres!C$42,Parametres!E$42,IF(V67<Parametres!C$43,Parametres!E$43,Parametres!E$44)))), IF(A$2=Parametres!A$79,IF(V67<Parametres!G$21,0,IF(V67<Parametres!D$41,Parametres!E$41,IF(V67<Parametres!C$42,Parametres!E$42,IF(V67<Parametres!C$43,Parametres!E$43,Parametres!E$44))))))))) ->  | X67: =IF(B67=0,"",IF(A$2=Parametres!A$77,Parametres!D$10,IF(A$2=Parametres!A$78,Parametres!F$10,IF(A$2=Parametres!A$79,Parametres!H$10,"")))) ->  | AB67: =IF(B67=0,"",IF(A$2=Parametres!A$77,Parametres!D$20,IF(A$2=Parametres!A$78,Parametres!F$20,IF(A$2=Parametres!A$79,Parametres!H$20,"")))) ->  | AD67: =IF(A$2=Parametres!A$77,IF(B67=0,"",IF(P67>(Y67+AC67),IF(P67<Parametres!D$28,"FORFAIT MINI","DEPENSES"),IF((Y67+AC67)<Parametres!D$28,"FORFAIT MINI","RECETTES"))),IF(A$2=Parametres!A$78,"",IF(A$2=Parametres!A$79,IF(B67=0,"",IF(T67>0,IF(AND(R67/T67<20,N67<5000),"FORFAIT MINI S.O.",IF(P67>(Y67+AC67),IF(P67<Parametres!D$28,"FORFAIT MINI","DEPENSES"),IF((Y67+AC67)<Parametres!D$28,"FORFAIT MINI","RECETTES"))),IF(N67<5000,"FORFAIT MINI S.O.",IF(P67>(Y67+AC67),IF(P67<Parametres!D$28,"FORFAIT MINI","DEPENSES"),IF((Y67+AC67)<Parametres!D$28,"FORFAIT MINI","RECETTES")))))))) ->  | AE67: =IF(T67>0,IF(AD67="FORFAIT MINI S.O.",INDEX(FSOTab,MATCH(R67/T67,FSOPrix,1)+1,MATCH(N67,FSOBudget,1)),IF(A$2=Parametres!A$78,"",IF(B67=0,"",ROUND(IF(P67>(Y67+AC67),IF(P67<Parametres!D$28,Parametres!D$28,P67),IF((Y67+AC67)<Parametres!D$28,Parametres!D$28,(Y67+AC67))),2)))),IF(AD67="FORFAIT MINI S.O.",INDEX(FSOTab,MATCH(0,FSOPrix,1)+1,MATCH(N67,FSOBudget,1)),IF(A$2=Parametres!A$78,"",IF(B67=0,"",ROUND(IF(P67>(Y67+AC67),IF(P67<Parametres!D$28,Parametres!D$28,P67),IF((Y67+AC67)<Parametres!D$28,Parametres!D$28,(Y67+AC67))),2))))) ->  | AF67: =IF(A$2=Parametres!A$78,"",IF(B67=0,"",ROUND(AE67*Parametres!C$66,2))) ->  | AG67: =IF(A$2=Parametres!A$78,"",IF(B67=0,"",ROUND(AE67*Parametres!C$67,2))) ->  | AH67: =IF(A$2=Parametres!A$78,"",IF(B67=0,"",ROUND(AE67*Parametres!C$68,2))) ->  | AI67: =IF(A$2=Parametres!A$78,"",IF(B67=0,"",SUM(ROUND(AE67,2),ROUND(AF67,2),ROUND(AG67,2),ROUND(AH67,2)))) -> 
I68: =IF(F68=0,"",IF(A$2=Parametres!A$77,IF(G68="Oui",IF(H68="Oui",F68-F68*Parametres!C$50-(F68-F68*Parametres!C$50)*Parametres!C$51,IF(H68="Non",F68-F68*Parametres!C$50,"")),IF(G68="Non",IF(H68="Oui",F68-F68*Parametres!C$51,IF(H68="Non",F68,"")))),IF(A$2=Parametres!A$78,IF(G68="Oui",IF(H68="Oui",F68-F68*Parametres!C$50-(F68-F68*Parametres!C$50)*Parametres!C$51,IF(H68="Non",F68-F68*Parametres!E$50,"")),IF(G68="Non",IF(H68="Oui",F68-F68*Parametres!E$51,IF(H68="Non",F68,"")))),IF(A$2=Parametres!A$79,IF(G68="Oui",IF(H68="Oui",F68-F68*Parametres!G$50-(F68-F68*Parametres!G$50)*Parametres!G$51,IF(H68="Non",F68-F68*Parametres!G$50,"")),IF(G68="Non",IF(H68="Oui",F68-F68*Parametres!G$51,IF(H68="Non",F68,"")))),"")))) ->  | J68: =IF(B68=0,"",(I66:I71)) ->  | K68: =IF(C68="","",IF(A$2=Parametres!A$79,Parametres!E$61,IF(A$2=Parametres!A$78,Parametres!E$60,IF(C68<=Parametres!D$56,Parametres!E$56,IF(C68<=Parametres!D$57,Parametres!E$57,IF(C68<=Parametres!D$58,Parametres!E$58,IF(C68>Parametres!D$59,Parametres!E$59,""))))))) ->  | N68: =IF(B68="","",IF(A$2=Parametres!A$79,IF((L68+M68)>0,(J68+L68+M68),J68*(1+Parametres!G$49)),J68+J68*K68)) ->  | O68: =IF(B68=0,"",IF(A$2=Parametres!A$77,Parametres!D$10,IF(A$2=Parametres!A$78,Parametres!F$9,IF(A$2=Parametres!A$79,Parametres!H$9,"")))) ->  | W68: =IF(Q68="gratuit","",IF(B68=0,"",IF(A$2=Parametres!A$77,IF(V68<Parametres!C$21,0,IF(V68<Parametres!D$41,Parametres!E$41,IF(V68<Parametres!C$42,Parametres!E$42,IF(V68<Parametres!C$43,Parametres!E$43,Parametres!E$44)))), IF(A$2=Parametres!A$78,IF(V68<Parametres!E$21,0,IF(V68<Parametres!D$41,Parametres!E$41,IF(V68<Parametres!C$42,Parametres!E$42,IF(V68<Parametres!C$43,Parametres!E$43,Parametres!E$44)))), IF(A$2=Parametres!A$79,IF(V68<Parametres!G$21,0,IF(V68<Parametres!D$41,Parametres!E$41,IF(V68<Parametres!C$42,Parametres!E$42,IF(V68<Parametres!C$43,Parametres!E$43,Parametres!E$44))))))))) ->  | X68: =IF(B68=0,"",IF(A$2=Parametres!A$77,Parametres!D$10,IF(A$2=Parametres!A$78,Parametres!F$10,IF(A$2=Parametres!A$79,Parametres!H$10,"")))) ->  | AB68: =IF(B68=0,"",IF(A$2=Parametres!A$77,Parametres!D$20,IF(A$2=Parametres!A$78,Parametres!F$20,IF(A$2=Parametres!A$79,Parametres!H$20,"")))) ->  | AD68: =IF(A$2=Parametres!A$77,IF(B68=0,"",IF(P68>(Y68+AC68),IF(P68<Parametres!D$28,"FORFAIT MINI","DEPENSES"),IF((Y68+AC68)<Parametres!D$28,"FORFAIT MINI","RECETTES"))),IF(A$2=Parametres!A$78,"",IF(A$2=Parametres!A$79,IF(B68=0,"",IF(T68>0,IF(AND(R68/T68<20,N68<5000),"FORFAIT MINI S.O.",IF(P68>(Y68+AC68),IF(P68<Parametres!D$28,"FORFAIT MINI","DEPENSES"),IF((Y68+AC68)<Parametres!D$28,"FORFAIT MINI","RECETTES"))),IF(N68<5000,"FORFAIT MINI S.O.",IF(P68>(Y68+AC68),IF(P68<Parametres!D$28,"FORFAIT MINI","DEPENSES"),IF((Y68+AC68)<Parametres!D$28,"FORFAIT MINI","RECETTES")))))))) ->  | AE68: =IF(T68>0,IF(AD68="FORFAIT MINI S.O.",INDEX(FSOTab,MATCH(R68/T68,FSOPrix,1)+1,MATCH(N68,FSOBudget,1)),IF(A$2=Parametres!A$78,"",IF(B68=0,"",ROUND(IF(P68>(Y68+AC68),IF(P68<Parametres!D$28,Parametres!D$28,P68),IF((Y68+AC68)<Parametres!D$28,Parametres!D$28,(Y68+AC68))),2)))),IF(AD68="FORFAIT MINI S.O.",INDEX(FSOTab,MATCH(0,FSOPrix,1)+1,MATCH(N68,FSOBudget,1)),IF(A$2=Parametres!A$78,"",IF(B68=0,"",ROUND(IF(P68>(Y68+AC68),IF(P68<Parametres!D$28,Parametres!D$28,P68),IF((Y68+AC68)<Parametres!D$28,Parametres!D$28,(Y68+AC68))),2))))) ->  | AF68: =IF(A$2=Parametres!A$78,"",IF(B68=0,"",ROUND(AE68*Parametres!C$66,2))) ->  | AG68: =IF(A$2=Parametres!A$78,"",IF(B68=0,"",ROUND(AE68*Parametres!C$67,2))) ->  | AH68: =IF(A$2=Parametres!A$78,"",IF(B68=0,"",ROUND(AE68*Parametres!C$68,2))) ->  | AI68: =IF(A$2=Parametres!A$78,"",IF(B68=0,"",SUM(ROUND(AE68,2),ROUND(AF68,2),ROUND(AG68,2),ROUND(AH68,2)))) -> 
I69: =IF(F69=0,"",IF(A$2=Parametres!A$77,IF(G69="Oui",IF(H69="Oui",F69-F69*Parametres!C$50-(F69-F69*Parametres!C$50)*Parametres!C$51,IF(H69="Non",F69-F69*Parametres!C$50,"")),IF(G69="Non",IF(H69="Oui",F69-F69*Parametres!C$51,IF(H69="Non",F69,"")))),IF(A$2=Parametres!A$78,IF(G69="Oui",IF(H69="Oui",F69-F69*Parametres!C$50-(F69-F69*Parametres!C$50)*Parametres!C$51,IF(H69="Non",F69-F69*Parametres!E$50,"")),IF(G69="Non",IF(H69="Oui",F69-F69*Parametres!E$51,IF(H69="Non",F69,"")))),IF(A$2=Parametres!A$79,IF(G69="Oui",IF(H69="Oui",F69-F69*Parametres!G$50-(F69-F69*Parametres!G$50)*Parametres!G$51,IF(H69="Non",F69-F69*Parametres!G$50,"")),IF(G69="Non",IF(H69="Oui",F69-F69*Parametres!G$51,IF(H69="Non",F69,"")))),"")))) ->  | J69: =IF(B69=0,"",SUM(I66:I71)) ->  | K69: =IF(C69="","",IF(A$2=Parametres!A$79,Parametres!E$61,IF(A$2=Parametres!A$78,Parametres!E$60,IF(C69<=Parametres!D$56,Parametres!E$56,IF(C69<=Parametres!D$57,Parametres!E$57,IF(C69<=Parametres!D$58,Parametres!E$58,IF(C69>Parametres!D$59,Parametres!E$59,""))))))) ->  | N69: =IF(B69="","",IF(A$2=Parametres!A$79,IF((L69+M69)>0,(J69+L69+M69),J69*(1+Parametres!G$49)),J69+J69*K69)) ->  | O69: =IF(B69=0,"",IF(A$2=Parametres!A$77,Parametres!D$10,IF(A$2=Parametres!A$78,Parametres!F$9,IF(A$2=Parametres!A$79,Parametres!H$9,"")))) ->  | W69: =IF(Q69="gratuit","",IF(B69=0,"",IF(A$2=Parametres!A$77,IF(V69<Parametres!C$21,0,IF(V69<Parametres!D$41,Parametres!E$41,IF(V69<Parametres!C$42,Parametres!E$42,IF(V69<Parametres!C$43,Parametres!E$43,Parametres!E$44)))), IF(A$2=Parametres!A$78,IF(V69<Parametres!E$21,0,IF(V69<Parametres!D$41,Parametres!E$41,IF(V69<Parametres!C$42,Parametres!E$42,IF(V69<Parametres!C$43,Parametres!E$43,Parametres!E$44)))), IF(A$2=Parametres!A$79,IF(V69<Parametres!G$21,0,IF(V69<Parametres!D$41,Parametres!E$41,IF(V69<Parametres!C$42,Parametres!E$42,IF(V69<Parametres!C$43,Parametres!E$43,Parametres!E$44))))))))) ->  | X69: =IF(B69=0,"",IF(A$2=Parametres!A$77,Parametres!D$10,IF(A$2=Parametres!A$78,Parametres!F$10,IF(A$2=Parametres!A$79,Parametres!H$10,"")))) ->  | AB69: =IF(B69=0,"",IF(A$2=Parametres!A$77,Parametres!D$20,IF(A$2=Parametres!A$78,Parametres!F$20,IF(A$2=Parametres!A$79,Parametres!H$20,"")))) ->  | AD69: =IF(A$2=Parametres!A$77,IF(B69=0,"",IF(P69>(Y69+AC69),IF(P69<Parametres!D$28,"FORFAIT MINI","DEPENSES"),IF((Y69+AC69)<Parametres!D$28,"FORFAIT MINI","RECETTES"))),IF(A$2=Parametres!A$78,"",IF(A$2=Parametres!A$79,IF(B69=0,"",IF(T69>0,IF(AND(R69/T69<20,N69<5000),"FORFAIT MINI S.O.",IF(P69>(Y69+AC69),IF(P69<Parametres!D$28,"FORFAIT MINI","DEPENSES"),IF((Y69+AC69)<Parametres!D$28,"FORFAIT MINI","RECETTES"))),IF(N69<5000,"FORFAIT MINI S.O.",IF(P69>(Y69+AC69),IF(P69<Parametres!D$28,"FORFAIT MINI","DEPENSES"),IF((Y69+AC69)<Parametres!D$28,"FORFAIT MINI","RECETTES")))))))) ->  | AE69: =IF(T69>0,IF(AD69="FORFAIT MINI S.O.",INDEX(FSOTab,MATCH(R69/T69,FSOPrix,1)+1,MATCH(N69,FSOBudget,1)),IF(A$2=Parametres!A$78,"",IF(B69=0,"",ROUND(IF(P69>(Y69+AC69),IF(P69<Parametres!D$28,Parametres!D$28,P69),IF((Y69+AC69)<Parametres!D$28,Parametres!D$28,(Y69+AC69))),2)))),IF(AD69="FORFAIT MINI S.O.",INDEX(FSOTab,MATCH(0,FSOPrix,1)+1,MATCH(N69,FSOBudget,1)),IF(A$2=Parametres!A$78,"",IF(B69=0,"",ROUND(IF(P69>(Y69+AC69),IF(P69<Parametres!D$28,Parametres!D$28,P69),IF((Y69+AC69)<Parametres!D$28,Parametres!D$28,(Y69+AC69))),2))))) ->  | AF69: =IF(A$2=Parametres!A$78,"",IF(B69=0,"",ROUND(AE69*Parametres!C$66,2))) ->  | AG69: =IF(A$2=Parametres!A$78,"",IF(B69=0,"",ROUND(AE69*Parametres!C$67,2))) ->  | AH69: =IF(A$2=Parametres!A$78,"",IF(B69=0,"",ROUND(AE69*Parametres!C$68,2))) ->  | AI69: =IF(A$2=Parametres!A$78,"",IF(B69=0,"",SUM(ROUND(AE69,2),ROUND(AF69,2),ROUND(AG69,2),ROUND(AH69,2)))) -> 
I70: =IF(F70=0,"",IF(A$2=Parametres!A$77,IF(G70="Oui",IF(H70="Oui",F70-F70*Parametres!C$50-(F70-F70*Parametres!C$50)*Parametres!C$51,IF(H70="Non",F70-F70*Parametres!C$50,"")),IF(G70="Non",IF(H70="Oui",F70-F70*Parametres!C$51,IF(H70="Non",F70,"")))),IF(A$2=Parametres!A$78,IF(G70="Oui",IF(H70="Oui",F70-F70*Parametres!C$50-(F70-F70*Parametres!C$50)*Parametres!C$51,IF(H70="Non",F70-F70*Parametres!E$50,"")),IF(G70="Non",IF(H70="Oui",F70-F70*Parametres!E$51,IF(H70="Non",F70,"")))),IF(A$2=Parametres!A$79,IF(G70="Oui",IF(H70="Oui",F70-F70*Parametres!G$50-(F70-F70*Parametres!G$50)*Parametres!G$51,IF(H70="Non",F70-F70*Parametres!G$50,"")),IF(G70="Non",IF(H70="Oui",F70-F70*Parametres!G$51,IF(H70="Non",F70,"")))),"")))) ->  | J70: =IF(B70=0,"",SUM(I66:I71)) ->  | K70: =IF(C70="","",IF(A$2=Parametres!A$79,Parametres!E$61,IF(A$2=Parametres!A$78,Parametres!E$60,IF(C70<=Parametres!D$56,Parametres!E$56,IF(C70<=Parametres!D$57,Parametres!E$57,IF(C70<=Parametres!D$58,Parametres!E$58,IF(C70>Parametres!D$59,Parametres!E$59,""))))))) ->  | N70: =IF(B70="","",IF(A$2=Parametres!A$79,IF((L70+M70)>0,(J70+L70+M70),J70*(1+Parametres!G$49)),J70+J70*K70)) ->  | O70: =IF(B70=0,"",IF(A$2=Parametres!A$77,Parametres!D$10,IF(A$2=Parametres!A$78,Parametres!F$9,IF(A$2=Parametres!A$79,Parametres!H$9,"")))) ->  | W70: =IF(Q70="gratuit","",IF(B70=0,"",IF(A$2=Parametres!A$77,IF(V70<Parametres!C$21,0,IF(V70<Parametres!D$41,Parametres!E$41,IF(V70<Parametres!C$42,Parametres!E$42,IF(V70<Parametres!C$43,Parametres!E$43,Parametres!E$44)))), IF(A$2=Parametres!A$78,IF(V70<Parametres!E$21,0,IF(V70<Parametres!D$41,Parametres!E$41,IF(V70<Parametres!C$42,Parametres!E$42,IF(V70<Parametres!C$43,Parametres!E$43,Parametres!E$44)))), IF(A$2=Parametres!A$79,IF(V70<Parametres!G$21,0,IF(V70<Parametres!D$41,Parametres!E$41,IF(V70<Parametres!C$42,Parametres!E$42,IF(V70<Parametres!C$43,Parametres!E$43,Parametres!E$44))))))))) ->  | X70: =IF(B70=0,"",IF(A$2=Parametres!A$77,Parametres!D$10,IF(A$2=Parametres!A$78,Parametres!F$10,IF(A$2=Parametres!A$79,Parametres!H$10,"")))) ->  | AB70: =IF(B70=0,"",IF(A$2=Parametres!A$77,Parametres!D$20,IF(A$2=Parametres!A$78,Parametres!F$20,IF(A$2=Parametres!A$79,Parametres!H$20,"")))) ->  | AD70: =IF(A$2=Parametres!A$77,IF(B70=0,"",IF(P70>(Y70+AC70),IF(P70<Parametres!D$28,"FORFAIT MINI","DEPENSES"),IF((Y70+AC70)<Parametres!D$28,"FORFAIT MINI","RECETTES"))),IF(A$2=Parametres!A$78,"",IF(A$2=Parametres!A$79,IF(B70=0,"",IF(T70>0,IF(AND(R70/T70<20,N70<5000),"FORFAIT MINI S.O.",IF(P70>(Y70+AC70),IF(P70<Parametres!D$28,"FORFAIT MINI","DEPENSES"),IF((Y70+AC70)<Parametres!D$28,"FORFAIT MINI","RECETTES"))),IF(N70<5000,"FORFAIT MINI S.O.",IF(P70>(Y70+AC70),IF(P70<Parametres!D$28,"FORFAIT MINI","DEPENSES"),IF((Y70+AC70)<Parametres!D$28,"FORFAIT MINI","RECETTES")))))))) ->  | AE70: =IF(T70>0,IF(AD70="FORFAIT MINI S.O.",INDEX(FSOTab,MATCH(R70/T70,FSOPrix,1)+1,MATCH(N70,FSOBudget,1)),IF(A$2=Parametres!A$78,"",IF(B70=0,"",ROUND(IF(P70>(Y70+AC70),IF(P70<Parametres!D$28,Parametres!D$28,P70),IF((Y70+AC70)<Parametres!D$28,Parametres!D$28,(Y70+AC70))),2)))),IF(AD70="FORFAIT MINI S.O.",INDEX(FSOTab,MATCH(0,FSOPrix,1)+1,MATCH(N70,FSOBudget,1)),IF(A$2=Parametres!A$78,"",IF(B70=0,"",ROUND(IF(P70>(Y70+AC70),IF(P70<Parametres!D$28,Parametres!D$28,P70),IF((Y70+AC70)<Parametres!D$28,Parametres!D$28,(Y70+AC70))),2))))) ->  | AF70: =IF(A$2=Parametres!A$78,"",IF(B70=0,"",ROUND(AE70*Parametres!C$66,2))) ->  | AG70: =IF(A$2=Parametres!A$78,"",IF(B70=0,"",ROUND(AE70*Parametres!C$67,2))) ->  | AH70: =IF(A$2=Parametres!A$78,"",IF(B70=0,"",ROUND(AE70*Parametres!C$68,2))) ->  | AI70: =IF(A$2=Parametres!A$78,"",IF(B70=0,"",SUM(ROUND(AE70,2),ROUND(AF70,2),ROUND(AG70,2),ROUND(AH70,2)))) -> 
I71: =IF(F71=0,"",IF(A$2=Parametres!A$77,IF(G71="Oui",IF(H71="Oui",F71-F71*Parametres!C$50-(F71-F71*Parametres!C$50)*Parametres!C$51,IF(H71="Non",F71-F71*Parametres!C$50,"")),IF(G71="Non",IF(H71="Oui",F71-F71*Parametres!C$51,IF(H71="Non",F71,"")))),IF(A$2=Parametres!A$78,IF(G71="Oui",IF(H71="Oui",F71-F71*Parametres!C$50-(F71-F71*Parametres!C$50)*Parametres!C$51,IF(H71="Non",F71-F71*Parametres!E$50,"")),IF(G71="Non",IF(H71="Oui",F71-F71*Parametres!E$51,IF(H71="Non",F71,"")))),IF(A$2=Parametres!A$79,IF(G71="Oui",IF(H71="Oui",F71-F71*Parametres!G$50-(F71-F71*Parametres!G$50)*Parametres!G$51,IF(H71="Non",F71-F71*Parametres!G$50,"")),IF(G71="Non",IF(H71="Oui",F71-F71*Parametres!G$51,IF(H71="Non",F71,"")))),"")))) ->  | J71: =IF(B71=0,"",SUM(I66:I71)) ->  | K71: =IF(C71="","",IF(A$2=Parametres!A$79,Parametres!E$61,IF(A$2=Parametres!A$78,Parametres!E$60,IF(C71<=Parametres!D$56,Parametres!E$56,IF(C71<=Parametres!D$57,Parametres!E$57,IF(C71<=Parametres!D$58,Parametres!E$58,IF(C71>Parametres!D$59,Parametres!E$59,""))))))) ->  | N71: =IF(B71="","",IF(A$2=Parametres!A$79,IF((L71+M71)>0,(J71+L71+M71),J71*(1+Parametres!G$49)),J71+J71*K71)) ->  | O71: =IF(B71=0,"",IF(A$2=Parametres!A$77,Parametres!D$10,IF(A$2=Parametres!A$78,Parametres!F$9,IF(A$2=Parametres!A$79,Parametres!H$9,"")))) ->  | W71: =IF(Q71="gratuit","",IF(B71=0,"",IF(A$2=Parametres!A$77,IF(V71<Parametres!C$21,0,IF(V71<Parametres!D$41,Parametres!E$41,IF(V71<Parametres!C$42,Parametres!E$42,IF(V71<Parametres!C$43,Parametres!E$43,Parametres!E$44)))), IF(A$2=Parametres!A$78,IF(V71<Parametres!E$21,0,IF(V71<Parametres!D$41,Parametres!E$41,IF(V71<Parametres!C$42,Parametres!E$42,IF(V71<Parametres!C$43,Parametres!E$43,Parametres!E$44)))), IF(A$2=Parametres!A$79,IF(V71<Parametres!G$21,0,IF(V71<Parametres!D$41,Parametres!E$41,IF(V71<Parametres!C$42,Parametres!E$42,IF(V71<Parametres!C$43,Parametres!E$43,Parametres!E$44))))))))) ->  | X71: =IF(B71=0,"",IF(A$2=Parametres!A$77,Parametres!D$10,IF(A$2=Parametres!A$78,Parametres!F$10,IF(A$2=Parametres!A$79,Parametres!H$10,"")))) ->  | AB71: =IF(B71=0,"",IF(A$2=Parametres!A$77,Parametres!D$20,IF(A$2=Parametres!A$78,Parametres!F$20,IF(A$2=Parametres!A$79,Parametres!H$20,"")))) ->  | AD71: =IF(A$2=Parametres!A$77,IF(B71=0,"",IF(P71>(Y71+AC71),IF(P71<Parametres!D$28,"FORFAIT MINI","DEPENSES"),IF((Y71+AC71)<Parametres!D$28,"FORFAIT MINI","RECETTES"))),IF(A$2=Parametres!A$78,"",IF(A$2=Parametres!A$79,IF(B71=0,"",IF(T71>0,IF(AND(R71/T71<20,N71<5000),"FORFAIT MINI S.O.",IF(P71>(Y71+AC71),IF(P71<Parametres!D$28,"FORFAIT MINI","DEPENSES"),IF((Y71+AC71)<Parametres!D$28,"FORFAIT MINI","RECETTES"))),IF(N71<5000,"FORFAIT MINI S.O.",IF(P71>(Y71+AC71),IF(P71<Parametres!D$28,"FORFAIT MINI","DEPENSES"),IF((Y71+AC71)<Parametres!D$28,"FORFAIT MINI","RECETTES")))))))) ->  | AE71: =IF(T71>0,IF(AD71="FORFAIT MINI S.O.",INDEX(FSOTab,MATCH(R71/T71,FSOPrix,1)+1,MATCH(N71,FSOBudget,1)),IF(A$2=Parametres!A$78,"",IF(B71=0,"",ROUND(IF(P71>(Y71+AC71),IF(P71<Parametres!D$28,Parametres!D$28,P71),IF((Y71+AC71)<Parametres!D$28,Parametres!D$28,(Y71+AC71))),2)))),IF(AD71="FORFAIT MINI S.O.",INDEX(FSOTab,MATCH(0,FSOPrix,1)+1,MATCH(N71,FSOBudget,1)),IF(A$2=Parametres!A$78,"",IF(B71=0,"",ROUND(IF(P71>(Y71+AC71),IF(P71<Parametres!D$28,Parametres!D$28,P71),IF((Y71+AC71)<Parametres!D$28,Parametres!D$28,(Y71+AC71))),2))))) ->  | AF71: =IF(A$2=Parametres!A$78,"",IF(B71=0,"",ROUND(AE71*Parametres!C$66,2))) ->  | AG71: =IF(A$2=Parametres!A$78,"",IF(B71=0,"",ROUND(AE71*Parametres!C$67,2))) ->  | AH71: =IF(A$2=Parametres!A$78,"",IF(B71=0,"",ROUND(AE71*Parametres!C$68,2))) ->  | AI71: =IF(A$2=Parametres!A$78,"",IF(B71=0,"",SUM(ROUND(AE71,2),ROUND(AF71,2),ROUND(AG71,2),ROUND(AH71,2)))) -> 
I73: =IF(F73=0,"",IF(A$2=Parametres!A$77,IF(G73="Oui",IF(H73="Oui",F73-F73*Parametres!C$50-(F73-F73*Parametres!C$50)*Parametres!C$51,IF(H73="Non",F73-F73*Parametres!C$50,"")),IF(G73="Non",IF(H73="Oui",F73-F73*Parametres!C$51,IF(H73="Non",F73,"")))),IF(A$2=Parametres!A$78,IF(G73="Oui",IF(H73="Oui",F73-F73*Parametres!C$50-(F73-F73*Parametres!C$50)*Parametres!C$51,IF(H73="Non",F73-F73*Parametres!E$50,"")),IF(G73="Non",IF(H73="Oui",F73-F73*Parametres!E$51,IF(H73="Non",F73,"")))),IF(A$2=Parametres!A$79,IF(G73="Oui",IF(H73="Oui",F73-F73*Parametres!G$50-(F73-F73*Parametres!G$50)*Parametres!G$51,IF(H73="Non",F73-F73*Parametres!G$50,"")),IF(G73="Non",IF(H73="Oui",F73-F73*Parametres!G$51,IF(H73="Non",F73,"")))),"")))) ->  | J73: =IF(B73=0,"",SUM(I73:I78)) ->  | K73: =IF(C73="","",IF(A$2=Parametres!A$79,Parametres!E$61,IF(A$2=Parametres!A$78,Parametres!E$60,IF(C73<=Parametres!D$56,Parametres!E$56,IF(C73<=Parametres!D$57,Parametres!E$57,IF(C73<=Parametres!D$58,Parametres!E$58,IF(C73>Parametres!D$59,Parametres!E$59,""))))))) ->  | N73: =IF(B73="","",IF(A$2=Parametres!A$79,IF((L73+M73)>0,(J73+L73+M73),J73*(1+Parametres!G$49)),J73+J73*K73)) ->  | O73: =IF(B73=0,"",IF(A$2=Parametres!A$77,Parametres!D$10,IF(A$2=Parametres!A$78,Parametres!F$10,IF(A$2=Parametres!A$79,Parametres!H$10,"")))) ->  | P73: =IF(B73=0,"",O73*N73) ->  | Q73: =IF(R73>0,"payant",IF(B73=0,"","gratuit")) ->  | S73: =IF(B73=0,"",T73+U73) ->  | V73: =IF(Q73="gratuit","",IF(S73=0,0,IF(S73="","",U73/T73))) ->  | W73: =IF(Q73="gratuit","",IF(B73=0,"",IF(A$2=Parametres!A$77,IF(V73<Parametres!C$21,0,IF(V73<Parametres!D$41,Parametres!E$41,IF(V73<Parametres!C$42,Parametres!E$42,IF(V73<Parametres!C$43,Parametres!E$43,Parametres!E$44)))), IF(A$2=Parametres!A$78,IF(V73<Parametres!E$21,0,IF(V73<Parametres!D$41,Parametres!E$41,IF(V73<Parametres!C$42,Parametres!E$42,IF(V73<Parametres!C$43,Parametres!E$43,Parametres!E$44)))), IF(A$2=Parametres!A$79,IF(V73<Parametres!G$21,0,IF(V73<Parametres!D$41,Parametres!E$41,IF(V73<Parametres!C$42,Parametres!E$42,IF(V73<Parametres!C$43,Parametres!E$43,Parametres!E$44))))))))) ->  | X73: =IF(B73=0,"",IF(A$2=Parametres!A$77,Parametres!D$10,IF(A$2=Parametres!A$78,Parametres!F$10,IF(A$2=Parametres!A$79,Parametres!H$10,"")))) ->  | Y73: =IF(B73=0,"",IF(Q73="gratuit",R73*X73,R73*X73+(R73*X73)*W73)) ->  | AB73: =IF(B73=0,"",IF(A$2=Parametres!A$77,Parametres!D$20,IF(A$2=Parametres!A$78,Parametres!F$20,IF(A$2=Parametres!A$79,Parametres!H$20,"")))) ->  | AC73: =IF(B73=0,"",(Z73+AA73)*AB73) ->  | AD73: =IF(A$2=Parametres!A$77,IF(B73=0,"",IF(P73>(Y73+AC73),IF(P73<Parametres!D$28,"FORFAIT MINI","DEPENSES"),IF((Y73+AC73)<Parametres!D$28,"FORFAIT MINI","RECETTES"))),IF(A$2=Parametres!A$78,"",IF(A$2=Parametres!A$79,IF(B73=0,"",IF(T73>0,IF(AND(R73/T73<20,N73<5000),"FORFAIT MINI S.O.",IF(P73>(Y73+AC73),IF(P73<Parametres!D$28,"FORFAIT MINI","DEPENSES"),IF((Y73+AC73)<Parametres!D$28,"FORFAIT MINI","RECETTES"))),IF(N73<5000,"FORFAIT MINI S.O.",IF(P73>(Y73+AC73),IF(P73<Parametres!D$28,"FORFAIT MINI","DEPENSES"),IF((Y73+AC73)<Parametres!D$28,"FORFAIT MINI","RECETTES")))))))) ->  | AE73: =IF(T73>0,IF(AD73="FORFAIT MINI S.O.",INDEX(FSOTab,MATCH(R73/T73,FSOPrix,1)+1,MATCH(N73,FSOBudget,1)),IF(A$2=Parametres!A$78,"",IF(B73=0,"",ROUND(IF(P73>(Y73+AC73),IF(P73<Parametres!D$28,Parametres!D$28,P73),IF((Y73+AC73)<Parametres!D$28,Parametres!D$28,(Y73+AC73))),2)))),IF(AD73="FORFAIT MINI S.O.",INDEX(FSOTab,MATCH(0,FSOPrix,1)+1,MATCH(N73,FSOBudget,1)),IF(A$2=Parametres!A$78,"",IF(B73=0,"",ROUND(IF(P73>(Y73+AC73),IF(P73<Parametres!D$28,Parametres!D$28,P73),IF((Y73+AC73)<Parametres!D$28,Parametres!D$28,(Y73+AC73))),2))))) ->  | AF73: =IF(A$2=Parametres!A$78,"",IF(B73=0,"",ROUND(AE73*Parametres!C$66,2))) ->  | AG73: =IF(A$2=Parametres!A$78,"",IF(B73=0,"",ROUND(AE73*Parametres!C$67,2))) ->  | AH73: =IF(A$2=Parametres!A$78,"",IF(B73=0,"",ROUND(AE73*Parametres!C$68,2))) ->  | AI73: =IF(A$2=Parametres!A$78,"",IF(B73=0,"",SUM(ROUND(AE73,2),ROUND(AF73,2),ROUND(AG73,2),ROUND(AH73,2)))) -> 
I74: =IF(F74=0,"",IF(A$2=Parametres!A$77,IF(G74="Oui",IF(H74="Oui",F74-F74*Parametres!C$50-(F74-F74*Parametres!C$50)*Parametres!C$51,IF(H74="Non",F74-F74*Parametres!C$50,"")),IF(G74="Non",IF(H74="Oui",F74-F74*Parametres!C$51,IF(H74="Non",F74,"")))),IF(A$2=Parametres!A$78,IF(G74="Oui",IF(H74="Oui",F74-F74*Parametres!C$50-(F74-F74*Parametres!C$50)*Parametres!C$51,IF(H74="Non",F74-F74*Parametres!E$50,"")),IF(G74="Non",IF(H74="Oui",F74-F74*Parametres!E$51,IF(H74="Non",F74,"")))),IF(A$2=Parametres!A$79,IF(G74="Oui",IF(H74="Oui",F74-F74*Parametres!G$50-(F74-F74*Parametres!G$50)*Parametres!G$51,IF(H74="Non",F74-F74*Parametres!G$50,"")),IF(G74="Non",IF(H74="Oui",F74-F74*Parametres!G$51,IF(H74="Non",F74,"")))),"")))) ->  | J74: =IF(B74=0,"",SUM(I73:I78)) ->  | K74: =IF(C74="","",IF(A$2=Parametres!A$79,Parametres!E$61,IF(A$2=Parametres!A$78,Parametres!E$60,IF(C74<=Parametres!D$56,Parametres!E$56,IF(C74<=Parametres!D$57,Parametres!E$57,IF(C74<=Parametres!D$58,Parametres!E$58,IF(C74>Parametres!D$59,Parametres!E$59,""))))))) ->  | N74: =IF(B74="","",IF(A$2=Parametres!A$79,IF((L74+M74)>0,(J74+L74+M74),J74*(1+Parametres!G$49)),J74+J74*K74)) ->  | O74: =IF(B74=0,"",IF(A$2=Parametres!A$77,Parametres!D$10,IF(A$2=Parametres!A$78,Parametres!F$9,IF(A$2=Parametres!A$79,Parametres!H$9,"")))) ->  | V74: =IF(Q74="gratuit","",IF(S74=0,0,IF(S74="","",U74/T74))) ->  | W74: =IF(Q74="gratuit","",IF(B74=0,"",IF(A$2=Parametres!A$77,IF(V74<Parametres!C$21,0,IF(V74<Parametres!D$41,Parametres!E$41,IF(V74<Parametres!C$42,Parametres!E$42,IF(V74<Parametres!C$43,Parametres!E$43,Parametres!E$44)))), IF(A$2=Parametres!A$78,IF(V74<Parametres!E$21,0,IF(V74<Parametres!D$41,Parametres!E$41,IF(V74<Parametres!C$42,Parametres!E$42,IF(V74<Parametres!C$43,Parametres!E$43,Parametres!E$44)))), IF(A$2=Parametres!A$79,IF(V74<Parametres!G$21,0,IF(V74<Parametres!D$41,Parametres!E$41,IF(V74<Parametres!C$42,Parametres!E$42,IF(V74<Parametres!C$43,Parametres!E$43,Parametres!E$44))))))))) ->  | X74: =IF(B74=0,"",IF(A$2=Parametres!A$77,Parametres!D$10,IF(A$2=Parametres!A$78,Parametres!F$10,IF(A$2=Parametres!A$79,Parametres!H$10,"")))) ->  | AB74: =IF(B74=0,"",IF(A$2=Parametres!A$77,Parametres!D$20,IF(A$2=Parametres!A$78,Parametres!F$20,IF(A$2=Parametres!A$79,Parametres!H$20,"")))) ->  | AD74: =IF(A$2=Parametres!A$77,IF(B74=0,"",IF(P74>(Y74+AC74),IF(P74<Parametres!D$28,"FORFAIT MINI","DEPENSES"),IF((Y74+AC74)<Parametres!D$28,"FORFAIT MINI","RECETTES"))),IF(A$2=Parametres!A$78,"",IF(A$2=Parametres!A$79,IF(B74=0,"",IF(T74>0,IF(AND(R74/T74<20,N74<5000),"FORFAIT MINI S.O.",IF(P74>(Y74+AC74),IF(P74<Parametres!D$28,"FORFAIT MINI","DEPENSES"),IF((Y74+AC74)<Parametres!D$28,"FORFAIT MINI","RECETTES"))),IF(N74<5000,"FORFAIT MINI S.O.",IF(P74>(Y74+AC74),IF(P74<Parametres!D$28,"FORFAIT MINI","DEPENSES"),IF((Y74+AC74)<Parametres!D$28,"FORFAIT MINI","RECETTES")))))))) ->  | AE74: =IF(T74>0,IF(AD74="FORFAIT MINI S.O.",INDEX(FSOTab,MATCH(R74/T74,FSOPrix,1)+1,MATCH(N74,FSOBudget,1)),IF(A$2=Parametres!A$78,"",IF(B74=0,"",ROUND(IF(P74>(Y74+AC74),IF(P74<Parametres!D$28,Parametres!D$28,P74),IF((Y74+AC74)<Parametres!D$28,Parametres!D$28,(Y74+AC74))),2)))),IF(AD74="FORFAIT MINI S.O.",INDEX(FSOTab,MATCH(0,FSOPrix,1)+1,MATCH(N74,FSOBudget,1)),IF(A$2=Parametres!A$78,"",IF(B74=0,"",ROUND(IF(P74>(Y74+AC74),IF(P74<Parametres!D$28,Parametres!D$28,P74),IF((Y74+AC74)<Parametres!D$28,Parametres!D$28,(Y74+AC74))),2))))) ->  | AF74: =IF(A$2=Parametres!A$78,"",IF(B74=0,"",ROUND(AE74*Parametres!C$66,2))) ->  | AG74: =IF(A$2=Parametres!A$78,"",IF(B74=0,"",ROUND(AE74*Parametres!C$67,2))) ->  | AH74: =IF(A$2=Parametres!A$78,"",IF(B74=0,"",ROUND(AE74*Parametres!C$68,2))) ->  | AI74: =IF(A$2=Parametres!A$78,"",IF(B74=0,"",SUM(ROUND(AE74,2),ROUND(AF74,2),ROUND(AG74,2),ROUND(AH74,2)))) -> 
I75: =IF(F75=0,"",IF(A$2=Parametres!A$77,IF(G75="Oui",IF(H75="Oui",F75-F75*Parametres!C$50-(F75-F75*Parametres!C$50)*Parametres!C$51,IF(H75="Non",F75-F75*Parametres!C$50,"")),IF(G75="Non",IF(H75="Oui",F75-F75*Parametres!C$51,IF(H75="Non",F75,"")))),IF(A$2=Parametres!A$78,IF(G75="Oui",IF(H75="Oui",F75-F75*Parametres!C$50-(F75-F75*Parametres!C$50)*Parametres!C$51,IF(H75="Non",F75-F75*Parametres!E$50,"")),IF(G75="Non",IF(H75="Oui",F75-F75*Parametres!E$51,IF(H75="Non",F75,"")))),IF(A$2=Parametres!A$79,IF(G75="Oui",IF(H75="Oui",F75-F75*Parametres!G$50-(F75-F75*Parametres!G$50)*Parametres!G$51,IF(H75="Non",F75-F75*Parametres!G$50,"")),IF(G75="Non",IF(H75="Oui",F75-F75*Parametres!G$51,IF(H75="Non",F75,"")))),"")))) ->  | J75: =IF(B75=0,"",(I73:I78)) ->  | K75: =IF(C75="","",IF(A$2=Parametres!A$79,Parametres!E$61,IF(A$2=Parametres!A$78,Parametres!E$60,IF(C75<=Parametres!D$56,Parametres!E$56,IF(C75<=Parametres!D$57,Parametres!E$57,IF(C75<=Parametres!D$58,Parametres!E$58,IF(C75>Parametres!D$59,Parametres!E$59,""))))))) ->  | N75: =IF(B75="","",IF(A$2=Parametres!A$79,IF((L75+M75)>0,(J75+L75+M75),J75*(1+Parametres!G$49)),J75+J75*K75)) ->  | O75: =IF(B75=0,"",IF(A$2=Parametres!A$77,Parametres!D$10,IF(A$2=Parametres!A$78,Parametres!F$9,IF(A$2=Parametres!A$79,Parametres!H$9,"")))) ->  | W75: =IF(Q75="gratuit","",IF(B75=0,"",IF(A$2=Parametres!A$77,IF(V75<Parametres!C$21,0,IF(V75<Parametres!D$41,Parametres!E$41,IF(V75<Parametres!C$42,Parametres!E$42,IF(V75<Parametres!C$43,Parametres!E$43,Parametres!E$44)))), IF(A$2=Parametres!A$78,IF(V75<Parametres!E$21,0,IF(V75<Parametres!D$41,Parametres!E$41,IF(V75<Parametres!C$42,Parametres!E$42,IF(V75<Parametres!C$43,Parametres!E$43,Parametres!E$44)))), IF(A$2=Parametres!A$79,IF(V75<Parametres!G$21,0,IF(V75<Parametres!D$41,Parametres!E$41,IF(V75<Parametres!C$42,Parametres!E$42,IF(V75<Parametres!C$43,Parametres!E$43,Parametres!E$44))))))))) ->  | X75: =IF(B75=0,"",IF(A$2=Parametres!A$77,Parametres!D$10,IF(A$2=Parametres!A$78,Parametres!F$10,IF(A$2=Parametres!A$79,Parametres!H$10,"")))) ->  | AB75: =IF(B75=0,"",IF(A$2=Parametres!A$77,Parametres!D$20,IF(A$2=Parametres!A$78,Parametres!F$20,IF(A$2=Parametres!A$79,Parametres!H$20,"")))) ->  | AD75: =IF(A$2=Parametres!A$77,IF(B75=0,"",IF(P75>(Y75+AC75),IF(P75<Parametres!D$28,"FORFAIT MINI","DEPENSES"),IF((Y75+AC75)<Parametres!D$28,"FORFAIT MINI","RECETTES"))),IF(A$2=Parametres!A$78,"",IF(A$2=Parametres!A$79,IF(B75=0,"",IF(T75>0,IF(AND(R75/T75<20,N75<5000),"FORFAIT MINI S.O.",IF(P75>(Y75+AC75),IF(P75<Parametres!D$28,"FORFAIT MINI","DEPENSES"),IF((Y75+AC75)<Parametres!D$28,"FORFAIT MINI","RECETTES"))),IF(N75<5000,"FORFAIT MINI S.O.",IF(P75>(Y75+AC75),IF(P75<Parametres!D$28,"FORFAIT MINI","DEPENSES"),IF((Y75+AC75)<Parametres!D$28,"FORFAIT MINI","RECETTES")))))))) ->  | AE75: =IF(T75>0,IF(AD75="FORFAIT MINI S.O.",INDEX(FSOTab,MATCH(R75/T75,FSOPrix,1)+1,MATCH(N75,FSOBudget,1)),IF(A$2=Parametres!A$78,"",IF(B75=0,"",ROUND(IF(P75>(Y75+AC75),IF(P75<Parametres!D$28,Parametres!D$28,P75),IF((Y75+AC75)<Parametres!D$28,Parametres!D$28,(Y75+AC75))),2)))),IF(AD75="FORFAIT MINI S.O.",INDEX(FSOTab,MATCH(0,FSOPrix,1)+1,MATCH(N75,FSOBudget,1)),IF(A$2=Parametres!A$78,"",IF(B75=0,"",ROUND(IF(P75>(Y75+AC75),IF(P75<Parametres!D$28,Parametres!D$28,P75),IF((Y75+AC75)<Parametres!D$28,Parametres!D$28,(Y75+AC75))),2))))) ->  | AF75: =IF(A$2=Parametres!A$78,"",IF(B75=0,"",ROUND(AE75*Parametres!C$66,2))) ->  | AG75: =IF(A$2=Parametres!A$78,"",IF(B75=0,"",ROUND(AE75*Parametres!C$67,2))) ->  | AH75: =IF(A$2=Parametres!A$78,"",IF(B75=0,"",ROUND(AE75*Parametres!C$68,2))) ->  | AI75: =IF(A$2=Parametres!A$78,"",IF(B75=0,"",SUM(ROUND(AE75,2),ROUND(AF75,2),ROUND(AG75,2),ROUND(AH75,2)))) -> 
I76: =IF(F76=0,"",IF(A$2=Parametres!A$77,IF(G76="Oui",IF(H76="Oui",F76-F76*Parametres!C$50-(F76-F76*Parametres!C$50)*Parametres!C$51,IF(H76="Non",F76-F76*Parametres!C$50,"")),IF(G76="Non",IF(H76="Oui",F76-F76*Parametres!C$51,IF(H76="Non",F76,"")))),IF(A$2=Parametres!A$78,IF(G76="Oui",IF(H76="Oui",F76-F76*Parametres!C$50-(F76-F76*Parametres!C$50)*Parametres!C$51,IF(H76="Non",F76-F76*Parametres!E$50,"")),IF(G76="Non",IF(H76="Oui",F76-F76*Parametres!E$51,IF(H76="Non",F76,"")))),IF(A$2=Parametres!A$79,IF(G76="Oui",IF(H76="Oui",F76-F76*Parametres!G$50-(F76-F76*Parametres!G$50)*Parametres!G$51,IF(H76="Non",F76-F76*Parametres!G$50,"")),IF(G76="Non",IF(H76="Oui",F76-F76*Parametres!G$51,IF(H76="Non",F76,"")))),"")))) ->  | J76: =IF(B76=0,"",SUM(I73:I78)) ->  | K76: =IF(C76="","",IF(A$2=Parametres!A$79,Parametres!E$61,IF(A$2=Parametres!A$78,Parametres!E$60,IF(C76<=Parametres!D$56,Parametres!E$56,IF(C76<=Parametres!D$57,Parametres!E$57,IF(C76<=Parametres!D$58,Parametres!E$58,IF(C76>Parametres!D$59,Parametres!E$59,""))))))) ->  | N76: =IF(B76="","",IF(A$2=Parametres!A$79,IF((L76+M76)>0,(J76+L76+M76),J76*(1+Parametres!G$49)),J76+J76*K76)) ->  | O76: =IF(B76=0,"",IF(A$2=Parametres!A$77,Parametres!D$10,IF(A$2=Parametres!A$78,Parametres!F$9,IF(A$2=Parametres!A$79,Parametres!H$9,"")))) ->  | W76: =IF(Q76="gratuit","",IF(B76=0,"",IF(A$2=Parametres!A$77,IF(V76<Parametres!C$21,0,IF(V76<Parametres!D$41,Parametres!E$41,IF(V76<Parametres!C$42,Parametres!E$42,IF(V76<Parametres!C$43,Parametres!E$43,Parametres!E$44)))), IF(A$2=Parametres!A$78,IF(V76<Parametres!E$21,0,IF(V76<Parametres!D$41,Parametres!E$41,IF(V76<Parametres!C$42,Parametres!E$42,IF(V76<Parametres!C$43,Parametres!E$43,Parametres!E$44)))), IF(A$2=Parametres!A$79,IF(V76<Parametres!G$21,0,IF(V76<Parametres!D$41,Parametres!E$41,IF(V76<Parametres!C$42,Parametres!E$42,IF(V76<Parametres!C$43,Parametres!E$43,Parametres!E$44))))))))) ->  | X76: =IF(B76=0,"",IF(A$2=Parametres!A$77,Parametres!D$10,IF(A$2=Parametres!A$78,Parametres!F$10,IF(A$2=Parametres!A$79,Parametres!H$10,"")))) ->  | AB76: =IF(B76=0,"",IF(A$2=Parametres!A$77,Parametres!D$20,IF(A$2=Parametres!A$78,Parametres!F$20,IF(A$2=Parametres!A$79,Parametres!H$20,"")))) ->  | AD76: =IF(A$2=Parametres!A$77,IF(B76=0,"",IF(P76>(Y76+AC76),IF(P76<Parametres!D$28,"FORFAIT MINI","DEPENSES"),IF((Y76+AC76)<Parametres!D$28,"FORFAIT MINI","RECETTES"))),IF(A$2=Parametres!A$78,"",IF(A$2=Parametres!A$79,IF(B76=0,"",IF(T76>0,IF(AND(R76/T76<20,N76<5000),"FORFAIT MINI S.O.",IF(P76>(Y76+AC76),IF(P76<Parametres!D$28,"FORFAIT MINI","DEPENSES"),IF((Y76+AC76)<Parametres!D$28,"FORFAIT MINI","RECETTES"))),IF(N76<5000,"FORFAIT MINI S.O.",IF(P76>(Y76+AC76),IF(P76<Parametres!D$28,"FORFAIT MINI","DEPENSES"),IF((Y76+AC76)<Parametres!D$28,"FORFAIT MINI","RECETTES")))))))) ->  | AE76: =IF(T76>0,IF(AD76="FORFAIT MINI S.O.",INDEX(FSOTab,MATCH(R76/T76,FSOPrix,1)+1,MATCH(N76,FSOBudget,1)),IF(A$2=Parametres!A$78,"",IF(B76=0,"",ROUND(IF(P76>(Y76+AC76),IF(P76<Parametres!D$28,Parametres!D$28,P76),IF((Y76+AC76)<Parametres!D$28,Parametres!D$28,(Y76+AC76))),2)))),IF(AD76="FORFAIT MINI S.O.",INDEX(FSOTab,MATCH(0,FSOPrix,1)+1,MATCH(N76,FSOBudget,1)),IF(A$2=Parametres!A$78,"",IF(B76=0,"",ROUND(IF(P76>(Y76+AC76),IF(P76<Parametres!D$28,Parametres!D$28,P76),IF((Y76+AC76)<Parametres!D$28,Parametres!D$28,(Y76+AC76))),2))))) ->  | AF76: =IF(A$2=Parametres!A$78,"",IF(B76=0,"",ROUND(AE76*Parametres!C$66,2))) ->  | AG76: =IF(A$2=Parametres!A$78,"",IF(B76=0,"",ROUND(AE76*Parametres!C$67,2))) ->  | AH76: =IF(A$2=Parametres!A$78,"",IF(B76=0,"",ROUND(AE76*Parametres!C$68,2))) ->  | AI76: =IF(A$2=Parametres!A$78,"",IF(B76=0,"",SUM(ROUND(AE76,2),ROUND(AF76,2),ROUND(AG76,2),ROUND(AH76,2)))) -> 
I77: =IF(F77=0,"",IF(A$2=Parametres!A$77,IF(G77="Oui",IF(H77="Oui",F77-F77*Parametres!C$50-(F77-F77*Parametres!C$50)*Parametres!C$51,IF(H77="Non",F77-F77*Parametres!C$50,"")),IF(G77="Non",IF(H77="Oui",F77-F77*Parametres!C$51,IF(H77="Non",F77,"")))),IF(A$2=Parametres!A$78,IF(G77="Oui",IF(H77="Oui",F77-F77*Parametres!C$50-(F77-F77*Parametres!C$50)*Parametres!C$51,IF(H77="Non",F77-F77*Parametres!E$50,"")),IF(G77="Non",IF(H77="Oui",F77-F77*Parametres!E$51,IF(H77="Non",F77,"")))),IF(A$2=Parametres!A$79,IF(G77="Oui",IF(H77="Oui",F77-F77*Parametres!G$50-(F77-F77*Parametres!G$50)*Parametres!G$51,IF(H77="Non",F77-F77*Parametres!G$50,"")),IF(G77="Non",IF(H77="Oui",F77-F77*Parametres!G$51,IF(H77="Non",F77,"")))),"")))) ->  | J77: =IF(B77=0,"",SUM(I73:I78)) ->  | K77: =IF(C77="","",IF(A$2=Parametres!A$79,Parametres!E$61,IF(A$2=Parametres!A$78,Parametres!E$60,IF(C77<=Parametres!D$56,Parametres!E$56,IF(C77<=Parametres!D$57,Parametres!E$57,IF(C77<=Parametres!D$58,Parametres!E$58,IF(C77>Parametres!D$59,Parametres!E$59,""))))))) ->  | N77: =IF(B77="","",IF(A$2=Parametres!A$79,IF((L77+M77)>0,(J77+L77+M77),J77*(1+Parametres!G$49)),J77+J77*K77)) ->  | O77: =IF(B77=0,"",IF(A$2=Parametres!A$77,Parametres!D$10,IF(A$2=Parametres!A$78,Parametres!F$9,IF(A$2=Parametres!A$79,Parametres!H$9,"")))) ->  | W77: =IF(Q77="gratuit","",IF(B77=0,"",IF(A$2=Parametres!A$77,IF(V77<Parametres!C$21,0,IF(V77<Parametres!D$41,Parametres!E$41,IF(V77<Parametres!C$42,Parametres!E$42,IF(V77<Parametres!C$43,Parametres!E$43,Parametres!E$44)))), IF(A$2=Parametres!A$78,IF(V77<Parametres!E$21,0,IF(V77<Parametres!D$41,Parametres!E$41,IF(V77<Parametres!C$42,Parametres!E$42,IF(V77<Parametres!C$43,Parametres!E$43,Parametres!E$44)))), IF(A$2=Parametres!A$79,IF(V77<Parametres!G$21,0,IF(V77<Parametres!D$41,Parametres!E$41,IF(V77<Parametres!C$42,Parametres!E$42,IF(V77<Parametres!C$43,Parametres!E$43,Parametres!E$44))))))))) ->  | X77: =IF(B77=0,"",IF(A$2=Parametres!A$77,Parametres!D$10,IF(A$2=Parametres!A$78,Parametres!F$10,IF(A$2=Parametres!A$79,Parametres!H$10,"")))) ->  | AB77: =IF(B77=0,"",IF(A$2=Parametres!A$77,Parametres!D$20,IF(A$2=Parametres!A$78,Parametres!F$20,IF(A$2=Parametres!A$79,Parametres!H$20,"")))) ->  | AD77: =IF(A$2=Parametres!A$77,IF(B77=0,"",IF(P77>(Y77+AC77),IF(P77<Parametres!D$28,"FORFAIT MINI","DEPENSES"),IF((Y77+AC77)<Parametres!D$28,"FORFAIT MINI","RECETTES"))),IF(A$2=Parametres!A$78,"",IF(A$2=Parametres!A$79,IF(B77=0,"",IF(T77>0,IF(AND(R77/T77<20,N77<5000),"FORFAIT MINI S.O.",IF(P77>(Y77+AC77),IF(P77<Parametres!D$28,"FORFAIT MINI","DEPENSES"),IF((Y77+AC77)<Parametres!D$28,"FORFAIT MINI","RECETTES"))),IF(N77<5000,"FORFAIT MINI S.O.",IF(P77>(Y77+AC77),IF(P77<Parametres!D$28,"FORFAIT MINI","DEPENSES"),IF((Y77+AC77)<Parametres!D$28,"FORFAIT MINI","RECETTES")))))))) ->  | AE77: =IF(T77>0,IF(AD77="FORFAIT MINI S.O.",INDEX(FSOTab,MATCH(R77/T77,FSOPrix,1)+1,MATCH(N77,FSOBudget,1)),IF(A$2=Parametres!A$78,"",IF(B77=0,"",ROUND(IF(P77>(Y77+AC77),IF(P77<Parametres!D$28,Parametres!D$28,P77),IF((Y77+AC77)<Parametres!D$28,Parametres!D$28,(Y77+AC77))),2)))),IF(AD77="FORFAIT MINI S.O.",INDEX(FSOTab,MATCH(0,FSOPrix,1)+1,MATCH(N77,FSOBudget,1)),IF(A$2=Parametres!A$78,"",IF(B77=0,"",ROUND(IF(P77>(Y77+AC77),IF(P77<Parametres!D$28,Parametres!D$28,P77),IF((Y77+AC77)<Parametres!D$28,Parametres!D$28,(Y77+AC77))),2))))) ->  | AF77: =IF(A$2=Parametres!A$78,"",IF(B77=0,"",ROUND(AE77*Parametres!C$66,2))) ->  | AG77: =IF(A$2=Parametres!A$78,"",IF(B77=0,"",ROUND(AE77*Parametres!C$67,2))) ->  | AH77: =IF(A$2=Parametres!A$78,"",IF(B77=0,"",ROUND(AE77*Parametres!C$68,2))) ->  | AI77: =IF(A$2=Parametres!A$78,"",IF(B77=0,"",SUM(ROUND(AE77,2),ROUND(AF77,2),ROUND(AG77,2),ROUND(AH77,2)))) -> 
I78: =IF(F78=0,"",IF(A$2=Parametres!A$77,IF(G78="Oui",IF(H78="Oui",F78-F78*Parametres!C$50-(F78-F78*Parametres!C$50)*Parametres!C$51,IF(H78="Non",F78-F78*Parametres!C$50,"")),IF(G78="Non",IF(H78="Oui",F78-F78*Parametres!C$51,IF(H78="Non",F78,"")))),IF(A$2=Parametres!A$78,IF(G78="Oui",IF(H78="Oui",F78-F78*Parametres!C$50-(F78-F78*Parametres!C$50)*Parametres!C$51,IF(H78="Non",F78-F78*Parametres!E$50,"")),IF(G78="Non",IF(H78="Oui",F78-F78*Parametres!E$51,IF(H78="Non",F78,"")))),IF(A$2=Parametres!A$79,IF(G78="Oui",IF(H78="Oui",F78-F78*Parametres!G$50-(F78-F78*Parametres!G$50)*Parametres!G$51,IF(H78="Non",F78-F78*Parametres!G$50,"")),IF(G78="Non",IF(H78="Oui",F78-F78*Parametres!G$51,IF(H78="Non",F78,"")))),"")))) ->  | J78: =IF(B78=0,"",SUM(I73:I78)) ->  | K78: =IF(C78="","",IF(A$2=Parametres!A$79,Parametres!E$61,IF(A$2=Parametres!A$78,Parametres!E$60,IF(C78<=Parametres!D$56,Parametres!E$56,IF(C78<=Parametres!D$57,Parametres!E$57,IF(C78<=Parametres!D$58,Parametres!E$58,IF(C78>Parametres!D$59,Parametres!E$59,""))))))) ->  | N78: =IF(B78="","",IF(A$2=Parametres!A$79,IF((L78+M78)>0,(J78+L78+M78),J78*(1+Parametres!G$49)),J78+J78*K78)) ->  | O78: =IF(B78=0,"",IF(A$2=Parametres!A$77,Parametres!D$10,IF(A$2=Parametres!A$78,Parametres!F$9,IF(A$2=Parametres!A$79,Parametres!H$9,"")))) ->  | W78: =IF(Q78="gratuit","",IF(B78=0,"",IF(A$2=Parametres!A$77,IF(V78<Parametres!C$21,0,IF(V78<Parametres!D$41,Parametres!E$41,IF(V78<Parametres!C$42,Parametres!E$42,IF(V78<Parametres!C$43,Parametres!E$43,Parametres!E$44)))), IF(A$2=Parametres!A$78,IF(V78<Parametres!E$21,0,IF(V78<Parametres!D$41,Parametres!E$41,IF(V78<Parametres!C$42,Parametres!E$42,IF(V78<Parametres!C$43,Parametres!E$43,Parametres!E$44)))), IF(A$2=Parametres!A$79,IF(V78<Parametres!G$21,0,IF(V78<Parametres!D$41,Parametres!E$41,IF(V78<Parametres!C$42,Parametres!E$42,IF(V78<Parametres!C$43,Parametres!E$43,Parametres!E$44))))))))) ->  | X78: =IF(B78=0,"",IF(A$2=Parametres!A$77,Parametres!D$10,IF(A$2=Parametres!A$78,Parametres!F$10,IF(A$2=Parametres!A$79,Parametres!H$10,"")))) ->  | AB78: =IF(B78=0,"",IF(A$2=Parametres!A$77,Parametres!D$20,IF(A$2=Parametres!A$78,Parametres!F$20,IF(A$2=Parametres!A$79,Parametres!H$20,"")))) ->  | AD78: =IF(A$2=Parametres!A$77,IF(B78=0,"",IF(P78>(Y78+AC78),IF(P78<Parametres!D$28,"FORFAIT MINI","DEPENSES"),IF((Y78+AC78)<Parametres!D$28,"FORFAIT MINI","RECETTES"))),IF(A$2=Parametres!A$78,"",IF(A$2=Parametres!A$79,IF(B78=0,"",IF(T78>0,IF(AND(R78/T78<20,N78<5000),"FORFAIT MINI S.O.",IF(P78>(Y78+AC78),IF(P78<Parametres!D$28,"FORFAIT MINI","DEPENSES"),IF((Y78+AC78)<Parametres!D$28,"FORFAIT MINI","RECETTES"))),IF(N78<5000,"FORFAIT MINI S.O.",IF(P78>(Y78+AC78),IF(P78<Parametres!D$28,"FORFAIT MINI","DEPENSES"),IF((Y78+AC78)<Parametres!D$28,"FORFAIT MINI","RECETTES")))))))) ->  | AE78: =IF(T78>0,IF(AD78="FORFAIT MINI S.O.",INDEX(FSOTab,MATCH(R78/T78,FSOPrix,1)+1,MATCH(N78,FSOBudget,1)),IF(A$2=Parametres!A$78,"",IF(B78=0,"",ROUND(IF(P78>(Y78+AC78),IF(P78<Parametres!D$28,Parametres!D$28,P78),IF((Y78+AC78)<Parametres!D$28,Parametres!D$28,(Y78+AC78))),2)))),IF(AD78="FORFAIT MINI S.O.",INDEX(FSOTab,MATCH(0,FSOPrix,1)+1,MATCH(N78,FSOBudget,1)),IF(A$2=Parametres!A$78,"",IF(B78=0,"",ROUND(IF(P78>(Y78+AC78),IF(P78<Parametres!D$28,Parametres!D$28,P78),IF((Y78+AC78)<Parametres!D$28,Parametres!D$28,(Y78+AC78))),2))))) ->  | AF78: =IF(A$2=Parametres!A$78,"",IF(B78=0,"",ROUND(AE78*Parametres!C$66,2))) ->  | AG78: =IF(A$2=Parametres!A$78,"",IF(B78=0,"",ROUND(AE78*Parametres!C$67,2))) ->  | AH78: =IF(A$2=Parametres!A$78,"",IF(B78=0,"",ROUND(AE78*Parametres!C$68,2))) ->  | AI78: =IF(A$2=Parametres!A$78,"",IF(B78=0,"",SUM(ROUND(AE78,2),ROUND(AF78,2),ROUND(AG78,2),ROUND(AH78,2)))) -> 
I80: =IF(F80=0,"",IF(A$2=Parametres!A$77,IF(G80="Oui",IF(H80="Oui",F80-F80*Parametres!C$50-(F80-F80*Parametres!C$50)*Parametres!C$51,IF(H80="Non",F80-F80*Parametres!C$50,"")),IF(G80="Non",IF(H80="Oui",F80-F80*Parametres!C$51,IF(H80="Non",F80,"")))),IF(A$2=Parametres!A$78,IF(G80="Oui",IF(H80="Oui",F80-F80*Parametres!C$50-(F80-F80*Parametres!C$50)*Parametres!C$51,IF(H80="Non",F80-F80*Parametres!E$50,"")),IF(G80="Non",IF(H80="Oui",F80-F80*Parametres!E$51,IF(H80="Non",F80,"")))),IF(A$2=Parametres!A$79,IF(G80="Oui",IF(H80="Oui",F80-F80*Parametres!G$50-(F80-F80*Parametres!G$50)*Parametres!G$51,IF(H80="Non",F80-F80*Parametres!G$50,"")),IF(G80="Non",IF(H80="Oui",F80-F80*Parametres!G$51,IF(H80="Non",F80,"")))),"")))) ->  | J80: =IF(B80=0,"",SUM(I80:I85)) ->  | K80: =IF(C80="","",IF(A$2=Parametres!A$79,Parametres!E$61,IF(A$2=Parametres!A$78,Parametres!E$60,IF(C80<=Parametres!D$56,Parametres!E$56,IF(C80<=Parametres!D$57,Parametres!E$57,IF(C80<=Parametres!D$58,Parametres!E$58,IF(C80>Parametres!D$59,Parametres!E$59,""))))))) ->  | N80: =IF(B80="","",IF(A$2=Parametres!A$79,IF((L80+M80)>0,(J80+L80+M80),J80*(1+Parametres!G$49)),J80+J80*K80)) ->  | O80: =IF(B80=0,"",IF(A$2=Parametres!A$77,Parametres!D$10,IF(A$2=Parametres!A$78,Parametres!F$10,IF(A$2=Parametres!A$79,Parametres!H$10,"")))) ->  | P80: =IF(B80=0,"",O80*N80) ->  | Q80: =IF(R80>0,"payant",IF(B80=0,"","gratuit")) ->  | S80: =IF(B80=0,"",T80+U80) ->  | V80: =IF(Q80="gratuit","",IF(S80=0,0,IF(S80="","",U80/T80))) ->  | W80: =IF(Q80="gratuit","",IF(B80=0,"",IF(A$2=Parametres!A$77,IF(V80<Parametres!C$21,0,IF(V80<Parametres!D$41,Parametres!E$41,IF(V80<Parametres!C$42,Parametres!E$42,IF(V80<Parametres!C$43,Parametres!E$43,Parametres!E$44)))), IF(A$2=Parametres!A$78,IF(V80<Parametres!E$21,0,IF(V80<Parametres!D$41,Parametres!E$41,IF(V80<Parametres!C$42,Parametres!E$42,IF(V80<Parametres!C$43,Parametres!E$43,Parametres!E$44)))), IF(A$2=Parametres!A$79,IF(V80<Parametres!G$21,0,IF(V80<Parametres!D$41,Parametres!E$41,IF(V80<Parametres!C$42,Parametres!E$42,IF(V80<Parametres!C$43,Parametres!E$43,Parametres!E$44))))))))) ->  | X80: =IF(B80=0,"",IF(A$2=Parametres!A$77,Parametres!D$10,IF(A$2=Parametres!A$78,Parametres!F$10,IF(A$2=Parametres!A$79,Parametres!H$10,"")))) ->  | Y80: =IF(B80=0,"",IF(Q80="gratuit",R80*X80,R80*X80+(R80*X80)*W80)) ->  | AB80: =IF(B80=0,"",IF(A$2=Parametres!A$77,Parametres!D$20,IF(A$2=Parametres!A$78,Parametres!F$20,IF(A$2=Parametres!A$79,Parametres!H$20,"")))) ->  | AC80: =IF(B80=0,"",(Z80+AA80)*AB80) ->  | AD80: =IF(A$2=Parametres!A$77,IF(B80=0,"",IF(P80>(Y80+AC80),IF(P80<Parametres!D$28,"FORFAIT MINI","DEPENSES"),IF((Y80+AC80)<Parametres!D$28,"FORFAIT MINI","RECETTES"))),IF(A$2=Parametres!A$78,"",IF(A$2=Parametres!A$79,IF(B80=0,"",IF(T80>0,IF(AND(R80/T80<20,N80<5000),"FORFAIT MINI S.O.",IF(P80>(Y80+AC80),IF(P80<Parametres!D$28,"FORFAIT MINI","DEPENSES"),IF((Y80+AC80)<Parametres!D$28,"FORFAIT MINI","RECETTES"))),IF(N80<5000,"FORFAIT MINI S.O.",IF(P80>(Y80+AC80),IF(P80<Parametres!D$28,"FORFAIT MINI","DEPENSES"),IF((Y80+AC80)<Parametres!D$28,"FORFAIT MINI","RECETTES")))))))) ->  | AE80: =IF(T80>0,IF(AD80="FORFAIT MINI S.O.",INDEX(FSOTab,MATCH(R80/T80,FSOPrix,1)+1,MATCH(N80,FSOBudget,1)),IF(A$2=Parametres!A$78,"",IF(B80=0,"",ROUND(IF(P80>(Y80+AC80),IF(P80<Parametres!D$28,Parametres!D$28,P80),IF((Y80+AC80)<Parametres!D$28,Parametres!D$28,(Y80+AC80))),2)))),IF(AD80="FORFAIT MINI S.O.",INDEX(FSOTab,MATCH(0,FSOPrix,1)+1,MATCH(N80,FSOBudget,1)),IF(A$2=Parametres!A$78,"",IF(B80=0,"",ROUND(IF(P80>(Y80+AC80),IF(P80<Parametres!D$28,Parametres!D$28,P80),IF((Y80+AC80)<Parametres!D$28,Parametres!D$28,(Y80+AC80))),2))))) ->  | AF80: =IF(A$2=Parametres!A$78,"",IF(B80=0,"",ROUND(AE80*Parametres!C$66,2))) ->  | AG80: =IF(A$2=Parametres!A$78,"",IF(B80=0,"",ROUND(AE80*Parametres!C$67,2))) ->  | AH80: =IF(A$2=Parametres!A$78,"",IF(B80=0,"",ROUND(AE80*Parametres!C$68,2))) ->  | AI80: =IF(A$2=Parametres!A$78,"",IF(B80=0,"",SUM(ROUND(AE80,2),ROUND(AF80,2),ROUND(AG80,2),ROUND(AH80,2)))) -> 
I81: =IF(F81=0,"",IF(A$2=Parametres!A$77,IF(G81="Oui",IF(H81="Oui",F81-F81*Parametres!C$50-(F81-F81*Parametres!C$50)*Parametres!C$51,IF(H81="Non",F81-F81*Parametres!C$50,"")),IF(G81="Non",IF(H81="Oui",F81-F81*Parametres!C$51,IF(H81="Non",F81,"")))),IF(A$2=Parametres!A$78,IF(G81="Oui",IF(H81="Oui",F81-F81*Parametres!C$50-(F81-F81*Parametres!C$50)*Parametres!C$51,IF(H81="Non",F81-F81*Parametres!E$50,"")),IF(G81="Non",IF(H81="Oui",F81-F81*Parametres!E$51,IF(H81="Non",F81,"")))),IF(A$2=Parametres!A$79,IF(G81="Oui",IF(H81="Oui",F81-F81*Parametres!G$50-(F81-F81*Parametres!G$50)*Parametres!G$51,IF(H81="Non",F81-F81*Parametres!G$50,"")),IF(G81="Non",IF(H81="Oui",F81-F81*Parametres!G$51,IF(H81="Non",F81,"")))),"")))) ->  | J81: =IF(B81=0,"",SUM(I80:I85)) ->  | K81: =IF(C81="","",IF(A$2=Parametres!A$79,Parametres!E$61,IF(A$2=Parametres!A$78,Parametres!E$60,IF(C81<=Parametres!D$56,Parametres!E$56,IF(C81<=Parametres!D$57,Parametres!E$57,IF(C81<=Parametres!D$58,Parametres!E$58,IF(C81>Parametres!D$59,Parametres!E$59,""))))))) ->  | N81: =IF(B81="","",IF(A$2=Parametres!A$79,IF((L81+M81)>0,(J81+L81+M81),J81*(1+Parametres!G$49)),J81+J81*K81)) ->  | O81: =IF(B81=0,"",IF(A$2=Parametres!A$77,Parametres!D$10,IF(A$2=Parametres!A$78,Parametres!F$9,IF(A$2=Parametres!A$79,Parametres!H$9,"")))) ->  | V81: =IF(Q81="gratuit","",IF(S81=0,0,IF(S81="","",U81/T81))) ->  | W81: =IF(Q81="gratuit","",IF(B81=0,"",IF(A$2=Parametres!A$77,IF(V81<Parametres!C$21,0,IF(V81<Parametres!D$41,Parametres!E$41,IF(V81<Parametres!C$42,Parametres!E$42,IF(V81<Parametres!C$43,Parametres!E$43,Parametres!E$44)))), IF(A$2=Parametres!A$78,IF(V81<Parametres!E$21,0,IF(V81<Parametres!D$41,Parametres!E$41,IF(V81<Parametres!C$42,Parametres!E$42,IF(V81<Parametres!C$43,Parametres!E$43,Parametres!E$44)))), IF(A$2=Parametres!A$79,IF(V81<Parametres!G$21,0,IF(V81<Parametres!D$41,Parametres!E$41,IF(V81<Parametres!C$42,Parametres!E$42,IF(V81<Parametres!C$43,Parametres!E$43,Parametres!E$44))))))))) ->  | X81: =IF(B81=0,"",IF(A$2=Parametres!A$77,Parametres!D$10,IF(A$2=Parametres!A$78,Parametres!F$10,IF(A$2=Parametres!A$79,Parametres!H$10,"")))) ->  | AB81: =IF(B81=0,"",IF(A$2=Parametres!A$77,Parametres!D$20,IF(A$2=Parametres!A$78,Parametres!F$20,IF(A$2=Parametres!A$79,Parametres!H$20,"")))) ->  | AD81: =IF(A$2=Parametres!A$77,IF(B81=0,"",IF(P81>(Y81+AC81),IF(P81<Parametres!D$28,"FORFAIT MINI","DEPENSES"),IF((Y81+AC81)<Parametres!D$28,"FORFAIT MINI","RECETTES"))),IF(A$2=Parametres!A$78,"",IF(A$2=Parametres!A$79,IF(B81=0,"",IF(T81>0,IF(AND(R81/T81<20,N81<5000),"FORFAIT MINI S.O.",IF(P81>(Y81+AC81),IF(P81<Parametres!D$28,"FORFAIT MINI","DEPENSES"),IF((Y81+AC81)<Parametres!D$28,"FORFAIT MINI","RECETTES"))),IF(N81<5000,"FORFAIT MINI S.O.",IF(P81>(Y81+AC81),IF(P81<Parametres!D$28,"FORFAIT MINI","DEPENSES"),IF((Y81+AC81)<Parametres!D$28,"FORFAIT MINI","RECETTES")))))))) ->  | AE81: =IF(T81>0,IF(AD81="FORFAIT MINI S.O.",INDEX(FSOTab,MATCH(R81/T81,FSOPrix,1)+1,MATCH(N81,FSOBudget,1)),IF(A$2=Parametres!A$78,"",IF(B81=0,"",ROUND(IF(P81>(Y81+AC81),IF(P81<Parametres!D$28,Parametres!D$28,P81),IF((Y81+AC81)<Parametres!D$28,Parametres!D$28,(Y81+AC81))),2)))),IF(AD81="FORFAIT MINI S.O.",INDEX(FSOTab,MATCH(0,FSOPrix,1)+1,MATCH(N81,FSOBudget,1)),IF(A$2=Parametres!A$78,"",IF(B81=0,"",ROUND(IF(P81>(Y81+AC81),IF(P81<Parametres!D$28,Parametres!D$28,P81),IF((Y81+AC81)<Parametres!D$28,Parametres!D$28,(Y81+AC81))),2))))) ->  | AF81: =IF(A$2=Parametres!A$78,"",IF(B81=0,"",ROUND(AE81*Parametres!C$66,2))) ->  | AG81: =IF(A$2=Parametres!A$78,"",IF(B81=0,"",ROUND(AE81*Parametres!C$67,2))) ->  | AH81: =IF(A$2=Parametres!A$78,"",IF(B81=0,"",ROUND(AE81*Parametres!C$68,2))) ->  | AI81: =IF(A$2=Parametres!A$78,"",IF(B81=0,"",SUM(ROUND(AE81,2),ROUND(AF81,2),ROUND(AG81,2),ROUND(AH81,2)))) -> 
I82: =IF(F82=0,"",IF(A$2=Parametres!A$77,IF(G82="Oui",IF(H82="Oui",F82-F82*Parametres!C$50-(F82-F82*Parametres!C$50)*Parametres!C$51,IF(H82="Non",F82-F82*Parametres!C$50,"")),IF(G82="Non",IF(H82="Oui",F82-F82*Parametres!C$51,IF(H82="Non",F82,"")))),IF(A$2=Parametres!A$78,IF(G82="Oui",IF(H82="Oui",F82-F82*Parametres!C$50-(F82-F82*Parametres!C$50)*Parametres!C$51,IF(H82="Non",F82-F82*Parametres!E$50,"")),IF(G82="Non",IF(H82="Oui",F82-F82*Parametres!E$51,IF(H82="Non",F82,"")))),IF(A$2=Parametres!A$79,IF(G82="Oui",IF(H82="Oui",F82-F82*Parametres!G$50-(F82-F82*Parametres!G$50)*Parametres!G$51,IF(H82="Non",F82-F82*Parametres!G$50,"")),IF(G82="Non",IF(H82="Oui",F82-F82*Parametres!G$51,IF(H82="Non",F82,"")))),"")))) ->  | J82: =IF(B82=0,"",(I80:I85)) ->  | K82: =IF(C82="","",IF(A$2=Parametres!A$79,Parametres!E$61,IF(A$2=Parametres!A$78,Parametres!E$60,IF(C82<=Parametres!D$56,Parametres!E$56,IF(C82<=Parametres!D$57,Parametres!E$57,IF(C82<=Parametres!D$58,Parametres!E$58,IF(C82>Parametres!D$59,Parametres!E$59,""))))))) ->  | N82: =IF(B82="","",IF(A$2=Parametres!A$79,IF((L82+M82)>0,(J82+L82+M82),J82*(1+Parametres!G$49)),J82+J82*K82)) ->  | O82: =IF(B82=0,"",IF(A$2=Parametres!A$77,Parametres!D$10,IF(A$2=Parametres!A$78,Parametres!F$9,IF(A$2=Parametres!A$79,Parametres!H$9,"")))) ->  | W82: =IF(Q82="gratuit","",IF(B82=0,"",IF(A$2=Parametres!A$77,IF(V82<Parametres!C$21,0,IF(V82<Parametres!D$41,Parametres!E$41,IF(V82<Parametres!C$42,Parametres!E$42,IF(V82<Parametres!C$43,Parametres!E$43,Parametres!E$44)))), IF(A$2=Parametres!A$78,IF(V82<Parametres!E$21,0,IF(V82<Parametres!D$41,Parametres!E$41,IF(V82<Parametres!C$42,Parametres!E$42,IF(V82<Parametres!C$43,Parametres!E$43,Parametres!E$44)))), IF(A$2=Parametres!A$79,IF(V82<Parametres!G$21,0,IF(V82<Parametres!D$41,Parametres!E$41,IF(V82<Parametres!C$42,Parametres!E$42,IF(V82<Parametres!C$43,Parametres!E$43,Parametres!E$44))))))))) ->  | X82: =IF(B82=0,"",IF(A$2=Parametres!A$77,Parametres!D$10,IF(A$2=Parametres!A$78,Parametres!F$10,IF(A$2=Parametres!A$79,Parametres!H$10,"")))) ->  | AB82: =IF(B82=0,"",IF(A$2=Parametres!A$77,Parametres!D$20,IF(A$2=Parametres!A$78,Parametres!F$20,IF(A$2=Parametres!A$79,Parametres!H$20,"")))) ->  | AD82: =IF(A$2=Parametres!A$77,IF(B82=0,"",IF(P82>(Y82+AC82),IF(P82<Parametres!D$28,"FORFAIT MINI","DEPENSES"),IF((Y82+AC82)<Parametres!D$28,"FORFAIT MINI","RECETTES"))),IF(A$2=Parametres!A$78,"",IF(A$2=Parametres!A$79,IF(B82=0,"",IF(T82>0,IF(AND(R82/T82<20,N82<5000),"FORFAIT MINI S.O.",IF(P82>(Y82+AC82),IF(P82<Parametres!D$28,"FORFAIT MINI","DEPENSES"),IF((Y82+AC82)<Parametres!D$28,"FORFAIT MINI","RECETTES"))),IF(N82<5000,"FORFAIT MINI S.O.",IF(P82>(Y82+AC82),IF(P82<Parametres!D$28,"FORFAIT MINI","DEPENSES"),IF((Y82+AC82)<Parametres!D$28,"FORFAIT MINI","RECETTES")))))))) ->  | AE82: =IF(T82>0,IF(AD82="FORFAIT MINI S.O.",INDEX(FSOTab,MATCH(R82/T82,FSOPrix,1)+1,MATCH(N82,FSOBudget,1)),IF(A$2=Parametres!A$78,"",IF(B82=0,"",ROUND(IF(P82>(Y82+AC82),IF(P82<Parametres!D$28,Parametres!D$28,P82),IF((Y82+AC82)<Parametres!D$28,Parametres!D$28,(Y82+AC82))),2)))),IF(AD82="FORFAIT MINI S.O.",INDEX(FSOTab,MATCH(0,FSOPrix,1)+1,MATCH(N82,FSOBudget,1)),IF(A$2=Parametres!A$78,"",IF(B82=0,"",ROUND(IF(P82>(Y82+AC82),IF(P82<Parametres!D$28,Parametres!D$28,P82),IF((Y82+AC82)<Parametres!D$28,Parametres!D$28,(Y82+AC82))),2))))) ->  | AF82: =IF(A$2=Parametres!A$78,"",IF(B82=0,"",ROUND(AE82*Parametres!C$66,2))) ->  | AG82: =IF(A$2=Parametres!A$78,"",IF(B82=0,"",ROUND(AE82*Parametres!C$67,2))) ->  | AH82: =IF(A$2=Parametres!A$78,"",IF(B82=0,"",ROUND(AE82*Parametres!C$68,2))) ->  | AI82: =IF(A$2=Parametres!A$78,"",IF(B82=0,"",SUM(ROUND(AE82,2),ROUND(AF82,2),ROUND(AG82,2),ROUND(AH82,2)))) -> 
I83: =IF(F83=0,"",IF(A$2=Parametres!A$77,IF(G83="Oui",IF(H83="Oui",F83-F83*Parametres!C$50-(F83-F83*Parametres!C$50)*Parametres!C$51,IF(H83="Non",F83-F83*Parametres!C$50,"")),IF(G83="Non",IF(H83="Oui",F83-F83*Parametres!C$51,IF(H83="Non",F83,"")))),IF(A$2=Parametres!A$78,IF(G83="Oui",IF(H83="Oui",F83-F83*Parametres!C$50-(F83-F83*Parametres!C$50)*Parametres!C$51,IF(H83="Non",F83-F83*Parametres!E$50,"")),IF(G83="Non",IF(H83="Oui",F83-F83*Parametres!E$51,IF(H83="Non",F83,"")))),IF(A$2=Parametres!A$79,IF(G83="Oui",IF(H83="Oui",F83-F83*Parametres!G$50-(F83-F83*Parametres!G$50)*Parametres!G$51,IF(H83="Non",F83-F83*Parametres!G$50,"")),IF(G83="Non",IF(H83="Oui",F83-F83*Parametres!G$51,IF(H83="Non",F83,"")))),"")))) ->  | J83: =IF(B83=0,"",SUM(I80:I85)) ->  | K83: =IF(C83="","",IF(A$2=Parametres!A$79,Parametres!E$61,IF(A$2=Parametres!A$78,Parametres!E$60,IF(C83<=Parametres!D$56,Parametres!E$56,IF(C83<=Parametres!D$57,Parametres!E$57,IF(C83<=Parametres!D$58,Parametres!E$58,IF(C83>Parametres!D$59,Parametres!E$59,""))))))) ->  | N83: =IF(B83="","",IF(A$2=Parametres!A$79,IF((L83+M83)>0,(J83+L83+M83),J83*(1+Parametres!G$49)),J83+J83*K83)) ->  | O83: =IF(B83=0,"",IF(A$2=Parametres!A$77,Parametres!D$10,IF(A$2=Parametres!A$78,Parametres!F$9,IF(A$2=Parametres!A$79,Parametres!H$9,"")))) ->  | W83: =IF(Q83="gratuit","",IF(B83=0,"",IF(A$2=Parametres!A$77,IF(V83<Parametres!C$21,0,IF(V83<Parametres!D$41,Parametres!E$41,IF(V83<Parametres!C$42,Parametres!E$42,IF(V83<Parametres!C$43,Parametres!E$43,Parametres!E$44)))), IF(A$2=Parametres!A$78,IF(V83<Parametres!E$21,0,IF(V83<Parametres!D$41,Parametres!E$41,IF(V83<Parametres!C$42,Parametres!E$42,IF(V83<Parametres!C$43,Parametres!E$43,Parametres!E$44)))), IF(A$2=Parametres!A$79,IF(V83<Parametres!G$21,0,IF(V83<Parametres!D$41,Parametres!E$41,IF(V83<Parametres!C$42,Parametres!E$42,IF(V83<Parametres!C$43,Parametres!E$43,Parametres!E$44))))))))) ->  | X83: =IF(B83=0,"",IF(A$2=Parametres!A$77,Parametres!D$10,IF(A$2=Parametres!A$78,Parametres!F$10,IF(A$2=Parametres!A$79,Parametres!H$10,"")))) ->  | AB83: =IF(B83=0,"",IF(A$2=Parametres!A$77,Parametres!D$20,IF(A$2=Parametres!A$78,Parametres!F$20,IF(A$2=Parametres!A$79,Parametres!H$20,"")))) ->  | AD83: =IF(A$2=Parametres!A$77,IF(B83=0,"",IF(P83>(Y83+AC83),IF(P83<Parametres!D$28,"FORFAIT MINI","DEPENSES"),IF((Y83+AC83)<Parametres!D$28,"FORFAIT MINI","RECETTES"))),IF(A$2=Parametres!A$78,"",IF(A$2=Parametres!A$79,IF(B83=0,"",IF(T83>0,IF(AND(R83/T83<20,N83<5000),"FORFAIT MINI S.O.",IF(P83>(Y83+AC83),IF(P83<Parametres!D$28,"FORFAIT MINI","DEPENSES"),IF((Y83+AC83)<Parametres!D$28,"FORFAIT MINI","RECETTES"))),IF(N83<5000,"FORFAIT MINI S.O.",IF(P83>(Y83+AC83),IF(P83<Parametres!D$28,"FORFAIT MINI","DEPENSES"),IF((Y83+AC83)<Parametres!D$28,"FORFAIT MINI","RECETTES")))))))) ->  | AE83: =IF(T83>0,IF(AD83="FORFAIT MINI S.O.",INDEX(FSOTab,MATCH(R83/T83,FSOPrix,1)+1,MATCH(N83,FSOBudget,1)),IF(A$2=Parametres!A$78,"",IF(B83=0,"",ROUND(IF(P83>(Y83+AC83),IF(P83<Parametres!D$28,Parametres!D$28,P83),IF((Y83+AC83)<Parametres!D$28,Parametres!D$28,(Y83+AC83))),2)))),IF(AD83="FORFAIT MINI S.O.",INDEX(FSOTab,MATCH(0,FSOPrix,1)+1,MATCH(N83,FSOBudget,1)),IF(A$2=Parametres!A$78,"",IF(B83=0,"",ROUND(IF(P83>(Y83+AC83),IF(P83<Parametres!D$28,Parametres!D$28,P83),IF((Y83+AC83)<Parametres!D$28,Parametres!D$28,(Y83+AC83))),2))))) ->  | AF83: =IF(A$2=Parametres!A$78,"",IF(B83=0,"",ROUND(AE83*Parametres!C$66,2))) ->  | AG83: =IF(A$2=Parametres!A$78,"",IF(B83=0,"",ROUND(AE83*Parametres!C$67,2))) ->  | AH83: =IF(A$2=Parametres!A$78,"",IF(B83=0,"",ROUND(AE83*Parametres!C$68,2))) ->  | AI83: =IF(A$2=Parametres!A$78,"",IF(B83=0,"",SUM(ROUND(AE83,2),ROUND(AF83,2),ROUND(AG83,2),ROUND(AH83,2)))) -> 
I84: =IF(F84=0,"",IF(A$2=Parametres!A$77,IF(G84="Oui",IF(H84="Oui",F84-F84*Parametres!C$50-(F84-F84*Parametres!C$50)*Parametres!C$51,IF(H84="Non",F84-F84*Parametres!C$50,"")),IF(G84="Non",IF(H84="Oui",F84-F84*Parametres!C$51,IF(H84="Non",F84,"")))),IF(A$2=Parametres!A$78,IF(G84="Oui",IF(H84="Oui",F84-F84*Parametres!C$50-(F84-F84*Parametres!C$50)*Parametres!C$51,IF(H84="Non",F84-F84*Parametres!E$50,"")),IF(G84="Non",IF(H84="Oui",F84-F84*Parametres!E$51,IF(H84="Non",F84,"")))),IF(A$2=Parametres!A$79,IF(G84="Oui",IF(H84="Oui",F84-F84*Parametres!G$50-(F84-F84*Parametres!G$50)*Parametres!G$51,IF(H84="Non",F84-F84*Parametres!G$50,"")),IF(G84="Non",IF(H84="Oui",F84-F84*Parametres!G$51,IF(H84="Non",F84,"")))),"")))) ->  | J84: =IF(B84=0,"",SUM(I80:I85)) ->  | K84: =IF(C84="","",IF(A$2=Parametres!A$79,Parametres!E$61,IF(A$2=Parametres!A$78,Parametres!E$60,IF(C84<=Parametres!D$56,Parametres!E$56,IF(C84<=Parametres!D$57,Parametres!E$57,IF(C84<=Parametres!D$58,Parametres!E$58,IF(C84>Parametres!D$59,Parametres!E$59,""))))))) ->  | N84: =IF(B84="","",IF(A$2=Parametres!A$79,IF((L84+M84)>0,(J84+L84+M84),J84*(1+Parametres!G$49)),J84+J84*K84)) ->  | O84: =IF(B84=0,"",IF(A$2=Parametres!A$77,Parametres!D$10,IF(A$2=Parametres!A$78,Parametres!F$9,IF(A$2=Parametres!A$79,Parametres!H$9,"")))) ->  | W84: =IF(Q84="gratuit","",IF(B84=0,"",IF(A$2=Parametres!A$77,IF(V84<Parametres!C$21,0,IF(V84<Parametres!D$41,Parametres!E$41,IF(V84<Parametres!C$42,Parametres!E$42,IF(V84<Parametres!C$43,Parametres!E$43,Parametres!E$44)))), IF(A$2=Parametres!A$78,IF(V84<Parametres!E$21,0,IF(V84<Parametres!D$41,Parametres!E$41,IF(V84<Parametres!C$42,Parametres!E$42,IF(V84<Parametres!C$43,Parametres!E$43,Parametres!E$44)))), IF(A$2=Parametres!A$79,IF(V84<Parametres!G$21,0,IF(V84<Parametres!D$41,Parametres!E$41,IF(V84<Parametres!C$42,Parametres!E$42,IF(V84<Parametres!C$43,Parametres!E$43,Parametres!E$44))))))))) ->  | X84: =IF(B84=0,"",IF(A$2=Parametres!A$77,Parametres!D$10,IF(A$2=Parametres!A$78,Parametres!F$10,IF(A$2=Parametres!A$79,Parametres!H$10,"")))) ->  | AB84: =IF(B84=0,"",IF(A$2=Parametres!A$77,Parametres!D$20,IF(A$2=Parametres!A$78,Parametres!F$20,IF(A$2=Parametres!A$79,Parametres!H$20,"")))) ->  | AD84: =IF(A$2=Parametres!A$77,IF(B84=0,"",IF(P84>(Y84+AC84),IF(P84<Parametres!D$28,"FORFAIT MINI","DEPENSES"),IF((Y84+AC84)<Parametres!D$28,"FORFAIT MINI","RECETTES"))),IF(A$2=Parametres!A$78,"",IF(A$2=Parametres!A$79,IF(B84=0,"",IF(T84>0,IF(AND(R84/T84<20,N84<5000),"FORFAIT MINI S.O.",IF(P84>(Y84+AC84),IF(P84<Parametres!D$28,"FORFAIT MINI","DEPENSES"),IF((Y84+AC84)<Parametres!D$28,"FORFAIT MINI","RECETTES"))),IF(N84<5000,"FORFAIT MINI S.O.",IF(P84>(Y84+AC84),IF(P84<Parametres!D$28,"FORFAIT MINI","DEPENSES"),IF((Y84+AC84)<Parametres!D$28,"FORFAIT MINI","RECETTES")))))))) ->  | AE84: =IF(T84>0,IF(AD84="FORFAIT MINI S.O.",INDEX(FSOTab,MATCH(R84/T84,FSOPrix,1)+1,MATCH(N84,FSOBudget,1)),IF(A$2=Parametres!A$78,"",IF(B84=0,"",ROUND(IF(P84>(Y84+AC84),IF(P84<Parametres!D$28,Parametres!D$28,P84),IF((Y84+AC84)<Parametres!D$28,Parametres!D$28,(Y84+AC84))),2)))),IF(AD84="FORFAIT MINI S.O.",INDEX(FSOTab,MATCH(0,FSOPrix,1)+1,MATCH(N84,FSOBudget,1)),IF(A$2=Parametres!A$78,"",IF(B84=0,"",ROUND(IF(P84>(Y84+AC84),IF(P84<Parametres!D$28,Parametres!D$28,P84),IF((Y84+AC84)<Parametres!D$28,Parametres!D$28,(Y84+AC84))),2))))) ->  | AF84: =IF(A$2=Parametres!A$78,"",IF(B84=0,"",ROUND(AE84*Parametres!C$66,2))) ->  | AG84: =IF(A$2=Parametres!A$78,"",IF(B84=0,"",ROUND(AE84*Parametres!C$67,2))) ->  | AH84: =IF(A$2=Parametres!A$78,"",IF(B84=0,"",ROUND(AE84*Parametres!C$68,2))) ->  | AI84: =IF(A$2=Parametres!A$78,"",IF(B84=0,"",SUM(ROUND(AE84,2),ROUND(AF84,2),ROUND(AG84,2),ROUND(AH84,2)))) -> 
I85: =IF(F85=0,"",IF(A$2=Parametres!A$77,IF(G85="Oui",IF(H85="Oui",F85-F85*Parametres!C$50-(F85-F85*Parametres!C$50)*Parametres!C$51,IF(H85="Non",F85-F85*Parametres!C$50,"")),IF(G85="Non",IF(H85="Oui",F85-F85*Parametres!C$51,IF(H85="Non",F85,"")))),IF(A$2=Parametres!A$78,IF(G85="Oui",IF(H85="Oui",F85-F85*Parametres!C$50-(F85-F85*Parametres!C$50)*Parametres!C$51,IF(H85="Non",F85-F85*Parametres!E$50,"")),IF(G85="Non",IF(H85="Oui",F85-F85*Parametres!E$51,IF(H85="Non",F85,"")))),IF(A$2=Parametres!A$79,IF(G85="Oui",IF(H85="Oui",F85-F85*Parametres!G$50-(F85-F85*Parametres!G$50)*Parametres!G$51,IF(H85="Non",F85-F85*Parametres!G$50,"")),IF(G85="Non",IF(H85="Oui",F85-F85*Parametres!G$51,IF(H85="Non",F85,"")))),"")))) ->  | J85: =IF(B85=0,"",SUM(I80:I85)) ->  | K85: =IF(C85="","",IF(A$2=Parametres!A$79,Parametres!E$61,IF(A$2=Parametres!A$78,Parametres!E$60,IF(C85<=Parametres!D$56,Parametres!E$56,IF(C85<=Parametres!D$57,Parametres!E$57,IF(C85<=Parametres!D$58,Parametres!E$58,IF(C85>Parametres!D$59,Parametres!E$59,""))))))) ->  | N85: =IF(B85="","",IF(A$2=Parametres!A$79,IF((L85+M85)>0,(J85+L85+M85),J85*(1+Parametres!G$49)),J85+J85*K85)) ->  | O85: =IF(B85=0,"",IF(A$2=Parametres!A$77,Parametres!D$10,IF(A$2=Parametres!A$78,Parametres!F$9,IF(A$2=Parametres!A$79,Parametres!H$9,"")))) ->  | W85: =IF(Q85="gratuit","",IF(B85=0,"",IF(A$2=Parametres!A$77,IF(V85<Parametres!C$21,0,IF(V85<Parametres!D$41,Parametres!E$41,IF(V85<Parametres!C$42,Parametres!E$42,IF(V85<Parametres!C$43,Parametres!E$43,Parametres!E$44)))), IF(A$2=Parametres!A$78,IF(V85<Parametres!E$21,0,IF(V85<Parametres!D$41,Parametres!E$41,IF(V85<Parametres!C$42,Parametres!E$42,IF(V85<Parametres!C$43,Parametres!E$43,Parametres!E$44)))), IF(A$2=Parametres!A$79,IF(V85<Parametres!G$21,0,IF(V85<Parametres!D$41,Parametres!E$41,IF(V85<Parametres!C$42,Parametres!E$42,IF(V85<Parametres!C$43,Parametres!E$43,Parametres!E$44))))))))) ->  | X85: =IF(B85=0,"",IF(A$2=Parametres!A$77,Parametres!D$10,IF(A$2=Parametres!A$78,Parametres!F$10,IF(A$2=Parametres!A$79,Parametres!H$10,"")))) ->  | AB85: =IF(B85=0,"",IF(A$2=Parametres!A$77,Parametres!D$20,IF(A$2=Parametres!A$78,Parametres!F$20,IF(A$2=Parametres!A$79,Parametres!H$20,"")))) ->  | AD85: =IF(A$2=Parametres!A$77,IF(B85=0,"",IF(P85>(Y85+AC85),IF(P85<Parametres!D$28,"FORFAIT MINI","DEPENSES"),IF((Y85+AC85)<Parametres!D$28,"FORFAIT MINI","RECETTES"))),IF(A$2=Parametres!A$78,"",IF(A$2=Parametres!A$79,IF(B85=0,"",IF(T85>0,IF(AND(R85/T85<20,N85<5000),"FORFAIT MINI S.O.",IF(P85>(Y85+AC85),IF(P85<Parametres!D$28,"FORFAIT MINI","DEPENSES"),IF((Y85+AC85)<Parametres!D$28,"FORFAIT MINI","RECETTES"))),IF(N85<5000,"FORFAIT MINI S.O.",IF(P85>(Y85+AC85),IF(P85<Parametres!D$28,"FORFAIT MINI","DEPENSES"),IF((Y85+AC85)<Parametres!D$28,"FORFAIT MINI","RECETTES")))))))) ->  | AE85: =IF(T85>0,IF(AD85="FORFAIT MINI S.O.",INDEX(FSOTab,MATCH(R85/T85,FSOPrix,1)+1,MATCH(N85,FSOBudget,1)),IF(A$2=Parametres!A$78,"",IF(B85=0,"",ROUND(IF(P85>(Y85+AC85),IF(P85<Parametres!D$28,Parametres!D$28,P85),IF((Y85+AC85)<Parametres!D$28,Parametres!D$28,(Y85+AC85))),2)))),IF(AD85="FORFAIT MINI S.O.",INDEX(FSOTab,MATCH(0,FSOPrix,1)+1,MATCH(N85,FSOBudget,1)),IF(A$2=Parametres!A$78,"",IF(B85=0,"",ROUND(IF(P85>(Y85+AC85),IF(P85<Parametres!D$28,Parametres!D$28,P85),IF((Y85+AC85)<Parametres!D$28,Parametres!D$28,(Y85+AC85))),2))))) ->  | AF85: =IF(A$2=Parametres!A$78,"",IF(B85=0,"",ROUND(AE85*Parametres!C$66,2))) ->  | AG85: =IF(A$2=Parametres!A$78,"",IF(B85=0,"",ROUND(AE85*Parametres!C$67,2))) ->  | AH85: =IF(A$2=Parametres!A$78,"",IF(B85=0,"",ROUND(AE85*Parametres!C$68,2))) ->  | AI85: =IF(A$2=Parametres!A$78,"",IF(B85=0,"",SUM(ROUND(AE85,2),ROUND(AF85,2),ROUND(AG85,2),ROUND(AH85,2)))) -> 
I87: =IF(F87=0,"",IF(A$2=Parametres!A$77,IF(G87="Oui",IF(H87="Oui",F87-F87*Parametres!C$50-(F87-F87*Parametres!C$50)*Parametres!C$51,IF(H87="Non",F87-F87*Parametres!C$50,"")),IF(G87="Non",IF(H87="Oui",F87-F87*Parametres!C$51,IF(H87="Non",F87,"")))),IF(A$2=Parametres!A$78,IF(G87="Oui",IF(H87="Oui",F87-F87*Parametres!C$50-(F87-F87*Parametres!C$50)*Parametres!C$51,IF(H87="Non",F87-F87*Parametres!E$50,"")),IF(G87="Non",IF(H87="Oui",F87-F87*Parametres!E$51,IF(H87="Non",F87,"")))),IF(A$2=Parametres!A$79,IF(G87="Oui",IF(H87="Oui",F87-F87*Parametres!G$50-(F87-F87*Parametres!G$50)*Parametres!G$51,IF(H87="Non",F87-F87*Parametres!G$50,"")),IF(G87="Non",IF(H87="Oui",F87-F87*Parametres!G$51,IF(H87="Non",F87,"")))),"")))) ->  | J87: =IF(B87=0,"",SUM(I87:I92)) ->  | K87: =IF(C87="","",IF(A$2=Parametres!A$79,Parametres!E$61,IF(A$2=Parametres!A$78,Parametres!E$60,IF(C87<=Parametres!D$56,Parametres!E$56,IF(C87<=Parametres!D$57,Parametres!E$57,IF(C87<=Parametres!D$58,Parametres!E$58,IF(C87>Parametres!D$59,Parametres!E$59,""))))))) ->  | N87: =IF(B87="","",IF(A$2=Parametres!A$79,IF((L87+M87)>0,(J87+L87+M87),J87*(1+Parametres!G$49)),J87+J87*K87)) ->  | O87: =IF(B87=0,"",IF(A$2=Parametres!A$77,Parametres!D$10,IF(A$2=Parametres!A$78,Parametres!F$10,IF(A$2=Parametres!A$79,Parametres!H$10,"")))) ->  | P87: =IF(B87=0,"",O87*N87) ->  | Q87: =IF(R87>0,"payant",IF(B87=0,"","gratuit")) ->  | S87: =IF(B87=0,"",T87+U87) ->  | V87: =IF(Q87="gratuit","",IF(S87=0,0,IF(S87="","",U87/T87))) ->  | W87: =IF(Q87="gratuit","",IF(B87=0,"",IF(A$2=Parametres!A$77,IF(V87<Parametres!C$21,0,IF(V87<Parametres!D$41,Parametres!E$41,IF(V87<Parametres!C$42,Parametres!E$42,IF(V87<Parametres!C$43,Parametres!E$43,Parametres!E$44)))), IF(A$2=Parametres!A$78,IF(V87<Parametres!E$21,0,IF(V87<Parametres!D$41,Parametres!E$41,IF(V87<Parametres!C$42,Parametres!E$42,IF(V87<Parametres!C$43,Parametres!E$43,Parametres!E$44)))), IF(A$2=Parametres!A$79,IF(V87<Parametres!G$21,0,IF(V87<Parametres!D$41,Parametres!E$41,IF(V87<Parametres!C$42,Parametres!E$42,IF(V87<Parametres!C$43,Parametres!E$43,Parametres!E$44))))))))) ->  | X87: =IF(B87=0,"",IF(A$2=Parametres!A$77,Parametres!D$10,IF(A$2=Parametres!A$78,Parametres!F$10,IF(A$2=Parametres!A$79,Parametres!H$10,"")))) ->  | Y87: =IF(B87=0,"",IF(Q87="gratuit",R87*X87,R87*X87+(R87*X87)*W87)) ->  | AB87: =IF(B87=0,"",IF(A$2=Parametres!A$77,Parametres!D$20,IF(A$2=Parametres!A$78,Parametres!F$20,IF(A$2=Parametres!A$79,Parametres!H$20,"")))) ->  | AC87: =IF(B87=0,"",(Z87+AA87)*AB87) ->  | AD87: =IF(A$2=Parametres!A$77,IF(B87=0,"",IF(P87>(Y87+AC87),IF(P87<Parametres!D$28,"FORFAIT MINI","DEPENSES"),IF((Y87+AC87)<Parametres!D$28,"FORFAIT MINI","RECETTES"))),IF(A$2=Parametres!A$78,"",IF(A$2=Parametres!A$79,IF(B87=0,"",IF(T87>0,IF(AND(R87/T87<20,N87<5000),"FORFAIT MINI S.O.",IF(P87>(Y87+AC87),IF(P87<Parametres!D$28,"FORFAIT MINI","DEPENSES"),IF((Y87+AC87)<Parametres!D$28,"FORFAIT MINI","RECETTES"))),IF(N87<5000,"FORFAIT MINI S.O.",IF(P87>(Y87+AC87),IF(P87<Parametres!D$28,"FORFAIT MINI","DEPENSES"),IF((Y87+AC87)<Parametres!D$28,"FORFAIT MINI","RECETTES")))))))) ->  | AE87: =IF(T87>0,IF(AD87="FORFAIT MINI S.O.",INDEX(FSOTab,MATCH(R87/T87,FSOPrix,1)+1,MATCH(N87,FSOBudget,1)),IF(A$2=Parametres!A$78,"",IF(B87=0,"",ROUND(IF(P87>(Y87+AC87),IF(P87<Parametres!D$28,Parametres!D$28,P87),IF((Y87+AC87)<Parametres!D$28,Parametres!D$28,(Y87+AC87))),2)))),IF(AD87="FORFAIT MINI S.O.",INDEX(FSOTab,MATCH(0,FSOPrix,1)+1,MATCH(N87,FSOBudget,1)),IF(A$2=Parametres!A$78,"",IF(B87=0,"",ROUND(IF(P87>(Y87+AC87),IF(P87<Parametres!D$28,Parametres!D$28,P87),IF((Y87+AC87)<Parametres!D$28,Parametres!D$28,(Y87+AC87))),2))))) ->  | AF87: =IF(A$2=Parametres!A$78,"",IF(B87=0,"",ROUND(AE87*Parametres!C$66,2))) ->  | AG87: =IF(A$2=Parametres!A$78,"",IF(B87=0,"",ROUND(AE87*Parametres!C$67,2))) ->  | AH87: =IF(A$2=Parametres!A$78,"",IF(B87=0,"",ROUND(AE87*Parametres!C$68,2))) ->  | AI87: =IF(A$2=Parametres!A$78,"",IF(B87=0,"",SUM(ROUND(AE87,2),ROUND(AF87,2),ROUND(AG87,2),ROUND(AH87,2)))) -> 
I88: =IF(F88=0,"",IF(A$2=Parametres!A$77,IF(G88="Oui",IF(H88="Oui",F88-F88*Parametres!C$50-(F88-F88*Parametres!C$50)*Parametres!C$51,IF(H88="Non",F88-F88*Parametres!C$50,"")),IF(G88="Non",IF(H88="Oui",F88-F88*Parametres!C$51,IF(H88="Non",F88,"")))),IF(A$2=Parametres!A$78,IF(G88="Oui",IF(H88="Oui",F88-F88*Parametres!C$50-(F88-F88*Parametres!C$50)*Parametres!C$51,IF(H88="Non",F88-F88*Parametres!E$50,"")),IF(G88="Non",IF(H88="Oui",F88-F88*Parametres!E$51,IF(H88="Non",F88,"")))),IF(A$2=Parametres!A$79,IF(G88="Oui",IF(H88="Oui",F88-F88*Parametres!G$50-(F88-F88*Parametres!G$50)*Parametres!G$51,IF(H88="Non",F88-F88*Parametres!G$50,"")),IF(G88="Non",IF(H88="Oui",F88-F88*Parametres!G$51,IF(H88="Non",F88,"")))),"")))) ->  | J88: =IF(B88=0,"",SUM(I87:I92)) ->  | K88: =IF(C88="","",IF(A$2=Parametres!A$79,Parametres!E$61,IF(A$2=Parametres!A$78,Parametres!E$60,IF(C88<=Parametres!D$56,Parametres!E$56,IF(C88<=Parametres!D$57,Parametres!E$57,IF(C88<=Parametres!D$58,Parametres!E$58,IF(C88>Parametres!D$59,Parametres!E$59,""))))))) ->  | N88: =IF(B88="","",IF(A$2=Parametres!A$79,IF((L88+M88)>0,(J88+L88+M88),J88*(1+Parametres!G$49)),J88+J88*K88)) ->  | O88: =IF(B88=0,"",IF(A$2=Parametres!A$77,Parametres!D$10,IF(A$2=Parametres!A$78,Parametres!F$9,IF(A$2=Parametres!A$79,Parametres!H$9,"")))) ->  | V88: =IF(Q88="gratuit","",IF(S88=0,0,IF(S88="","",U88/T88))) ->  | W88: =IF(Q88="gratuit","",IF(B88=0,"",IF(A$2=Parametres!A$77,IF(V88<Parametres!C$21,0,IF(V88<Parametres!D$41,Parametres!E$41,IF(V88<Parametres!C$42,Parametres!E$42,IF(V88<Parametres!C$43,Parametres!E$43,Parametres!E$44)))), IF(A$2=Parametres!A$78,IF(V88<Parametres!E$21,0,IF(V88<Parametres!D$41,Parametres!E$41,IF(V88<Parametres!C$42,Parametres!E$42,IF(V88<Parametres!C$43,Parametres!E$43,Parametres!E$44)))), IF(A$2=Parametres!A$79,IF(V88<Parametres!G$21,0,IF(V88<Parametres!D$41,Parametres!E$41,IF(V88<Parametres!C$42,Parametres!E$42,IF(V88<Parametres!C$43,Parametres!E$43,Parametres!E$44))))))))) ->  | X88: =IF(B88=0,"",IF(A$2=Parametres!A$77,Parametres!D$10,IF(A$2=Parametres!A$78,Parametres!F$10,IF(A$2=Parametres!A$79,Parametres!H$10,"")))) ->  | AB88: =IF(B88=0,"",IF(A$2=Parametres!A$77,Parametres!D$20,IF(A$2=Parametres!A$78,Parametres!F$20,IF(A$2=Parametres!A$79,Parametres!H$20,"")))) ->  | AD88: =IF(A$2=Parametres!A$77,IF(B88=0,"",IF(P88>(Y88+AC88),IF(P88<Parametres!D$28,"FORFAIT MINI","DEPENSES"),IF((Y88+AC88)<Parametres!D$28,"FORFAIT MINI","RECETTES"))),IF(A$2=Parametres!A$78,"",IF(A$2=Parametres!A$79,IF(B88=0,"",IF(T88>0,IF(AND(R88/T88<20,N88<5000),"FORFAIT MINI S.O.",IF(P88>(Y88+AC88),IF(P88<Parametres!D$28,"FORFAIT MINI","DEPENSES"),IF((Y88+AC88)<Parametres!D$28,"FORFAIT MINI","RECETTES"))),IF(N88<5000,"FORFAIT MINI S.O.",IF(P88>(Y88+AC88),IF(P88<Parametres!D$28,"FORFAIT MINI","DEPENSES"),IF((Y88+AC88)<Parametres!D$28,"FORFAIT MINI","RECETTES")))))))) ->  | AE88: =IF(T88>0,IF(AD88="FORFAIT MINI S.O.",INDEX(FSOTab,MATCH(R88/T88,FSOPrix,1)+1,MATCH(N88,FSOBudget,1)),IF(A$2=Parametres!A$78,"",IF(B88=0,"",ROUND(IF(P88>(Y88+AC88),IF(P88<Parametres!D$28,Parametres!D$28,P88),IF((Y88+AC88)<Parametres!D$28,Parametres!D$28,(Y88+AC88))),2)))),IF(AD88="FORFAIT MINI S.O.",INDEX(FSOTab,MATCH(0,FSOPrix,1)+1,MATCH(N88,FSOBudget,1)),IF(A$2=Parametres!A$78,"",IF(B88=0,"",ROUND(IF(P88>(Y88+AC88),IF(P88<Parametres!D$28,Parametres!D$28,P88),IF((Y88+AC88)<Parametres!D$28,Parametres!D$28,(Y88+AC88))),2))))) ->  | AF88: =IF(A$2=Parametres!A$78,"",IF(B88=0,"",ROUND(AE88*Parametres!C$66,2))) ->  | AG88: =IF(A$2=Parametres!A$78,"",IF(B88=0,"",ROUND(AE88*Parametres!C$67,2))) ->  | AH88: =IF(A$2=Parametres!A$78,"",IF(B88=0,"",ROUND(AE88*Parametres!C$68,2))) ->  | AI88: =IF(A$2=Parametres!A$78,"",IF(B88=0,"",SUM(ROUND(AE88,2),ROUND(AF88,2),ROUND(AG88,2),ROUND(AH88,2)))) -> 
I89: =IF(F89=0,"",IF(A$2=Parametres!A$77,IF(G89="Oui",IF(H89="Oui",F89-F89*Parametres!C$50-(F89-F89*Parametres!C$50)*Parametres!C$51,IF(H89="Non",F89-F89*Parametres!C$50,"")),IF(G89="Non",IF(H89="Oui",F89-F89*Parametres!C$51,IF(H89="Non",F89,"")))),IF(A$2=Parametres!A$78,IF(G89="Oui",IF(H89="Oui",F89-F89*Parametres!C$50-(F89-F89*Parametres!C$50)*Parametres!C$51,IF(H89="Non",F89-F89*Parametres!E$50,"")),IF(G89="Non",IF(H89="Oui",F89-F89*Parametres!E$51,IF(H89="Non",F89,"")))),IF(A$2=Parametres!A$79,IF(G89="Oui",IF(H89="Oui",F89-F89*Parametres!G$50-(F89-F89*Parametres!G$50)*Parametres!G$51,IF(H89="Non",F89-F89*Parametres!G$50,"")),IF(G89="Non",IF(H89="Oui",F89-F89*Parametres!G$51,IF(H89="Non",F89,"")))),"")))) ->  | J89: =IF(B89=0,"",(I87:I92)) ->  | K89: =IF(C89="","",IF(A$2=Parametres!A$79,Parametres!E$61,IF(A$2=Parametres!A$78,Parametres!E$60,IF(C89<=Parametres!D$56,Parametres!E$56,IF(C89<=Parametres!D$57,Parametres!E$57,IF(C89<=Parametres!D$58,Parametres!E$58,IF(C89>Parametres!D$59,Parametres!E$59,""))))))) ->  | N89: =IF(B89="","",IF(A$2=Parametres!A$79,IF((L89+M89)>0,(J89+L89+M89),J89*(1+Parametres!G$49)),J89+J89*K89)) ->  | O89: =IF(B89=0,"",IF(A$2=Parametres!A$77,Parametres!D$10,IF(A$2=Parametres!A$78,Parametres!F$9,IF(A$2=Parametres!A$79,Parametres!H$9,"")))) ->  | W89: =IF(Q89="gratuit","",IF(B89=0,"",IF(A$2=Parametres!A$77,IF(V89<Parametres!C$21,0,IF(V89<Parametres!D$41,Parametres!E$41,IF(V89<Parametres!C$42,Parametres!E$42,IF(V89<Parametres!C$43,Parametres!E$43,Parametres!E$44)))), IF(A$2=Parametres!A$78,IF(V89<Parametres!E$21,0,IF(V89<Parametres!D$41,Parametres!E$41,IF(V89<Parametres!C$42,Parametres!E$42,IF(V89<Parametres!C$43,Parametres!E$43,Parametres!E$44)))), IF(A$2=Parametres!A$79,IF(V89<Parametres!G$21,0,IF(V89<Parametres!D$41,Parametres!E$41,IF(V89<Parametres!C$42,Parametres!E$42,IF(V89<Parametres!C$43,Parametres!E$43,Parametres!E$44))))))))) ->  | X89: =IF(B89=0,"",IF(A$2=Parametres!A$77,Parametres!D$10,IF(A$2=Parametres!A$78,Parametres!F$10,IF(A$2=Parametres!A$79,Parametres!H$10,"")))) ->  | AB89: =IF(B89=0,"",IF(A$2=Parametres!A$77,Parametres!D$20,IF(A$2=Parametres!A$78,Parametres!F$20,IF(A$2=Parametres!A$79,Parametres!H$20,"")))) ->  | AD89: =IF(A$2=Parametres!A$77,IF(B89=0,"",IF(P89>(Y89+AC89),IF(P89<Parametres!D$28,"FORFAIT MINI","DEPENSES"),IF((Y89+AC89)<Parametres!D$28,"FORFAIT MINI","RECETTES"))),IF(A$2=Parametres!A$78,"",IF(A$2=Parametres!A$79,IF(B89=0,"",IF(T89>0,IF(AND(R89/T89<20,N89<5000),"FORFAIT MINI S.O.",IF(P89>(Y89+AC89),IF(P89<Parametres!D$28,"FORFAIT MINI","DEPENSES"),IF((Y89+AC89)<Parametres!D$28,"FORFAIT MINI","RECETTES"))),IF(N89<5000,"FORFAIT MINI S.O.",IF(P89>(Y89+AC89),IF(P89<Parametres!D$28,"FORFAIT MINI","DEPENSES"),IF((Y89+AC89)<Parametres!D$28,"FORFAIT MINI","RECETTES")))))))) ->  | AE89: =IF(T89>0,IF(AD89="FORFAIT MINI S.O.",INDEX(FSOTab,MATCH(R89/T89,FSOPrix,1)+1,MATCH(N89,FSOBudget,1)),IF(A$2=Parametres!A$78,"",IF(B89=0,"",ROUND(IF(P89>(Y89+AC89),IF(P89<Parametres!D$28,Parametres!D$28,P89),IF((Y89+AC89)<Parametres!D$28,Parametres!D$28,(Y89+AC89))),2)))),IF(AD89="FORFAIT MINI S.O.",INDEX(FSOTab,MATCH(0,FSOPrix,1)+1,MATCH(N89,FSOBudget,1)),IF(A$2=Parametres!A$78,"",IF(B89=0,"",ROUND(IF(P89>(Y89+AC89),IF(P89<Parametres!D$28,Parametres!D$28,P89),IF((Y89+AC89)<Parametres!D$28,Parametres!D$28,(Y89+AC89))),2))))) ->  | AF89: =IF(A$2=Parametres!A$78,"",IF(B89=0,"",ROUND(AE89*Parametres!C$66,2))) ->  | AG89: =IF(A$2=Parametres!A$78,"",IF(B89=0,"",ROUND(AE89*Parametres!C$67,2))) ->  | AH89: =IF(A$2=Parametres!A$78,"",IF(B89=0,"",ROUND(AE89*Parametres!C$68,2))) ->  | AI89: =IF(A$2=Parametres!A$78,"",IF(B89=0,"",SUM(ROUND(AE89,2),ROUND(AF89,2),ROUND(AG89,2),ROUND(AH89,2)))) -> 
I90: =IF(F90=0,"",IF(A$2=Parametres!A$77,IF(G90="Oui",IF(H90="Oui",F90-F90*Parametres!C$50-(F90-F90*Parametres!C$50)*Parametres!C$51,IF(H90="Non",F90-F90*Parametres!C$50,"")),IF(G90="Non",IF(H90="Oui",F90-F90*Parametres!C$51,IF(H90="Non",F90,"")))),IF(A$2=Parametres!A$78,IF(G90="Oui",IF(H90="Oui",F90-F90*Parametres!C$50-(F90-F90*Parametres!C$50)*Parametres!C$51,IF(H90="Non",F90-F90*Parametres!E$50,"")),IF(G90="Non",IF(H90="Oui",F90-F90*Parametres!E$51,IF(H90="Non",F90,"")))),IF(A$2=Parametres!A$79,IF(G90="Oui",IF(H90="Oui",F90-F90*Parametres!G$50-(F90-F90*Parametres!G$50)*Parametres!G$51,IF(H90="Non",F90-F90*Parametres!G$50,"")),IF(G90="Non",IF(H90="Oui",F90-F90*Parametres!G$51,IF(H90="Non",F90,"")))),"")))) ->  | J90: =IF(B90=0,"",SUM(I87:I92)) ->  | K90: =IF(C90="","",IF(A$2=Parametres!A$79,Parametres!E$61,IF(A$2=Parametres!A$78,Parametres!E$60,IF(C90<=Parametres!D$56,Parametres!E$56,IF(C90<=Parametres!D$57,Parametres!E$57,IF(C90<=Parametres!D$58,Parametres!E$58,IF(C90>Parametres!D$59,Parametres!E$59,""))))))) ->  | N90: =IF(B90="","",IF(A$2=Parametres!A$79,IF((L90+M90)>0,(J90+L90+M90),J90*(1+Parametres!G$49)),J90+J90*K90)) ->  | O90: =IF(B90=0,"",IF(A$2=Parametres!A$77,Parametres!D$10,IF(A$2=Parametres!A$78,Parametres!F$9,IF(A$2=Parametres!A$79,Parametres!H$9,"")))) ->  | W90: =IF(Q90="gratuit","",IF(B90=0,"",IF(A$2=Parametres!A$77,IF(V90<Parametres!C$21,0,IF(V90<Parametres!D$41,Parametres!E$41,IF(V90<Parametres!C$42,Parametres!E$42,IF(V90<Parametres!C$43,Parametres!E$43,Parametres!E$44)))), IF(A$2=Parametres!A$78,IF(V90<Parametres!E$21,0,IF(V90<Parametres!D$41,Parametres!E$41,IF(V90<Parametres!C$42,Parametres!E$42,IF(V90<Parametres!C$43,Parametres!E$43,Parametres!E$44)))), IF(A$2=Parametres!A$79,IF(V90<Parametres!G$21,0,IF(V90<Parametres!D$41,Parametres!E$41,IF(V90<Parametres!C$42,Parametres!E$42,IF(V90<Parametres!C$43,Parametres!E$43,Parametres!E$44))))))))) ->  | X90: =IF(B90=0,"",IF(A$2=Parametres!A$77,Parametres!D$10,IF(A$2=Parametres!A$78,Parametres!F$10,IF(A$2=Parametres!A$79,Parametres!H$10,"")))) ->  | AB90: =IF(B90=0,"",IF(A$2=Parametres!A$77,Parametres!D$20,IF(A$2=Parametres!A$78,Parametres!F$20,IF(A$2=Parametres!A$79,Parametres!H$20,"")))) ->  | AD90: =IF(A$2=Parametres!A$77,IF(B90=0,"",IF(P90>(Y90+AC90),IF(P90<Parametres!D$28,"FORFAIT MINI","DEPENSES"),IF((Y90+AC90)<Parametres!D$28,"FORFAIT MINI","RECETTES"))),IF(A$2=Parametres!A$78,"",IF(A$2=Parametres!A$79,IF(B90=0,"",IF(T90>0,IF(AND(R90/T90<20,N90<5000),"FORFAIT MINI S.O.",IF(P90>(Y90+AC90),IF(P90<Parametres!D$28,"FORFAIT MINI","DEPENSES"),IF((Y90+AC90)<Parametres!D$28,"FORFAIT MINI","RECETTES"))),IF(N90<5000,"FORFAIT MINI S.O.",IF(P90>(Y90+AC90),IF(P90<Parametres!D$28,"FORFAIT MINI","DEPENSES"),IF((Y90+AC90)<Parametres!D$28,"FORFAIT MINI","RECETTES")))))))) ->  | AE90: =IF(T90>0,IF(AD90="FORFAIT MINI S.O.",INDEX(FSOTab,MATCH(R90/T90,FSOPrix,1)+1,MATCH(N90,FSOBudget,1)),IF(A$2=Parametres!A$78,"",IF(B90=0,"",ROUND(IF(P90>(Y90+AC90),IF(P90<Parametres!D$28,Parametres!D$28,P90),IF((Y90+AC90)<Parametres!D$28,Parametres!D$28,(Y90+AC90))),2)))),IF(AD90="FORFAIT MINI S.O.",INDEX(FSOTab,MATCH(0,FSOPrix,1)+1,MATCH(N90,FSOBudget,1)),IF(A$2=Parametres!A$78,"",IF(B90=0,"",ROUND(IF(P90>(Y90+AC90),IF(P90<Parametres!D$28,Parametres!D$28,P90),IF((Y90+AC90)<Parametres!D$28,Parametres!D$28,(Y90+AC90))),2))))) ->  | AF90: =IF(A$2=Parametres!A$78,"",IF(B90=0,"",ROUND(AE90*Parametres!C$66,2))) ->  | AG90: =IF(A$2=Parametres!A$78,"",IF(B90=0,"",ROUND(AE90*Parametres!C$67,2))) ->  | AH90: =IF(A$2=Parametres!A$78,"",IF(B90=0,"",ROUND(AE90*Parametres!C$68,2))) ->  | AI90: =IF(A$2=Parametres!A$78,"",IF(B90=0,"",SUM(ROUND(AE90,2),ROUND(AF90,2),ROUND(AG90,2),ROUND(AH90,2)))) -> 
I91: =IF(F91=0,"",IF(A$2=Parametres!A$77,IF(G91="Oui",IF(H91="Oui",F91-F91*Parametres!C$50-(F91-F91*Parametres!C$50)*Parametres!C$51,IF(H91="Non",F91-F91*Parametres!C$50,"")),IF(G91="Non",IF(H91="Oui",F91-F91*Parametres!C$51,IF(H91="Non",F91,"")))),IF(A$2=Parametres!A$78,IF(G91="Oui",IF(H91="Oui",F91-F91*Parametres!C$50-(F91-F91*Parametres!C$50)*Parametres!C$51,IF(H91="Non",F91-F91*Parametres!E$50,"")),IF(G91="Non",IF(H91="Oui",F91-F91*Parametres!E$51,IF(H91="Non",F91,"")))),IF(A$2=Parametres!A$79,IF(G91="Oui",IF(H91="Oui",F91-F91*Parametres!G$50-(F91-F91*Parametres!G$50)*Parametres!G$51,IF(H91="Non",F91-F91*Parametres!G$50,"")),IF(G91="Non",IF(H91="Oui",F91-F91*Parametres!G$51,IF(H91="Non",F91,"")))),"")))) ->  | J91: =IF(B91=0,"",SUM(I87:I92)) ->  | K91: =IF(C91="","",IF(A$2=Parametres!A$79,Parametres!E$61,IF(A$2=Parametres!A$78,Parametres!E$60,IF(C91<=Parametres!D$56,Parametres!E$56,IF(C91<=Parametres!D$57,Parametres!E$57,IF(C91<=Parametres!D$58,Parametres!E$58,IF(C91>Parametres!D$59,Parametres!E$59,""))))))) ->  | N91: =IF(B91="","",IF(A$2=Parametres!A$79,IF((L91+M91)>0,(J91+L91+M91),J91*(1+Parametres!G$49)),J91+J91*K91)) ->  | O91: =IF(B91=0,"",IF(A$2=Parametres!A$77,Parametres!D$10,IF(A$2=Parametres!A$78,Parametres!F$9,IF(A$2=Parametres!A$79,Parametres!H$9,"")))) ->  | W91: =IF(Q91="gratuit","",IF(B91=0,"",IF(A$2=Parametres!A$77,IF(V91<Parametres!C$21,0,IF(V91<Parametres!D$41,Parametres!E$41,IF(V91<Parametres!C$42,Parametres!E$42,IF(V91<Parametres!C$43,Parametres!E$43,Parametres!E$44)))), IF(A$2=Parametres!A$78,IF(V91<Parametres!E$21,0,IF(V91<Parametres!D$41,Parametres!E$41,IF(V91<Parametres!C$42,Parametres!E$42,IF(V91<Parametres!C$43,Parametres!E$43,Parametres!E$44)))), IF(A$2=Parametres!A$79,IF(V91<Parametres!G$21,0,IF(V91<Parametres!D$41,Parametres!E$41,IF(V91<Parametres!C$42,Parametres!E$42,IF(V91<Parametres!C$43,Parametres!E$43,Parametres!E$44))))))))) ->  | X91: =IF(B91=0,"",IF(A$2=Parametres!A$77,Parametres!D$10,IF(A$2=Parametres!A$78,Parametres!F$10,IF(A$2=Parametres!A$79,Parametres!H$10,"")))) ->  | AB91: =IF(B91=0,"",IF(A$2=Parametres!A$77,Parametres!D$20,IF(A$2=Parametres!A$78,Parametres!F$20,IF(A$2=Parametres!A$79,Parametres!H$20,"")))) ->  | AD91: =IF(A$2=Parametres!A$77,IF(B91=0,"",IF(P91>(Y91+AC91),IF(P91<Parametres!D$28,"FORFAIT MINI","DEPENSES"),IF((Y91+AC91)<Parametres!D$28,"FORFAIT MINI","RECETTES"))),IF(A$2=Parametres!A$78,"",IF(A$2=Parametres!A$79,IF(B91=0,"",IF(T91>0,IF(AND(R91/T91<20,N91<5000),"FORFAIT MINI S.O.",IF(P91>(Y91+AC91),IF(P91<Parametres!D$28,"FORFAIT MINI","DEPENSES"),IF((Y91+AC91)<Parametres!D$28,"FORFAIT MINI","RECETTES"))),IF(N91<5000,"FORFAIT MINI S.O.",IF(P91>(Y91+AC91),IF(P91<Parametres!D$28,"FORFAIT MINI","DEPENSES"),IF((Y91+AC91)<Parametres!D$28,"FORFAIT MINI","RECETTES")))))))) ->  | AE91: =IF(T91>0,IF(AD91="FORFAIT MINI S.O.",INDEX(FSOTab,MATCH(R91/T91,FSOPrix,1)+1,MATCH(N91,FSOBudget,1)),IF(A$2=Parametres!A$78,"",IF(B91=0,"",ROUND(IF(P91>(Y91+AC91),IF(P91<Parametres!D$28,Parametres!D$28,P91),IF((Y91+AC91)<Parametres!D$28,Parametres!D$28,(Y91+AC91))),2)))),IF(AD91="FORFAIT MINI S.O.",INDEX(FSOTab,MATCH(0,FSOPrix,1)+1,MATCH(N91,FSOBudget,1)),IF(A$2=Parametres!A$78,"",IF(B91=0,"",ROUND(IF(P91>(Y91+AC91),IF(P91<Parametres!D$28,Parametres!D$28,P91),IF((Y91+AC91)<Parametres!D$28,Parametres!D$28,(Y91+AC91))),2))))) ->  | AF91: =IF(A$2=Parametres!A$78,"",IF(B91=0,"",ROUND(AE91*Parametres!C$66,2))) ->  | AG91: =IF(A$2=Parametres!A$78,"",IF(B91=0,"",ROUND(AE91*Parametres!C$67,2))) ->  | AH91: =IF(A$2=Parametres!A$78,"",IF(B91=0,"",ROUND(AE91*Parametres!C$68,2))) ->  | AI91: =IF(A$2=Parametres!A$78,"",IF(B91=0,"",SUM(ROUND(AE91,2),ROUND(AF91,2),ROUND(AG91,2),ROUND(AH91,2)))) -> 
I92: =IF(F92=0,"",IF(A$2=Parametres!A$77,IF(G92="Oui",IF(H92="Oui",F92-F92*Parametres!C$50-(F92-F92*Parametres!C$50)*Parametres!C$51,IF(H92="Non",F92-F92*Parametres!C$50,"")),IF(G92="Non",IF(H92="Oui",F92-F92*Parametres!C$51,IF(H92="Non",F92,"")))),IF(A$2=Parametres!A$78,IF(G92="Oui",IF(H92="Oui",F92-F92*Parametres!C$50-(F92-F92*Parametres!C$50)*Parametres!C$51,IF(H92="Non",F92-F92*Parametres!E$50,"")),IF(G92="Non",IF(H92="Oui",F92-F92*Parametres!E$51,IF(H92="Non",F92,"")))),IF(A$2=Parametres!A$79,IF(G92="Oui",IF(H92="Oui",F92-F92*Parametres!G$50-(F92-F92*Parametres!G$50)*Parametres!G$51,IF(H92="Non",F92-F92*Parametres!G$50,"")),IF(G92="Non",IF(H92="Oui",F92-F92*Parametres!G$51,IF(H92="Non",F92,"")))),"")))) ->  | J92: =IF(B92=0,"",SUM(I87:I92)) ->  | K92: =IF(C92="","",IF(A$2=Parametres!A$79,Parametres!E$61,IF(A$2=Parametres!A$78,Parametres!E$60,IF(C92<=Parametres!D$56,Parametres!E$56,IF(C92<=Parametres!D$57,Parametres!E$57,IF(C92<=Parametres!D$58,Parametres!E$58,IF(C92>Parametres!D$59,Parametres!E$59,""))))))) ->  | N92: =IF(B92="","",IF(A$2=Parametres!A$79,IF((L92+M92)>0,(J92+L92+M92),J92*(1+Parametres!G$49)),J92+J92*K92)) ->  | O92: =IF(B92=0,"",IF(A$2=Parametres!A$77,Parametres!D$10,IF(A$2=Parametres!A$78,Parametres!F$9,IF(A$2=Parametres!A$79,Parametres!H$9,"")))) ->  | W92: =IF(Q92="gratuit","",IF(B92=0,"",IF(A$2=Parametres!A$77,IF(V92<Parametres!C$21,0,IF(V92<Parametres!D$41,Parametres!E$41,IF(V92<Parametres!C$42,Parametres!E$42,IF(V92<Parametres!C$43,Parametres!E$43,Parametres!E$44)))), IF(A$2=Parametres!A$78,IF(V92<Parametres!E$21,0,IF(V92<Parametres!D$41,Parametres!E$41,IF(V92<Parametres!C$42,Parametres!E$42,IF(V92<Parametres!C$43,Parametres!E$43,Parametres!E$44)))), IF(A$2=Parametres!A$79,IF(V92<Parametres!G$21,0,IF(V92<Parametres!D$41,Parametres!E$41,IF(V92<Parametres!C$42,Parametres!E$42,IF(V92<Parametres!C$43,Parametres!E$43,Parametres!E$44))))))))) ->  | X92: =IF(B92=0,"",IF(A$2=Parametres!A$77,Parametres!D$10,IF(A$2=Parametres!A$78,Parametres!F$10,IF(A$2=Parametres!A$79,Parametres!H$10,"")))) ->  | AB92: =IF(B92=0,"",IF(A$2=Parametres!A$77,Parametres!D$20,IF(A$2=Parametres!A$78,Parametres!F$20,IF(A$2=Parametres!A$79,Parametres!H$20,"")))) ->  | AD92: =IF(A$2=Parametres!A$77,IF(B92=0,"",IF(P92>(Y92+AC92),IF(P92<Parametres!D$28,"FORFAIT MINI","DEPENSES"),IF((Y92+AC92)<Parametres!D$28,"FORFAIT MINI","RECETTES"))),IF(A$2=Parametres!A$78,"",IF(A$2=Parametres!A$79,IF(B92=0,"",IF(T92>0,IF(AND(R92/T92<20,N92<5000),"FORFAIT MINI S.O.",IF(P92>(Y92+AC92),IF(P92<Parametres!D$28,"FORFAIT MINI","DEPENSES"),IF((Y92+AC92)<Parametres!D$28,"FORFAIT MINI","RECETTES"))),IF(N92<5000,"FORFAIT MINI S.O.",IF(P92>(Y92+AC92),IF(P92<Parametres!D$28,"FORFAIT MINI","DEPENSES"),IF((Y92+AC92)<Parametres!D$28,"FORFAIT MINI","RECETTES")))))))) ->  | AE92: =IF(T92>0,IF(AD92="FORFAIT MINI S.O.",INDEX(FSOTab,MATCH(R92/T92,FSOPrix,1)+1,MATCH(N92,FSOBudget,1)),IF(A$2=Parametres!A$78,"",IF(B92=0,"",ROUND(IF(P92>(Y92+AC92),IF(P92<Parametres!D$28,Parametres!D$28,P92),IF((Y92+AC92)<Parametres!D$28,Parametres!D$28,(Y92+AC92))),2)))),IF(AD92="FORFAIT MINI S.O.",INDEX(FSOTab,MATCH(0,FSOPrix,1)+1,MATCH(N92,FSOBudget,1)),IF(A$2=Parametres!A$78,"",IF(B92=0,"",ROUND(IF(P92>(Y92+AC92),IF(P92<Parametres!D$28,Parametres!D$28,P92),IF((Y92+AC92)<Parametres!D$28,Parametres!D$28,(Y92+AC92))),2))))) ->  | AF92: =IF(A$2=Parametres!A$78,"",IF(B92=0,"",ROUND(AE92*Parametres!C$66,2))) ->  | AG92: =IF(A$2=Parametres!A$78,"",IF(B92=0,"",ROUND(AE92*Parametres!C$67,2))) ->  | AH92: =IF(A$2=Parametres!A$78,"",IF(B92=0,"",ROUND(AE92*Parametres!C$68,2))) ->  | AI92: =IF(A$2=Parametres!A$78,"",IF(B92=0,"",SUM(ROUND(AE92,2),ROUND(AF92,2),ROUND(AG92,2),ROUND(AH92,2)))) -> 
I94: =IF(F94=0,"",IF(A$2=Parametres!A$77,IF(G94="Oui",IF(H94="Oui",F94-F94*Parametres!C$50-(F94-F94*Parametres!C$50)*Parametres!C$51,IF(H94="Non",F94-F94*Parametres!C$50,"")),IF(G94="Non",IF(H94="Oui",F94-F94*Parametres!C$51,IF(H94="Non",F94,"")))),IF(A$2=Parametres!A$78,IF(G94="Oui",IF(H94="Oui",F94-F94*Parametres!C$50-(F94-F94*Parametres!C$50)*Parametres!C$51,IF(H94="Non",F94-F94*Parametres!E$50,"")),IF(G94="Non",IF(H94="Oui",F94-F94*Parametres!E$51,IF(H94="Non",F94,"")))),IF(A$2=Parametres!A$79,IF(G94="Oui",IF(H94="Oui",F94-F94*Parametres!G$50-(F94-F94*Parametres!G$50)*Parametres!G$51,IF(H94="Non",F94-F94*Parametres!G$50,"")),IF(G94="Non",IF(H94="Oui",F94-F94*Parametres!G$51,IF(H94="Non",F94,"")))),"")))) ->  | J94: =IF(B94=0,"",SUM(I94:I99)) ->  | K94: =IF(C94="","",IF(A$2=Parametres!A$79,Parametres!E$61,IF(A$2=Parametres!A$78,Parametres!E$60,IF(C94<=Parametres!D$56,Parametres!E$56,IF(C94<=Parametres!D$57,Parametres!E$57,IF(C94<=Parametres!D$58,Parametres!E$58,IF(C94>Parametres!D$59,Parametres!E$59,""))))))) ->  | N94: =IF(B94="","",IF(A$2=Parametres!A$79,IF((L94+M94)>0,(J94+L94+M94),J94*(1+Parametres!G$49)),J94+J94*K94)) ->  | O94: =IF(B94=0,"",IF(A$2=Parametres!A$77,Parametres!D$10,IF(A$2=Parametres!A$78,Parametres!F$10,IF(A$2=Parametres!A$79,Parametres!H$10,"")))) ->  | P94: =IF(B94=0,"",O94*N94) ->  | Q94: =IF(R94>0,"payant",IF(B94=0,"","gratuit")) ->  | S94: =IF(B94=0,"",T94+U94) ->  | V94: =IF(Q94="gratuit","",IF(S94=0,0,IF(S94="","",U94/T94))) ->  | W94: =IF(Q94="gratuit","",IF(B94=0,"",IF(A$2=Parametres!A$77,IF(V94<Parametres!C$21,0,IF(V94<Parametres!D$41,Parametres!E$41,IF(V94<Parametres!C$42,Parametres!E$42,IF(V94<Parametres!C$43,Parametres!E$43,Parametres!E$44)))), IF(A$2=Parametres!A$78,IF(V94<Parametres!E$21,0,IF(V94<Parametres!D$41,Parametres!E$41,IF(V94<Parametres!C$42,Parametres!E$42,IF(V94<Parametres!C$43,Parametres!E$43,Parametres!E$44)))), IF(A$2=Parametres!A$79,IF(V94<Parametres!G$21,0,IF(V94<Parametres!D$41,Parametres!E$41,IF(V94<Parametres!C$42,Parametres!E$42,IF(V94<Parametres!C$43,Parametres!E$43,Parametres!E$44))))))))) ->  | X94: =IF(B94=0,"",IF(A$2=Parametres!A$77,Parametres!D$10,IF(A$2=Parametres!A$78,Parametres!F$10,IF(A$2=Parametres!A$79,Parametres!H$10,"")))) ->  | Y94: =IF(B94=0,"",IF(Q94="gratuit",R94*X94,R94*X94+(R94*X94)*W94)) ->  | AB94: =IF(B94=0,"",IF(A$2=Parametres!A$77,Parametres!D$20,IF(A$2=Parametres!A$78,Parametres!F$20,IF(A$2=Parametres!A$79,Parametres!H$20,"")))) ->  | AC94: =IF(B94=0,"",(Z94+AA94)*AB94) ->  | AD94: =IF(A$2=Parametres!A$77,IF(B94=0,"",IF(P94>(Y94+AC94),IF(P94<Parametres!D$28,"FORFAIT MINI","DEPENSES"),IF((Y94+AC94)<Parametres!D$28,"FORFAIT MINI","RECETTES"))),IF(A$2=Parametres!A$78,"",IF(A$2=Parametres!A$79,IF(B94=0,"",IF(T94>0,IF(AND(R94/T94<20,N94<5000),"FORFAIT MINI S.O.",IF(P94>(Y94+AC94),IF(P94<Parametres!D$28,"FORFAIT MINI","DEPENSES"),IF((Y94+AC94)<Parametres!D$28,"FORFAIT MINI","RECETTES"))),IF(N94<5000,"FORFAIT MINI S.O.",IF(P94>(Y94+AC94),IF(P94<Parametres!D$28,"FORFAIT MINI","DEPENSES"),IF((Y94+AC94)<Parametres!D$28,"FORFAIT MINI","RECETTES")))))))) ->  | AE94: =IF(T94>0,IF(AD94="FORFAIT MINI S.O.",INDEX(FSOTab,MATCH(R94/T94,FSOPrix,1)+1,MATCH(N94,FSOBudget,1)),IF(A$2=Parametres!A$78,"",IF(B94=0,"",ROUND(IF(P94>(Y94+AC94),IF(P94<Parametres!D$28,Parametres!D$28,P94),IF((Y94+AC94)<Parametres!D$28,Parametres!D$28,(Y94+AC94))),2)))),IF(AD94="FORFAIT MINI S.O.",INDEX(FSOTab,MATCH(0,FSOPrix,1)+1,MATCH(N94,FSOBudget,1)),IF(A$2=Parametres!A$78,"",IF(B94=0,"",ROUND(IF(P94>(Y94+AC94),IF(P94<Parametres!D$28,Parametres!D$28,P94),IF((Y94+AC94)<Parametres!D$28,Parametres!D$28,(Y94+AC94))),2))))) ->  | AF94: =IF(A$2=Parametres!A$78,"",IF(B94=0,"",ROUND(AE94*Parametres!C$66,2))) ->  | AG94: =IF(A$2=Parametres!A$78,"",IF(B94=0,"",ROUND(AE94*Parametres!C$67,2))) ->  | AH94: =IF(A$2=Parametres!A$78,"",IF(B94=0,"",ROUND(AE94*Parametres!C$68,2))) ->  | AI94: =IF(A$2=Parametres!A$78,"",IF(B94=0,"",SUM(ROUND(AE94,2),ROUND(AF94,2),ROUND(AG94,2),ROUND(AH94,2)))) -> 
I95: =IF(F95=0,"",IF(A$2=Parametres!A$77,IF(G95="Oui",IF(H95="Oui",F95-F95*Parametres!C$50-(F95-F95*Parametres!C$50)*Parametres!C$51,IF(H95="Non",F95-F95*Parametres!C$50,"")),IF(G95="Non",IF(H95="Oui",F95-F95*Parametres!C$51,IF(H95="Non",F95,"")))),IF(A$2=Parametres!A$78,IF(G95="Oui",IF(H95="Oui",F95-F95*Parametres!C$50-(F95-F95*Parametres!C$50)*Parametres!C$51,IF(H95="Non",F95-F95*Parametres!E$50,"")),IF(G95="Non",IF(H95="Oui",F95-F95*Parametres!E$51,IF(H95="Non",F95,"")))),IF(A$2=Parametres!A$79,IF(G95="Oui",IF(H95="Oui",F95-F95*Parametres!G$50-(F95-F95*Parametres!G$50)*Parametres!G$51,IF(H95="Non",F95-F95*Parametres!G$50,"")),IF(G95="Non",IF(H95="Oui",F95-F95*Parametres!G$51,IF(H95="Non",F95,"")))),"")))) ->  | J95: =IF(B95=0,"",SUM(I94:I99)) ->  | K95: =IF(C95="","",IF(A$2=Parametres!A$79,Parametres!E$61,IF(A$2=Parametres!A$78,Parametres!E$60,IF(C95<=Parametres!D$56,Parametres!E$56,IF(C95<=Parametres!D$57,Parametres!E$57,IF(C95<=Parametres!D$58,Parametres!E$58,IF(C95>Parametres!D$59,Parametres!E$59,""))))))) ->  | N95: =IF(B95="","",IF(A$2=Parametres!A$79,IF((L95+M95)>0,(J95+L95+M95),J95*(1+Parametres!G$49)),J95+J95*K95)) ->  | O95: =IF(B95=0,"",IF(A$2=Parametres!A$77,Parametres!D$10,IF(A$2=Parametres!A$78,Parametres!F$9,IF(A$2=Parametres!A$79,Parametres!H$9,"")))) ->  | V95: =IF(Q95="gratuit","",IF(S95=0,0,IF(S95="","",U95/T95))) ->  | W95: =IF(Q95="gratuit","",IF(B95=0,"",IF(A$2=Parametres!A$77,IF(V95<Parametres!C$21,0,IF(V95<Parametres!D$41,Parametres!E$41,IF(V95<Parametres!C$42,Parametres!E$42,IF(V95<Parametres!C$43,Parametres!E$43,Parametres!E$44)))), IF(A$2=Parametres!A$78,IF(V95<Parametres!E$21,0,IF(V95<Parametres!D$41,Parametres!E$41,IF(V95<Parametres!C$42,Parametres!E$42,IF(V95<Parametres!C$43,Parametres!E$43,Parametres!E$44)))), IF(A$2=Parametres!A$79,IF(V95<Parametres!G$21,0,IF(V95<Parametres!D$41,Parametres!E$41,IF(V95<Parametres!C$42,Parametres!E$42,IF(V95<Parametres!C$43,Parametres!E$43,Parametres!E$44))))))))) ->  | X95: =IF(B95=0,"",IF(A$2=Parametres!A$77,Parametres!D$10,IF(A$2=Parametres!A$78,Parametres!F$10,IF(A$2=Parametres!A$79,Parametres!H$10,"")))) ->  | AB95: =IF(B95=0,"",IF(A$2=Parametres!A$77,Parametres!D$20,IF(A$2=Parametres!A$78,Parametres!F$20,IF(A$2=Parametres!A$79,Parametres!H$20,"")))) ->  | AD95: =IF(A$2=Parametres!A$77,IF(B95=0,"",IF(P95>(Y95+AC95),IF(P95<Parametres!D$28,"FORFAIT MINI","DEPENSES"),IF((Y95+AC95)<Parametres!D$28,"FORFAIT MINI","RECETTES"))),IF(A$2=Parametres!A$78,"",IF(A$2=Parametres!A$79,IF(B95=0,"",IF(T95>0,IF(AND(R95/T95<20,N95<5000),"FORFAIT MINI S.O.",IF(P95>(Y95+AC95),IF(P95<Parametres!D$28,"FORFAIT MINI","DEPENSES"),IF((Y95+AC95)<Parametres!D$28,"FORFAIT MINI","RECETTES"))),IF(N95<5000,"FORFAIT MINI S.O.",IF(P95>(Y95+AC95),IF(P95<Parametres!D$28,"FORFAIT MINI","DEPENSES"),IF((Y95+AC95)<Parametres!D$28,"FORFAIT MINI","RECETTES")))))))) ->  | AE95: =IF(T95>0,IF(AD95="FORFAIT MINI S.O.",INDEX(FSOTab,MATCH(R95/T95,FSOPrix,1)+1,MATCH(N95,FSOBudget,1)),IF(A$2=Parametres!A$78,"",IF(B95=0,"",ROUND(IF(P95>(Y95+AC95),IF(P95<Parametres!D$28,Parametres!D$28,P95),IF((Y95+AC95)<Parametres!D$28,Parametres!D$28,(Y95+AC95))),2)))),IF(AD95="FORFAIT MINI S.O.",INDEX(FSOTab,MATCH(0,FSOPrix,1)+1,MATCH(N95,FSOBudget,1)),IF(A$2=Parametres!A$78,"",IF(B95=0,"",ROUND(IF(P95>(Y95+AC95),IF(P95<Parametres!D$28,Parametres!D$28,P95),IF((Y95+AC95)<Parametres!D$28,Parametres!D$28,(Y95+AC95))),2))))) ->  | AF95: =IF(A$2=Parametres!A$78,"",IF(B95=0,"",ROUND(AE95*Parametres!C$66,2))) ->  | AG95: =IF(A$2=Parametres!A$78,"",IF(B95=0,"",ROUND(AE95*Parametres!C$67,2))) ->  | AH95: =IF(A$2=Parametres!A$78,"",IF(B95=0,"",ROUND(AE95*Parametres!C$68,2))) ->  | AI95: =IF(A$2=Parametres!A$78,"",IF(B95=0,"",SUM(ROUND(AE95,2),ROUND(AF95,2),ROUND(AG95,2),ROUND(AH95,2)))) -> 
I96: =IF(F96=0,"",IF(A$2=Parametres!A$77,IF(G96="Oui",IF(H96="Oui",F96-F96*Parametres!C$50-(F96-F96*Parametres!C$50)*Parametres!C$51,IF(H96="Non",F96-F96*Parametres!C$50,"")),IF(G96="Non",IF(H96="Oui",F96-F96*Parametres!C$51,IF(H96="Non",F96,"")))),IF(A$2=Parametres!A$78,IF(G96="Oui",IF(H96="Oui",F96-F96*Parametres!C$50-(F96-F96*Parametres!C$50)*Parametres!C$51,IF(H96="Non",F96-F96*Parametres!E$50,"")),IF(G96="Non",IF(H96="Oui",F96-F96*Parametres!E$51,IF(H96="Non",F96,"")))),IF(A$2=Parametres!A$79,IF(G96="Oui",IF(H96="Oui",F96-F96*Parametres!G$50-(F96-F96*Parametres!G$50)*Parametres!G$51,IF(H96="Non",F96-F96*Parametres!G$50,"")),IF(G96="Non",IF(H96="Oui",F96-F96*Parametres!G$51,IF(H96="Non",F96,"")))),"")))) ->  | J96: =IF(B96=0,"",(I94:I99)) ->  | K96: =IF(C96="","",IF(A$2=Parametres!A$79,Parametres!E$61,IF(A$2=Parametres!A$78,Parametres!E$60,IF(C96<=Parametres!D$56,Parametres!E$56,IF(C96<=Parametres!D$57,Parametres!E$57,IF(C96<=Parametres!D$58,Parametres!E$58,IF(C96>Parametres!D$59,Parametres!E$59,""))))))) ->  | N96: =IF(B96="","",IF(A$2=Parametres!A$79,IF((L96+M96)>0,(J96+L96+M96),J96*(1+Parametres!G$49)),J96+J96*K96)) ->  | O96: =IF(B96=0,"",IF(A$2=Parametres!A$77,Parametres!D$10,IF(A$2=Parametres!A$78,Parametres!F$9,IF(A$2=Parametres!A$79,Parametres!H$9,"")))) ->  | W96: =IF(Q96="gratuit","",IF(B96=0,"",IF(A$2=Parametres!A$77,IF(V96<Parametres!C$21,0,IF(V96<Parametres!D$41,Parametres!E$41,IF(V96<Parametres!C$42,Parametres!E$42,IF(V96<Parametres!C$43,Parametres!E$43,Parametres!E$44)))), IF(A$2=Parametres!A$78,IF(V96<Parametres!E$21,0,IF(V96<Parametres!D$41,Parametres!E$41,IF(V96<Parametres!C$42,Parametres!E$42,IF(V96<Parametres!C$43,Parametres!E$43,Parametres!E$44)))), IF(A$2=Parametres!A$79,IF(V96<Parametres!G$21,0,IF(V96<Parametres!D$41,Parametres!E$41,IF(V96<Parametres!C$42,Parametres!E$42,IF(V96<Parametres!C$43,Parametres!E$43,Parametres!E$44))))))))) ->  | X96: =IF(B96=0,"",IF(A$2=Parametres!A$77,Parametres!D$10,IF(A$2=Parametres!A$78,Parametres!F$10,IF(A$2=Parametres!A$79,Parametres!H$10,"")))) ->  | AB96: =IF(B96=0,"",IF(A$2=Parametres!A$77,Parametres!D$20,IF(A$2=Parametres!A$78,Parametres!F$20,IF(A$2=Parametres!A$79,Parametres!H$20,"")))) ->  | AD96: =IF(A$2=Parametres!A$77,IF(B96=0,"",IF(P96>(Y96+AC96),IF(P96<Parametres!D$28,"FORFAIT MINI","DEPENSES"),IF((Y96+AC96)<Parametres!D$28,"FORFAIT MINI","RECETTES"))),IF(A$2=Parametres!A$78,"",IF(A$2=Parametres!A$79,IF(B96=0,"",IF(T96>0,IF(AND(R96/T96<20,N96<5000),"FORFAIT MINI S.O.",IF(P96>(Y96+AC96),IF(P96<Parametres!D$28,"FORFAIT MINI","DEPENSES"),IF((Y96+AC96)<Parametres!D$28,"FORFAIT MINI","RECETTES"))),IF(N96<5000,"FORFAIT MINI S.O.",IF(P96>(Y96+AC96),IF(P96<Parametres!D$28,"FORFAIT MINI","DEPENSES"),IF((Y96+AC96)<Parametres!D$28,"FORFAIT MINI","RECETTES")))))))) ->  | AE96: =IF(T96>0,IF(AD96="FORFAIT MINI S.O.",INDEX(FSOTab,MATCH(R96/T96,FSOPrix,1)+1,MATCH(N96,FSOBudget,1)),IF(A$2=Parametres!A$78,"",IF(B96=0,"",ROUND(IF(P96>(Y96+AC96),IF(P96<Parametres!D$28,Parametres!D$28,P96),IF((Y96+AC96)<Parametres!D$28,Parametres!D$28,(Y96+AC96))),2)))),IF(AD96="FORFAIT MINI S.O.",INDEX(FSOTab,MATCH(0,FSOPrix,1)+1,MATCH(N96,FSOBudget,1)),IF(A$2=Parametres!A$78,"",IF(B96=0,"",ROUND(IF(P96>(Y96+AC96),IF(P96<Parametres!D$28,Parametres!D$28,P96),IF((Y96+AC96)<Parametres!D$28,Parametres!D$28,(Y96+AC96))),2))))) ->  | AF96: =IF(A$2=Parametres!A$78,"",IF(B96=0,"",ROUND(AE96*Parametres!C$66,2))) ->  | AG96: =IF(A$2=Parametres!A$78,"",IF(B96=0,"",ROUND(AE96*Parametres!C$67,2))) ->  | AH96: =IF(A$2=Parametres!A$78,"",IF(B96=0,"",ROUND(AE96*Parametres!C$68,2))) ->  | AI96: =IF(A$2=Parametres!A$78,"",IF(B96=0,"",SUM(ROUND(AE96,2),ROUND(AF96,2),ROUND(AG96,2),ROUND(AH96,2)))) -> 
I97: =IF(F97=0,"",IF(A$2=Parametres!A$77,IF(G97="Oui",IF(H97="Oui",F97-F97*Parametres!C$50-(F97-F97*Parametres!C$50)*Parametres!C$51,IF(H97="Non",F97-F97*Parametres!C$50,"")),IF(G97="Non",IF(H97="Oui",F97-F97*Parametres!C$51,IF(H97="Non",F97,"")))),IF(A$2=Parametres!A$78,IF(G97="Oui",IF(H97="Oui",F97-F97*Parametres!C$50-(F97-F97*Parametres!C$50)*Parametres!C$51,IF(H97="Non",F97-F97*Parametres!E$50,"")),IF(G97="Non",IF(H97="Oui",F97-F97*Parametres!E$51,IF(H97="Non",F97,"")))),IF(A$2=Parametres!A$79,IF(G97="Oui",IF(H97="Oui",F97-F97*Parametres!G$50-(F97-F97*Parametres!G$50)*Parametres!G$51,IF(H97="Non",F97-F97*Parametres!G$50,"")),IF(G97="Non",IF(H97="Oui",F97-F97*Parametres!G$51,IF(H97="Non",F97,"")))),"")))) ->  | J97: =IF(B97=0,"",SUM(I94:I99)) ->  | K97: =IF(C97="","",IF(A$2=Parametres!A$79,Parametres!E$61,IF(A$2=Parametres!A$78,Parametres!E$60,IF(C97<=Parametres!D$56,Parametres!E$56,IF(C97<=Parametres!D$57,Parametres!E$57,IF(C97<=Parametres!D$58,Parametres!E$58,IF(C97>Parametres!D$59,Parametres!E$59,""))))))) ->  | N97: =IF(B97="","",IF(A$2=Parametres!A$79,IF((L97+M97)>0,(J97+L97+M97),J97*(1+Parametres!G$49)),J97+J97*K97)) ->  | O97: =IF(B97=0,"",IF(A$2=Parametres!A$77,Parametres!D$10,IF(A$2=Parametres!A$78,Parametres!F$9,IF(A$2=Parametres!A$79,Parametres!H$9,"")))) ->  | W97: =IF(Q97="gratuit","",IF(B97=0,"",IF(A$2=Parametres!A$77,IF(V97<Parametres!C$21,0,IF(V97<Parametres!D$41,Parametres!E$41,IF(V97<Parametres!C$42,Parametres!E$42,IF(V97<Parametres!C$43,Parametres!E$43,Parametres!E$44)))), IF(A$2=Parametres!A$78,IF(V97<Parametres!E$21,0,IF(V97<Parametres!D$41,Parametres!E$41,IF(V97<Parametres!C$42,Parametres!E$42,IF(V97<Parametres!C$43,Parametres!E$43,Parametres!E$44)))), IF(A$2=Parametres!A$79,IF(V97<Parametres!G$21,0,IF(V97<Parametres!D$41,Parametres!E$41,IF(V97<Parametres!C$42,Parametres!E$42,IF(V97<Parametres!C$43,Parametres!E$43,Parametres!E$44))))))))) ->  | X97: =IF(B97=0,"",IF(A$2=Parametres!A$77,Parametres!D$10,IF(A$2=Parametres!A$78,Parametres!F$10,IF(A$2=Parametres!A$79,Parametres!H$10,"")))) ->  | AB97: =IF(B97=0,"",IF(A$2=Parametres!A$77,Parametres!D$20,IF(A$2=Parametres!A$78,Parametres!F$20,IF(A$2=Parametres!A$79,Parametres!H$20,"")))) ->  | AD97: =IF(A$2=Parametres!A$77,IF(B97=0,"",IF(P97>(Y97+AC97),IF(P97<Parametres!D$28,"FORFAIT MINI","DEPENSES"),IF((Y97+AC97)<Parametres!D$28,"FORFAIT MINI","RECETTES"))),IF(A$2=Parametres!A$78,"",IF(A$2=Parametres!A$79,IF(B97=0,"",IF(T97>0,IF(AND(R97/T97<20,N97<5000),"FORFAIT MINI S.O.",IF(P97>(Y97+AC97),IF(P97<Parametres!D$28,"FORFAIT MINI","DEPENSES"),IF((Y97+AC97)<Parametres!D$28,"FORFAIT MINI","RECETTES"))),IF(N97<5000,"FORFAIT MINI S.O.",IF(P97>(Y97+AC97),IF(P97<Parametres!D$28,"FORFAIT MINI","DEPENSES"),IF((Y97+AC97)<Parametres!D$28,"FORFAIT MINI","RECETTES")))))))) ->  | AE97: =IF(T97>0,IF(AD97="FORFAIT MINI S.O.",INDEX(FSOTab,MATCH(R97/T97,FSOPrix,1)+1,MATCH(N97,FSOBudget,1)),IF(A$2=Parametres!A$78,"",IF(B97=0,"",ROUND(IF(P97>(Y97+AC97),IF(P97<Parametres!D$28,Parametres!D$28,P97),IF((Y97+AC97)<Parametres!D$28,Parametres!D$28,(Y97+AC97))),2)))),IF(AD97="FORFAIT MINI S.O.",INDEX(FSOTab,MATCH(0,FSOPrix,1)+1,MATCH(N97,FSOBudget,1)),IF(A$2=Parametres!A$78,"",IF(B97=0,"",ROUND(IF(P97>(Y97+AC97),IF(P97<Parametres!D$28,Parametres!D$28,P97),IF((Y97+AC97)<Parametres!D$28,Parametres!D$28,(Y97+AC97))),2))))) ->  | AF97: =IF(A$2=Parametres!A$78,"",IF(B97=0,"",ROUND(AE97*Parametres!C$66,2))) ->  | AG97: =IF(A$2=Parametres!A$78,"",IF(B97=0,"",ROUND(AE97*Parametres!C$67,2))) ->  | AH97: =IF(A$2=Parametres!A$78,"",IF(B97=0,"",ROUND(AE97*Parametres!C$68,2))) ->  | AI97: =IF(A$2=Parametres!A$78,"",IF(B97=0,"",SUM(ROUND(AE97,2),ROUND(AF97,2),ROUND(AG97,2),ROUND(AH97,2)))) -> 
